Workbook

Sheet INTRO
C1: Cette version sera utilisée par les pays endémiques à la Loase
B2: Formulaire de Rapport Commun v.3.1 (L)
B4: Le but de ce formulaire de rapport commun - disponible sous forme de fichier Excel - est de mettre à disposition des autorités sanitaires nationales et des gestionnaires de données un outil standardisé qui réponde aux défis, facilite l'intégration et par conséquent contribue à améliorer la gestion de programme. Ce formulaire tend à standardiser le rapport de résultats des programmes nationaux, améliore la disponibilité et la coordination des données de chimioprévention à travers les Bureaux des Régions de l'Organisation mondiale de la Santé. Les autorités nationales sont priées de compléter ce formulaire et de le soumettre à l'Organisation mondiale de la Santé avant le 15 août de l'année en cours pour rapporter les données des activités de chimioprévention mises en oeuvre l'année précédente.
B6: Structure de l'application (feuilles de travail) :
B8: INTRO | C8: Cette feuille contient des instructions pour compléter le formulaire de rapport commun et des informations sur le statut de la chimioprévention pour les maladies d'endémie du pays.
B9: COUNTRY_INFO | C9: Cette feuille contient des informations sur la structure administrative du pays, la population par groupe d'âge, le statut d'endémicité pour chaque maladie, la population devant être traitée par chimioprévention, les interventions prévues et les interventions mises en oeuvre.
B10: MDA1, MDA2, MDA3, T1, T2 et T3 | C10: Ces feuilles contiennent des informations sur l'endémicité des districts ciblés pour le traitement aux médicaments spécifiques pour la chimioprévention, les plans de traitement, et le nombre de personnes traitées par groupe d'âge.
B11: DISTRICT | C11: Cette feuille contient un résumé sur les personnes traitées, par maladie, au niveau de mise en oeuvre. Si les données par genre (sexe) sont disponibles, merci de les saisir.
B12: SUMMARY | C12: Cette feuille contient un résumé sur les personnes traitées, par maladie et par type d'intervention de chimioprévention. Avant de générer le rapport (exécuter macro), veuillez sélectionner la maladie pour laquelle vous souhaitez un rapport. Veuillez suivre le même processus pour générer les divers rapports. Cette feuille doit être imprimée et soumise comme formulaire de rapport commun (voir les instructions pour la soumission du formulaire sous la feuille SUMMARY).
B14: Instructions pour la saisie des données
B16: La plupart des cellules des feuilles de travail mentionnées ci-dessus contiennent des formules calculées automatiquement en fonction du protocole de traitement recommandé par l'OMS pour chaque maladie. Voir : http://www.who.int/neglected_diseases/preventive_chemotherapy/pct_manual/en/index.html
B18: Veuillez entrer vos données dans les cellules en fonction de leur code de couleur :
C20: Blanc - la cellule n'est pas protégée. Veuillez entrer la valeur de l'indicateur demandé.
C22: Jaune - la cellule est protégée et inclut le nom de l'indicateur. Aucune entrée de données requise.
C24: Orange - la cellule n'est pas protégée et contient un menu déroulant. Veuillez sélectionner la valeur dans le menu déroulant.
C27: Vert - la cellule n'est pas protégée et contient des formules. Veuillez changer la valeur indiquée uniquement si vos données sont différentes de celles calculées automatiquement.
C30: Bleu - la cellule est protégée et contient des formules. Aucune entrée de données requise.
B32: Données pays
B34: PAYS | E34: DRC
B36: Année de rapport des données | E36: 2019
B38: Le pays est-il endémique à la filariose lymphatique (FL) ? | E38: Endémique
B40: Le pays est-il endémique à l'onchocercose (ONCHO) ? | E40: Endémique
B42: Le pays est-il endémique aux géohelminthiases (STH) ? | E42: Endémique
B44: Le pays est-il endémique à la schistosomiase (SCH) ? | E44: Endémique
B46: Combien d'unités administratives compte le pays ? | E46: 519
B47: Si les données démographiques par groupe d'âge ne sont pas disponibles au second niveau administratif, veuillez entrer la proportion (%) de population, par groupe d'âge, du pays. Si les données sont disponibles, veuillez laisser les cellules vierges.
B48: 1-4 ans | C48: Enfants d'âge pré-scolaire (EAPréS) | E48: 0.17
B49: 5-14 ans | C49: Enfants d'âge scolaire (EAS) | E49: 0.35
B50: 15 ans et plus | C50: Adultes | E50: 0.46

Sheet COUNTRY_INFO
A1: INFORMATIONS PAYS
A2: Structure administrative, population par groupe d'âge, statut d'endémicité, interventions planifiées et interventions mises en oeuvre
A4: TOTAL | D4: =SUM(D$9:D$1000) -> 102785531 | E4: =SUM(E$9:E$1000) -> 17473537 | F4: =SUM(F$9:F$1000) -> 35974962 | G4: =SUM(G$9:G$1000) -> 47281349 | M4: =SUM(M$9:M$1000) -> 46051090 | N4: =SUM(N$9:N$1000) -> 49326691 | O4: =SUM(O$9:O$1000) -> 29643689 | P4: =SUM(P$9:P$1000) -> 15513368.53
A6: Structure administrative du pays | D6: Population | H6: Endémicité | M6: Population nécessitant la CP | Q6: Nombre de tournées de traitement prévues pour l'année | U6: Mise en oeuvre de la chimioprévention | AC6: mda1 | AD6: mda4 | AE6: mda3 | AF6: t1 | AG6: t2 | AH6: t3r1
A7: Pays | B7: Région/Département | C7: District | D7: Total | E7: EAPréS | F7: EAS | G7: Adultes | H7: FL | I7: Oncho | J7: STH | K7: SCH | L7: Loa | M7: FL | N7: Oncho | O7: STH | P7: SCH | Q7: FL | R7: Oncho | S7: STH | T7: SCH | U7: TOURNEE 1 | V7: TOURNEE 2 | W7: IU_ID | X7: IU_Name | Y7: x | Z7: x | AA7: x | AB7: x | AC7: x | AD7: x | AE7: x | AF7: x | AG7: x | AH7: x | AI7: x | AJ7: x | AK7: x | AL7: x | AM7: x | AN7: x | AO7: x | AP7: x | AQ7: x | AR7: x | AS7: x | AT7: x
A9: =IF(INTRO!$E$34<>0,INTRO!$E$34,"") -> DRC | B9: BAS UELE | C9: Aketi | D9: 146892 | E9: =IF(INTRO!$E$48="","",ROUND($D9*INTRO!$E$48,0)) -> 24972 | F9: =IF(INTRO!$E$49="","",ROUND($D9*INTRO!$E$49,0)) -> 51412 | G9: =IF(INTRO!$E$50="","",ROUND($D9*INTRO!$E$50,0)) -> 67570 | H9: 1 | I9: 1 | J9: 1 | K9: 1 | L9: 1 | M9: =IF(INTRO!$E$38="Endémique", IF($H9>0, IF($H9=4,"Inconnu", IF($H9=99,"Interrompu", $D9)), 0),"Non requis") -> 146892 | N9: =IF(INTRO!$E$40="Endémique", IF($I9>0, IF($I9=4,"Inconnu",IF($I9=99,"Interrompu", $D9)), 0),"Non requis") -> 146892 | O9: =IF(INTRO!$E$42="Endémique", IF(AND($J9>1,$J9<5), IF($J9=4, "Inconnu", E9+F9), 0),"Non requis") -> 0 | P9: =IF(INTRO!$E$44="Endémique", IF(AND($K9>0,$K9<5), IF($K9=4,"Inconnu", IF($K9=1, $F9*0.33, IF($K9=2, $F9*0.5+$G9*0.2, SUM(F9:G9)))), 0),"Non requis") -> 16965.96 | Q9: 1 | R9: 1 | S9: 0 | T9: 0 | U9: MDA1 (IVM+ALB) | W9: 14216 | X9: Aketi | Y9: =X9=C9 -> TRUE | Z9: =ABS((D9-AA9)/AA9*100) -> 7.340665848 | AA9: 136846.5519 | AC9: ='MDA1'!M9 -> 119675 | AD9: ='MDA4'!U9 -> 0 | AE9: ='MDA3'!Q9 -> 0 | AF9: ='T1'!O9 -> 0 | AG9: ='T2'!M9 -> 0 | AH9: =T3_R1!N9 -> 0
A10: =IF(INTRO!$E$34<>0,INTRO!$E$34,"") -> DRC | B10: BAS UELE | C10: Ango | D10: 182706 | E10: =IF(INTRO!$E$48="","",ROUND($D10*INTRO!$E$48,0)) -> 31060 | F10: =IF(INTRO!$E$49="","",ROUND($D10*INTRO!$E$49,0)) -> 63947 | G10: =IF(INTRO!$E$50="","",ROUND($D10*INTRO!$E$50,0)) -> 84045 | H10: 0 | I10: 1 | J10: 3 | K10: 1 | L10: 1 | M10: =IF(INTRO!$E$38="Endémique", IF($H10>0, IF($H10=4,"Inconnu", IF($H10=99,"Interrompu", $D10)), 0),"Non requis") -> 0 | N10: =IF(INTRO!$E$40="Endémique", IF($I10>0, IF($I10=4,"Inconnu",IF($I10=99,"Interrompu", $D10)), 0),"Non requis") -> 182706 | O10: =IF(INTRO!$E$42="Endémique", IF(AND($J10>1,$J10<5), IF($J10=4, "Inconnu", E10+F10), 0),"Non requis") -> 95007 | P10: =IF(INTRO!$E$44="Endémique", IF(AND($K10>0,$K10<5), IF($K10=4,"Inconnu", IF($K10=1, $F10*0.33, IF($K10=2, $F10*0.5+$G10*0.2, SUM(F10:G10)))), 0),"Non requis") -> 21102.51 | Q10: 0 | R10: 1 | S10: 1 | T10: 0 | U10: MDA3 (IVM) | V10: T3 (ALB/MBD) | W10: 14217 | X10: Ango | Y10: =X10=C10 -> TRUE | Z10: =ABS((D10-AA10)/AA10*100) -> 45.96966332 | AA10: 125167.1038 | AC10: ='MDA1'!M10 -> 0 | AD10: ='MDA4'!U10 -> 0 | AE10: ='MDA3'!Q10 -> 146528 | AF10: ='T1'!O10 -> 0 | AG10: ='T2'!M10 -> 0 | AH10: =T3_R1!N10 -> 58161
A11: =IF(INTRO!$E$34<>0,INTRO!$E$34,"") -> DRC | B11: BAS UELE | C11: Bili 1 | D11: 77581 | E11: =IF(INTRO!$E$48="","",ROUND($D11*INTRO!$E$48,0)) -> 13189 | F11: =IF(INTRO!$E$49="","",ROUND($D11*INTRO!$E$49,0)) -> 27153 | G11: =IF(INTRO!$E$50="","",ROUND($D11*INTRO!$E$50,0)) -> 35687 | H11: 0 | I11: 1 | J11: 2 | K11: 1 | L11: 1 | M11: =IF(INTRO!$E$38="Endémique", IF($H11>0, IF($H11=4,"Inconnu", IF($H11=99,"Interrompu", $D11)), 0),"Non requis") -> 0 | N11: =IF(INTRO!$E$40="Endémique", IF($I11>0, IF($I11=4,"Inconnu",IF($I11=99,"Interrompu", $D11)), 0),"Non requis") -> 77581 | O11: =IF(INTRO!$E$42="Endémique", IF(AND($J11>1,$J11<5), IF($J11=4, "Inconnu", E11+F11), 0),"Non requis") -> 40342 | P11: =IF(INTRO!$E$44="Endémique", IF(AND($K11>0,$K11<5), IF($K11=4,"Inconnu", IF($K11=1, $F11*0.33, IF($K11=2, $F11*0.5+$G11*0.2, SUM(F11:G11)))), 0),"Non requis") -> 8960.49 | Q11: 0 | R11: 1 | S11: 1 | T11: 0 | U11: MDA3 (IVM) | V11: T3 (ALB/MBD) | W11: 13903 | X11: Bili (Bas-Ueles) | Y11: FALSE | Z11: 3.914507897 | AA11: 74658.48761 | AC11: ='MDA1'!M11 -> 0 | AD11: ='MDA4'!U11 -> 0 | AE11: ='MDA3'!Q11 -> 62850 | AF11: ='T1'!O11 -> 0 | AG11: ='T2'!M11 -> 0 | AH11: =T3_R1!N11 -> 20600
A12: =IF(INTRO!$E$34<>0,INTRO!$E$34,"") -> DRC | B12: BAS UELE | C12: Bondo | D12: 152694 | E12: =IF(INTRO!$E$48="","",ROUND($D12*INTRO!$E$48,0)) -> 25958 | F12: =IF(INTRO!$E$49="","",ROUND($D12*INTRO!$E$49,0)) -> 53443 | G12: =IF(INTRO!$E$50="","",ROUND($D12*INTRO!$E$50,0)) -> 70239 | H12: 1 | I12: 1 | J12: 2 | K12: 2 | L12: 1 | M12: =IF(INTRO!$E$38="Endémique", IF($H12>0, IF($H12=4,"Inconnu", IF($H12=99,"Interrompu", $D12)), 0),"Non requis") -> 152694 | N12: =IF(INTRO!$E$40="Endémique", IF($I12>0, IF($I12=4,"Inconnu",IF($I12=99,"Interrompu", $D12)), 0),"Non requis") -> 152694 | O12: =IF(INTRO!$E$42="Endémique", IF(AND($J12>1,$J12<5), IF($J12=4, "Inconnu", E12+F12), 0),"Non requis") -> 79401 | P12: =IF(INTRO!$E$44="Endémique", IF(AND($K12>0,$K12<5), IF($K12=4,"Inconnu", IF($K12=1, $F12*0.33, IF($K12=2, $F12*0.5+$G12*0.2, SUM(F12:G12)))), 0),"Non requis") -> 40769.3 | Q12: 1 | R12: 1 | S12: 1 | T12: 1 | U12: MDA1 (IVM+ALB) | V12: T2 (PZQ) | W12: 14232 | X12: Bondo | Y12: TRUE | Z12: 3.537662307 | AA12: 147476.7699 | AC12: ='MDA1'!M12 -> 125517 | AD12: ='MDA4'!U12 -> 0 | AE12: ='MDA3'!Q12 -> 0 | AF12: ='T1'!O12 -> 0 | AG12: ='T2'!M12 -> 51648 | AH12: =T3_R1!N12 -> 0
A13: =IF(INTRO!$E$34<>0,INTRO!$E$34,"") -> DRC | B13: BAS UELE | C13: Buta | D13: 220455 | E13: =IF(INTRO!$E$48="","",ROUND($D13*INTRO!$E$48,0)) -> 37477 | F13: =IF(INTRO!$E$49="","",ROUND($D13*INTRO!$E$49,0)) -> 77159 | G13: =IF(INTRO!$E$50="","",ROUND($D13*INTRO!$E$50,0)) -> 101409 | H13: 1 | I13: 1 | J13: 2 | K13: 3 | L13: 1 | M13: =IF(INTRO!$E$38="Endémique", IF($H13>0, IF($H13=4,"Inconnu", IF($H13=99,"Interrompu", $D13)), 0),"Non requis") -> 220455 | N13: =IF(INTRO!$E$40="Endémique", IF($I13>0, IF($I13=4,"Inconnu",IF($I13=99,"Interrompu", $D13)), 0),"Non requis") -> 220455 | O13: =IF(INTRO!$E$42="Endémique", IF(AND($J13>1,$J13<5), IF($J13=4, "Inconnu", E13+F13), 0),"Non requis") -> 114636 | P13: =IF(INTRO!$E$44="Endémique", IF(AND($K13>0,$K13<5), IF($K13=4,"Inconnu", IF($K13=1, $F13*0.33, IF($K13=2, $F13*0.5+$G13*0.2, SUM(F13:G13)))), 0),"Non requis") -> 178568 | Q13: 1 | R13: 1 | S13: 1 | T13: 1 | U13: MDA1 (IVM+ALB) | V13: T2 (PZQ) | W13: 14234 | X13: Buta | Y13: TRUE | Z13: 2.44476272 | AA13: 215194.0169 | AC13: ='MDA1'!M13 -> 180090 | AD13: ='MDA4'!U13 -> 0 | AE13: ='MDA3'!Q13 -> 0 | AF13: ='T1'!O13 -> 0 | AG13: ='T2'!M13 -> 57964 | AH13: =T3_R1!N13 -> 0
A14: =IF(INTRO!$E$34<>0,INTRO!$E$34,"") -> DRC | B14: BAS UELE | C14: Dingela | D14: 142674 | E14: =IF(INTRO!$E$48="","",ROUND($D14*INTRO!$E$48,0)) -> 24255 | F14: =IF(INTRO!$E$49="","",ROUND($D14*INTRO!$E$49,0)) -> 49936 | G14: =IF(INTRO!$E$50="","",ROUND($D14*INTRO!$E$50,0)) -> 65630 | H14: 0 | I14: 1 | J14: 3 | K14: 1 | L14: 1 | M14: =IF(INTRO!$E$38="Endémique", IF($H14>0, IF($H14=4,"Inconnu", IF($H14=99,"Interrompu", $D14)), 0),"Non requis") -> 0 | N14: =IF(INTRO!$E$40="Endémique", IF($I14>0, IF($I14=4,"Inconnu",IF($I14=99,"Interrompu", $D14)), 0),"Non requis") -> 142674 | O14: =IF(INTRO!$E$42="Endémique", IF(AND($J14>1,$J14<5), IF($J14=4, "Inconnu", E14+F14), 0),"Non requis") -> 74191 | P14: =IF(INTRO!$E$44="Endémique", IF(AND($K14>0,$K14<5), IF($K14=4,"Inconnu", IF($K14=1, $F14*0.33, IF($K14=2, $F14*0.5+$G14*0.2, SUM(F14:G14)))), 0),"Non requis") -> 16478.88 | Q14: 0 | R14: 1 | S14: 1 | T14: 0 | U14: MDA3 (IVM) | V14: T3 (ALB/MBD) | W14: 14241 | X14: Dingela | Y14: TRUE | Z14: 1.572878631 | AA14: 144953.9497 | AC14: ='MDA1'!M14 -> 0 | AD14: ='MDA4'!U14 -> 0 | AE14: ='MDA3'!Q14 -> 117483 | AF14: ='T1'!O14 -> 0 | AG14: ='T2'!M14 -> 0 | AH14: =T3_R1!N14 -> 41527
A15: =IF(INTRO!$E$34<>0,INTRO!$E$34,"") -> DRC | B15: BAS UELE | C15: Likati | D15: 85532 | E15: =IF(INTRO!$E$48="","",ROUND($D15*INTRO!$E$48,0)) -> 14540 | F15: =IF(INTRO!$E$49="","",ROUND($D15*INTRO!$E$49,0)) -> 29936 | G15: =IF(INTRO!$E$50="","",ROUND($D15*INTRO!$E$50,0)) -> 39345 | H15: 1 | I15: 1 | J15: 1 | K15: 3 | L15: 1 | M15: =IF(INTRO!$E$38="Endémique", IF($H15>0, IF($H15=4,"Inconnu", IF($H15=99,"Interrompu", $D15)), 0),"Non requis") -> 85532 | N15: =IF(INTRO!$E$40="Endémique", IF($I15>0, IF($I15=4,"Inconnu",IF($I15=99,"Interrompu", $D15)), 0),"Non requis") -> 85532 | O15: =IF(INTRO!$E$42="Endémique", IF(AND($J15>1,$J15<5), IF($J15=4, "Inconnu", E15+F15), 0),"Non requis") -> 0 | P15: =IF(INTRO!$E$44="Endémique", IF(AND($K15>0,$K15<5), IF($K15=4,"Inconnu", IF($K15=1, $F15*0.33, IF($K15=2, $F15*0.5+$G15*0.2, SUM(F15:G15)))), 0),"Non requis") -> 69281 | Q15: 1 | R15: 1 | S15: 0 | T15: 1 | U15: MDA1 (IVM+ALB) | V15: T2 (PZQ) | W15: 14252 | X15: Likati | Y15: TRUE | Z15: 1.298283716 | AA15: 86657.05443 | AC15: ='MDA1'!M15 -> 69522 | AD15: ='MDA4'!U15 -> 0 | AE15: ='MDA3'!Q15 -> 0 | AF15: ='T1'!O15 -> 0 | AG15: ='T2'!M15 -> 29594 | AH15: =T3_R1!N15 -> 0
A16: =IF(INTRO!$E$34<>0,INTRO!$E$34,"") -> DRC | B16: BAS UELE | C16: Monga | D16: 89292 | E16: =IF(INTRO!$E$48="","",ROUND($D16*INTRO!$E$48,0)) -> 15180 | F16: =IF(INTRO!$E$49="","",ROUND($D16*INTRO!$E$49,0)) -> 31252 | G16: =IF(INTRO!$E$50="","",ROUND($D16*INTRO!$E$50,0)) -> 41074 | H16: 1 | I16: 1 | J16: 2 | K16: 2 | L16: 1 | M16: =IF(INTRO!$E$38="Endémique", IF($H16>0, IF($H16=4,"Inconnu", IF($H16=99,"Interrompu", $D16)), 0),"Non requis") -> 89292 | N16: =IF(INTRO!$E$40="Endémique", IF($I16>0, IF($I16=4,"Inconnu",IF($I16=99,"Interrompu", $D16)), 0),"Non requis") -> 89292 | O16: =IF(INTRO!$E$42="Endémique", IF(AND($J16>1,$J16<5), IF($J16=4, "Inconnu", E16+F16), 0),"Non requis") -> 46432 | P16: =IF(INTRO!$E$44="Endémique", IF(AND($K16>0,$K16<5), IF($K16=4,"Inconnu", IF($K16=1, $F16*0.33, IF($K16=2, $F16*0.5+$G16*0.2, SUM(F16:G16)))), 0),"Non requis") -> 23840.8 | Q16: 1 | R16: 1 | S16: 1 | T16: 1 | U16: MDA1 (IVM+ALB) | V16: T2 (PZQ) | W16: 14266 | X16: Monga | Y16: TRUE | Z16: 5.436465459 | AA16: 94425.4045 | AC16: ='MDA1'!M16 -> 73424 | AD16: ='MDA4'!U16 -> 0 | AE16: ='MDA3'!Q16 -> 0 | AF16: ='T1'!O16 -> 0 | AG16: ='T2'!M16 -> 23859 | AH16: =T3_R1!N16 -> 0
A17: =IF(INTRO!$E$34<>0,INTRO!$E$34,"") -> DRC | B17: BAS UELE | C17: Poko | D17: 141492 | E17: =IF(INTRO!$E$48="","",ROUND($D17*INTRO!$E$48,0)) -> 24054 | F17: =IF(INTRO!$E$49="","",ROUND($D17*INTRO!$E$49,0)) -> 49522 | G17: =IF(INTRO!$E$50="","",ROUND($D17*INTRO!$E$50,0)) -> 65086 | H17: 1 | I17: 1 | J17: 2 | K17: 2 | L17: 1 | M17: =IF(INTRO!$E$38="Endémique", IF($H17>0, IF($H17=4,"Inconnu", IF($H17=99,"Interrompu", $D17)), 0),"Non requis") -> 141492 | N17: =IF(INTRO!$E$40="Endémique", IF($I17>0, IF($I17=4,"Inconnu",IF($I17=99,"Interrompu", $D17)), 0),"Non requis") -> 141492 | O17: =IF(INTRO!$E$42="Endémique", IF(AND($J17>1,$J17<5), IF($J17=4, "Inconnu", E17+F17), 0),"Non requis") -> 73576 | P17: =IF(INTRO!$E$44="Endémique", IF(AND($K17>0,$K17<5), IF($K17=4,"Inconnu", IF($K17=1, $F17*0.33, IF($K17=2, $F17*0.5+$G17*0.2, SUM(F17:G17)))), 0),"Non requis") -> 37778.2 | Q17: 1 | R17: 1 | S17: 1 | T17: 1 | U17: MDA1 (IVM+ALB) | V17: T2 (PZQ) | W17: 14276 | X17: Poko | Y17: TRUE | Z17: 2.6618738 | AA17: 145361.3353 | AC17: ='MDA1'!M17 -> 116921 | AD17: ='MDA4'!U17 -> 0 | AE17: ='MDA3'!Q17 -> 0 | AF17: ='T1'!O17 -> 0 | AG17: ='T2'!M17 -> 48202 | AH17: =T3_R1!N17 -> 0
A18: =IF(INTRO!$E$34<>0,INTRO!$E$34,"") -> DRC | B18: BAS UELE | C18: Titule | D18: 91224 | E18: =IF(INTRO!$E$48="","",ROUND($D18*INTRO!$E$48,0)) -> 15508 | F18: =IF(INTRO!$E$49="","",ROUND($D18*INTRO!$E$49,0)) -> 31928 | G18: =IF(INTRO!$E$50="","",ROUND($D18*INTRO!$E$50,0)) -> 41963 | H18: 0 | I18: 1 | J18: 3 | K18: 2 | L18: 1 | M18: =IF(INTRO!$E$38="Endémique", IF($H18>0, IF($H18=4,"Inconnu", IF($H18=99,"Interrompu", $D18)), 0),"Non requis") -> 0 | N18: =IF(INTRO!$E$40="Endémique", IF($I18>0, IF($I18=4,"Inconnu",IF($I18=99,"Interrompu", $D18)), 0),"Non requis") -> 91224 | O18: =IF(INTRO!$E$42="Endémique", IF(AND($J18>1,$J18<5), IF($J18=4, "Inconnu", E18+F18), 0),"Non requis") -> 47436 | P18: =IF(INTRO!$E$44="Endémique", IF(AND($K18>0,$K18<5), IF($K18=4,"Inconnu", IF($K18=1, $F18*0.33, IF($K18=2, $F18*0.5+$G18*0.2, SUM(F18:G18)))), 0),"Non requis") -> 24356.6 | Q18: 0 | R18: 1 | S18: 1 | T18: 1 | U18: MDA3 (IVM) | V18: T1 (PZQ+ALB/MBD) | W18: 14282 | X18: Titule | Y18: TRUE | Z18: 2.784395055 | AA18: 88752.7722 | AC18: ='MDA1'!M18 -> 0 | AD18: ='MDA4'!U18 -> 0 | AE18: ='MDA3'!Q18 -> 74860 | AF18: ='T1'!O18 -> 31923 | AG18: ='T2'!M18 -> 0 | AH18: =T3_R1!N18 -> 0
A19: =IF(INTRO!$E$34<>0,INTRO!$E$34,"") -> DRC | B19: BAS UELE | C19: Viadana | D19: 123680 | E19: =IF(INTRO!$E$48="","",ROUND($D19*INTRO!$E$48,0)) -> 21026 | F19: =IF(INTRO!$E$49="","",ROUND($D19*INTRO!$E$49,0)) -> 43288 | G19: =IF(INTRO!$E$50="","",ROUND($D19*INTRO!$E$50,0)) -> 56893 | H19: 1 | I19: 1 | J19: 3 | K19: 1 | L19: 1 | M19: =IF(INTRO!$E$38="Endémique", IF($H19>0, IF($H19=4,"Inconnu", IF($H19=99,"Interrompu", $D19)), 0),"Non requis") -> 123680 | N19: =IF(INTRO!$E$40="Endémique", IF($I19>0, IF($I19=4,"Inconnu",IF($I19=99,"Interrompu", $D19)), 0),"Non requis") -> 123680 | O19: =IF(INTRO!$E$42="Endémique", IF(AND($J19>1,$J19<5), IF($J19=4, "Inconnu", E19+F19), 0),"Non requis") -> 64314 | P19: =IF(INTRO!$E$44="Endémique", IF(AND($K19>0,$K19<5), IF($K19=4,"Inconnu", IF($K19=1, $F19*0.33, IF($K19=2, $F19*0.5+$G19*0.2, SUM(F19:G19)))), 0),"Non requis") -> 14285.04 | Q19: 1 | R19: 1 | S19: 1 | T19: 0 | U19: MDA1 (IVM+ALB) | W19: 14285 | X19: Viadana | Y19: TRUE | Z19: 0.4327875497 | AA19: 124217.5983 | AC19: ='MDA1'!M19 -> 99516 | AD19: ='MDA4'!U19 -> 0 | AE19: ='MDA3'!Q19 -> 0 | AF19: ='T1'!O19 -> 0 | AG19: ='T2'!M19 -> 0 | AH19: =T3_R1!N19 -> 0
A20: =IF(INTRO!$E$34<>0,INTRO!$E$34,"") -> DRC | B20: EQUATEUR | C20: Basankusu | D20: 276502 | E20: =IF(INTRO!$E$48="","",ROUND($D20*INTRO!$E$48,0)) -> 47005 | F20: =IF(INTRO!$E$49="","",ROUND($D20*INTRO!$E$49,0)) -> 96776 | G20: =IF(INTRO!$E$50="","",ROUND($D20*INTRO!$E$50,0)) -> 127191 | H20: 1 | I20: 1 | J20: 3 | K20: 0 | L20: 1 | M20: =IF(INTRO!$E$38="Endémique", IF($H20>0, IF($H20=4,"Inconnu", IF($H20=99,"Interrompu", $D20)), 0),"Non requis") -> 276502 | N20: =IF(INTRO!$E$40="Endémique", IF($I20>0, IF($I20=4,"Inconnu",IF($I20=99,"Interrompu", $D20)), 0),"Non requis") -> 276502 | O20: =IF(INTRO!$E$42="Endémique", IF(AND($J20>1,$J20<5), IF($J20=4, "Inconnu", E20+F20), 0),"Non requis") -> 143781 | P20: =IF(INTRO!$E$44="Endémique", IF(AND($K20>0,$K20<5), IF($K20=4,"Inconnu", IF($K20=1, $F20*0.33, IF($K20=2, $F20*0.5+$G20*0.2, SUM(F20:G20)))), 0),"Non requis") -> 0 | Q20: 1 | R20: 1 | S20: 1 | T20: 0 | U20: MDA1 (IVM+ALB) | W20: 13901 | X20: Basankusu | Y20: TRUE | Z20: 0.1869061492 | AA20: 275986.1649 | AC20: ='MDA1'!M20 -> 221961 | AD20: ='MDA4'!U20 -> 0 | AE20: ='MDA3'!Q20 -> 0 | AF20: ='T1'!O20 -> 0 | AG20: ='T2'!M20 -> 0 | AH20: =T3_R1!N20 -> 0
A21: =IF(INTRO!$E$34<>0,INTRO!$E$34,"") -> DRC | B21: EQUATEUR | C21: Bikoro | D21: 172999 | E21: =IF(INTRO!$E$48="","",ROUND($D21*INTRO!$E$48,0)) -> 29410 | F21: =IF(INTRO!$E$49="","",ROUND($D21*INTRO!$E$49,0)) -> 60550 | G21: =IF(INTRO!$E$50="","",ROUND($D21*INTRO!$E$50,0)) -> 79580 | H21: 1 | I21: 4 | J21: 3 | K21: 1 | L21: 1 | M21: =IF(INTRO!$E$38="Endémique", IF($H21>0, IF($H21=4,"Inconnu", IF($H21=99,"Interrompu", $D21)), 0),"Non requis") -> 172999 | N21: =IF(INTRO!$E$40="Endémique", IF($I21>0, IF($I21=4,"Inconnu",IF($I21=99,"Interrompu", $D21)), 0),"Non requis") -> Inconnu | O21: =IF(INTRO!$E$42="Endémique", IF(AND($J21>1,$J21<5), IF($J21=4, "Inconnu", E21+F21), 0),"Non requis") -> 89960 | P21: =IF(INTRO!$E$44="Endémique", IF(AND($K21>0,$K21<5), IF($K21=4,"Inconnu", IF($K21=1, $F21*0.33, IF($K21=2, $F21*0.5+$G21*0.2, SUM(F21:G21)))), 0),"Non requis") -> 19981.5 | Q21: 1 | R21: 0 | S21: 1 | T21: 0 | U21: MDA4 (ALB/2*ALB) | W21: 13902 | X21: Bikoro | Y21: TRUE | Z21: 0.001931551363 | AA21: 172995.6585 | AC21: ='MDA1'!M21 -> 0 | AD21: ='MDA4'!U21 -> 138990 | AE21: ='MDA3'!Q21 -> 0 | AF21: ='T1'!O21 -> 0 | AG21: ='T2'!M21 -> 0 | AH21: =T3_R1!N21 -> 0
A22: =IF(INTRO!$E$34<>0,INTRO!$E$34,"") -> DRC | B22: EQUATEUR | C22: Bolenge | D22: 115059 | E22: =IF(INTRO!$E$48="","",ROUND($D22*INTRO!$E$48,0)) -> 19560 | F22: =IF(INTRO!$E$49="","",ROUND($D22*INTRO!$E$49,0)) -> 40271 | G22: =IF(INTRO!$E$50="","",ROUND($D22*INTRO!$E$50,0)) -> 52927 | H22: 0 | I22: 1 | J22: 3 | K22: 1 | L22: 1 | M22: =IF(INTRO!$E$38="Endémique", IF($H22>0, IF($H22=4,"Inconnu", IF($H22=99,"Interrompu", $D22)), 0),"Non requis") -> 0 | N22: =IF(INTRO!$E$40="Endémique", IF($I22>0, IF($I22=4,"Inconnu",IF($I22=99,"Interrompu", $D22)), 0),"Non requis") -> 115059 | O22: =IF(INTRO!$E$42="Endémique", IF(AND($J22>1,$J22<5), IF($J22=4, "Inconnu", E22+F22), 0),"Non requis") -> 59831 | P22: =IF(INTRO!$E$44="Endémique", IF(AND($K22>0,$K22<5), IF($K22=4,"Inconnu", IF($K22=1, $F22*0.33, IF($K22=2, $F22*0.5+$G22*0.2, SUM(F22:G22)))), 0),"Non requis") -> 13289.43 | Q22: 0 | R22: 1 | S22: 1 | T22: 0 | U22: MDA3 (IVM) | V22: T3 (ALB/MBD) | W22: 13909 | X22: Bolenge | Y22: TRUE | Z22: 3.127602062 | AA22: 111569.5485 | AC22: ='MDA1'!M22 -> 0 | AD22: ='MDA4'!U22 -> 0 | AE22: ='MDA3'!Q22 -> 92372 | AF22: ='T1'!O22 -> 0 | AG22: ='T2'!M22 -> 0 | AH22: =T3_R1!N22 -> 32641
A23: =IF(INTRO!$E$34<>0,INTRO!$E$34,"") -> DRC | B23: EQUATEUR | C23: Bolomba | D23: 311319 | E23: =IF(INTRO!$E$48="","",ROUND($D23*INTRO!$E$48,0)) -> 52924 | F23: =IF(INTRO!$E$49="","",ROUND($D23*INTRO!$E$49,0)) -> 108962 | G23: =IF(INTRO!$E$50="","",ROUND($D23*INTRO!$E$50,0)) -> 143207 | H23: 1 | I23: 1 | J23: 3 | K23: 1 | L23: 1 | M23: =IF(INTRO!$E$38="Endémique", IF($H23>0, IF($H23=4,"Inconnu", IF($H23=99,"Interrompu", $D23)), 0),"Non requis") -> 311319 | N23: =IF(INTRO!$E$40="Endémique", IF($I23>0, IF($I23=4,"Inconnu",IF($I23=99,"Interrompu", $D23)), 0),"Non requis") -> 311319 | O23: =IF(INTRO!$E$42="Endémique", IF(AND($J23>1,$J23<5), IF($J23=4, "Inconnu", E23+F23), 0),"Non requis") -> 161886 | P23: =IF(INTRO!$E$44="Endémique", IF(AND($K23>0,$K23<5), IF($K23=4,"Inconnu", IF($K23=1, $F23*0.33, IF($K23=2, $F23*0.5+$G23*0.2, SUM(F23:G23)))), 0),"Non requis") -> 35957.46 | Q23: 1 | R23: 1 | S23: 1 | T23: 0 | U23: MDA1 (IVM+ALB) | W23: 13910 | X23: Bolomba | Y23: TRUE | Z23: 49.86494181 | AA23: 620960.6835 | AC23: ='MDA1'!M23 -> 250021 | AD23: ='MDA4'!U23 -> 0 | AE23: ='MDA3'!Q23 -> 0 | AF23: ='T1'!O23 -> 0 | AG23: ='T2'!M23 -> 0 | AH23: =T3_R1!N23 -> 0
A24: =IF(INTRO!$E$34<>0,INTRO!$E$34,"") -> DRC | B24: EQUATEUR | C24: Bomongo | D24: 122265 | E24: =IF(INTRO!$E$48="","",ROUND($D24*INTRO!$E$48,0)) -> 20785 | F24: =IF(INTRO!$E$49="","",ROUND($D24*INTRO!$E$49,0)) -> 42793 | G24: =IF(INTRO!$E$50="","",ROUND($D24*INTRO!$E$50,0)) -> 56242 | H24: 1 | I24: 4 | J24: 2 | K24: 2 | L24: 1 | M24: =IF(INTRO!$E$38="Endémique", IF($H24>0, IF($H24=4,"Inconnu", IF($H24=99,"Interrompu", $D24)), 0),"Non requis") -> 122265 | N24: =IF(INTRO!$E$40="Endémique", IF($I24>0, IF($I24=4,"Inconnu",IF($I24=99,"Interrompu", $D24)), 0),"Non requis") -> Inconnu | O24: =IF(INTRO!$E$42="Endémique", IF(AND($J24>1,$J24<5), IF($J24=4, "Inconnu", E24+F24), 0),"Non requis") -> 63578 | P24: =IF(INTRO!$E$44="Endémique", IF(AND($K24>0,$K24<5), IF($K24=4,"Inconnu", IF($K24=1, $F24*0.33, IF($K24=2, $F24*0.5+$G24*0.2, SUM(F24:G24)))), 0),"Non requis") -> 32644.9 | Q24: 1 | R24: 0 | S24: 1 | T24: 1 | U24: MDA4 (ALB/2*ALB) | V24: T2 (PZQ) | W24: 13912 | X24: Bomongo | Y24: TRUE | Z24: 0.003895133926 | AA24: 122260.2378 | AC24: ='MDA1'!M24 -> 0 | AD24: ='MDA4'!U24 -> 98755 | AE24: ='MDA3'!Q24 -> 0 | AF24: ='T1'!O24 -> 0 | AG24: ='T2'!M24 -> 34842 | AH24: =T3_R1!N24 -> 0
A25: =IF(INTRO!$E$34<>0,INTRO!$E$34,"") -> DRC | B25: EQUATEUR | C25: Djombo | D25: 134153 | E25: =IF(INTRO!$E$48="","",ROUND($D25*INTRO!$E$48,0)) -> 22806 | F25: =IF(INTRO!$E$49="","",ROUND($D25*INTRO!$E$49,0)) -> 46954 | G25: =IF(INTRO!$E$50="","",ROUND($D25*INTRO!$E$50,0)) -> 61710 | H25: 1 | I25: 1 | J25: 3 | K25: 1 | L25: 1 | M25: =IF(INTRO!$E$38="Endémique", IF($H25>0, IF($H25=4,"Inconnu", IF($H25=99,"Interrompu", $D25)), 0),"Non requis") -> 134153 | N25: =IF(INTRO!$E$40="Endémique", IF($I25>0, IF($I25=4,"Inconnu",IF($I25=99,"Interrompu", $D25)), 0),"Non requis") -> 134153 | O25: =IF(INTRO!$E$42="Endémique", IF(AND($J25>1,$J25<5), IF($J25=4, "Inconnu", E25+F25), 0),"Non requis") -> 69760 | P25: =IF(INTRO!$E$44="Endémique", IF(AND($K25>0,$K25<5), IF($K25=4,"Inconnu", IF($K25=1, $F25*0.33, IF($K25=2, $F25*0.5+$G25*0.2, SUM(F25:G25)))), 0),"Non requis") -> 15494.82 | Q25: 1 | R25: 1 | S25: 1 | T25: 0 | U25: MDA1 (IVM+ALB) | W25: 13925 | X25: Djombo | Y25: TRUE | Z25: 0.09266553055 | AA25: 134028.8015 | AC25: ='MDA1'!M25 -> 107627 | AD25: ='MDA4'!U25 -> 0 | AE25: ='MDA3'!Q25 -> 0 | AF25: ='T1'!O25 -> 0 | AG25: ='T2'!M25 -> 0 | AH25: =T3_R1!N25 -> 0
A26: =IF(INTRO!$E$34<>0,INTRO!$E$34,"") -> DRC | B26: EQUATEUR | C26: Iboko | D26: 130985 | E26: =IF(INTRO!$E$48="","",ROUND($D26*INTRO!$E$48,0)) -> 22267 | F26: =IF(INTRO!$E$49="","",ROUND($D26*INTRO!$E$49,0)) -> 45845 | G26: =IF(INTRO!$E$50="","",ROUND($D26*INTRO!$E$50,0)) -> 60253 | H26: 0 | I26: 4 | J26: 2 | K26: 1 | L26: 1 | M26: =IF(INTRO!$E$38="Endémique", IF($H26>0, IF($H26=4,"Inconnu", IF($H26=99,"Interrompu", $D26)), 0),"Non requis") -> 0 | N26: =IF(INTRO!$E$40="Endémique", IF($I26>0, IF($I26=4,"Inconnu",IF($I26=99,"Interrompu", $D26)), 0),"Non requis") -> Inconnu | O26: =IF(INTRO!$E$42="Endémique", IF(AND($J26>1,$J26<5), IF($J26=4, "Inconnu", E26+F26), 0),"Non requis") -> 68112 | P26: =IF(INTRO!$E$44="Endémique", IF(AND($K26>0,$K26<5), IF($K26=4,"Inconnu", IF($K26=1, $F26*0.33, IF($K26=2, $F26*0.5+$G26*0.2, SUM(F26:G26)))), 0),"Non requis") -> 15128.85 | Q26: 0 | R26: 0 | S26: 1 | T26: 0 | U26: T3 (ALB/MBD) | W26: 13928 | X26: Iboko | Y26: TRUE | Z26: 6.061759124e-05 | AA26: 130985.0794 | AC26: ='MDA1'!M26 -> 0 | AD26: ='MDA4'!U26 -> 0 | AE26: ='MDA3'!Q26 -> 0 | AF26: ='T1'!O26 -> 0 | AG26: ='T2'!M26 -> 0 | AH26: =T3_R1!N26 -> 37750
A27: =IF(INTRO!$E$34<>0,INTRO!$E$34,"") -> DRC | B27: EQUATEUR | C27: Ingende | D27: 169761 | E27: =IF(INTRO!$E$48="","",ROUND($D27*INTRO!$E$48,0)) -> 28859 | F27: =IF(INTRO!$E$49="","",ROUND($D27*INTRO!$E$49,0)) -> 59416 | G27: =IF(INTRO!$E$50="","",ROUND($D27*INTRO!$E$50,0)) -> 78090 | H27: 1 | I27: 1 | J27: 3 | K27: 1 | L27: 1 | M27: =IF(INTRO!$E$38="Endémique", IF($H27>0, IF($H27=4,"Inconnu", IF($H27=99,"Interrompu", $D27)), 0),"Non requis") -> 169761 | N27: =IF(INTRO!$E$40="Endémique", IF($I27>0, IF($I27=4,"Inconnu",IF($I27=99,"Interrompu", $D27)), 0),"Non requis") -> 169761 | O27: =IF(INTRO!$E$42="Endémique", IF(AND($J27>1,$J27<5), IF($J27=4, "Inconnu", E27+F27), 0),"Non requis") -> 88275 | P27: =IF(INTRO!$E$44="Endémique", IF(AND($K27>0,$K27<5), IF($K27=4,"Inconnu", IF($K27=1, $F27*0.33, IF($K27=2, $F27*0.5+$G27*0.2, SUM(F27:G27)))), 0),"Non requis") -> 19607.28 | Q27: 1 | R27: 1 | S27: 1 | T27: 0 | U27: MDA1 (IVM+ALB) | W27: 13930 | X27: Ingende | Y27: TRUE | Z27: 0.3568735257 | AA27: 169157.3223 | AC27: ='MDA1'!M27 -> 136279 | AD27: ='MDA4'!U27 -> 0 | AE27: ='MDA3'!Q27 -> 0 | AF27: ='T1'!O27 -> 0 | AG27: ='T2'!M27 -> 0 | AH27: =T3_R1!N27 -> 0
A28: =IF(INTRO!$E$34<>0,INTRO!$E$34,"") -> DRC | B28: EQUATEUR | C28: Irebu | D28: 42589 | E28: =IF(INTRO!$E$48="","",ROUND($D28*INTRO!$E$48,0)) -> 7240 | F28: =IF(INTRO!$E$49="","",ROUND($D28*INTRO!$E$49,0)) -> 14906 | G28: =IF(INTRO!$E$50="","",ROUND($D28*INTRO!$E$50,0)) -> 19591 | H28: 0 | I28: 4 | J28: 1 | K28: 1 | L28: 1 | M28: =IF(INTRO!$E$38="Endémique", IF($H28>0, IF($H28=4,"Inconnu", IF($H28=99,"Interrompu", $D28)), 0),"Non requis") -> 0 | N28: =IF(INTRO!$E$40="Endémique", IF($I28>0, IF($I28=4,"Inconnu",IF($I28=99,"Interrompu", $D28)), 0),"Non requis") -> Inconnu | O28: =IF(INTRO!$E$42="Endémique", IF(AND($J28>1,$J28<5), IF($J28=4, "Inconnu", E28+F28), 0),"Non requis") -> 0 | P28: =IF(INTRO!$E$44="Endémique", IF(AND($K28>0,$K28<5), IF($K28=4,"Inconnu", IF($K28=1, $F28*0.33, IF($K28=2, $F28*0.5+$G28*0.2, SUM(F28:G28)))), 0),"Non requis") -> 4918.98 | Q28: 0 | R28: 0 | S28: 0 | T28: 0 | W28: 13931 | X28: Irebu | Y28: TRUE | Z28: 0.001949996021 | AA28: 42589.8305 | AC28: ='MDA1'!M28 -> 0 | AD28: ='MDA4'!U28 -> 0 | AE28: ='MDA3'!Q28 -> 0 | AF28: ='T1'!O28 -> 0 | AG28: ='T2'!M28 -> 0 | AH28: =T3_R1!N28 -> 0
A29: =IF(INTRO!$E$34<>0,INTRO!$E$34,"") -> DRC | B29: EQUATEUR | C29: Lilanga Bobangi | D29: 94347 | E29: =IF(INTRO!$E$48="","",ROUND($D29*INTRO!$E$48,0)) -> 16039 | F29: =IF(INTRO!$E$49="","",ROUND($D29*INTRO!$E$49,0)) -> 33021 | G29: =IF(INTRO!$E$50="","",ROUND($D29*INTRO!$E$50,0)) -> 43400 | H29: 0 | I29: 4 | J29: 2 | K29: 2 | L29: 1 | M29: =IF(INTRO!$E$38="Endémique", IF($H29>0, IF($H29=4,"Inconnu", IF($H29=99,"Interrompu", $D29)), 0),"Non requis") -> 0 | N29: =IF(INTRO!$E$40="Endémique", IF($I29>0, IF($I29=4,"Inconnu",IF($I29=99,"Interrompu", $D29)), 0),"Non requis") -> Inconnu | O29: =IF(INTRO!$E$42="Endémique", IF(AND($J29>1,$J29<5), IF($J29=4, "Inconnu", E29+F29), 0),"Non requis") -> 49060 | P29: =IF(INTRO!$E$44="Endémique", IF(AND($K29>0,$K29<5), IF($K29=4,"Inconnu", IF($K29=1, $F29*0.33, IF($K29=2, $F29*0.5+$G29*0.2, SUM(F29:G29)))), 0),"Non requis") -> 25190.5 | Q29: 0 | R29: 0 | S29: 1 | T29: 1 | U29: T1 (PZQ+ALB/MBD) | W29: 13966 | X29: Lilanga Bobangi | Y29: TRUE | Z29: 0.002140668771 | AA29: 94349.0197 | AC29: ='MDA1'!M29 -> 0 | AD29: ='MDA4'!U29 -> 0 | AE29: ='MDA3'!Q29 -> 0 | AF29: ='T1'!O29 -> 26428 | AG29: ='T2'!M29 -> 0 | AH29: =T3_R1!N29 -> 0
A30: =IF(INTRO!$E$34<>0,INTRO!$E$34,"") -> DRC | B30: EQUATEUR | C30: Lotumbe | D30: 135005 | E30: =IF(INTRO!$E$48="","",ROUND($D30*INTRO!$E$48,0)) -> 22951 | F30: =IF(INTRO!$E$49="","",ROUND($D30*INTRO!$E$49,0)) -> 47252 | G30: =IF(INTRO!$E$50="","",ROUND($D30*INTRO!$E$50,0)) -> 62102 | H30: 0 | I30: 1 | J30: 3 | K30: 0 | L30: 1 | M30: =IF(INTRO!$E$38="Endémique", IF($H30>0, IF($H30=4,"Inconnu", IF($H30=99,"Interrompu", $D30)), 0),"Non requis") -> 0 | N30: =IF(INTRO!$E$40="Endémique", IF($I30>0, IF($I30=4,"Inconnu",IF($I30=99,"Interrompu", $D30)), 0),"Non requis") -> 135005 | O30: =IF(INTRO!$E$42="Endémique", IF(AND($J30>1,$J30<5), IF($J30=4, "Inconnu", E30+F30), 0),"Non requis") -> 70203 | P30: =IF(INTRO!$E$44="Endémique", IF(AND($K30>0,$K30<5), IF($K30=4,"Inconnu", IF($K30=1, $F30*0.33, IF($K30=2, $F30*0.5+$G30*0.2, SUM(F30:G30)))), 0),"Non requis") -> 0 | Q30: 0 | R30: 1 | S30: 1 | T30: 0 | U30: MDA3 (IVM) | V30: T3 (ALB/MBD) | W30: 13939 | X30: Lotumbe | Y30: TRUE | Z30: 2.672917237 | AA30: 138712.675 | AC30: ='MDA1'!M30 -> 0 | AD30: ='MDA4'!U30 -> 0 | AE30: ='MDA3'!Q30 -> 108175 | AF30: ='T1'!O30 -> 0 | AG30: ='T2'!M30 -> 0 | AH30: =T3_R1!N30 -> 38579
A31: =IF(INTRO!$E$34<>0,INTRO!$E$34,"") -> DRC | B31: EQUATEUR | C31: Lukolela | D31: 168565 | E31: =IF(INTRO!$E$48="","",ROUND($D31*INTRO!$E$48,0)) -> 28656 | F31: =IF(INTRO!$E$49="","",ROUND($D31*INTRO!$E$49,0)) -> 58998 | G31: =IF(INTRO!$E$50="","",ROUND($D31*INTRO!$E$50,0)) -> 77540 | H31: 0 | I31: 4 | J31: 1 | K31: 2 | L31: 1 | M31: =IF(INTRO!$E$38="Endémique", IF($H31>0, IF($H31=4,"Inconnu", IF($H31=99,"Interrompu", $D31)), 0),"Non requis") -> 0 | N31: =IF(INTRO!$E$40="Endémique", IF($I31>0, IF($I31=4,"Inconnu",IF($I31=99,"Interrompu", $D31)), 0),"Non requis") -> Inconnu | O31: =IF(INTRO!$E$42="Endémique", IF(AND($J31>1,$J31<5), IF($J31=4, "Inconnu", E31+F31), 0),"Non requis") -> 0 | P31: =IF(INTRO!$E$44="Endémique", IF(AND($K31>0,$K31<5), IF($K31=4,"Inconnu", IF($K31=1, $F31*0.33, IF($K31=2, $F31*0.5+$G31*0.2, SUM(F31:G31)))), 0),"Non requis") -> 45007 | Q31: 0 | R31: 0 | S31: 0 | T31: 1 | U31: T2 (PZQ) | W31: 13940 | X31: Lukolela | Y31: TRUE | Z31: 0.000427611356 | AA31: 168564.2792 | AC31: ='MDA1'!M31 -> 0 | AD31: ='MDA4'!U31 -> 0 | AE31: ='MDA3'!Q31 -> 0 | AF31: ='T1'!O31 -> 0 | AG31: ='T2'!M31 -> 48246 | AH31: =T3_R1!N31 -> 0
A32: =IF(INTRO!$E$34<>0,INTRO!$E$34,"") -> DRC | B32: EQUATEUR | C32: Makanza | D32: 132073 | E32: =IF(INTRO!$E$48="","",ROUND($D32*INTRO!$E$48,0)) -> 22452 | F32: =IF(INTRO!$E$49="","",ROUND($D32*INTRO!$E$49,0)) -> 46226 | G32: =IF(INTRO!$E$50="","",ROUND($D32*INTRO!$E$50,0)) -> 60754 | H32: 0 | I32: 4 | J32: 2 | K32: 0 | L32: 1 | M32: =IF(INTRO!$E$38="Endémique", IF($H32>0, IF($H32=4,"Inconnu", IF($H32=99,"Interrompu", $D32)), 0),"Non requis") -> 0 | N32: =IF(INTRO!$E$40="Endémique", IF($I32>0, IF($I32=4,"Inconnu",IF($I32=99,"Interrompu", $D32)), 0),"Non requis") -> Inconnu | O32: =IF(INTRO!$E$42="Endémique", IF(AND($J32>1,$J32<5), IF($J32=4, "Inconnu", E32+F32), 0),"Non requis") -> 68678 | P32: =IF(INTRO!$E$44="Endémique", IF(AND($K32>0,$K32<5), IF($K32=4,"Inconnu", IF($K32=1, $F32*0.33, IF($K32=2, $F32*0.5+$G32*0.2, SUM(F32:G32)))), 0),"Non requis") -> 0 | Q32: 0 | R32: 0 | S32: 1 | T32: 0 | U32: T3 (ALB/MBD) | W32: 13942 | X32: Makanza | Y32: TRUE | Z32: 2.756233786 | AA32: 135816.418 | AC32: ='MDA1'!M32 -> 0 | AD32: ='MDA4'!U32 -> 0 | AE32: ='MDA3'!Q32 -> 0 | AF32: ='T1'!O32 -> 0 | AG32: ='T2'!M32 -> 0 | AH32: =T3_R1!N32 -> 37841
A33: =IF(INTRO!$E$34<>0,INTRO!$E$34,"") -> DRC | B33: EQUATEUR | C33: Mampoko | D33: 125703 | E33: =IF(INTRO!$E$48="","",ROUND($D33*INTRO!$E$48,0)) -> 21370 | F33: =IF(INTRO!$E$49="","",ROUND($D33*INTRO!$E$49,0)) -> 43996 | G33: =IF(INTRO!$E$50="","",ROUND($D33*INTRO!$E$50,0)) -> 57823 | H33: 1 | I33: 1 | J33: 0 | K33: 0 | L33: 1 | M33: =IF(INTRO!$E$38="Endémique", IF($H33>0, IF($H33=4,"Inconnu", IF($H33=99,"Interrompu", $D33)), 0),"Non requis") -> 125703 | N33: =IF(INTRO!$E$40="Endémique", IF($I33>0, IF($I33=4,"Inconnu",IF($I33=99,"Interrompu", $D33)), 0),"Non requis") -> 125703 | O33: =IF(INTRO!$E$42="Endémique", IF(AND($J33>1,$J33<5), IF($J33=4, "Inconnu", E33+F33), 0),"Non requis") -> 0 | P33: =IF(INTRO!$E$44="Endémique", IF(AND($K33>0,$K33<5), IF($K33=4,"Inconnu", IF($K33=1, $F33*0.33, IF($K33=2, $F33*0.5+$G33*0.2, SUM(F33:G33)))), 0),"Non requis") -> 0 | Q33: 1 | R33: 1 | S33: 0 | T33: 0 | U33: MDA1 (IVM+ALB) | W33: 13941 | X33: Mampoko | Y33: TRUE | Z33: 0.5070630309 | AA33: 126343.6419 | AC33: ='MDA1'!M33 -> 100831 | AD33: ='MDA4'!U33 -> 0 | AE33: ='MDA3'!Q33 -> 0 | AF33: ='T1'!O33 -> 0 | AG33: ='T2'!M33 -> 0 | AH33: =T3_R1!N33 -> 0
A34: =IF(INTRO!$E$34<>0,INTRO!$E$34,"") -> DRC | B34: EQUATEUR | C34: Mbandaka | D34: 199403 | E34: =IF(INTRO!$E$48="","",ROUND($D34*INTRO!$E$48,0)) -> 33899 | F34: =IF(INTRO!$E$49="","",ROUND($D34*INTRO!$E$49,0)) -> 69791 | G34: =IF(INTRO!$E$50="","",ROUND($D34*INTRO!$E$50,0)) -> 91725 | H34: 1 | I34: 4 | J34: 1 | K34: 1 | L34: 1 | M34: =IF(INTRO!$E$38="Endémique", IF($H34>0, IF($H34=4,"Inconnu", IF($H34=99,"Interrompu", $D34)), 0),"Non requis") -> 199403 | N34: =IF(INTRO!$E$40="Endémique", IF($I34>0, IF($I34=4,"Inconnu",IF($I34=99,"Interrompu", $D34)), 0),"Non requis") -> Inconnu | O34: =IF(INTRO!$E$42="Endémique", IF(AND($J34>1,$J34<5), IF($J34=4, "Inconnu", E34+F34), 0),"Non requis") -> 0 | P34: =IF(INTRO!$E$44="Endémique", IF(AND($K34>0,$K34<5), IF($K34=4,"Inconnu", IF($K34=1, $F34*0.33, IF($K34=2, $F34*0.5+$G34*0.2, SUM(F34:G34)))), 0),"Non requis") -> 23031.03 | Q34: 1 | R34: 0 | S34: 0 | T34: 0 | U34: MDA4 (ALB/2*ALB) | W34: 13944 | X34: Mbandaka | Y34: TRUE | Z34: 0.002900792759 | AA34: 199397.2159 | AC34: ='MDA1'!M34 -> 0 | AD34: ='MDA4'!U34 -> 159931 | AE34: ='MDA3'!Q34 -> 0 | AF34: ='T1'!O34 -> 0 | AG34: ='T2'!M34 -> 0 | AH34: =T3_R1!N34 -> 0
A35: =IF(INTRO!$E$34<>0,INTRO!$E$34,"") -> DRC | B35: EQUATEUR | C35: Monieka | D35: 90258 | E35: =IF(INTRO!$E$48="","",ROUND($D35*INTRO!$E$48,0)) -> 15344 | F35: =IF(INTRO!$E$49="","",ROUND($D35*INTRO!$E$49,0)) -> 31590 | G35: =IF(INTRO!$E$50="","",ROUND($D35*INTRO!$E$50,0)) -> 41519 | H35: 1 | I35: 1 | J35: 1 | K35: 1 | L35: 1 | M35: =IF(INTRO!$E$38="Endémique", IF($H35>0, IF($H35=4,"Inconnu", IF($H35=99,"Interrompu", $D35)), 0),"Non requis") -> 90258 | N35: =IF(INTRO!$E$40="Endémique", IF($I35>0, IF($I35=4,"Inconnu",IF($I35=99,"Interrompu", $D35)), 0),"Non requis") -> 90258 | O35: =IF(INTRO!$E$42="Endémique", IF(AND($J35>1,$J35<5), IF($J35=4, "Inconnu", E35+F35), 0),"Non requis") -> 0 | P35: =IF(INTRO!$E$44="Endémique", IF(AND($K35>0,$K35<5), IF($K35=4,"Inconnu", IF($K35=1, $F35*0.33, IF($K35=2, $F35*0.5+$G35*0.2, SUM(F35:G35)))), 0),"Non requis") -> 10424.7 | Q35: 1 | R35: 1 | S35: 0 | T35: 0 | U35: MDA1 (IVM+ALB) | W35: 13950 | X35: Monieka | Y35: TRUE | Z35: 1.363986997 | AA35: 89043.4588 | AC35: ='MDA1'!M35 -> 72525 | AD35: ='MDA4'!U35 -> 0 | AE35: ='MDA3'!Q35 -> 0 | AF35: ='T1'!O35 -> 0 | AG35: ='T2'!M35 -> 0 | AH35: =T3_R1!N35 -> 0
A36: =IF(INTRO!$E$34<>0,INTRO!$E$34,"") -> DRC | B36: EQUATEUR | C36: Ntondo | D36: 77200 | E36: =IF(INTRO!$E$48="","",ROUND($D36*INTRO!$E$48,0)) -> 13124 | F36: =IF(INTRO!$E$49="","",ROUND($D36*INTRO!$E$49,0)) -> 27020 | G36: =IF(INTRO!$E$50="","",ROUND($D36*INTRO!$E$50,0)) -> 35512 | H36: 1 | I36: 4 | J36: 3 | K36: 2 | L36: 1 | M36: =IF(INTRO!$E$38="Endémique", IF($H36>0, IF($H36=4,"Inconnu", IF($H36=99,"Interrompu", $D36)), 0),"Non requis") -> 77200 | N36: =IF(INTRO!$E$40="Endémique", IF($I36>0, IF($I36=4,"Inconnu",IF($I36=99,"Interrompu", $D36)), 0),"Non requis") -> Inconnu | O36: =IF(INTRO!$E$42="Endémique", IF(AND($J36>1,$J36<5), IF($J36=4, "Inconnu", E36+F36), 0),"Non requis") -> 40144 | P36: =IF(INTRO!$E$44="Endémique", IF(AND($K36>0,$K36<5), IF($K36=4,"Inconnu", IF($K36=1, $F36*0.33, IF($K36=2, $F36*0.5+$G36*0.2, SUM(F36:G36)))), 0),"Non requis") -> 20612.4 | Q36: 1 | R36: 0 | S36: 1 | T36: 1 | U36: MDA4 (ALB/2*ALB) | V36: T2 (PZQ) | W36: 13953 | X36: Ntondo | Y36: TRUE | Z36: 0.004678327666 | AA36: 77196.3885 | AC36: ='MDA1'!M36 -> 0 | AD36: ='MDA4'!U36 -> 62335 | AE36: ='MDA3'!Q36 -> 0 | AF36: ='T1'!O36 -> 0 | AG36: ='T2'!M36 -> 22229 | AH36: =T3_R1!N36 -> 0
A37: =IF(INTRO!$E$34<>0,INTRO!$E$34,"") -> DRC | B37: EQUATEUR | C37: Wangata | D37: 187282 | E37: =IF(INTRO!$E$48="","",ROUND($D37*INTRO!$E$48,0)) -> 31838 | F37: =IF(INTRO!$E$49="","",ROUND($D37*INTRO!$E$49,0)) -> 65549 | G37: =IF(INTRO!$E$50="","",ROUND($D37*INTRO!$E$50,0)) -> 86150 | H37: 1 | I37: 1 | J37: 3 | K37: 1 | L37: 1 | M37: =IF(INTRO!$E$38="Endémique", IF($H37>0, IF($H37=4,"Inconnu", IF($H37=99,"Interrompu", $D37)), 0),"Non requis") -> 187282 | N37: =IF(INTRO!$E$40="Endémique", IF($I37>0, IF($I37=4,"Inconnu",IF($I37=99,"Interrompu", $D37)), 0),"Non requis") -> 187282 | O37: =IF(INTRO!$E$42="Endémique", IF(AND($J37>1,$J37<5), IF($J37=4, "Inconnu", E37+F37), 0),"Non requis") -> 97387 | P37: =IF(INTRO!$E$44="Endémique", IF(AND($K37>0,$K37<5), IF($K37=4,"Inconnu", IF($K37=1, $F37*0.33, IF($K37=2, $F37*0.5+$G37*0.2, SUM(F37:G37)))), 0),"Non requis") -> 21631.17 | Q37: 1 | R37: 1 | S37: 1 | T37: 0 | U37: MDA1 (IVM+ALB) | W37: 13957 | X37: Wangata | Y37: TRUE | Z37: 0.04119552536 | AA37: 187359.1836 | AC37: ='MDA1'!M37 -> 150370 | AD37: ='MDA4'!U37 -> 0 | AE37: ='MDA3'!Q37 -> 0 | AF37: ='T1'!O37 -> 0 | AG37: ='T2'!M37 -> 0 | AH37: =T3_R1!N37 -> 0
A38: =IF(INTRO!$E$34<>0,INTRO!$E$34,"") -> DRC | B38: Haut Katanga | C38: Kafubu | D38: 105191 | E38: =IF(INTRO!$E$48="","",ROUND($D38*INTRO!$E$48,0)) -> 17882 | F38: =IF(INTRO!$E$49="","",ROUND($D38*INTRO!$E$49,0)) -> 36817 | G38: =IF(INTRO!$E$50="","",ROUND($D38*INTRO!$E$50,0)) -> 48388 | H38: 0 | I38: 1 | J38: 1 | K38: 1 | L38: 0 | M38: =IF(INTRO!$E$38="Endémique", IF($H38>0, IF($H38=4,"Inconnu", IF($H38=99,"Interrompu", $D38)), 0),"Non requis") -> 0 | N38: =IF(INTRO!$E$40="Endémique", IF($I38>0, IF($I38=4,"Inconnu",IF($I38=99,"Interrompu", $D38)), 0),"Non requis") -> 105191 | O38: =IF(INTRO!$E$42="Endémique", IF(AND($J38>1,$J38<5), IF($J38=4, "Inconnu", E38+F38), 0),"Non requis") -> 0 | P38: =IF(INTRO!$E$44="Endémique", IF(AND($K38>0,$K38<5), IF($K38=4,"Inconnu", IF($K38=1, $F38*0.33, IF($K38=2, $F38*0.5+$G38*0.2, SUM(F38:G38)))), 0),"Non requis") -> 12149.61 | Q38: 0 | R38: 1 | S38: 0 | T38: 0 | U38: MDA3 (IVM) | W38: 14071 | X38: Kafubu | Y38: TRUE | Z38: 0.0003970856265 | AA38: 105191.4177 | AC38: ='MDA1'!M38 -> 0 | AD38: ='MDA4'!U38 -> 0 | AE38: ='MDA3'!Q38 -> 86108 | AF38: ='T1'!O38 -> 0 | AG38: ='T2'!M38 -> 0 | AH38: =T3_R1!N38 -> 0
A39: =IF(INTRO!$E$34<>0,INTRO!$E$34,"") -> DRC | B39: Haut Katanga | C39: Kamalondo | D39: 53942 | E39: =IF(INTRO!$E$48="","",ROUND($D39*INTRO!$E$48,0)) -> 9170 | F39: =IF(INTRO!$E$49="","",ROUND($D39*INTRO!$E$49,0)) -> 18880 | G39: =IF(INTRO!$E$50="","",ROUND($D39*INTRO!$E$50,0)) -> 24813 | H39: 0 | I39: 4 | J39: 2 | K39: 1 | L39: 0 | M39: =IF(INTRO!$E$38="Endémique", IF($H39>0, IF($H39=4,"Inconnu", IF($H39=99,"Interrompu", $D39)), 0),"Non requis") -> 0 | N39: =IF(INTRO!$E$40="Endémique", IF($I39>0, IF($I39=4,"Inconnu",IF($I39=99,"Interrompu", $D39)), 0),"Non requis") -> Inconnu | O39: =IF(INTRO!$E$42="Endémique", IF(AND($J39>1,$J39<5), IF($J39=4, "Inconnu", E39+F39), 0),"Non requis") -> 28050 | P39: =IF(INTRO!$E$44="Endémique", IF(AND($K39>0,$K39<5), IF($K39=4,"Inconnu", IF($K39=1, $F39*0.33, IF($K39=2, $F39*0.5+$G39*0.2, SUM(F39:G39)))), 0),"Non requis") -> 6230.4 | Q39: 0 | R39: 0 | S39: 1 | T39: 1 | U39: T1 (PZQ+ALB/MBD) | W39: 14074 | X39: Kamalondo | Y39: TRUE | Z39: 0.0009665844059 | AA39: 53942.5214 | AC39: ='MDA1'!M39 -> 0 | AD39: ='MDA4'!U39 -> 0 | AE39: ='MDA3'!Q39 -> 0 | AF39: ='T1'!O39 -> 23969 | AG39: ='T2'!M39 -> 0 | AH39: =T3_R1!N39 -> 0
A40: =IF(INTRO!$E$34<>0,INTRO!$E$34,"") -> DRC | B40: Haut Katanga | C40: Kambove | D40: 130421 | E40: =IF(INTRO!$E$48="","",ROUND($D40*INTRO!$E$48,0)) -> 22172 | F40: =IF(INTRO!$E$49="","",ROUND($D40*INTRO!$E$49,0)) -> 45647 | G40: =IF(INTRO!$E$50="","",ROUND($D40*INTRO!$E$50,0)) -> 59994 | H40: 0 | I40: 4 | J40: 1 | K40: 0 | L40: 1 | M40: =IF(INTRO!$E$38="Endémique", IF($H40>0, IF($H40=4,"Inconnu", IF($H40=99,"Interrompu", $D40)), 0),"Non requis") -> 0 | N40: =IF(INTRO!$E$40="Endémique", IF($I40>0, IF($I40=4,"Inconnu",IF($I40=99,"Interrompu", $D40)), 0),"Non requis") -> Inconnu | O40: =IF(INTRO!$E$42="Endémique", IF(AND($J40>1,$J40<5), IF($J40=4, "Inconnu", E40+F40), 0),"Non requis") -> 0 | P40: =IF(INTRO!$E$44="Endémique", IF(AND($K40>0,$K40<5), IF($K40=4,"Inconnu", IF($K40=1, $F40*0.33, IF($K40=2, $F40*0.5+$G40*0.2, SUM(F40:G40)))), 0),"Non requis") -> 0 | Q40: 0 | R40: 0 | S40: 0 | T40: 0 | W40: 14075 | X40: Kambove | Y40: TRUE | Z40: 0.000260694893 | AA40: 130420.66 | AC40: ='MDA1'!M40 -> 0 | AD40: ='MDA4'!U40 -> 0 | AE40: ='MDA3'!Q40 -> 0 | AF40: ='T1'!O40 -> 0 | AG40: ='T2'!M40 -> 0 | AH40: =T3_R1!N40 -> 0
A41: =IF(INTRO!$E$34<>0,INTRO!$E$34,"") -> DRC | B41: Haut Katanga | C41: Kampemba | D41: 455165 | E41: =IF(INTRO!$E$48="","",ROUND($D41*INTRO!$E$48,0)) -> 77378 | F41: =IF(INTRO!$E$49="","",ROUND($D41*INTRO!$E$49,0)) -> 159308 | G41: =IF(INTRO!$E$50="","",ROUND($D41*INTRO!$E$50,0)) -> 209376 | H41: 0 | I41: 4 | J41: 0 | K41: 2 | L41: 0 | M41: =IF(INTRO!$E$38="Endémique", IF($H41>0, IF($H41=4,"Inconnu", IF($H41=99,"Interrompu", $D41)), 0),"Non requis") -> 0 | N41: =IF(INTRO!$E$40="Endémique", IF($I41>0, IF($I41=4,"Inconnu",IF($I41=99,"Interrompu", $D41)), 0),"Non requis") -> Inconnu | O41: =IF(INTRO!$E$42="Endémique", IF(AND($J41>1,$J41<5), IF($J41=4, "Inconnu", E41+F41), 0),"Non requis") -> 0 | P41: =IF(INTRO!$E$44="Endémique", IF(AND($K41>0,$K41<5), IF($K41=4,"Inconnu", IF($K41=1, $F41*0.33, IF($K41=2, $F41*0.5+$G41*0.2, SUM(F41:G41)))), 0),"Non requis") -> 121529.2 | Q41: 0 | R41: 0 | S41: 0 | T41: 1 | U41: T2 (PZQ) | W41: 14080 | X41: Kampemba | Y41: TRUE | Z41: 0.000110917268 | AA41: 455165.5049 | AC41: ='MDA1'!M41 -> 0 | AD41: ='MDA4'!U41 -> 0 | AE41: ='MDA3'!Q41 -> 0 | AF41: ='T1'!O41 -> 0 | AG41: ='T2'!M41 -> 175875 | AH41: =T3_R1!N41 -> 0
A42: =IF(INTRO!$E$34<>0,INTRO!$E$34,"") -> DRC | B42: Haut Katanga | C42: Kapolobwe | D42: 175764 | E42: =IF(INTRO!$E$48="","",ROUND($D42*INTRO!$E$48,0)) -> 29880 | F42: =IF(INTRO!$E$49="","",ROUND($D42*INTRO!$E$49,0)) -> 61517 | G42: =IF(INTRO!$E$50="","",ROUND($D42*INTRO!$E$50,0)) -> 80851 | H42: 0 | I42: 4 | J42: 0 | K42: 2 | L42: 0 | M42: =IF(INTRO!$E$38="Endémique", IF($H42>0, IF($H42=4,"Inconnu", IF($H42=99,"Interrompu", $D42)), 0),"Non requis") -> 0 | N42: =IF(INTRO!$E$40="Endémique", IF($I42>0, IF($I42=4,"Inconnu",IF($I42=99,"Interrompu", $D42)), 0),"Non requis") -> Inconnu | O42: =IF(INTRO!$E$42="Endémique", IF(AND($J42>1,$J42<5), IF($J42=4, "Inconnu", E42+F42), 0),"Non requis") -> 0 | P42: =IF(INTRO!$E$44="Endémique", IF(AND($K42>0,$K42<5), IF($K42=4,"Inconnu", IF($K42=1, $F42*0.33, IF($K42=2, $F42*0.5+$G42*0.2, SUM(F42:G42)))), 0),"Non requis") -> 46928.7 | Q42: 0 | R42: 0 | S42: 0 | T42: 0 | W42: 14081 | X42: Kapolobwe | Y42: TRUE | Z42: 0.0001991302559 | AA42: 175764.35 | AC42: ='MDA1'!M42 -> 0 | AD42: ='MDA4'!U42 -> 0 | AE42: ='MDA3'!Q42 -> 0 | AF42: ='T1'!O42 -> 0 | AG42: ='T2'!M42 -> 0 | AH42: =T3_R1!N42 -> 0
A43: =IF(INTRO!$E$34<>0,INTRO!$E$34,"") -> DRC | B43: Haut Katanga | C43: Kasenga | D43: 166076 | E43: =IF(INTRO!$E$48="","",ROUND($D43*INTRO!$E$48,0)) -> 28233 | F43: =IF(INTRO!$E$49="","",ROUND($D43*INTRO!$E$49,0)) -> 58127 | G43: =IF(INTRO!$E$50="","",ROUND($D43*INTRO!$E$50,0)) -> 76395 | H43: 1 | I43: 4 | J43: 1 | K43: 2 | L43: 0 | M43: =IF(INTRO!$E$38="Endémique", IF($H43>0, IF($H43=4,"Inconnu", IF($H43=99,"Interrompu", $D43)), 0),"Non requis") -> 166076 | N43: =IF(INTRO!$E$40="Endémique", IF($I43>0, IF($I43=4,"Inconnu",IF($I43=99,"Interrompu", $D43)), 0),"Non requis") -> Inconnu | O43: =IF(INTRO!$E$42="Endémique", IF(AND($J43>1,$J43<5), IF($J43=4, "Inconnu", E43+F43), 0),"Non requis") -> 0 | P43: =IF(INTRO!$E$44="Endémique", IF(AND($K43>0,$K43<5), IF($K43=4,"Inconnu", IF($K43=1, $F43*0.33, IF($K43=2, $F43*0.5+$G43*0.2, SUM(F43:G43)))), 0),"Non requis") -> 44342.5 | Q43: 1 | R43: 0 | S43: 0 | T43: 0 | U43: MDA1 (IVM+ALB) | W43: 14083 | X43: Kasenga | Y43: TRUE | Z43: 9.087370354 | AA43: 152241.2718 | AC43: ='MDA1'!M43 -> 134505 | AD43: ='MDA4'!U43 -> 0 | AE43: ='MDA3'!Q43 -> 0 | AF43: ='T1'!O43 -> 0 | AG43: ='T2'!M43 -> 0 | AH43: =T3_R1!N43 -> 0
A44: =IF(INTRO!$E$34<>0,INTRO!$E$34,"") -> DRC | B44: Haut Katanga | C44: Kashobwe | D44: 168007 | E44: =IF(INTRO!$E$48="","",ROUND($D44*INTRO!$E$48,0)) -> 28561 | F44: =IF(INTRO!$E$49="","",ROUND($D44*INTRO!$E$49,0)) -> 58802 | G44: =IF(INTRO!$E$50="","",ROUND($D44*INTRO!$E$50,0)) -> 77283 | H44: 0 | I44: 4 | J44: 1 | K44: 2 | L44: 4 | M44: =IF(INTRO!$E$38="Endémique", IF($H44>0, IF($H44=4,"Inconnu", IF($H44=99,"Interrompu", $D44)), 0),"Non requis") -> 0 | N44: =IF(INTRO!$E$40="Endémique", IF($I44>0, IF($I44=4,"Inconnu",IF($I44=99,"Interrompu", $D44)), 0),"Non requis") -> Inconnu | O44: =IF(INTRO!$E$42="Endémique", IF(AND($J44>1,$J44<5), IF($J44=4, "Inconnu", E44+F44), 0),"Non requis") -> 0 | P44: =IF(INTRO!$E$44="Endémique", IF(AND($K44>0,$K44<5), IF($K44=4,"Inconnu", IF($K44=1, $F44*0.33, IF($K44=2, $F44*0.5+$G44*0.2, SUM(F44:G44)))), 0),"Non requis") -> 44857.6 | Q44: 0 | R44: 0 | S44: 0 | T44: 1 | U44: T2 (PZQ) | W44: 14337 | X44: Kashobwe | Y44: TRUE | Z44: 9.234300587e-05 | AA44: 168007.1551 | AC44: ='MDA1'!M44 -> 0 | AD44: ='MDA4'!U44 -> 0 | AE44: ='MDA3'!Q44 -> 0 | AF44: ='T1'!O44 -> 0 | AG44: ='T2'!M44 -> 53419 | AH44: =T3_R1!N44 -> 0
A45: =IF(INTRO!$E$34<>0,INTRO!$E$34,"") -> DRC | B45: Haut Katanga | C45: Katuba | D45: 198121 | E45: =IF(INTRO!$E$48="","",ROUND($D45*INTRO!$E$48,0)) -> 33681 | F45: =IF(INTRO!$E$49="","",ROUND($D45*INTRO!$E$49,0)) -> 69342 | G45: =IF(INTRO!$E$50="","",ROUND($D45*INTRO!$E$50,0)) -> 91136 | H45: 0 | I45: 4 | J45: 2 | K45: 0 | L45: 0 | M45: =IF(INTRO!$E$38="Endémique", IF($H45>0, IF($H45=4,"Inconnu", IF($H45=99,"Interrompu", $D45)), 0),"Non requis") -> 0 | N45: =IF(INTRO!$E$40="Endémique", IF($I45>0, IF($I45=4,"Inconnu",IF($I45=99,"Interrompu", $D45)), 0),"Non requis") -> Inconnu | O45: =IF(INTRO!$E$42="Endémique", IF(AND($J45>1,$J45<5), IF($J45=4, "Inconnu", E45+F45), 0),"Non requis") -> 103023 | P45: =IF(INTRO!$E$44="Endémique", IF(AND($K45>0,$K45<5), IF($K45=4,"Inconnu", IF($K45=1, $F45*0.33, IF($K45=2, $F45*0.5+$G45*0.2, SUM(F45:G45)))), 0),"Non requis") -> 0 | Q45: 0 | R45: 0 | S45: 1 | T45: 0 | U45: T3 (ALB/MBD) | W45: 14085 | X45: Katuba | Y45: TRUE | Z45: 2.362193358e-05 | AA45: 198120.9532 | AC45: ='MDA1'!M45 -> 0 | AD45: ='MDA4'!U45 -> 0 | AE45: ='MDA3'!Q45 -> 0 | AF45: ='T1'!O45 -> 0 | AG45: ='T2'!M45 -> 0 | AH45: =T3_R1!N45 -> 53672
A46: =IF(INTRO!$E$34<>0,INTRO!$E$34,"") -> DRC | B46: Haut Katanga | C46: Kenya | D46: 220488 | E46: =IF(INTRO!$E$48="","",ROUND($D46*INTRO!$E$48,0)) -> 37483 | F46: =IF(INTRO!$E$49="","",ROUND($D46*INTRO!$E$49,0)) -> 77171 | G46: =IF(INTRO!$E$50="","",ROUND($D46*INTRO!$E$50,0)) -> 101424 | H46: 1 | I46: 4 | J46: 1 | K46: 0 | L46: 0 | M46: =IF(INTRO!$E$38="Endémique", IF($H46>0, IF($H46=4,"Inconnu", IF($H46=99,"Interrompu", $D46)), 0),"Non requis") -> 220488 | N46: =IF(INTRO!$E$40="Endémique", IF($I46>0, IF($I46=4,"Inconnu",IF($I46=99,"Interrompu", $D46)), 0),"Non requis") -> Inconnu | O46: =IF(INTRO!$E$42="Endémique", IF(AND($J46>1,$J46<5), IF($J46=4, "Inconnu", E46+F46), 0),"Non requis") -> 0 | P46: =IF(INTRO!$E$44="Endémique", IF(AND($K46>0,$K46<5), IF($K46=4,"Inconnu", IF($K46=1, $F46*0.33, IF($K46=2, $F46*0.5+$G46*0.2, SUM(F46:G46)))), 0),"Non requis") -> 0 | Q46: 1 | R46: 0 | S46: 0 | T46: 0 | U46: MDA1 (IVM+ALB) | W46: 14087 | X46: Kenya | Y46: TRUE | Z46: 0.6818918211 | AA46: 222001.8122 | AC46: ='MDA1'!M46 -> 179634 | AD46: ='MDA4'!U46 -> 0 | AE46: ='MDA3'!Q46 -> 0 | AF46: ='T1'!O46 -> 0 | AG46: ='T2'!M46 -> 0 | AH46: =T3_R1!N46 -> 0
A47: =IF(INTRO!$E$34<>0,INTRO!$E$34,"") -> DRC | B47: Haut Katanga | C47: Kikula | D47: 233254 | E47: =IF(INTRO!$E$48="","",ROUND($D47*INTRO!$E$48,0)) -> 39653 | F47: =IF(INTRO!$E$49="","",ROUND($D47*INTRO!$E$49,0)) -> 81639 | G47: =IF(INTRO!$E$50="","",ROUND($D47*INTRO!$E$50,0)) -> 107297 | H47: 0 | I47: 4 | J47: 0 | K47: 1 | L47: 0 | M47: =IF(INTRO!$E$38="Endémique", IF($H47>0, IF($H47=4,"Inconnu", IF($H47=99,"Interrompu", $D47)), 0),"Non requis") -> 0 | N47: =IF(INTRO!$E$40="Endémique", IF($I47>0, IF($I47=4,"Inconnu",IF($I47=99,"Interrompu", $D47)), 0),"Non requis") -> Inconnu | O47: =IF(INTRO!$E$42="Endémique", IF(AND($J47>1,$J47<5), IF($J47=4, "Inconnu", E47+F47), 0),"Non requis") -> 0 | P47: =IF(INTRO!$E$44="Endémique", IF(AND($K47>0,$K47<5), IF($K47=4,"Inconnu", IF($K47=1, $F47*0.33, IF($K47=2, $F47*0.5+$G47*0.2, SUM(F47:G47)))), 0),"Non requis") -> 26940.87 | Q47: 0 | R47: 0 | S47: 0 | T47: 1 | U47: T2 (PZQ) | W47: 14089 | X47: Kikula | Y47: TRUE | Z47: 8.5743512e-05 | AA47: 233253.8 | AC47: ='MDA1'!M47 -> 0 | AD47: ='MDA4'!U47 -> 0 | AE47: ='MDA3'!Q47 -> 0 | AF47: ='T1'!O47 -> 0 | AG47: ='T2'!M47 -> 78006 | AH47: =T3_R1!N47 -> 0
A48: =IF(INTRO!$E$34<>0,INTRO!$E$34,"") -> DRC | B48: Haut Katanga | C48: Kilela Balanda | D48: 108691 | E48: =IF(INTRO!$E$48="","",ROUND($D48*INTRO!$E$48,0)) -> 18477 | F48: =IF(INTRO!$E$49="","",ROUND($D48*INTRO!$E$49,0)) -> 38042 | G48: =IF(INTRO!$E$50="","",ROUND($D48*INTRO!$E$50,0)) -> 49998 | H48: 0 | I48: 4 | J48: 1 | K48: 1 | L48: 0 | M48: =IF(INTRO!$E$38="Endémique", IF($H48>0, IF($H48=4,"Inconnu", IF($H48=99,"Interrompu", $D48)), 0),"Non requis") -> 0 | N48: =IF(INTRO!$E$40="Endémique", IF($I48>0, IF($I48=4,"Inconnu",IF($I48=99,"Interrompu", $D48)), 0),"Non requis") -> Inconnu | O48: =IF(INTRO!$E$42="Endémique", IF(AND($J48>1,$J48<5), IF($J48=4, "Inconnu", E48+F48), 0),"Non requis") -> 0 | P48: =IF(INTRO!$E$44="Endémique", IF(AND($K48>0,$K48<5), IF($K48=4,"Inconnu", IF($K48=1, $F48*0.33, IF($K48=2, $F48*0.5+$G48*0.2, SUM(F48:G48)))), 0),"Non requis") -> 12553.86 | Q48: 0 | R48: 0 | S48: 0 | T48: 0 | W48: 14090 | X48: Kilela Balanda | Y48: TRUE | Z48: 0.0002570859499 | AA48: 108690.7206 | AC48: ='MDA1'!M48 -> 0 | AD48: ='MDA4'!U48 -> 0 | AE48: ='MDA3'!Q48 -> 0 | AF48: ='T1'!O48 -> 0 | AG48: ='T2'!M48 -> 0 | AH48: =T3_R1!N48 -> 0
A49: =IF(INTRO!$E$34<>0,INTRO!$E$34,"") -> DRC | B49: Haut Katanga | C49: Kilwa | D49: 372960 | E49: =IF(INTRO!$E$48="","",ROUND($D49*INTRO!$E$48,0)) -> 63403 | F49: =IF(INTRO!$E$49="","",ROUND($D49*INTRO!$E$49,0)) -> 130536 | G49: =IF(INTRO!$E$50="","",ROUND($D49*INTRO!$E$50,0)) -> 171562 | H49: 1 | I49: 4 | J49: 1 | K49: 2 | L49: 0 | M49: =IF(INTRO!$E$38="Endémique", IF($H49>0, IF($H49=4,"Inconnu", IF($H49=99,"Interrompu", $D49)), 0),"Non requis") -> 372960 | N49: =IF(INTRO!$E$40="Endémique", IF($I49>0, IF($I49=4,"Inconnu",IF($I49=99,"Interrompu", $D49)), 0),"Non requis") -> Inconnu | O49: =IF(INTRO!$E$42="Endémique", IF(AND($J49>1,$J49<5), IF($J49=4, "Inconnu", E49+F49), 0),"Non requis") -> 0 | P49: =IF(INTRO!$E$44="Endémique", IF(AND($K49>0,$K49<5), IF($K49=4,"Inconnu", IF($K49=1, $F49*0.33, IF($K49=2, $F49*0.5+$G49*0.2, SUM(F49:G49)))), 0),"Non requis") -> 99580.4 | Q49: 1 | R49: 0 | S49: 0 | T49: 0 | U49: MDA1 (IVM+ALB) | W49: 14091 | X49: Kilwa | Y49: TRUE | Z49: 1.002345676 | AA49: 376736.199 | AC49: ='MDA1'!M49 -> 296703 | AD49: ='MDA4'!U49 -> 0 | AE49: ='MDA3'!Q49 -> 0 | AF49: ='T1'!O49 -> 0 | AG49: ='T2'!M49 -> 0 | AH49: =T3_R1!N49 -> 0
A50: =IF(INTRO!$E$34<>0,INTRO!$E$34,"") -> DRC | B50: Haut Katanga | C50: Kipushi | D50: 198896 | E50: =IF(INTRO!$E$48="","",ROUND($D50*INTRO!$E$48,0)) -> 33812 | F50: =IF(INTRO!$E$49="","",ROUND($D50*INTRO!$E$49,0)) -> 69614 | G50: =IF(INTRO!$E$50="","",ROUND($D50*INTRO!$E$50,0)) -> 91492 | H50: 1 | I50: 1 | J50: 1 | K50: 2 | L50: 0 | M50: =IF(INTRO!$E$38="Endémique", IF($H50>0, IF($H50=4,"Inconnu", IF($H50=99,"Interrompu", $D50)), 0),"Non requis") -> 198896 | N50: =IF(INTRO!$E$40="Endémique", IF($I50>0, IF($I50=4,"Inconnu",IF($I50=99,"Interrompu", $D50)), 0),"Non requis") -> 198896 | O50: =IF(INTRO!$E$42="Endémique", IF(AND($J50>1,$J50<5), IF($J50=4, "Inconnu", E50+F50), 0),"Non requis") -> 0 | P50: =IF(INTRO!$E$44="Endémique", IF(AND($K50>0,$K50<5), IF($K50=4,"Inconnu", IF($K50=1, $F50*0.33, IF($K50=2, $F50*0.5+$G50*0.2, SUM(F50:G50)))), 0),"Non requis") -> 53105.4 | Q50: 1 | R50: 1 | S50: 0 | T50: 0 | U50: MDA1 (IVM+ALB) | W50: 14094 | X50: Kipushi | Y50: TRUE | Z50: 15.19301746 | AA50: 234527.8585 | AC50: ='MDA1'!M50 -> 161790 | AD50: ='MDA4'!U50 -> 0 | AE50: ='MDA3'!Q50 -> 0 | AF50: ='T1'!O50 -> 0 | AG50: ='T2'!M50 -> 0 | AH50: =T3_R1!N50 -> 0
A51: =IF(INTRO!$E$34<>0,INTRO!$E$34,"") -> DRC | B51: Haut Katanga | C51: Kisanga | D51: 280046 | E51: =IF(INTRO!$E$48="","",ROUND($D51*INTRO!$E$48,0)) -> 47608 | F51: =IF(INTRO!$E$49="","",ROUND($D51*INTRO!$E$49,0)) -> 98016 | G51: =IF(INTRO!$E$50="","",ROUND($D51*INTRO!$E$50,0)) -> 128821 | H51: 1 | I51: 4 | J51: 1 | K51: 0 | L51: 0 | M51: =IF(INTRO!$E$38="Endémique", IF($H51>0, IF($H51=4,"Inconnu", IF($H51=99,"Interrompu", $D51)), 0),"Non requis") -> 280046 | N51: =IF(INTRO!$E$40="Endémique", IF($I51>0, IF($I51=4,"Inconnu",IF($I51=99,"Interrompu", $D51)), 0),"Non requis") -> Inconnu | O51: =IF(INTRO!$E$42="Endémique", IF(AND($J51>1,$J51<5), IF($J51=4, "Inconnu", E51+F51), 0),"Non requis") -> 0 | P51: =IF(INTRO!$E$44="Endémique", IF(AND($K51>0,$K51<5), IF($K51=4,"Inconnu", IF($K51=1, $F51*0.33, IF($K51=2, $F51*0.5+$G51*0.2, SUM(F51:G51)))), 0),"Non requis") -> 0 | Q51: 1 | R51: 0 | S51: 0 | T51: 0 | U51: MDA1 (IVM+ALB) | W51: 14095 | X51: Kisanga | Y51: TRUE | Z51: 0.1644394133 | AA51: 280507.2645 | AC51: ='MDA1'!M51 -> 262184 | AD51: ='MDA4'!U51 -> 0 | AE51: ='MDA3'!Q51 -> 0 | AF51: ='T1'!O51 -> 0 | AG51: ='T2'!M51 -> 0 | AH51: =T3_R1!N51 -> 0
A52: =IF(INTRO!$E$34<>0,INTRO!$E$34,"") -> DRC | B52: Haut Katanga | C52: Kowe | D52: 52721 | E52: =IF(INTRO!$E$48="","",ROUND($D52*INTRO!$E$48,0)) -> 8963 | F52: =IF(INTRO!$E$49="","",ROUND($D52*INTRO!$E$49,0)) -> 18452 | G52: =IF(INTRO!$E$50="","",ROUND($D52*INTRO!$E$50,0)) -> 24252 | H52: 0 | I52: 4 | J52: 2 | K52: 1 | L52: 4 | M52: =IF(INTRO!$E$38="Endémique", IF($H52>0, IF($H52=4,"Inconnu", IF($H52=99,"Interrompu", $D52)), 0),"Non requis") -> 0 | N52: =IF(INTRO!$E$40="Endémique", IF($I52>0, IF($I52=4,"Inconnu",IF($I52=99,"Interrompu", $D52)), 0),"Non requis") -> Inconnu | O52: =IF(INTRO!$E$42="Endémique", IF(AND($J52>1,$J52<5), IF($J52=4, "Inconnu", E52+F52), 0),"Non requis") -> 27415 | P52: =IF(INTRO!$E$44="Endémique", IF(AND($K52>0,$K52<5), IF($K52=4,"Inconnu", IF($K52=1, $F52*0.33, IF($K52=2, $F52*0.5+$G52*0.2, SUM(F52:G52)))), 0),"Non requis") -> 6089.16 | Q52: 0 | R52: 0 | S52: 1 | T52: 0 | U52: T3 (ALB/MBD) | W52: 14098 | X52: Kowe | Y52: TRUE | Z52: 0.00120522687 | AA52: 52720.3646 | AC52: ='MDA1'!M52 -> 0 | AD52: ='MDA4'!U52 -> 0 | AE52: ='MDA3'!Q52 -> 0 | AF52: ='T1'!O52 -> 0 | AG52: ='T2'!M52 -> 0 | AH52: =T3_R1!N52 -> 16258
A53: =IF(INTRO!$E$34<>0,INTRO!$E$34,"") -> DRC | B53: Haut Katanga | C53: Likasi | D53: 180313 | E53: =IF(INTRO!$E$48="","",ROUND($D53*INTRO!$E$48,0)) -> 30653 | F53: =IF(INTRO!$E$49="","",ROUND($D53*INTRO!$E$49,0)) -> 63110 | G53: =IF(INTRO!$E$50="","",ROUND($D53*INTRO!$E$50,0)) -> 82944 | H53: 1 | I53: 4 | J53: 1 | K53: 0 | L53: 0 | M53: =IF(INTRO!$E$38="Endémique", IF($H53>0, IF($H53=4,"Inconnu", IF($H53=99,"Interrompu", $D53)), 0),"Non requis") -> 180313 | N53: =IF(INTRO!$E$40="Endémique", IF($I53>0, IF($I53=4,"Inconnu",IF($I53=99,"Interrompu", $D53)), 0),"Non requis") -> Inconnu | O53: =IF(INTRO!$E$42="Endémique", IF(AND($J53>1,$J53<5), IF($J53=4, "Inconnu", E53+F53), 0),"Non requis") -> 0 | P53: =IF(INTRO!$E$44="Endémique", IF(AND($K53>0,$K53<5), IF($K53=4,"Inconnu", IF($K53=1, $F53*0.33, IF($K53=2, $F53*0.5+$G53*0.2, SUM(F53:G53)))), 0),"Non requis") -> 0 | Q53: 1 | R53: 0 | S53: 0 | T53: 0 | U53: MDA1 (IVM+ALB) | W53: 14099 | X53: Likasi | Y53: TRUE | Z53: 4.22339149 | AA53: 188264.1313 | AC53: ='MDA1'!M53 -> 136321 | AD53: ='MDA4'!U53 -> 0 | AE53: ='MDA3'!Q53 -> 0 | AF53: ='T1'!O53 -> 0 | AG53: ='T2'!M53 -> 0 | AH53: =T3_R1!N53 -> 0
A54: =IF(INTRO!$E$34<>0,INTRO!$E$34,"") -> DRC | B54: Haut Katanga | C54: Lubumbashi | D54: 126443 | E54: =IF(INTRO!$E$48="","",ROUND($D54*INTRO!$E$48,0)) -> 21495 | F54: =IF(INTRO!$E$49="","",ROUND($D54*INTRO!$E$49,0)) -> 44255 | G54: =IF(INTRO!$E$50="","",ROUND($D54*INTRO!$E$50,0)) -> 58164 | H54: 1 | I54: 4 | J54: 1 | K54: 1 | L54: 0 | M54: =IF(INTRO!$E$38="Endémique", IF($H54>0, IF($H54=4,"Inconnu", IF($H54=99,"Interrompu", $D54)), 0),"Non requis") -> 126443 | N54: =IF(INTRO!$E$40="Endémique", IF($I54>0, IF($I54=4,"Inconnu",IF($I54=99,"Interrompu", $D54)), 0),"Non requis") -> Inconnu | O54: =IF(INTRO!$E$42="Endémique", IF(AND($J54>1,$J54<5), IF($J54=4, "Inconnu", E54+F54), 0),"Non requis") -> 0 | P54: =IF(INTRO!$E$44="Endémique", IF(AND($K54>0,$K54<5), IF($K54=4,"Inconnu", IF($K54=1, $F54*0.33, IF($K54=2, $F54*0.5+$G54*0.2, SUM(F54:G54)))), 0),"Non requis") -> 14604.15 | Q54: 1 | R54: 0 | S54: 0 | T54: 0 | U54: MDA1 (IVM+ALB) | V54: T2 (PZQ) | W54: 14102 | X54: Lubumbashi | Y54: TRUE | Z54: 34.90201025 | AA54: 194234.8765 | AC54: ='MDA1'!M54 -> 140196 | AD54: ='MDA4'!U54 -> 0 | AE54: ='MDA3'!Q54 -> 0 | AF54: ='T1'!O54 -> 0 | AG54: ='T2'!M54 -> 0 | AH54: =T3_R1!N54 -> 0
A55: =IF(INTRO!$E$34<>0,INTRO!$E$34,"") -> DRC | B55: Haut Katanga | C55: Lukafu | D55: 97543 | E55: =IF(INTRO!$E$48="","",ROUND($D55*INTRO!$E$48,0)) -> 16582 | F55: =IF(INTRO!$E$49="","",ROUND($D55*INTRO!$E$49,0)) -> 34140 | G55: =IF(INTRO!$E$50="","",ROUND($D55*INTRO!$E$50,0)) -> 44870 | H55: 1 | I55: 4 | J55: 1 | K55: 2 | L55: 0 | M55: =IF(INTRO!$E$38="Endémique", IF($H55>0, IF($H55=4,"Inconnu", IF($H55=99,"Interrompu", $D55)), 0),"Non requis") -> 97543 | N55: =IF(INTRO!$E$40="Endémique", IF($I55>0, IF($I55=4,"Inconnu",IF($I55=99,"Interrompu", $D55)), 0),"Non requis") -> Inconnu | O55: =IF(INTRO!$E$42="Endémique", IF(AND($J55>1,$J55<5), IF($J55=4, "Inconnu", E55+F55), 0),"Non requis") -> 0 | P55: =IF(INTRO!$E$44="Endémique", IF(AND($K55>0,$K55<5), IF($K55=4,"Inconnu", IF($K55=1, $F55*0.33, IF($K55=2, $F55*0.5+$G55*0.2, SUM(F55:G55)))), 0),"Non requis") -> 26044 | Q55: 1 | R55: 0 | S55: 0 | T55: 0 | U55: MDA1 (IVM+ALB) | W55: 14103 | X55: Lukafu | Y55: TRUE | Z55: 1.657201326 | AA55: 99186.7237 | AC55: ='MDA1'!M55 -> 78734 | AD55: ='MDA4'!U55 -> 0 | AE55: ='MDA3'!Q55 -> 0 | AF55: ='T1'!O55 -> 0 | AG55: ='T2'!M55 -> 0 | AH55: =T3_R1!N55 -> 0
A56: =IF(INTRO!$E$34<>0,INTRO!$E$34,"") -> DRC | B56: Haut Katanga | C56: Mitwaba | D56: 158633 | E56: =IF(INTRO!$E$48="","",ROUND($D56*INTRO!$E$48,0)) -> 26968 | F56: =IF(INTRO!$E$49="","",ROUND($D56*INTRO!$E$49,0)) -> 55522 | G56: =IF(INTRO!$E$50="","",ROUND($D56*INTRO!$E$50,0)) -> 72971 | H56: 1 | I56: 1 | J56: 1 | K56: 1 | L56: 0 | M56: =IF(INTRO!$E$38="Endémique", IF($H56>0, IF($H56=4,"Inconnu", IF($H56=99,"Interrompu", $D56)), 0),"Non requis") -> 158633 | N56: =IF(INTRO!$E$40="Endémique", IF($I56>0, IF($I56=4,"Inconnu",IF($I56=99,"Interrompu", $D56)), 0),"Non requis") -> 158633 | O56: =IF(INTRO!$E$42="Endémique", IF(AND($J56>1,$J56<5), IF($J56=4, "Inconnu", E56+F56), 0),"Non requis") -> 0 | P56: =IF(INTRO!$E$44="Endémique", IF(AND($K56>0,$K56<5), IF($K56=4,"Inconnu", IF($K56=1, $F56*0.33, IF($K56=2, $F56*0.5+$G56*0.2, SUM(F56:G56)))), 0),"Non requis") -> 18322.26 | Q56: 1 | R56: 1 | S56: 0 | T56: 1 | U56: MDA1 (IVM+ALB) | V56: T2 (PZQ) | W56: 14109 | X56: Mitwaba | Y56: TRUE | Z56: 39.74338264 | AA56: 113517.3609 | AC56: ='MDA1'!M56 -> 127584 | AD56: ='MDA4'!U56 -> 0 | AE56: ='MDA3'!Q56 -> 0 | AF56: ='T1'!O56 -> 0 | AG56: ='T2'!M56 -> 43134 | AH56: =T3_R1!N56 -> 0
A57: =IF(INTRO!$E$34<>0,INTRO!$E$34,"") -> DRC | B57: Haut Katanga | C57: Mufunga Sampwe | D57: 181013 | E57: =IF(INTRO!$E$48="","",ROUND($D57*INTRO!$E$48,0)) -> 30772 | F57: =IF(INTRO!$E$49="","",ROUND($D57*INTRO!$E$49,0)) -> 63355 | G57: =IF(INTRO!$E$50="","",ROUND($D57*INTRO!$E$50,0)) -> 83266 | H57: 1 | I57: 1 | J57: 1 | K57: 0 | L57: 0 | M57: =IF(INTRO!$E$38="Endémique", IF($H57>0, IF($H57=4,"Inconnu", IF($H57=99,"Interrompu", $D57)), 0),"Non requis") -> 181013 | N57: =IF(INTRO!$E$40="Endémique", IF($I57>0, IF($I57=4,"Inconnu",IF($I57=99,"Interrompu", $D57)), 0),"Non requis") -> 181013 | O57: =IF(INTRO!$E$42="Endémique", IF(AND($J57>1,$J57<5), IF($J57=4, "Inconnu", E57+F57), 0),"Non requis") -> 0 | P57: =IF(INTRO!$E$44="Endémique", IF(AND($K57>0,$K57<5), IF($K57=4,"Inconnu", IF($K57=1, $F57*0.33, IF($K57=2, $F57*0.5+$G57*0.2, SUM(F57:G57)))), 0),"Non requis") -> 0 | Q57: 1 | R57: 1 | S57: 0 | T57: 0 | U57: MDA1 (IVM+ALB) | W57: 14112 | X57: Mufunga Sampwe | Y57: TRUE | Z57: 2.586260334 | AA57: 185818.7568 | AC57: ='MDA1'!M57 -> 149120 | AD57: ='MDA4'!U57 -> 0 | AE57: ='MDA3'!Q57 -> 0 | AF57: ='T1'!O57 -> 0 | AG57: ='T2'!M57 -> 0 | AH57: =T3_R1!N57 -> 0
A58: =IF(INTRO!$E$34<>0,INTRO!$E$34,"") -> DRC | B58: Haut Katanga | C58: Mumbunda | D58: 160522 | E58: =IF(INTRO!$E$48="","",ROUND($D58*INTRO!$E$48,0)) -> 27289 | F58: =IF(INTRO!$E$49="","",ROUND($D58*INTRO!$E$49,0)) -> 56183 | G58: =IF(INTRO!$E$50="","",ROUND($D58*INTRO!$E$50,0)) -> 73840 | H58: 0 | I58: 4 | J58: 1 | K58: 0 | L58: 0 | M58: =IF(INTRO!$E$38="Endémique", IF($H58>0, IF($H58=4,"Inconnu", IF($H58=99,"Interrompu", $D58)), 0),"Non requis") -> 0 | N58: =IF(INTRO!$E$40="Endémique", IF($I58>0, IF($I58=4,"Inconnu",IF($I58=99,"Interrompu", $D58)), 0),"Non requis") -> Inconnu | O58: =IF(INTRO!$E$42="Endémique", IF(AND($J58>1,$J58<5), IF($J58=4, "Inconnu", E58+F58), 0),"Non requis") -> 0 | P58: =IF(INTRO!$E$44="Endémique", IF(AND($K58>0,$K58<5), IF($K58=4,"Inconnu", IF($K58=1, $F58*0.33, IF($K58=2, $F58*0.5+$G58*0.2, SUM(F58:G58)))), 0),"Non requis") -> 0 | Q58: 0 | R58: 0 | S58: 0 | T58: 0 | W58: 14111 | X58: Mumbunda | Y58: TRUE | Z58: 0.0002554160506 | AA58: 160522.41 | AC58: ='MDA1'!M58 -> 0 | AD58: ='MDA4'!U58 -> 0 | AE58: ='MDA3'!Q58 -> 0 | AF58: ='T1'!O58 -> 0 | AG58: ='T2'!M58 -> 0 | AH58: =T3_R1!N58 -> 0
A59: =IF(INTRO!$E$34<>0,INTRO!$E$34,"") -> DRC | B59: Haut Katanga | C59: Panda | D59: 92998 | E59: =IF(INTRO!$E$48="","",ROUND($D59*INTRO!$E$48,0)) -> 15810 | F59: =IF(INTRO!$E$49="","",ROUND($D59*INTRO!$E$49,0)) -> 32549 | G59: =IF(INTRO!$E$50="","",ROUND($D59*INTRO!$E$50,0)) -> 42779 | H59: 0 | I59: 4 | J59: 1 | K59: 0 | L59: 0 | M59: =IF(INTRO!$E$38="Endémique", IF($H59>0, IF($H59=4,"Inconnu", IF($H59=99,"Interrompu", $D59)), 0),"Non requis") -> 0 | N59: =IF(INTRO!$E$40="Endémique", IF($I59>0, IF($I59=4,"Inconnu",IF($I59=99,"Interrompu", $D59)), 0),"Non requis") -> Inconnu | O59: =IF(INTRO!$E$42="Endémique", IF(AND($J59>1,$J59<5), IF($J59=4, "Inconnu", E59+F59), 0),"Non requis") -> 0 | P59: =IF(INTRO!$E$44="Endémique", IF(AND($K59>0,$K59<5), IF($K59=4,"Inconnu", IF($K59=1, $F59*0.33, IF($K59=2, $F59*0.5+$G59*0.2, SUM(F59:G59)))), 0),"Non requis") -> 0 | Q59: 0 | R59: 0 | S59: 0 | T59: 0 | W59: 14118 | X59: Panda | Y59: TRUE | Z59: 0.0003548475999 | AA59: 92997.67 | AC59: ='MDA1'!M59 -> 0 | AD59: ='MDA4'!U59 -> 0 | AE59: ='MDA3'!Q59 -> 0 | AF59: ='T1'!O59 -> 0 | AG59: ='T2'!M59 -> 0 | AH59: =T3_R1!N59 -> 0
A60: =IF(INTRO!$E$34<>0,INTRO!$E$34,"") -> DRC | B60: Haut Katanga | C60: Pweto | D60: 303672 | E60: =IF(INTRO!$E$48="","",ROUND($D60*INTRO!$E$48,0)) -> 51624 | F60: =IF(INTRO!$E$49="","",ROUND($D60*INTRO!$E$49,0)) -> 106285 | G60: =IF(INTRO!$E$50="","",ROUND($D60*INTRO!$E$50,0)) -> 139689 | H60: 0 | I60: 4 | J60: 1 | K60: 1 | L60: 0 | M60: =IF(INTRO!$E$38="Endémique", IF($H60>0, IF($H60=4,"Inconnu", IF($H60=99,"Interrompu", $D60)), 0),"Non requis") -> 0 | N60: =IF(INTRO!$E$40="Endémique", IF($I60>0, IF($I60=4,"Inconnu",IF($I60=99,"Interrompu", $D60)), 0),"Non requis") -> Inconnu | O60: =IF(INTRO!$E$42="Endémique", IF(AND($J60>1,$J60<5), IF($J60=4, "Inconnu", E60+F60), 0),"Non requis") -> 0 | P60: =IF(INTRO!$E$44="Endémique", IF(AND($K60>0,$K60<5), IF($K60=4,"Inconnu", IF($K60=1, $F60*0.33, IF($K60=2, $F60*0.5+$G60*0.2, SUM(F60:G60)))), 0),"Non requis") -> 35074.05 | Q60: 0 | R60: 0 | S60: 0 | T60: 0 | W60: 14119 | X60: Pweto | Y60: TRUE | Z60: 16.80948934 | AA60: 259972.0294 | AC60: ='MDA1'!M60 -> 0 | AD60: ='MDA4'!U60 -> 0 | AE60: ='MDA3'!Q60 -> 0 | AF60: ='T1'!O60 -> 0 | AG60: ='T2'!M60 -> 0 | AH60: =T3_R1!N60 -> 0
A61: =IF(INTRO!$E$34<>0,INTRO!$E$34,"") -> DRC | B61: Haut Katanga | C61: Ruashi | D61: 290043 | E61: =IF(INTRO!$E$48="","",ROUND($D61*INTRO!$E$48,0)) -> 49307 | F61: =IF(INTRO!$E$49="","",ROUND($D61*INTRO!$E$49,0)) -> 101515 | G61: =IF(INTRO!$E$50="","",ROUND($D61*INTRO!$E$50,0)) -> 133420 | H61: 0 | I61: 4 | J61: 1 | K61: 0 | L61: 0 | M61: =IF(INTRO!$E$38="Endémique", IF($H61>0, IF($H61=4,"Inconnu", IF($H61=99,"Interrompu", $D61)), 0),"Non requis") -> 0 | N61: =IF(INTRO!$E$40="Endémique", IF($I61>0, IF($I61=4,"Inconnu",IF($I61=99,"Interrompu", $D61)), 0),"Non requis") -> Inconnu | O61: =IF(INTRO!$E$42="Endémique", IF(AND($J61>1,$J61<5), IF($J61=4, "Inconnu", E61+F61), 0),"Non requis") -> 0 | P61: =IF(INTRO!$E$44="Endémique", IF(AND($K61>0,$K61<5), IF($K61=4,"Inconnu", IF($K61=1, $F61*0.33, IF($K61=2, $F61*0.5+$G61*0.2, SUM(F61:G61)))), 0),"Non requis") -> 0 | Q61: 0 | R61: 0 | S61: 0 | T61: 0 | W61: 14120 | X61: Ruashi | Y61: TRUE | Z61: 5.171649636e-05 | AA61: 290042.85 | AC61: ='MDA1'!M61 -> 0 | AD61: ='MDA4'!U61 -> 0 | AE61: ='MDA3'!Q61 -> 0 | AF61: ='T1'!O61 -> 0 | AG61: ='T2'!M61 -> 0 | AH61: =T3_R1!N61 -> 0
A62: =IF(INTRO!$E$34<>0,INTRO!$E$34,"") -> DRC | B62: Haut Katanga | C62: Sakania | D62: 186889 | E62: =IF(INTRO!$E$48="","",ROUND($D62*INTRO!$E$48,0)) -> 31771 | F62: =IF(INTRO!$E$49="","",ROUND($D62*INTRO!$E$49,0)) -> 65411 | G62: =IF(INTRO!$E$50="","",ROUND($D62*INTRO!$E$50,0)) -> 85969 | H62: 1 | I62: 4 | J62: 1 | K62: 2 | L62: 0 | M62: =IF(INTRO!$E$38="Endémique", IF($H62>0, IF($H62=4,"Inconnu", IF($H62=99,"Interrompu", $D62)), 0),"Non requis") -> 186889 | N62: =IF(INTRO!$E$40="Endémique", IF($I62>0, IF($I62=4,"Inconnu",IF($I62=99,"Interrompu", $D62)), 0),"Non requis") -> Inconnu | O62: =IF(INTRO!$E$42="Endémique", IF(AND($J62>1,$J62<5), IF($J62=4, "Inconnu", E62+F62), 0),"Non requis") -> 0 | P62: =IF(INTRO!$E$44="Endémique", IF(AND($K62>0,$K62<5), IF($K62=4,"Inconnu", IF($K62=1, $F62*0.33, IF($K62=2, $F62*0.5+$G62*0.2, SUM(F62:G62)))), 0),"Non requis") -> 49899.3 | Q62: 1 | R62: 0 | S62: 0 | T62: 0 | U62: MDA1 (IVM+ALB) | W62: 14121 | X62: Sakania | Y62: TRUE | Z62: 0.7801883106 | AA62: 188358.5514 | AC62: ='MDA1'!M62 -> 194695 | AD62: ='MDA4'!U62 -> 0 | AE62: ='MDA3'!Q62 -> 0 | AF62: ='T1'!O62 -> 0 | AG62: ='T2'!M62 -> 0 | AH62: =T3_R1!N62 -> 0
A63: =IF(INTRO!$E$34<>0,INTRO!$E$34,"") -> DRC | B63: Haut Katanga | C63: Tshamilemba | D63: 262882 | E63: =IF(INTRO!$E$48="","",ROUND($D63*INTRO!$E$48,0)) -> 44690 | F63: =IF(INTRO!$E$49="","",ROUND($D63*INTRO!$E$49,0)) -> 92009 | G63: =IF(INTRO!$E$50="","",ROUND($D63*INTRO!$E$50,0)) -> 120926 | H63: 0 | I63: 4 | J63: 1 | K63: 1 | L63: 0 | M63: =IF(INTRO!$E$38="Endémique", IF($H63>0, IF($H63=4,"Inconnu", IF($H63=99,"Interrompu", $D63)), 0),"Non requis") -> 0 | N63: =IF(INTRO!$E$40="Endémique", IF($I63>0, IF($I63=4,"Inconnu",IF($I63=99,"Interrompu", $D63)), 0),"Non requis") -> Inconnu | O63: =IF(INTRO!$E$42="Endémique", IF(AND($J63>1,$J63<5), IF($J63=4, "Inconnu", E63+F63), 0),"Non requis") -> 0 | P63: =IF(INTRO!$E$44="Endémique", IF(AND($K63>0,$K63<5), IF($K63=4,"Inconnu", IF($K63=1, $F63*0.33, IF($K63=2, $F63*0.5+$G63*0.2, SUM(F63:G63)))), 0),"Non requis") -> 30362.97 | Q63: 0 | R63: 0 | S63: 0 | T63: 0 | W63: 14124 | X63: Tshamilemba | Y63: TRUE | Z63: 2.793214899e-05 | AA63: 262881.9266 | AC63: ='MDA1'!M63 -> 0 | AD63: ='MDA4'!U63 -> 0 | AE63: ='MDA3'!Q63 -> 0 | AF63: ='T1'!O63 -> 0 | AG63: ='T2'!M63 -> 0 | AH63: =T3_R1!N63 -> 0
A64: =IF(INTRO!$E$34<>0,INTRO!$E$34,"") -> DRC | B64: Haut Katanga | C64: Vangu | D64: 149944 | E64: =IF(INTRO!$E$48="","",ROUND($D64*INTRO!$E$48,0)) -> 25490 | F64: =IF(INTRO!$E$49="","",ROUND($D64*INTRO!$E$49,0)) -> 52480 | G64: =IF(INTRO!$E$50="","",ROUND($D64*INTRO!$E$50,0)) -> 68974 | H64: 0 | I64: 4 | J64: 2 | K64: 1 | L64: 4 | M64: =IF(INTRO!$E$38="Endémique", IF($H64>0, IF($H64=4,"Inconnu", IF($H64=99,"Interrompu", $D64)), 0),"Non requis") -> 0 | N64: =IF(INTRO!$E$40="Endémique", IF($I64>0, IF($I64=4,"Inconnu",IF($I64=99,"Interrompu", $D64)), 0),"Non requis") -> Inconnu | O64: =IF(INTRO!$E$42="Endémique", IF(AND($J64>1,$J64<5), IF($J64=4, "Inconnu", E64+F64), 0),"Non requis") -> 77970 | P64: =IF(INTRO!$E$44="Endémique", IF(AND($K64>0,$K64<5), IF($K64=4,"Inconnu", IF($K64=1, $F64*0.33, IF($K64=2, $F64*0.5+$G64*0.2, SUM(F64:G64)))), 0),"Non requis") -> 17318.4 | Q64: 0 | R64: 0 | S64: 1 | T64: 1 | U64: T1 (PZQ+ALB/MBD) | W64: 14125 | X64: Vangu | Y64: TRUE | Z64: 0.0002823045971 | AA64: 149944.4233 | AC64: ='MDA1'!M64 -> 0 | AD64: ='MDA4'!U64 -> 0 | AE64: ='MDA3'!Q64 -> 0 | AF64: ='T1'!O64 -> 51069 | AG64: ='T2'!M64 -> 0 | AH64: =T3_R1!N64 -> 0
A65: =IF(INTRO!$E$34<>0,INTRO!$E$34,"") -> DRC | B65: HAUT LOMAMI | C65: Bukama | D65: 380030 | E65: =IF(INTRO!$E$48="","",ROUND($D65*INTRO!$E$48,0)) -> 64605 | F65: =IF(INTRO!$E$49="","",ROUND($D65*INTRO!$E$49,0)) -> 133011 | G65: =IF(INTRO!$E$50="","",ROUND($D65*INTRO!$E$50,0)) -> 174814 | H65: 0 | I65: 4 | J65: 1 | K65: 2 | L65: 1 | M65: =IF(INTRO!$E$38="Endémique", IF($H65>0, IF($H65=4,"Inconnu", IF($H65=99,"Interrompu", $D65)), 0),"Non requis") -> 0 | N65: =IF(INTRO!$E$40="Endémique", IF($I65>0, IF($I65=4,"Inconnu",IF($I65=99,"Interrompu", $D65)), 0),"Non requis") -> Inconnu | O65: =IF(INTRO!$E$42="Endémique", IF(AND($J65>1,$J65<5), IF($J65=4, "Inconnu", E65+F65), 0),"Non requis") -> 0 | P65: =IF(INTRO!$E$44="Endémique", IF(AND($K65>0,$K65<5), IF($K65=4,"Inconnu", IF($K65=1, $F65*0.33, IF($K65=2, $F65*0.5+$G65*0.2, SUM(F65:G65)))), 0),"Non requis") -> 101468.3 | Q65: 0 | R65: 0 | S65: 0 | T65: 0 | W65: 14061 | X65: Bukama | Y65: TRUE | Z65: 4.473333053e-05 | AA65: 380029.83 | AC65: ='MDA1'!M65 -> 0 | AD65: ='MDA4'!U65 -> 0 | AE65: ='MDA3'!Q65 -> 0 | AF65: ='T1'!O65 -> 0 | AG65: ='T2'!M65 -> 0 | AH65: =T3_R1!N65 -> 0
A66: =IF(INTRO!$E$34<>0,INTRO!$E$34,"") -> DRC | B66: HAUT LOMAMI | C66: Butumba | D66: 224753 | E66: =IF(INTRO!$E$48="","",ROUND($D66*INTRO!$E$48,0)) -> 38208 | F66: =IF(INTRO!$E$49="","",ROUND($D66*INTRO!$E$49,0)) -> 78664 | G66: =IF(INTRO!$E$50="","",ROUND($D66*INTRO!$E$50,0)) -> 103386 | H66: 0 | I66: 4 | J66: 1 | K66: 2 | L66: 1 | M66: =IF(INTRO!$E$38="Endémique", IF($H66>0, IF($H66=4,"Inconnu", IF($H66=99,"Interrompu", $D66)), 0),"Non requis") -> 0 | N66: =IF(INTRO!$E$40="Endémique", IF($I66>0, IF($I66=4,"Inconnu",IF($I66=99,"Interrompu", $D66)), 0),"Non requis") -> Inconnu | O66: =IF(INTRO!$E$42="Endémique", IF(AND($J66>1,$J66<5), IF($J66=4, "Inconnu", E66+F66), 0),"Non requis") -> 0 | P66: =IF(INTRO!$E$44="Endémique", IF(AND($K66>0,$K66<5), IF($K66=4,"Inconnu", IF($K66=1, $F66*0.33, IF($K66=2, $F66*0.5+$G66*0.2, SUM(F66:G66)))), 0),"Non requis") -> 60009.2 | Q66: 0 | R66: 0 | S66: 0 | T66: 0 | W66: 14063 | X66: Butumba | Y66: TRUE | Z66: 9.343581789e-05 | AA66: 224753.21 | AC66: ='MDA1'!M66 -> 0 | AD66: ='MDA4'!U66 -> 0 | AE66: ='MDA3'!Q66 -> 0 | AF66: ='T1'!O66 -> 0 | AG66: ='T2'!M66 -> 0 | AH66: =T3_R1!N66 -> 0
A67: =IF(INTRO!$E$34<>0,INTRO!$E$34,"") -> DRC | B67: HAUT LOMAMI | C67: Kabondo Dianda | D67: 277066 | E67: =IF(INTRO!$E$48="","",ROUND($D67*INTRO!$E$48,0)) -> 47101 | F67: =IF(INTRO!$E$49="","",ROUND($D67*INTRO!$E$49,0)) -> 96973 | G67: =IF(INTRO!$E$50="","",ROUND($D67*INTRO!$E$50,0)) -> 127450 | H67: 0 | I67: 4 | J67: 1 | K67: 1 | L67: 1 | M67: =IF(INTRO!$E$38="Endémique", IF($H67>0, IF($H67=4,"Inconnu", IF($H67=99,"Interrompu", $D67)), 0),"Non requis") -> 0 | N67: =IF(INTRO!$E$40="Endémique", IF($I67>0, IF($I67=4,"Inconnu",IF($I67=99,"Interrompu", $D67)), 0),"Non requis") -> Inconnu | O67: =IF(INTRO!$E$42="Endémique", IF(AND($J67>1,$J67<5), IF($J67=4, "Inconnu", E67+F67), 0),"Non requis") -> 0 | P67: =IF(INTRO!$E$44="Endémique", IF(AND($K67>0,$K67<5), IF($K67=4,"Inconnu", IF($K67=1, $F67*0.33, IF($K67=2, $F67*0.5+$G67*0.2, SUM(F67:G67)))), 0),"Non requis") -> 32001.09 | Q67: 0 | R67: 0 | S67: 0 | T67: 1 | U67: T2 (PZQ) | W67: 14068 | X67: Kabondo Dianda | Y67: TRUE | Z67: 4.331099881e-05 | AA67: 277065.88 | AC67: ='MDA1'!M67 -> 0 | AD67: ='MDA4'!U67 -> 0 | AE67: ='MDA3'!Q67 -> 0 | AF67: ='T1'!O67 -> 0 | AG67: ='T2'!M67 -> 82202 | AH67: =T3_R1!N67 -> 0
A68: =IF(INTRO!$E$34<>0,INTRO!$E$34,"") -> DRC | B68: HAUT LOMAMI | C68: Kabongo | D68: 414627 | E68: =IF(INTRO!$E$48="","",ROUND($D68*INTRO!$E$48,0)) -> 70487 | F68: =IF(INTRO!$E$49="","",ROUND($D68*INTRO!$E$49,0)) -> 145119 | G68: =IF(INTRO!$E$50="","",ROUND($D68*INTRO!$E$50,0)) -> 190728 | H68: 1 | I68: 4 | J68: 0 | K68: 2 | L68: 0 | M68: =IF(INTRO!$E$38="Endémique", IF($H68>0, IF($H68=4,"Inconnu", IF($H68=99,"Interrompu", $D68)), 0),"Non requis") -> 414627 | N68: =IF(INTRO!$E$40="Endémique", IF($I68>0, IF($I68=4,"Inconnu",IF($I68=99,"Interrompu", $D68)), 0),"Non requis") -> Inconnu | O68: =IF(INTRO!$E$42="Endémique", IF(AND($J68>1,$J68<5), IF($J68=4, "Inconnu", E68+F68), 0),"Non requis") -> 0 | P68: =IF(INTRO!$E$44="Endémique", IF(AND($K68>0,$K68<5), IF($K68=4,"Inconnu", IF($K68=1, $F68*0.33, IF($K68=2, $F68*0.5+$G68*0.2, SUM(F68:G68)))), 0),"Non requis") -> 110705.1 | Q68: 1 | R68: 0 | S68: 0 | T68: 0 | U68: MDA1 (IVM+ALB) | W68: 14069 | X68: Kabongo | Y68: TRUE | Z68: 1.014681177 | AA68: 418877.2688 | AC68: ='MDA1'!M68 -> 334816 | AD68: ='MDA4'!U68 -> 0 | AE68: ='MDA3'!Q68 -> 0 | AF68: ='T1'!O68 -> 0 | AG68: ='T2'!M68 -> 0 | AH68: =T3_R1!N68 -> 0
A69: =IF(INTRO!$E$34<>0,INTRO!$E$34,"") -> DRC | B69: HAUT LOMAMI | C69: Kamina | D69: 332126 | E69: =IF(INTRO!$E$48="","",ROUND($D69*INTRO!$E$48,0)) -> 56461 | F69: =IF(INTRO!$E$49="","",ROUND($D69*INTRO!$E$49,0)) -> 116244 | G69: =IF(INTRO!$E$50="","",ROUND($D69*INTRO!$E$50,0)) -> 152778 | H69: 0 | I69: 4 | J69: 2 | K69: 0 | L69: 0 | M69: =IF(INTRO!$E$38="Endémique", IF($H69>0, IF($H69=4,"Inconnu", IF($H69=99,"Interrompu", $D69)), 0),"Non requis") -> 0 | N69: =IF(INTRO!$E$40="Endémique", IF($I69>0, IF($I69=4,"Inconnu",IF($I69=99,"Interrompu", $D69)), 0),"Non requis") -> Inconnu | O69: =IF(INTRO!$E$42="Endémique", IF(AND($J69>1,$J69<5), IF($J69=4, "Inconnu", E69+F69), 0),"Non requis") -> 172705 | P69: =IF(INTRO!$E$44="Endémique", IF(AND($K69>0,$K69<5), IF($K69=4,"Inconnu", IF($K69=1, $F69*0.33, IF($K69=2, $F69*0.5+$G69*0.2, SUM(F69:G69)))), 0),"Non requis") -> 0 | Q69: 0 | R69: 0 | S69: 1 | T69: 0 | U69: T3 (ALB/MBD) | W69: 14076 | X69: Kamina | Y69: TRUE | Z69: 0.0001945048736 | AA69: 332125.354 | AC69: ='MDA1'!M69 -> 0 | AD69: ='MDA4'!U69 -> 0 | AE69: ='MDA3'!Q69 -> 0 | AF69: ='T1'!O69 -> 0 | AG69: ='T2'!M69 -> 0 | AH69: =T3_R1!N69 -> 118959
A70: =IF(INTRO!$E$34<>0,INTRO!$E$34,"") -> DRC | B70: HAUT LOMAMI | C70: Kamina Base (Baka) | D70: 35551 | E70: =IF(INTRO!$E$48="","",ROUND($D70*INTRO!$E$48,0)) -> 6044 | F70: =IF(INTRO!$E$49="","",ROUND($D70*INTRO!$E$49,0)) -> 12443 | G70: =IF(INTRO!$E$50="","",ROUND($D70*INTRO!$E$50,0)) -> 16353 | H70: 1 | I70: 4 | J70: 0 | K70: 0 | L70: 0 | M70: =IF(INTRO!$E$38="Endémique", IF($H70>0, IF($H70=4,"Inconnu", IF($H70=99,"Interrompu", $D70)), 0),"Non requis") -> 35551 | N70: =IF(INTRO!$E$40="Endémique", IF($I70>0, IF($I70=4,"Inconnu",IF($I70=99,"Interrompu", $D70)), 0),"Non requis") -> Inconnu | O70: =IF(INTRO!$E$42="Endémique", IF(AND($J70>1,$J70<5), IF($J70=4, "Inconnu", E70+F70), 0),"Non requis") -> 0 | P70: =IF(INTRO!$E$44="Endémique", IF(AND($K70>0,$K70<5), IF($K70=4,"Inconnu", IF($K70=1, $F70*0.33, IF($K70=2, $F70*0.5+$G70*0.2, SUM(F70:G70)))), 0),"Non requis") -> 0 | Q70: 1 | R70: 0 | S70: 0 | T70: 0 | U70: MDA1 (IVM+ALB) | W70: 14060 | X70: Kamina Base (Baka) | Y70: TRUE | Z70: 0.9042253205 | AA70: 35875.3944 | AC70: ='MDA1'!M70 -> 29075 | AD70: ='MDA4'!U70 -> 0 | AE70: ='MDA3'!Q70 -> 0 | AF70: ='T1'!O70 -> 0 | AG70: ='T2'!M70 -> 0 | AH70: =T3_R1!N70 -> 0
A71: =IF(INTRO!$E$34<>0,INTRO!$E$34,"") -> DRC | B71: HAUT LOMAMI | C71: Kaniama | D71: 318923 | E71: =IF(INTRO!$E$48="","",ROUND($D71*INTRO!$E$48,0)) -> 54217 | F71: =IF(INTRO!$E$49="","",ROUND($D71*INTRO!$E$49,0)) -> 111623 | G71: =IF(INTRO!$E$50="","",ROUND($D71*INTRO!$E$50,0)) -> 146705 | H71: 1 | I71: 4 | J71: 0 | K71: 0 | L71: 0 | M71: =IF(INTRO!$E$38="Endémique", IF($H71>0, IF($H71=4,"Inconnu", IF($H71=99,"Interrompu", $D71)), 0),"Non requis") -> 318923 | N71: =IF(INTRO!$E$40="Endémique", IF($I71>0, IF($I71=4,"Inconnu",IF($I71=99,"Interrompu", $D71)), 0),"Non requis") -> Inconnu | O71: =IF(INTRO!$E$42="Endémique", IF(AND($J71>1,$J71<5), IF($J71=4, "Inconnu", E71+F71), 0),"Non requis") -> 0 | P71: =IF(INTRO!$E$44="Endémique", IF(AND($K71>0,$K71<5), IF($K71=4,"Inconnu", IF($K71=1, $F71*0.33, IF($K71=2, $F71*0.5+$G71*0.2, SUM(F71:G71)))), 0),"Non requis") -> 0 | Q71: 1 | R71: 0 | S71: 0 | T71: 0 | U71: MDA1 (IVM+ALB) | W71: 14077 | X71: Kaniama | Y71: TRUE | Z71: 2.496329975 | AA71: 327088.2008 | AC71: ='MDA1'!M71 -> 259965 | AD71: ='MDA4'!U71 -> 0 | AE71: ='MDA3'!Q71 -> 0 | AF71: ='T1'!O71 -> 0 | AG71: ='T2'!M71 -> 0 | AH71: =T3_R1!N71 -> 0
A72: =IF(INTRO!$E$34<>0,INTRO!$E$34,"") -> DRC | B72: HAUT LOMAMI | C72: Kayamba | D72: 117720 | E72: =IF(INTRO!$E$48="","",ROUND($D72*INTRO!$E$48,0)) -> 20012 | F72: =IF(INTRO!$E$49="","",ROUND($D72*INTRO!$E$49,0)) -> 41202 | G72: =IF(INTRO!$E$50="","",ROUND($D72*INTRO!$E$50,0)) -> 54151 | H72: 1 | I72: 1 | J72: 0 | K72: 2 | L72: 0 | M72: =IF(INTRO!$E$38="Endémique", IF($H72>0, IF($H72=4,"Inconnu", IF($H72=99,"Interrompu", $D72)), 0),"Non requis") -> 117720 | N72: =IF(INTRO!$E$40="Endémique", IF($I72>0, IF($I72=4,"Inconnu",IF($I72=99,"Interrompu", $D72)), 0),"Non requis") -> 117720 | O72: =IF(INTRO!$E$42="Endémique", IF(AND($J72>1,$J72<5), IF($J72=4, "Inconnu", E72+F72), 0),"Non requis") -> 0 | P72: =IF(INTRO!$E$44="Endémique", IF(AND($K72>0,$K72<5), IF($K72=4,"Inconnu", IF($K72=1, $F72*0.33, IF($K72=2, $F72*0.5+$G72*0.2, SUM(F72:G72)))), 0),"Non requis") -> 31431.2 | Q72: 1 | R72: 1 | S72: 0 | T72: 1 | U72: MDA1 (IVM+ALB) | V72: T2 (PZQ) | W72: 14086 | X72: Kayamba | Y72: TRUE | Z72: 3.309241791 | AA72: 113949.1472 | AC72: ='MDA1'!M72 -> 96608 | AD72: ='MDA4'!U72 -> 0 | AE72: ='MDA3'!Q72 -> 0 | AF72: ='T1'!O72 -> 0 | AG72: ='T2'!M72 -> 37437 | AH72: =T3_R1!N72 -> 0
A73: =IF(INTRO!$E$34<>0,INTRO!$E$34,"") -> DRC | B73: HAUT LOMAMI | C73: Kinda | D73: 102611 | E73: =IF(INTRO!$E$48="","",ROUND($D73*INTRO!$E$48,0)) -> 17444 | F73: =IF(INTRO!$E$49="","",ROUND($D73*INTRO!$E$49,0)) -> 35914 | G73: =IF(INTRO!$E$50="","",ROUND($D73*INTRO!$E$50,0)) -> 47201 | H73: 0 | I73: 4 | J73: 1 | K73: 2 | L73: 1 | M73: =IF(INTRO!$E$38="Endémique", IF($H73>0, IF($H73=4,"Inconnu", IF($H73=99,"Interrompu", $D73)), 0),"Non requis") -> 0 | N73: =IF(INTRO!$E$40="Endémique", IF($I73>0, IF($I73=4,"Inconnu",IF($I73=99,"Interrompu", $D73)), 0),"Non requis") -> Inconnu | O73: =IF(INTRO!$E$42="Endémique", IF(AND($J73>1,$J73<5), IF($J73=4, "Inconnu", E73+F73), 0),"Non requis") -> 0 | P73: =IF(INTRO!$E$44="Endémique", IF(AND($K73>0,$K73<5), IF($K73=4,"Inconnu", IF($K73=1, $F73*0.33, IF($K73=2, $F73*0.5+$G73*0.2, SUM(F73:G73)))), 0),"Non requis") -> 27397.2 | Q73: 0 | R73: 0 | S73: 0 | T73: 0 | W73: 14092 | X73: Kinda | Y73: TRUE | Z73: 0.0003313495888 | AA73: 102610.66 | AC73: ='MDA1'!M73 -> 0 | AD73: ='MDA4'!U73 -> 0 | AE73: ='MDA3'!Q73 -> 0 | AF73: ='T1'!O73 -> 0 | AG73: ='T2'!M73 -> 0 | AH73: =T3_R1!N73 -> 0
A74: =IF(INTRO!$E$34<>0,INTRO!$E$34,"") -> DRC | B74: HAUT LOMAMI | C74: Kinkonja | D74: 287884 | E74: =IF(INTRO!$E$48="","",ROUND($D74*INTRO!$E$48,0)) -> 48940 | F74: =IF(INTRO!$E$49="","",ROUND($D74*INTRO!$E$49,0)) -> 100759 | G74: =IF(INTRO!$E$50="","",ROUND($D74*INTRO!$E$50,0)) -> 132427 | H74: 0 | I74: 4 | J74: 1 | K74: 1 | L74: 1 | M74: =IF(INTRO!$E$38="Endémique", IF($H74>0, IF($H74=4,"Inconnu", IF($H74=99,"Interrompu", $D74)), 0),"Non requis") -> 0 | N74: =IF(INTRO!$E$40="Endémique", IF($I74>0, IF($I74=4,"Inconnu",IF($I74=99,"Interrompu", $D74)), 0),"Non requis") -> Inconnu | O74: =IF(INTRO!$E$42="Endémique", IF(AND($J74>1,$J74<5), IF($J74=4, "Inconnu", E74+F74), 0),"Non requis") -> 0 | P74: =IF(INTRO!$E$44="Endémique", IF(AND($K74>0,$K74<5), IF($K74=4,"Inconnu", IF($K74=1, $F74*0.33, IF($K74=2, $F74*0.5+$G74*0.2, SUM(F74:G74)))), 0),"Non requis") -> 33250.47 | Q74: 0 | R74: 0 | S74: 0 | T74: 1 | U74: T2 (PZQ) | W74: 14093 | X74: Kinkonja | Y74: =X74=C74 -> TRUE | Z74: =ABS((D74-AA74)/AA74*100) -> 1.042086505e-05 | AA74: 287883.97 | AC74: ='MDA1'!M74 -> 0 | AD74: ='MDA4'!U74 -> 0 | AE74: ='MDA3'!Q74 -> 0 | AF74: ='T1'!O74 -> 0 | AG74: ='T2'!M74 -> 84687 | AH74: =T3_R1!N74 -> 0
A75: =IF(INTRO!$E$34<>0,INTRO!$E$34,"") -> DRC | B75: HAUT LOMAMI | C75: Kitenge | D75: 318580 | E75: =IF(INTRO!$E$48="","",ROUND($D75*INTRO!$E$48,0)) -> 54159 | F75: =IF(INTRO!$E$49="","",ROUND($D75*INTRO!$E$49,0)) -> 111503 | G75: =IF(INTRO!$E$50="","",ROUND($D75*INTRO!$E$50,0)) -> 146547 | H75: 0 | I75: 1 | J75: 1 | K75: 0 | L75: 1 | M75: =IF(INTRO!$E$38="Endémique", IF($H75>0, IF($H75=4,"Inconnu", IF($H75=99,"Interrompu", $D75)), 0),"Non requis") -> 0 | N75: =IF(INTRO!$E$40="Endémique", IF($I75>0, IF($I75=4,"Inconnu",IF($I75=99,"Interrompu", $D75)), 0),"Non requis") -> 318580 | O75: =IF(INTRO!$E$42="Endémique", IF(AND($J75>1,$J75<5), IF($J75=4, "Inconnu", E75+F75), 0),"Non requis") -> 0 | P75: =IF(INTRO!$E$44="Endémique", IF(AND($K75>0,$K75<5), IF($K75=4,"Inconnu", IF($K75=1, $F75*0.33, IF($K75=2, $F75*0.5+$G75*0.2, SUM(F75:G75)))), 0),"Non requis") -> 0 | Q75: 0 | R75: 1 | S75: 0 | T75: 0 | U75: MDA3 (IVM) | W75: 14096 | X75: Kitenge | Y75: TRUE | Z75: 0.1638435935 | AA75: 318058.8809 | AC75: ='MDA1'!M75 -> 0 | AD75: ='MDA4'!U75 -> 0 | AE75: ='MDA3'!Q75 -> 264934 | AF75: ='T1'!O75 -> 0 | AG75: ='T2'!M75 -> 0 | AH75: =T3_R1!N75 -> 0
A76: =IF(INTRO!$E$34<>0,INTRO!$E$34,"") -> DRC | B76: HAUT LOMAMI | C76: Lwamba | D76: 155698 | E76: =IF(INTRO!$E$48="","",ROUND($D76*INTRO!$E$48,0)) -> 26469 | F76: =IF(INTRO!$E$49="","",ROUND($D76*INTRO!$E$49,0)) -> 54494 | G76: =IF(INTRO!$E$50="","",ROUND($D76*INTRO!$E$50,0)) -> 71621 | H76: 0 | I76: 4 | J76: 1 | K76: 1 | L76: 1 | M76: =IF(INTRO!$E$38="Endémique", IF($H76>0, IF($H76=4,"Inconnu", IF($H76=99,"Interrompu", $D76)), 0),"Non requis") -> 0 | N76: =IF(INTRO!$E$40="Endémique", IF($I76>0, IF($I76=4,"Inconnu",IF($I76=99,"Interrompu", $D76)), 0),"Non requis") -> Inconnu | O76: =IF(INTRO!$E$42="Endémique", IF(AND($J76>1,$J76<5), IF($J76=4, "Inconnu", E76+F76), 0),"Non requis") -> 0 | P76: =IF(INTRO!$E$44="Endémique", IF(AND($K76>0,$K76<5), IF($K76=4,"Inconnu", IF($K76=1, $F76*0.33, IF($K76=2, $F76*0.5+$G76*0.2, SUM(F76:G76)))), 0),"Non requis") -> 17983.02 | Q76: 0 | R76: 0 | S76: 0 | T76: 1 | U76: T2 (PZQ) | W76: 14104 | X76: Lwamba | Y76: TRUE | Z76: 7.064964078e-05 | AA76: 155697.89 | AC76: ='MDA1'!M76 -> 0 | AD76: ='MDA4'!U76 -> 0 | AE76: ='MDA3'!Q76 -> 0 | AF76: ='T1'!O76 -> 0 | AG76: ='T2'!M76 -> 42083 | AH76: =T3_R1!N76 -> 0
A77: =IF(INTRO!$E$34<>0,INTRO!$E$34,"") -> DRC | B77: HAUT LOMAMI | C77: Malemba Nkulu | D77: 372429 | E77: =IF(INTRO!$E$48="","",ROUND($D77*INTRO!$E$48,0)) -> 63313 | F77: =IF(INTRO!$E$49="","",ROUND($D77*INTRO!$E$49,0)) -> 130350 | G77: =IF(INTRO!$E$50="","",ROUND($D77*INTRO!$E$50,0)) -> 171317 | H77: 0 | I77: 4 | J77: 1 | K77: 2 | L77: 1 | M77: =IF(INTRO!$E$38="Endémique", IF($H77>0, IF($H77=4,"Inconnu", IF($H77=99,"Interrompu", $D77)), 0),"Non requis") -> 0 | N77: =IF(INTRO!$E$40="Endémique", IF($I77>0, IF($I77=4,"Inconnu",IF($I77=99,"Interrompu", $D77)), 0),"Non requis") -> Inconnu | O77: =IF(INTRO!$E$42="Endémique", IF(AND($J77>1,$J77<5), IF($J77=4, "Inconnu", E77+F77), 0),"Non requis") -> 0 | P77: =IF(INTRO!$E$44="Endémique", IF(AND($K77>0,$K77<5), IF($K77=4,"Inconnu", IF($K77=1, $F77*0.33, IF($K77=2, $F77*0.5+$G77*0.2, SUM(F77:G77)))), 0),"Non requis") -> 99438.4 | Q77: 0 | R77: 0 | S77: 0 | T77: 1 | U77: T2 (PZQ) | W77: 14105 | X77: Malemba Nkulu | Y77: TRUE | Z77: 1.476791767e-05 | AA77: 372428.945 | AC77: ='MDA1'!M77 -> 0 | AD77: ='MDA4'!U77 -> 0 | AE77: ='MDA3'!Q77 -> 0 | AF77: ='T1'!O77 -> 0 | AG77: ='T2'!M77 -> 130350 | AH77: =T3_R1!N77 -> 0
A78: =IF(INTRO!$E$34<>0,INTRO!$E$34,"") -> DRC | B78: HAUT LOMAMI | C78: Mukanga | D78: 233338 | E78: =IF(INTRO!$E$48="","",ROUND($D78*INTRO!$E$48,0)) -> 39667 | F78: =IF(INTRO!$E$49="","",ROUND($D78*INTRO!$E$49,0)) -> 81668 | G78: =IF(INTRO!$E$50="","",ROUND($D78*INTRO!$E$50,0)) -> 107335 | H78: 0 | I78: 4 | J78: 1 | K78: 2 | L78: 1 | M78: =IF(INTRO!$E$38="Endémique", IF($H78>0, IF($H78=4,"Inconnu", IF($H78=99,"Interrompu", $D78)), 0),"Non requis") -> 0 | N78: =IF(INTRO!$E$40="Endémique", IF($I78>0, IF($I78=4,"Inconnu",IF($I78=99,"Interrompu", $D78)), 0),"Non requis") -> Inconnu | O78: =IF(INTRO!$E$42="Endémique", IF(AND($J78>1,$J78<5), IF($J78=4, "Inconnu", E78+F78), 0),"Non requis") -> 0 | P78: =IF(INTRO!$E$44="Endémique", IF(AND($K78>0,$K78<5), IF($K78=4,"Inconnu", IF($K78=1, $F78*0.33, IF($K78=2, $F78*0.5+$G78*0.2, SUM(F78:G78)))), 0),"Non requis") -> 62301 | Q78: 0 | R78: 0 | S78: 0 | T78: 1 | U78: T2 (PZQ) | W78: 14113 | X78: Mukanga | Y78: TRUE | Z78: 0.0002526800222 | AA78: 233338.5896 | AC78: ='MDA1'!M78 -> 0 | AD78: ='MDA4'!U78 -> 0 | AE78: ='MDA3'!Q78 -> 0 | AF78: ='T1'!O78 -> 0 | AG78: ='T2'!M78 -> 24301 | AH78: =T3_R1!N78 -> 0
A79: =IF(INTRO!$E$34<>0,INTRO!$E$34,"") -> DRC | B79: HAUT LOMAMI | C79: Mulongo | D79: 307499 | E79: =IF(INTRO!$E$48="","",ROUND($D79*INTRO!$E$48,0)) -> 52275 | F79: =IF(INTRO!$E$49="","",ROUND($D79*INTRO!$E$49,0)) -> 107625 | G79: =IF(INTRO!$E$50="","",ROUND($D79*INTRO!$E$50,0)) -> 141450 | H79: 0 | I79: 4 | J79: 1 | K79: 0 | L79: 1 | M79: =IF(INTRO!$E$38="Endémique", IF($H79>0, IF($H79=4,"Inconnu", IF($H79=99,"Interrompu", $D79)), 0),"Non requis") -> 0 | N79: =IF(INTRO!$E$40="Endémique", IF($I79>0, IF($I79=4,"Inconnu",IF($I79=99,"Interrompu", $D79)), 0),"Non requis") -> Inconnu | O79: =IF(INTRO!$E$42="Endémique", IF(AND($J79>1,$J79<5), IF($J79=4, "Inconnu", E79+F79), 0),"Non requis") -> 0 | P79: =IF(INTRO!$E$44="Endémique", IF(AND($K79>0,$K79<5), IF($K79=4,"Inconnu", IF($K79=1, $F79*0.33, IF($K79=2, $F79*0.5+$G79*0.2, SUM(F79:G79)))), 0),"Non requis") -> 0 | Q79: 0 | R79: 0 | S79: 0 | T79: 0 | W79: 14114 | X79: Mulongo | Y79: TRUE | Z79: 9.430916084e-05 | AA79: 307499.29 | AC79: ='MDA1'!M79 -> 0 | AD79: ='MDA4'!U79 -> 0 | AE79: ='MDA3'!Q79 -> 0 | AF79: ='T1'!O79 -> 0 | AG79: ='T2'!M79 -> 0 | AH79: =T3_R1!N79 -> 0
A80: =IF(INTRO!$E$34<>0,INTRO!$E$34,"") -> DRC | B80: HAUT LOMAMI | C80: Songa | D80: 210818 | E80: =IF(INTRO!$E$48="","",ROUND($D80*INTRO!$E$48,0)) -> 35839 | F80: =IF(INTRO!$E$49="","",ROUND($D80*INTRO!$E$49,0)) -> 73786 | G80: =IF(INTRO!$E$50="","",ROUND($D80*INTRO!$E$50,0)) -> 96976 | H80: 1 | I80: 4 | J80: 2 | K80: 2 | L80: 1 | M80: =IF(INTRO!$E$38="Endémique", IF($H80>0, IF($H80=4,"Inconnu", IF($H80=99,"Interrompu", $D80)), 0),"Non requis") -> 210818 | N80: =IF(INTRO!$E$40="Endémique", IF($I80>0, IF($I80=4,"Inconnu",IF($I80=99,"Interrompu", $D80)), 0),"Non requis") -> Inconnu | O80: =IF(INTRO!$E$42="Endémique", IF(AND($J80>1,$J80<5), IF($J80=4, "Inconnu", E80+F80), 0),"Non requis") -> 109625 | P80: =IF(INTRO!$E$44="Endémique", IF(AND($K80>0,$K80<5), IF($K80=4,"Inconnu", IF($K80=1, $F80*0.33, IF($K80=2, $F80*0.5+$G80*0.2, SUM(F80:G80)))), 0),"Non requis") -> 56288.2 | Q80: 1 | R80: 0 | S80: 1 | T80: 0 | U80: MDA1 (IVM+ALB) | W80: 14123 | X80: Songa | Y80: TRUE | Z80: 0.322941226 | AA80: 211501.024 | AC80: ='MDA1'!M80 -> 171527 | AD80: ='MDA4'!U80 -> 0 | AE80: ='MDA3'!Q80 -> 0 | AF80: ='T1'!O80 -> 0 | AG80: ='T2'!M80 -> 0 | AH80: =T3_R1!N80 -> 0
A81: =IF(INTRO!$E$34<>0,INTRO!$E$34,"") -> DRC | B81: HAUT UELE | C81: Aba | D81: 141732 | E81: =IF(INTRO!$E$48="","",ROUND($D81*INTRO!$E$48,0)) -> 24094 | F81: =IF(INTRO!$E$49="","",ROUND($D81*INTRO!$E$49,0)) -> 49606 | G81: =IF(INTRO!$E$50="","",ROUND($D81*INTRO!$E$50,0)) -> 65197 | H81: 1 | I81: 4 | J81: 1 | K81: 1 | L81: 1 | M81: =IF(INTRO!$E$38="Endémique", IF($H81>0, IF($H81=4,"Inconnu", IF($H81=99,"Interrompu", $D81)), 0),"Non requis") -> 141732 | N81: =IF(INTRO!$E$40="Endémique", IF($I81>0, IF($I81=4,"Inconnu",IF($I81=99,"Interrompu", $D81)), 0),"Non requis") -> Inconnu | O81: =IF(INTRO!$E$42="Endémique", IF(AND($J81>1,$J81<5), IF($J81=4, "Inconnu", E81+F81), 0),"Non requis") -> 0 | P81: =IF(INTRO!$E$44="Endémique", IF(AND($K81>0,$K81<5), IF($K81=4,"Inconnu", IF($K81=1, $F81*0.33, IF($K81=2, $F81*0.5+$G81*0.2, SUM(F81:G81)))), 0),"Non requis") -> 16369.98 | Q81: 1 | R81: 0 | S81: 0 | T81: 0 | U81: MDA4 (ALB/2*ALB) | W81: 14213 | X81: Aba | Y81: TRUE | Z81: 1.849196334 | AA81: 144402.2817 | AC81: ='MDA1'!M81 -> 0 | AD81: ='MDA4'!U81 -> 111751 | AE81: ='MDA3'!Q81 -> 0 | AF81: ='T1'!O81 -> 0 | AG81: ='T2'!M81 -> 0 | AH81: =T3_R1!N81 -> 0
A82: =IF(INTRO!$E$34<>0,INTRO!$E$34,"") -> DRC | B82: HAUT UELE | C82: Bomamangbetu | D82: 112694 | E82: =IF(INTRO!$E$48="","",ROUND($D82*INTRO!$E$48,0)) -> 19158 | F82: =IF(INTRO!$E$49="","",ROUND($D82*INTRO!$E$49,0)) -> 39443 | G82: =IF(INTRO!$E$50="","",ROUND($D82*INTRO!$E$50,0)) -> 51839 | H82: 0 | I82: 1 | J82: 1 | K82: 1 | L82: 1 | M82: =IF(INTRO!$E$38="Endémique", IF($H82>0, IF($H82=4,"Inconnu", IF($H82=99,"Interrompu", $D82)), 0),"Non requis") -> 0 | N82: =IF(INTRO!$E$40="Endémique", IF($I82>0, IF($I82=4,"Inconnu",IF($I82=99,"Interrompu", $D82)), 0),"Non requis") -> 112694 | O82: =IF(INTRO!$E$42="Endémique", IF(AND($J82>1,$J82<5), IF($J82=4, "Inconnu", E82+F82), 0),"Non requis") -> 0 | P82: =IF(INTRO!$E$44="Endémique", IF(AND($K82>0,$K82<5), IF($K82=4,"Inconnu", IF($K82=1, $F82*0.33, IF($K82=2, $F82*0.5+$G82*0.2, SUM(F82:G82)))), 0),"Non requis") -> 13016.19 | Q82: 0 | R82: 1 | S82: 0 | T82: 0 | U82: MDA3 (IVM) | W82: 14330 | X82: Bomamangbetu | Y82: TRUE | Z82: 5.427388125 | AA82: 119161.3489 | AC82: ='MDA1'!M82 -> 0 | AD82: ='MDA4'!U82 -> 0 | AE82: ='MDA3'!Q82 -> 82308 | AF82: ='T1'!O82 -> 0 | AG82: ='T2'!M82 -> 0 | AH82: =T3_R1!N82 -> 0
A83: =IF(INTRO!$E$34<>0,INTRO!$E$34,"") -> DRC | B83: HAUT UELE | C83: Doruma | D83: 82018 | E83: =IF(INTRO!$E$48="","",ROUND($D83*INTRO!$E$48,0)) -> 13943 | F83: =IF(INTRO!$E$49="","",ROUND($D83*INTRO!$E$49,0)) -> 28706 | G83: =IF(INTRO!$E$50="","",ROUND($D83*INTRO!$E$50,0)) -> 37728 | H83: 1 | I83: 4 | J83: 1 | K83: 1 | L83: 1 | M83: =IF(INTRO!$E$38="Endémique", IF($H83>0, IF($H83=4,"Inconnu", IF($H83=99,"Interrompu", $D83)), 0),"Non requis") -> 82018 | N83: =IF(INTRO!$E$40="Endémique", IF($I83>0, IF($I83=4,"Inconnu",IF($I83=99,"Interrompu", $D83)), 0),"Non requis") -> Inconnu | O83: =IF(INTRO!$E$42="Endémique", IF(AND($J83>1,$J83<5), IF($J83=4, "Inconnu", E83+F83), 0),"Non requis") -> 0 | P83: =IF(INTRO!$E$44="Endémique", IF(AND($K83>0,$K83<5), IF($K83=4,"Inconnu", IF($K83=1, $F83*0.33, IF($K83=2, $F83*0.5+$G83*0.2, SUM(F83:G83)))), 0),"Non requis") -> 9472.98 | Q83: 1 | R83: 0 | S83: 0 | T83: 0 | U83: MDA4 (ALB/2*ALB) | W83: 14236 | X83: Doruma | Y83: TRUE | Z83: 0.0002182442992 | AA83: 82018.179 | AC83: ='MDA1'!M83 -> 0 | AD83: ='MDA4'!U83 -> 60539 | AE83: ='MDA3'!Q83 -> 0 | AF83: ='T1'!O83 -> 0 | AG83: ='T2'!M83 -> 0 | AH83: =T3_R1!N83 -> 0
A84: =IF(INTRO!$E$34<>0,INTRO!$E$34,"") -> DRC | B84: HAUT UELE | C84: Dungu | D84: 132013 | E84: =IF(INTRO!$E$48="","",ROUND($D84*INTRO!$E$48,0)) -> 22442 | F84: =IF(INTRO!$E$49="","",ROUND($D84*INTRO!$E$49,0)) -> 46205 | G84: =IF(INTRO!$E$50="","",ROUND($D84*INTRO!$E$50,0)) -> 60726 | H84: 0 | I84: 1 | J84: 1 | K84: 1 | L84: 1 | M84: =IF(INTRO!$E$38="Endémique", IF($H84>0, IF($H84=4,"Inconnu", IF($H84=99,"Interrompu", $D84)), 0),"Non requis") -> 0 | N84: =IF(INTRO!$E$40="Endémique", IF($I84>0, IF($I84=4,"Inconnu",IF($I84=99,"Interrompu", $D84)), 0),"Non requis") -> 132013 | O84: =IF(INTRO!$E$42="Endémique", IF(AND($J84>1,$J84<5), IF($J84=4, "Inconnu", E84+F84), 0),"Non requis") -> 0 | P84: =IF(INTRO!$E$44="Endémique", IF(AND($K84>0,$K84<5), IF($K84=4,"Inconnu", IF($K84=1, $F84*0.33, IF($K84=2, $F84*0.5+$G84*0.2, SUM(F84:G84)))), 0),"Non requis") -> 15247.65 | Q84: 0 | R84: 1 | S84: 0 | T84: 0 | U84: MDA3 (IVM) | W84: 14238 | X84: Dungu | Y84: TRUE | Z84: 31.68614551 | AA84: 100248.2072 | AC84: ='MDA1'!M84 -> 0 | AD84: ='MDA4'!U84 -> 0 | AE84: ='MDA3'!Q84 -> 98268 | AF84: ='T1'!O84 -> 0 | AG84: ='T2'!M84 -> 0 | AH84: =T3_R1!N84 -> 0
A85: =IF(INTRO!$E$34<>0,INTRO!$E$34,"") -> DRC | B85: HAUT UELE | C85: Faradje | D85: 139704 | E85: =IF(INTRO!$E$48="","",ROUND($D85*INTRO!$E$48,0)) -> 23750 | F85: =IF(INTRO!$E$49="","",ROUND($D85*INTRO!$E$49,0)) -> 48896 | G85: =IF(INTRO!$E$50="","",ROUND($D85*INTRO!$E$50,0)) -> 64264 | H85: 1 | I85: 1 | J85: 1 | K85: 1 | L85: 1 | M85: =IF(INTRO!$E$38="Endémique", IF($H85>0, IF($H85=4,"Inconnu", IF($H85=99,"Interrompu", $D85)), 0),"Non requis") -> 139704 | N85: =IF(INTRO!$E$40="Endémique", IF($I85>0, IF($I85=4,"Inconnu",IF($I85=99,"Interrompu", $D85)), 0),"Non requis") -> 139704 | O85: =IF(INTRO!$E$42="Endémique", IF(AND($J85>1,$J85<5), IF($J85=4, "Inconnu", E85+F85), 0),"Non requis") -> 0 | P85: =IF(INTRO!$E$44="Endémique", IF(AND($K85>0,$K85<5), IF($K85=4,"Inconnu", IF($K85=1, $F85*0.33, IF($K85=2, $F85*0.5+$G85*0.2, SUM(F85:G85)))), 0),"Non requis") -> 16135.68 | Q85: 1 | R85: 1 | S85: 0 | T85: 0 | U85: MDA1 (IVM+ALB) | W85: 14239 | X85: Faradje | Y85: TRUE | Z85: 1.65384114 | AA85: 137431.1078 | AC85: ='MDA1'!M85 -> 99377 | AD85: ='MDA4'!U85 -> 0 | AE85: ='MDA3'!Q85 -> 0 | AF85: ='T1'!O85 -> 0 | AG85: ='T2'!M85 -> 0 | AH85: =T3_R1!N85 -> 0
A86: =IF(INTRO!$E$34<>0,INTRO!$E$34,"") -> DRC | B86: HAUT UELE | C86: Gombari | D86: 125684 | E86: =IF(INTRO!$E$48="","",ROUND($D86*INTRO!$E$48,0)) -> 21366 | F86: =IF(INTRO!$E$49="","",ROUND($D86*INTRO!$E$49,0)) -> 43989 | G86: =IF(INTRO!$E$50="","",ROUND($D86*INTRO!$E$50,0)) -> 57815 | H86: 1 | I86: 4 | J86: 1 | K86: 1 | L86: 1 | M86: =IF(INTRO!$E$38="Endémique", IF($H86>0, IF($H86=4,"Inconnu", IF($H86=99,"Interrompu", $D86)), 0),"Non requis") -> 125684 | N86: =IF(INTRO!$E$40="Endémique", IF($I86>0, IF($I86=4,"Inconnu",IF($I86=99,"Interrompu", $D86)), 0),"Non requis") -> Inconnu | O86: =IF(INTRO!$E$42="Endémique", IF(AND($J86>1,$J86<5), IF($J86=4, "Inconnu", E86+F86), 0),"Non requis") -> 0 | P86: =IF(INTRO!$E$44="Endémique", IF(AND($K86>0,$K86<5), IF($K86=4,"Inconnu", IF($K86=1, $F86*0.33, IF($K86=2, $F86*0.5+$G86*0.2, SUM(F86:G86)))), 0),"Non requis") -> 14516.37 | Q86: 1 | R86: 0 | S86: 0 | T86: 0 | U86: MDA4 (ALB/2*ALB) | W86: 14243 | X86: Gombari | Y86: TRUE | Z86: 529.7200034 | AA86: 19958.7117 | AC86: ='MDA1'!M86 -> 0 | AD86: ='MDA4'!U86 -> 100622 | AE86: ='MDA3'!Q86 -> 0 | AF86: ='T1'!O86 -> 0 | AG86: ='T2'!M86 -> 0 | AH86: =T3_R1!N86 -> 0
A87: =IF(INTRO!$E$34<>0,INTRO!$E$34,"") -> DRC | B87: HAUT UELE | C87: Isiro | D87: 288714 | E87: =IF(INTRO!$E$48="","",ROUND($D87*INTRO!$E$48,0)) -> 49081 | F87: =IF(INTRO!$E$49="","",ROUND($D87*INTRO!$E$49,0)) -> 101050 | G87: =IF(INTRO!$E$50="","",ROUND($D87*INTRO!$E$50,0)) -> 132808 | H87: 1 | I87: 1 | J87: 1 | K87: 2 | L87: 1 | M87: =IF(INTRO!$E$38="Endémique", IF($H87>0, IF($H87=4,"Inconnu", IF($H87=99,"Interrompu", $D87)), 0),"Non requis") -> 288714 | N87: =IF(INTRO!$E$40="Endémique", IF($I87>0, IF($I87=4,"Inconnu",IF($I87=99,"Interrompu", $D87)), 0),"Non requis") -> 288714 | O87: =IF(INTRO!$E$42="Endémique", IF(AND($J87>1,$J87<5), IF($J87=4, "Inconnu", E87+F87), 0),"Non requis") -> 0 | P87: =IF(INTRO!$E$44="Endémique", IF(AND($K87>0,$K87<5), IF($K87=4,"Inconnu", IF($K87=1, $F87*0.33, IF($K87=2, $F87*0.5+$G87*0.2, SUM(F87:G87)))), 0),"Non requis") -> 77086.6 | Q87: 1 | R87: 1 | S87: 0 | T87: 0 | U87: MDA1 (IVM+ALB) | V87: T2 (PZQ) | W87: 14245 | X87: Isiro | Y87: TRUE | Z87: 10.27170169 | AA87: 261820.5719 | AC87: ='MDA1'!M87 -> 215711 | AD87: ='MDA4'!U87 -> 0 | AE87: ='MDA3'!Q87 -> 0 | AF87: ='T1'!O87 -> 0 | AG87: ='T2'!M87 -> 0 | AH87: =T3_R1!N87 -> 0
A88: =IF(INTRO!$E$34<>0,INTRO!$E$34,"") -> DRC | B88: HAUT UELE | C88: Makoro | D88: 163194 | E88: =IF(INTRO!$E$48="","",ROUND($D88*INTRO!$E$48,0)) -> 27743 | F88: =IF(INTRO!$E$49="","",ROUND($D88*INTRO!$E$49,0)) -> 57118 | G88: =IF(INTRO!$E$50="","",ROUND($D88*INTRO!$E$50,0)) -> 75069 | H88: 0 | I88: 1 | J88: 1 | K88: 1 | L88: 1 | M88: =IF(INTRO!$E$38="Endémique", IF($H88>0, IF($H88=4,"Inconnu", IF($H88=99,"Interrompu", $D88)), 0),"Non requis") -> 0 | N88: =IF(INTRO!$E$40="Endémique", IF($I88>0, IF($I88=4,"Inconnu",IF($I88=99,"Interrompu", $D88)), 0),"Non requis") -> 163194 | O88: =IF(INTRO!$E$42="Endémique", IF(AND($J88>1,$J88<5), IF($J88=4, "Inconnu", E88+F88), 0),"Non requis") -> 0 | P88: =IF(INTRO!$E$44="Endémique", IF(AND($K88>0,$K88<5), IF($K88=4,"Inconnu", IF($K88=1, $F88*0.33, IF($K88=2, $F88*0.5+$G88*0.2, SUM(F88:G88)))), 0),"Non requis") -> 18848.94 | Q88: 0 | R88: 1 | S88: 0 | T88: 0 | U88: MDA3 (IVM) | W88: 14260 | X88: Makoro | Y88: TRUE | Z88: 0.8595854802 | AA88: 161803.1635 | AC88: ='MDA1'!M88 -> 0 | AD88: ='MDA4'!U88 -> 0 | AE88: ='MDA3'!Q88 -> 130184 | AF88: ='T1'!O88 -> 0 | AG88: ='T2'!M88 -> 0 | AH88: =T3_R1!N88 -> 0
A89: =IF(INTRO!$E$34<>0,INTRO!$E$34,"") -> DRC | B89: HAUT UELE | C89: Niangara | D89: 117152 | E89: =IF(INTRO!$E$48="","",ROUND($D89*INTRO!$E$48,0)) -> 19916 | F89: =IF(INTRO!$E$49="","",ROUND($D89*INTRO!$E$49,0)) -> 41003 | G89: =IF(INTRO!$E$50="","",ROUND($D89*INTRO!$E$50,0)) -> 53890 | H89: 1 | I89: 1 | J89: 1 | K89: 1 | L89: 1 | M89: =IF(INTRO!$E$38="Endémique", IF($H89>0, IF($H89=4,"Inconnu", IF($H89=99,"Interrompu", $D89)), 0),"Non requis") -> 117152 | N89: =IF(INTRO!$E$40="Endémique", IF($I89>0, IF($I89=4,"Inconnu",IF($I89=99,"Interrompu", $D89)), 0),"Non requis") -> 117152 | O89: =IF(INTRO!$E$42="Endémique", IF(AND($J89>1,$J89<5), IF($J89=4, "Inconnu", E89+F89), 0),"Non requis") -> 0 | P89: =IF(INTRO!$E$44="Endémique", IF(AND($K89>0,$K89<5), IF($K89=4,"Inconnu", IF($K89=1, $F89*0.33, IF($K89=2, $F89*0.5+$G89*0.2, SUM(F89:G89)))), 0),"Non requis") -> 13530.99 | Q89: 1 | R89: 1 | S89: 0 | T89: 0 | U89: MDA1 (IVM+ALB) | W89: 14268 | X89: Niangara | Y89: TRUE | Z89: 1.963799442 | AA89: 119498.7151 | AC89: ='MDA1'!M89 -> 93252 | AD89: ='MDA4'!U89 -> 0 | AE89: ='MDA3'!Q89 -> 0 | AF89: ='T1'!O89 -> 0 | AG89: ='T2'!M89 -> 0 | AH89: =T3_R1!N89 -> 0
A90: =IF(INTRO!$E$34<>0,INTRO!$E$34,"") -> DRC | B90: HAUT UELE | C90: Pawa | D90: 194993 | E90: =IF(INTRO!$E$48="","",ROUND($D90*INTRO!$E$48,0)) -> 33149 | F90: =IF(INTRO!$E$49="","",ROUND($D90*INTRO!$E$49,0)) -> 68248 | G90: =IF(INTRO!$E$50="","",ROUND($D90*INTRO!$E$50,0)) -> 89697 | H90: 1 | I90: 1 | J90: 0 | K90: 1 | L90: 1 | M90: =IF(INTRO!$E$38="Endémique", IF($H90>0, IF($H90=4,"Inconnu", IF($H90=99,"Interrompu", $D90)), 0),"Non requis") -> 194993 | N90: =IF(INTRO!$E$40="Endémique", IF($I90>0, IF($I90=4,"Inconnu",IF($I90=99,"Interrompu", $D90)), 0),"Non requis") -> 194993 | O90: =IF(INTRO!$E$42="Endémique", IF(AND($J90>1,$J90<5), IF($J90=4, "Inconnu", E90+F90), 0),"Non requis") -> 0 | P90: =IF(INTRO!$E$44="Endémique", IF(AND($K90>0,$K90<5), IF($K90=4,"Inconnu", IF($K90=1, $F90*0.33, IF($K90=2, $F90*0.5+$G90*0.2, SUM(F90:G90)))), 0),"Non requis") -> 22521.84 | Q90: 1 | R90: 1 | S90: 0 | T90: 0 | U90: MDA1 (IVM+ALB) | W90: 14275 | X90: Pawa | Y90: TRUE | Z90: 2.330883217 | AA90: 199646.5274 | AC90: ='MDA1'!M90 -> 156560 | AD90: ='MDA4'!U90 -> 0 | AE90: ='MDA3'!Q90 -> 0 | AF90: ='T1'!O90 -> 0 | AG90: ='T2'!M90 -> 0 | AH90: =T3_R1!N90 -> 0
A91: =IF(INTRO!$E$34<>0,INTRO!$E$34,"") -> DRC | B91: HAUT UELE | C91: Rungu | D91: 120362 | E91: =IF(INTRO!$E$48="","",ROUND($D91*INTRO!$E$48,0)) -> 20462 | F91: =IF(INTRO!$E$49="","",ROUND($D91*INTRO!$E$49,0)) -> 42127 | G91: =IF(INTRO!$E$50="","",ROUND($D91*INTRO!$E$50,0)) -> 55367 | H91: 1 | I91: 1 | J91: 1 | K91: 1 | L91: 1 | M91: =IF(INTRO!$E$38="Endémique", IF($H91>0, IF($H91=4,"Inconnu", IF($H91=99,"Interrompu", $D91)), 0),"Non requis") -> 120362 | N91: =IF(INTRO!$E$40="Endémique", IF($I91>0, IF($I91=4,"Inconnu",IF($I91=99,"Interrompu", $D91)), 0),"Non requis") -> 120362 | O91: =IF(INTRO!$E$42="Endémique", IF(AND($J91>1,$J91<5), IF($J91=4, "Inconnu", E91+F91), 0),"Non requis") -> 0 | P91: =IF(INTRO!$E$44="Endémique", IF(AND($K91>0,$K91<5), IF($K91=4,"Inconnu", IF($K91=1, $F91*0.33, IF($K91=2, $F91*0.5+$G91*0.2, SUM(F91:G91)))), 0),"Non requis") -> 13901.91 | Q91: 1 | R91: 1 | S91: 0 | T91: 0 | U91: MDA1 (IVM+ALB) | W91: 14279 | X91: Rungu | Y91: TRUE | Z91: 0.005931293441 | AA91: 120354.8614 | AC91: ='MDA1'!M91 -> 96489 | AD91: ='MDA4'!U91 -> 0 | AE91: ='MDA3'!Q91 -> 0 | AF91: ='T1'!O91 -> 0 | AG91: ='T2'!M91 -> 0 | AH91: =T3_R1!N91 -> 0
A92: =IF(INTRO!$E$34<>0,INTRO!$E$34,"") -> DRC | B92: HAUT UELE | C92: Wamba | D92: 125079 | E92: =IF(INTRO!$E$48="","",ROUND($D92*INTRO!$E$48,0)) -> 21263 | F92: =IF(INTRO!$E$49="","",ROUND($D92*INTRO!$E$49,0)) -> 43778 | G92: =IF(INTRO!$E$50="","",ROUND($D92*INTRO!$E$50,0)) -> 57536 | H92: 0 | I92: 1 | J92: 1 | K92: 1 | L92: 1 | M92: =IF(INTRO!$E$38="Endémique", IF($H92>0, IF($H92=4,"Inconnu", IF($H92=99,"Interrompu", $D92)), 0),"Non requis") -> 0 | N92: =IF(INTRO!$E$40="Endémique", IF($I92>0, IF($I92=4,"Inconnu",IF($I92=99,"Interrompu", $D92)), 0),"Non requis") -> 125079 | O92: =IF(INTRO!$E$42="Endémique", IF(AND($J92>1,$J92<5), IF($J92=4, "Inconnu", E92+F92), 0),"Non requis") -> 0 | P92: =IF(INTRO!$E$44="Endémique", IF(AND($K92>0,$K92<5), IF($K92=4,"Inconnu", IF($K92=1, $F92*0.33, IF($K92=2, $F92*0.5+$G92*0.2, SUM(F92:G92)))), 0),"Non requis") -> 14446.74 | Q92: 0 | R92: 1 | S92: 0 | T92: 0 | U92: MDA3 (IVM) | W92: 14286 | X92: Wamba | Y92: TRUE | Z92: 7.247975236 | AA92: 134853.1208 | AC92: ='MDA1'!M92 -> 0 | AD92: ='MDA4'!U92 -> 0 | AE92: ='MDA3'!Q92 -> 100061 | AF92: ='T1'!O92 -> 0 | AG92: ='T2'!M92 -> 0 | AH92: =T3_R1!N92 -> 0
A93: =IF(INTRO!$E$34<>0,INTRO!$E$34,"") -> DRC | B93: HAUT UELE | C93: Wasta | D93: 298032 | E93: =IF(INTRO!$E$48="","",ROUND($D93*INTRO!$E$48,0)) -> 50665 | F93: =IF(INTRO!$E$49="","",ROUND($D93*INTRO!$E$49,0)) -> 104311 | G93: =IF(INTRO!$E$50="","",ROUND($D93*INTRO!$E$50,0)) -> 137095 | H93: 1 | I93: 1 | J93: 1 | K93: 2 | L93: 1 | M93: =IF(INTRO!$E$38="Endémique", IF($H93>0, IF($H93=4,"Inconnu", IF($H93=99,"Interrompu", $D93)), 0),"Non requis") -> 298032 | N93: =IF(INTRO!$E$40="Endémique", IF($I93>0, IF($I93=4,"Inconnu",IF($I93=99,"Interrompu", $D93)), 0),"Non requis") -> 298032 | O93: =IF(INTRO!$E$42="Endémique", IF(AND($J93>1,$J93<5), IF($J93=4, "Inconnu", E93+F93), 0),"Non requis") -> 0 | P93: =IF(INTRO!$E$44="Endémique", IF(AND($K93>0,$K93<5), IF($K93=4,"Inconnu", IF($K93=1, $F93*0.33, IF($K93=2, $F93*0.5+$G93*0.2, SUM(F93:G93)))), 0),"Non requis") -> 79574.5 | Q93: 1 | R93: 1 | S93: 0 | T93: 0 | U93: MDA1 (IVM+ALB) | V93: T2 (PZQ) | W93: 14288 | X93: Wasta | Y93: TRUE | Z93: 1.579334381 | AA93: 293398.2604 | AC93: ='MDA1'!M93 -> 238790 | AD93: ='MDA4'!U93 -> 0 | AE93: ='MDA3'!Q93 -> 0 | AF93: ='T1'!O93 -> 0 | AG93: ='T2'!M93 -> 0 | AH93: =T3_R1!N93 -> 0
A94: =IF(INTRO!$E$34<>0,INTRO!$E$34,"") -> DRC | B94: ITURI | C94: Adi | D94: 185736 | E94: =IF(INTRO!$E$48="","",ROUND($D94*INTRO!$E$48,0)) -> 31575 | F94: =IF(INTRO!$E$49="","",ROUND($D94*INTRO!$E$49,0)) -> 65008 | G94: =IF(INTRO!$E$50="","",ROUND($D94*INTRO!$E$50,0)) -> 85439 | H94: 0 | I94: 1 | J94: 1 | K94: 0 | L94: 1 | M94: =IF(INTRO!$E$38="Endémique", IF($H94>0, IF($H94=4,"Inconnu", IF($H94=99,"Interrompu", $D94)), 0),"Non requis") -> 0 | N94: =IF(INTRO!$E$40="Endémique", IF($I94>0, IF($I94=4,"Inconnu",IF($I94=99,"Interrompu", $D94)), 0),"Non requis") -> 185736 | O94: =IF(INTRO!$E$42="Endémique", IF(AND($J94>1,$J94<5), IF($J94=4, "Inconnu", E94+F94), 0),"Non requis") -> 0 | P94: =IF(INTRO!$E$44="Endémique", IF(AND($K94>0,$K94<5), IF($K94=4,"Inconnu", IF($K94=1, $F94*0.33, IF($K94=2, $F94*0.5+$G94*0.2, SUM(F94:G94)))), 0),"Non requis") -> 0 | Q94: 0 | R94: 1 | S94: 0 | T94: 0 | U94: MDA3 (IVM) | W94: 14214 | X94: Adi | Y94: TRUE | Z94: 1.992376396 | AA94: 182107.7286 | AC94: ='MDA1'!M94 -> 0 | AD94: ='MDA4'!U94 -> 0 | AE94: ='MDA3'!Q94 -> 145885 | AF94: ='T1'!O94 -> 0 | AG94: ='T2'!M94 -> 0 | AH94: =T3_R1!N94 -> 0
A95: =IF(INTRO!$E$34<>0,INTRO!$E$34,"") -> DRC | B95: ITURI | C95: Adja | D95: 142060 | E95: =IF(INTRO!$E$48="","",ROUND($D95*INTRO!$E$48,0)) -> 24150 | F95: =IF(INTRO!$E$49="","",ROUND($D95*INTRO!$E$49,0)) -> 49721 | G95: =IF(INTRO!$E$50="","",ROUND($D95*INTRO!$E$50,0)) -> 65348 | H95: 0 | I95: 1 | J95: 1 | K95: 0 | L95: 1 | M95: =IF(INTRO!$E$38="Endémique", IF($H95>0, IF($H95=4,"Inconnu", IF($H95=99,"Interrompu", $D95)), 0),"Non requis") -> 0 | N95: =IF(INTRO!$E$40="Endémique", IF($I95>0, IF($I95=4,"Inconnu",IF($I95=99,"Interrompu", $D95)), 0),"Non requis") -> 142060 | O95: =IF(INTRO!$E$42="Endémique", IF(AND($J95>1,$J95<5), IF($J95=4, "Inconnu", E95+F95), 0),"Non requis") -> 0 | P95: =IF(INTRO!$E$44="Endémique", IF(AND($K95>0,$K95<5), IF($K95=4,"Inconnu", IF($K95=1, $F95*0.33, IF($K95=2, $F95*0.5+$G95*0.2, SUM(F95:G95)))), 0),"Non requis") -> 0 | Q95: 0 | R95: 1 | S95: 0 | T95: 0 | U95: MDA3 (IVM) | W95: 14215 | X95: Adja | Y95: TRUE | Z95: 1.230933032 | AA95: 143830.4566 | AC95: ='MDA1'!M95 -> 0 | AD95: ='MDA4'!U95 -> 0 | AE95: ='MDA3'!Q95 -> 116105 | AF95: ='T1'!O95 -> 0 | AG95: ='T2'!M95 -> 0 | AH95: =T3_R1!N95 -> 0
A96: =IF(INTRO!$E$34<>0,INTRO!$E$34,"") -> DRC | B96: ITURI | C96: Angumu | D96: 187867 | E96: =IF(INTRO!$E$48="","",ROUND($D96*INTRO!$E$48,0)) -> 31937 | F96: =IF(INTRO!$E$49="","",ROUND($D96*INTRO!$E$49,0)) -> 65753 | G96: =IF(INTRO!$E$50="","",ROUND($D96*INTRO!$E$50,0)) -> 86419 | H96: 1 | I96: 1 | J96: 0 | K96: 1 | L96: 1 | M96: =IF(INTRO!$E$38="Endémique", IF($H96>0, IF($H96=4,"Inconnu", IF($H96=99,"Interrompu", $D96)), 0),"Non requis") -> 187867 | N96: =IF(INTRO!$E$40="Endémique", IF($I96>0, IF($I96=4,"Inconnu",IF($I96=99,"Interrompu", $D96)), 0),"Non requis") -> 187867 | O96: =IF(INTRO!$E$42="Endémique", IF(AND($J96>1,$J96<5), IF($J96=4, "Inconnu", E96+F96), 0),"Non requis") -> 0 | P96: =IF(INTRO!$E$44="Endémique", IF(AND($K96>0,$K96<5), IF($K96=4,"Inconnu", IF($K96=1, $F96*0.33, IF($K96=2, $F96*0.5+$G96*0.2, SUM(F96:G96)))), 0),"Non requis") -> 21698.49 | Q96: 1 | R96: 1 | S96: 0 | T96: 0 | U96: MDA1 (IVM+ALB) | W96: 14218 | X96: Angumu | Y96: TRUE | Z96: 1.107475412 | AA96: 185809.2087 | AC96: ='MDA1'!M96 -> 150441 | AD96: ='MDA4'!U96 -> 0 | AE96: ='MDA3'!Q96 -> 0 | AF96: ='T1'!O96 -> 0 | AG96: ='T2'!M96 -> 0 | AH96: =T3_R1!N96 -> 0
A97: =IF(INTRO!$E$34<>0,INTRO!$E$34,"") -> DRC | B97: ITURI | C97: Ariwara | D97: 242975 | E97: =IF(INTRO!$E$48="","",ROUND($D97*INTRO!$E$48,0)) -> 41306 | F97: =IF(INTRO!$E$49="","",ROUND($D97*INTRO!$E$49,0)) -> 85041 | G97: =IF(INTRO!$E$50="","",ROUND($D97*INTRO!$E$50,0)) -> 111769 | H97: 1 | I97: 4 | J97: 1 | K97: 0 | L97: 1 | M97: =IF(INTRO!$E$38="Endémique", IF($H97>0, IF($H97=4,"Inconnu", IF($H97=99,"Interrompu", $D97)), 0),"Non requis") -> 242975 | N97: =IF(INTRO!$E$40="Endémique", IF($I97>0, IF($I97=4,"Inconnu",IF($I97=99,"Interrompu", $D97)), 0),"Non requis") -> Inconnu | O97: =IF(INTRO!$E$42="Endémique", IF(AND($J97>1,$J97<5), IF($J97=4, "Inconnu", E97+F97), 0),"Non requis") -> 0 | P97: =IF(INTRO!$E$44="Endémique", IF(AND($K97>0,$K97<5), IF($K97=4,"Inconnu", IF($K97=1, $F97*0.33, IF($K97=2, $F97*0.5+$G97*0.2, SUM(F97:G97)))), 0),"Non requis") -> 0 | Q97: 1 | R97: 0 | S97: 0 | T97: 0 | U97: MDA1 (IVM+ALB) | W97: 14219 | X97: Ariwara | Y97: TRUE | Z97: 2.965059444 | AA97: 235978.1088 | AC97: ='MDA1'!M97 -> 197517 | AD97: ='MDA4'!U97 -> 0 | AE97: ='MDA3'!Q97 -> 0 | AF97: ='T1'!O97 -> 0 | AG97: ='T2'!M97 -> 0 | AH97: =T3_R1!N97 -> 0
A98: =IF(INTRO!$E$34<>0,INTRO!$E$34,"") -> DRC | B98: ITURI | C98: Aru | D98: 176855 | E98: =IF(INTRO!$E$48="","",ROUND($D98*INTRO!$E$48,0)) -> 30065 | F98: =IF(INTRO!$E$49="","",ROUND($D98*INTRO!$E$49,0)) -> 61899 | G98: =IF(INTRO!$E$50="","",ROUND($D98*INTRO!$E$50,0)) -> 81353 | H98: 0 | I98: 4 | J98: 1 | K98: 2 | L98: 0 | M98: =IF(INTRO!$E$38="Endémique", IF($H98>0, IF($H98=4,"Inconnu", IF($H98=99,"Interrompu", $D98)), 0),"Non requis") -> 0 | N98: =IF(INTRO!$E$40="Endémique", IF($I98>0, IF($I98=4,"Inconnu",IF($I98=99,"Interrompu", $D98)), 0),"Non requis") -> Inconnu | O98: =IF(INTRO!$E$42="Endémique", IF(AND($J98>1,$J98<5), IF($J98=4, "Inconnu", E98+F98), 0),"Non requis") -> 0 | P98: =IF(INTRO!$E$44="Endémique", IF(AND($K98>0,$K98<5), IF($K98=4,"Inconnu", IF($K98=1, $F98*0.33, IF($K98=2, $F98*0.5+$G98*0.2, SUM(F98:G98)))), 0),"Non requis") -> 47220.1 | Q98: 0 | R98: 0 | S98: 0 | T98: 1 | U98: T2 (PZQ) | W98: 14220 | X98: Aru | Y98: TRUE | Z98: 3.457229711e-05 | AA98: 176855.0611 | AC98: ='MDA1'!M98 -> 0 | AD98: ='MDA4'!U98 -> 0 | AE98: ='MDA3'!Q98 -> 0 | AF98: ='T1'!O98 -> 0 | AG98: ='T2'!M98 -> 124908 | AH98: =T3_R1!N98 -> 0
A99: =IF(INTRO!$E$34<>0,INTRO!$E$34,"") -> DRC | B99: ITURI | C99: Augnba | D99: 298032 | E99: =IF(INTRO!$E$48="","",ROUND($D99*INTRO!$E$48,0)) -> 50665 | F99: =IF(INTRO!$E$49="","",ROUND($D99*INTRO!$E$49,0)) -> 104311 | G99: =IF(INTRO!$E$50="","",ROUND($D99*INTRO!$E$50,0)) -> 137095 | H99: 0 | I99: 1 | J99: 2 | K99: 1 | L99: 0 | M99: =IF(INTRO!$E$38="Endémique", IF($H99>0, IF($H99=4,"Inconnu", IF($H99=99,"Interrompu", $D99)), 0),"Non requis") -> 0 | N99: =IF(INTRO!$E$40="Endémique", IF($I99>0, IF($I99=4,"Inconnu",IF($I99=99,"Interrompu", $D99)), 0),"Non requis") -> 298032 | O99: =IF(INTRO!$E$42="Endémique", IF(AND($J99>1,$J99<5), IF($J99=4, "Inconnu", E99+F99), 0),"Non requis") -> 154976 | P99: =IF(INTRO!$E$44="Endémique", IF(AND($K99>0,$K99<5), IF($K99=4,"Inconnu", IF($K99=1, $F99*0.33, IF($K99=2, $F99*0.5+$G99*0.2, SUM(F99:G99)))), 0),"Non requis") -> 34422.63 | Q99: 0 | R99: 1 | S99: 1 | T99: 1 | U99: MDA3 (IVM) | V99: T1 (PZQ+ALB/MBD) | W99: 14221 | X99: Augnba | Y99: TRUE | Z99: 52.70499497 | AA99: 195168.4685 | AC99: ='MDA1'!M99 -> 0 | AD99: ='MDA4'!U99 -> 0 | AE99: ='MDA3'!Q99 -> 238790 | AF99: ='T1'!O99 -> 19776 | AG99: ='T2'!M99 -> 0 | AH99: =T3_R1!N99 -> 0
A100: =IF(INTRO!$E$34<>0,INTRO!$E$34,"") -> DRC | B100: ITURI | C100: Bambu | D100: 128612 | E100: =IF(INTRO!$E$48="","",ROUND($D100*INTRO!$E$48,0)) -> 21864 | F100: =IF(INTRO!$E$49="","",ROUND($D100*INTRO!$E$49,0)) -> 45014 | G100: =IF(INTRO!$E$50="","",ROUND($D100*INTRO!$E$50,0)) -> 59162 | H100: 1 | I100: 4 | J100: 1 | K100: 1 | L100: 0 | M100: =IF(INTRO!$E$38="Endémique", IF($H100>0, IF($H100=4,"Inconnu", IF($H100=99,"Interrompu", $D100)), 0),"Non requis") -> 128612 | N100: =IF(INTRO!$E$40="Endémique", IF($I100>0, IF($I100=4,"Inconnu",IF($I100=99,"Interrompu", $D100)), 0),"Non requis") -> Inconnu | O100: =IF(INTRO!$E$42="Endémique", IF(AND($J100>1,$J100<5), IF($J100=4, "Inconnu", E100+F100), 0),"Non requis") -> 0 | P100: =IF(INTRO!$E$44="Endémique", IF(AND($K100>0,$K100<5), IF($K100=4,"Inconnu", IF($K100=1, $F100*0.33, IF($K100=2, $F100*0.5+$G100*0.2, SUM(F100:G100)))), 0),"Non requis") -> 14854.62 | Q100: 1 | R100: 0 | S100: 0 | T100: 0 | U100: MDA1 (IVM+ALB) | W100: 14224 | X100: Bambu | Y100: TRUE | Z100: 30.1482013 | AA100: 98819.6523 | AC100: ='MDA1'!M100 -> 95012 | AD100: ='MDA4'!U100 -> 0 | AE100: ='MDA3'!Q100 -> 0 | AF100: ='T1'!O100 -> 0 | AG100: ='T2'!M100 -> 0 | AH100: =T3_R1!N100 -> 0
A101: =IF(INTRO!$E$34<>0,INTRO!$E$34,"") -> DRC | B101: ITURI | C101: Biringi | D101: 144219 | E101: =IF(INTRO!$E$48="","",ROUND($D101*INTRO!$E$48,0)) -> 24517 | F101: =IF(INTRO!$E$49="","",ROUND($D101*INTRO!$E$49,0)) -> 50477 | G101: =IF(INTRO!$E$50="","",ROUND($D101*INTRO!$E$50,0)) -> 66341 | H101: 1 | I101: 1 | J101: 1 | K101: 2 | L101: 1 | M101: =IF(INTRO!$E$38="Endémique", IF($H101>0, IF($H101=4,"Inconnu", IF($H101=99,"Interrompu", $D101)), 0),"Non requis") -> 144219 | N101: =IF(INTRO!$E$40="Endémique", IF($I101>0, IF($I101=4,"Inconnu",IF($I101=99,"Interrompu", $D101)), 0),"Non requis") -> 144219 | O101: =IF(INTRO!$E$42="Endémique", IF(AND($J101>1,$J101<5), IF($J101=4, "Inconnu", E101+F101), 0),"Non requis") -> 0 | P101: =IF(INTRO!$E$44="Endémique", IF(AND($K101>0,$K101<5), IF($K101=4,"Inconnu", IF($K101=1, $F101*0.33, IF($K101=2, $F101*0.5+$G101*0.2, SUM(F101:G101)))), 0),"Non requis") -> 38506.7 | Q101: 1 | R101: 1 | S101: 0 | T101: 0 | U101: MDA1 (IVM+ALB) | W101: 14230 | X101: Biringi | Y101: FALSE | Z101: 7.139570865 | AA101: 155307.2728 | AC101: ='MDA1'!M101 -> 116623 | AD101: ='MDA4'!U101 -> 0 | AE101: ='MDA3'!Q101 -> 0 | AF101: ='T1'!O101 -> 0 | AG101: ='T2'!M101 -> 0 | AH101: =T3_R1!N101 -> 0
A102: =IF(INTRO!$E$34<>0,INTRO!$E$34,"") -> DRC | B102: ITURI | C102: Boga | D102: 75043 | E102: =IF(INTRO!$E$48="","",ROUND($D102*INTRO!$E$48,0)) -> 12757 | F102: =IF(INTRO!$E$49="","",ROUND($D102*INTRO!$E$49,0)) -> 26265 | G102: =IF(INTRO!$E$50="","",ROUND($D102*INTRO!$E$50,0)) -> 34520 | H102: 1 | I102: 1 | J102: 1 | K102: 2 | L102: 1 | M102: =IF(INTRO!$E$38="Endémique", IF($H102>0, IF($H102=4,"Inconnu", IF($H102=99,"Interrompu", $D102)), 0),"Non requis") -> 75043 | N102: =IF(INTRO!$E$40="Endémique", IF($I102>0, IF($I102=4,"Inconnu",IF($I102=99,"Interrompu", $D102)), 0),"Non requis") -> 75043 | O102: =IF(INTRO!$E$42="Endémique", IF(AND($J102>1,$J102<5), IF($J102=4, "Inconnu", E102+F102), 0),"Non requis") -> 0 | P102: =IF(INTRO!$E$44="Endémique", IF(AND($K102>0,$K102<5), IF($K102=4,"Inconnu", IF($K102=1, $F102*0.33, IF($K102=2, $F102*0.5+$G102*0.2, SUM(F102:G102)))), 0),"Non requis") -> 20036.5 | Q102: 1 | R102: 1 | S102: 0 | T102: 0 | U102: MDA1 (IVM+ALB) | W102: 14231 | X102: Boga | Y102: TRUE | Z102: 2.265665203 | AA102: 76782.6375 | AC102: ='MDA1'!M102 -> 61845 | AD102: ='MDA4'!U102 -> 0 | AE102: ='MDA3'!Q102 -> 0 | AF102: ='T1'!O102 -> 0 | AG102: ='T2'!M102 -> 0 | AH102: =T3_R1!N102 -> 0
A103: =IF(INTRO!$E$34<>0,INTRO!$E$34,"") -> DRC | B103: ITURI | C103: Bunia | D103: 343686 | E103: =IF(INTRO!$E$48="","",ROUND($D103*INTRO!$E$48,0)) -> 58427 | F103: =IF(INTRO!$E$49="","",ROUND($D103*INTRO!$E$49,0)) -> 120290 | G103: =IF(INTRO!$E$50="","",ROUND($D103*INTRO!$E$50,0)) -> 158096 | H103: 1 | I103: 4 | J103: 1 | K103: 2 | L103: 0 | M103: =IF(INTRO!$E$38="Endémique", IF($H103>0, IF($H103=4,"Inconnu", IF($H103=99,"Interrompu", $D103)), 0),"Non requis") -> 343686 | N103: =IF(INTRO!$E$40="Endémique", IF($I103>0, IF($I103=4,"Inconnu",IF($I103=99,"Interrompu", $D103)), 0),"Non requis") -> Inconnu | O103: =IF(INTRO!$E$42="Endémique", IF(AND($J103>1,$J103<5), IF($J103=4, "Inconnu", E103+F103), 0),"Non requis") -> 0 | P103: =IF(INTRO!$E$44="Endémique", IF(AND($K103>0,$K103<5), IF($K103=4,"Inconnu", IF($K103=1, $F103*0.33, IF($K103=2, $F103*0.5+$G103*0.2, SUM(F103:G103)))), 0),"Non requis") -> 91764.2 | Q103: 1 | R103: 0 | S103: 0 | T103: 1 | U103: MDA1 (IVM+ALB) | V103: T2 (PZQ) | W103: 14233 | X103: Bunia | Y103: TRUE | Z103: 20.11487235 | AA103: 286131.0954 | AC103: ='MDA1'!M103 -> 275966 | AD103: ='MDA4'!U103 -> 0 | AE103: ='MDA3'!Q103 -> 0 | AF103: ='T1'!O103 -> 0 | AG103: ='T2'!M103 -> 85906 | AH103: =T3_R1!N103 -> 0
A104: =IF(INTRO!$E$34<>0,INTRO!$E$34,"") -> DRC | B104: ITURI | C104: Damas | D104: 126926 | E104: =IF(INTRO!$E$48="","",ROUND($D104*INTRO!$E$48,0)) -> 21577 | F104: =IF(INTRO!$E$49="","",ROUND($D104*INTRO!$E$49,0)) -> 44424 | G104: =IF(INTRO!$E$50="","",ROUND($D104*INTRO!$E$50,0)) -> 58386 | H104: 1 | I104: 1 | J104: 1 | K104: 1 | L104: 1 | M104: =IF(INTRO!$E$38="Endémique", IF($H104>0, IF($H104=4,"Inconnu", IF($H104=99,"Interrompu", $D104)), 0),"Non requis") -> 126926 | N104: =IF(INTRO!$E$40="Endémique", IF($I104>0, IF($I104=4,"Inconnu",IF($I104=99,"Interrompu", $D104)), 0),"Non requis") -> 126926 | O104: =IF(INTRO!$E$42="Endémique", IF(AND($J104>1,$J104<5), IF($J104=4, "Inconnu", E104+F104), 0),"Non requis") -> 0 | P104: =IF(INTRO!$E$44="Endémique", IF(AND($K104>0,$K104<5), IF($K104=4,"Inconnu", IF($K104=1, $F104*0.33, IF($K104=2, $F104*0.5+$G104*0.2, SUM(F104:G104)))), 0),"Non requis") -> 14659.92 | Q104: 1 | R104: 1 | S104: 0 | T104: 1 | U104: MDA1 (IVM+ALB) | V104: T2 (PZQ) | W104: 14235 | X104: Damas | Y104: TRUE | Z104: 2.252564718 | AA104: 129850.9773 | AC104: ='MDA1'!M104 -> 101720 | AD104: ='MDA4'!U104 -> 0 | AE104: ='MDA3'!Q104 -> 0 | AF104: ='T1'!O104 -> 0 | AG104: ='T2'!M104 -> 51084 | AH104: =T3_R1!N104 -> 0
A105: =IF(INTRO!$E$34<>0,INTRO!$E$34,"") -> DRC | B105: ITURI | C105: Drodro | D105: 90437 | E105: =IF(INTRO!$E$48="","",ROUND($D105*INTRO!$E$48,0)) -> 15374 | F105: =IF(INTRO!$E$49="","",ROUND($D105*INTRO!$E$49,0)) -> 31653 | G105: =IF(INTRO!$E$50="","",ROUND($D105*INTRO!$E$50,0)) -> 41601 | H105: 0 | I105: 4 | J105: 1 | K105: 2 | L105: 0 | M105: =IF(INTRO!$E$38="Endémique", IF($H105>0, IF($H105=4,"Inconnu", IF($H105=99,"Interrompu", $D105)), 0),"Non requis") -> 0 | N105: =IF(INTRO!$E$40="Endémique", IF($I105>0, IF($I105=4,"Inconnu",IF($I105=99,"Interrompu", $D105)), 0),"Non requis") -> Inconnu | O105: =IF(INTRO!$E$42="Endémique", IF(AND($J105>1,$J105<5), IF($J105=4, "Inconnu", E105+F105), 0),"Non requis") -> 0 | P105: =IF(INTRO!$E$44="Endémique", IF(AND($K105>0,$K105<5), IF($K105=4,"Inconnu", IF($K105=1, $F105*0.33, IF($K105=2, $F105*0.5+$G105*0.2, SUM(F105:G105)))), 0),"Non requis") -> 24146.7 | Q105: 0 | R105: 0 | S105: 0 | T105: 1 | U105: T2 (PZQ) | W105: 14237 | X105: Drodro | Y105: TRUE | Z105: 0.0005323014225 | AA105: 90437.4814 | AC105: ='MDA1'!M105 -> 0 | AD105: ='MDA4'!U105 -> 0 | AE105: ='MDA3'!Q105 -> 0 | AF105: ='T1'!O105 -> 0 | AG105: ='T2'!M105 -> 25238 | AH105: =T3_R1!N105 -> 0
A106: =IF(INTRO!$E$34<>0,INTRO!$E$34,"") -> DRC | B106: ITURI | C106: Fataki | D106: 112346 | E106: =IF(INTRO!$E$48="","",ROUND($D106*INTRO!$E$48,0)) -> 19099 | F106: =IF(INTRO!$E$49="","",ROUND($D106*INTRO!$E$49,0)) -> 39321 | G106: =IF(INTRO!$E$50="","",ROUND($D106*INTRO!$E$50,0)) -> 51679 | H106: 1 | I106: 4 | J106: 1 | K106: 1 | L106: 0 | M106: =IF(INTRO!$E$38="Endémique", IF($H106>0, IF($H106=4,"Inconnu", IF($H106=99,"Interrompu", $D106)), 0),"Non requis") -> 112346 | N106: =IF(INTRO!$E$40="Endémique", IF($I106>0, IF($I106=4,"Inconnu",IF($I106=99,"Interrompu", $D106)), 0),"Non requis") -> Inconnu | O106: =IF(INTRO!$E$42="Endémique", IF(AND($J106>1,$J106<5), IF($J106=4, "Inconnu", E106+F106), 0),"Non requis") -> 0 | P106: =IF(INTRO!$E$44="Endémique", IF(AND($K106>0,$K106<5), IF($K106=4,"Inconnu", IF($K106=1, $F106*0.33, IF($K106=2, $F106*0.5+$G106*0.2, SUM(F106:G106)))), 0),"Non requis") -> 12975.93 | Q106: 1 | R106: 0 | S106: 0 | T106: 0 | U106: MDA1 (IVM+ALB) | W106: 14240 | X106: Fataki | Y106: TRUE | Z106: 23.04005813 | AA106: 145979.84 | AC106: ='MDA1'!M106 -> 88954 | AD106: ='MDA4'!U106 -> 0 | AE106: ='MDA3'!Q106 -> 0 | AF106: ='T1'!O106 -> 0 | AG106: ='T2'!M106 -> 0 | AH106: =T3_R1!N106 -> 0
A107: =IF(INTRO!$E$34<>0,INTRO!$E$34,"") -> DRC | B107: ITURI | C107: Gethy | D107: 189673 | E107: =IF(INTRO!$E$48="","",ROUND($D107*INTRO!$E$48,0)) -> 32244 | F107: =IF(INTRO!$E$49="","",ROUND($D107*INTRO!$E$49,0)) -> 66386 | G107: =IF(INTRO!$E$50="","",ROUND($D107*INTRO!$E$50,0)) -> 87250 | H107: 0 | I107: 1 | J107: 1 | K107: 2 | L107: 1 | M107: =IF(INTRO!$E$38="Endémique", IF($H107>0, IF($H107=4,"Inconnu", IF($H107=99,"Interrompu", $D107)), 0),"Non requis") -> 0 | N107: =IF(INTRO!$E$40="Endémique", IF($I107>0, IF($I107=4,"Inconnu",IF($I107=99,"Interrompu", $D107)), 0),"Non requis") -> 189673 | O107: =IF(INTRO!$E$42="Endémique", IF(AND($J107>1,$J107<5), IF($J107=4, "Inconnu", E107+F107), 0),"Non requis") -> 0 | P107: =IF(INTRO!$E$44="Endémique", IF(AND($K107>0,$K107<5), IF($K107=4,"Inconnu", IF($K107=1, $F107*0.33, IF($K107=2, $F107*0.5+$G107*0.2, SUM(F107:G107)))), 0),"Non requis") -> 50643 | Q107: 0 | R107: 1 | S107: 0 | T107: 0 | U107: MDA3 (IVM) | W107: 14242 | X107: Gethy | Y107: TRUE | Z107: 3.970934335 | AA107: 197516.2402 | AC107: ='MDA1'!M107 -> 0 | AD107: ='MDA4'!U107 -> 0 | AE107: ='MDA3'!Q107 -> 145560 | AF107: ='T1'!O107 -> 0 | AG107: ='T2'!M107 -> 0 | AH107: =T3_R1!N107 -> 0
A108: =IF(INTRO!$E$34<>0,INTRO!$E$34,"") -> DRC | B108: ITURI | C108: Jiba | D108: 90619 | E108: =IF(INTRO!$E$48="","",ROUND($D108*INTRO!$E$48,0)) -> 15405 | F108: =IF(INTRO!$E$49="","",ROUND($D108*INTRO!$E$49,0)) -> 31717 | G108: =IF(INTRO!$E$50="","",ROUND($D108*INTRO!$E$50,0)) -> 41685 | H108: 1 | I108: 4 | J108: 1 | K108: 1 | L108: 1 | M108: =IF(INTRO!$E$38="Endémique", IF($H108>0, IF($H108=4,"Inconnu", IF($H108=99,"Interrompu", $D108)), 0),"Non requis") -> 90619 | N108: =IF(INTRO!$E$40="Endémique", IF($I108>0, IF($I108=4,"Inconnu",IF($I108=99,"Interrompu", $D108)), 0),"Non requis") -> Inconnu | O108: =IF(INTRO!$E$42="Endémique", IF(AND($J108>1,$J108<5), IF($J108=4, "Inconnu", E108+F108), 0),"Non requis") -> 0 | P108: =IF(INTRO!$E$44="Endémique", IF(AND($K108>0,$K108<5), IF($K108=4,"Inconnu", IF($K108=1, $F108*0.33, IF($K108=2, $F108*0.5+$G108*0.2, SUM(F108:G108)))), 0),"Non requis") -> 10466.61 | Q108: 1 | R108: 0 | S108: 0 | T108: 0 | U108: MDA1 (IVM+ALB) | W108: 14246 | X108: Jiba | Y108: TRUE | Z108: 20.92839742 | AA108: 114603.7225 | AC108: ='MDA1'!M108 -> 73740 | AD108: ='MDA4'!U108 -> 0 | AE108: ='MDA3'!Q108 -> 0 | AF108: ='T1'!O108 -> 0 | AG108: ='T2'!M108 -> 0 | AH108: =T3_R1!N108 -> 0
A109: =IF(INTRO!$E$34<>0,INTRO!$E$34,"") -> DRC | B109: ITURI | C109: Kambale | D109: 137766 | E109: =IF(INTRO!$E$48="","",ROUND($D109*INTRO!$E$48,0)) -> 23420 | F109: =IF(INTRO!$E$49="","",ROUND($D109*INTRO!$E$49,0)) -> 48218 | G109: =IF(INTRO!$E$50="","",ROUND($D109*INTRO!$E$50,0)) -> 63372 | H109: 1 | I109: 1 | J109: 1 | K109: 0 | L109: 1 | M109: =IF(INTRO!$E$38="Endémique", IF($H109>0, IF($H109=4,"Inconnu", IF($H109=99,"Interrompu", $D109)), 0),"Non requis") -> 137766 | N109: =IF(INTRO!$E$40="Endémique", IF($I109>0, IF($I109=4,"Inconnu",IF($I109=99,"Interrompu", $D109)), 0),"Non requis") -> 137766 | O109: =IF(INTRO!$E$42="Endémique", IF(AND($J109>1,$J109<5), IF($J109=4, "Inconnu", E109+F109), 0),"Non requis") -> 0 | P109: =IF(INTRO!$E$44="Endémique", IF(AND($K109>0,$K109<5), IF($K109=4,"Inconnu", IF($K109=1, $F109*0.33, IF($K109=2, $F109*0.5+$G109*0.2, SUM(F109:G109)))), 0),"Non requis") -> 0 | Q109: 1 | R109: 1 | S109: 0 | T109: 0 | U109: MDA1 (IVM+ALB) | W109: 14248 | X109: Kambale | Y109: TRUE | Z109: 2.782954881 | AA109: 141709.7175 | AC109: ='MDA1'!M109 -> 111604 | AD109: ='MDA4'!U109 -> 0 | AE109: ='MDA3'!Q109 -> 0 | AF109: ='T1'!O109 -> 0 | AG109: ='T2'!M109 -> 0 | AH109: =T3_R1!N109 -> 0
A110: =IF(INTRO!$E$34<>0,INTRO!$E$34,"") -> DRC | B110: ITURI | C110: Kilo | D110: 58410 | E110: =IF(INTRO!$E$48="","",ROUND($D110*INTRO!$E$48,0)) -> 9930 | F110: =IF(INTRO!$E$49="","",ROUND($D110*INTRO!$E$49,0)) -> 20444 | G110: =IF(INTRO!$E$50="","",ROUND($D110*INTRO!$E$50,0)) -> 26869 | H110: 1 | I110: 4 | J110: 2 | K110: 2 | L110: 0 | M110: =IF(INTRO!$E$38="Endémique", IF($H110>0, IF($H110=4,"Inconnu", IF($H110=99,"Interrompu", $D110)), 0),"Non requis") -> 58410 | N110: =IF(INTRO!$E$40="Endémique", IF($I110>0, IF($I110=4,"Inconnu",IF($I110=99,"Interrompu", $D110)), 0),"Non requis") -> Inconnu | O110: =IF(INTRO!$E$42="Endémique", IF(AND($J110>1,$J110<5), IF($J110=4, "Inconnu", E110+F110), 0),"Non requis") -> 30374 | P110: =IF(INTRO!$E$44="Endémique", IF(AND($K110>0,$K110<5), IF($K110=4,"Inconnu", IF($K110=1, $F110*0.33, IF($K110=2, $F110*0.5+$G110*0.2, SUM(F110:G110)))), 0),"Non requis") -> 15595.8 | Q110: 1 | R110: 0 | S110: 1 | T110: 1 | U110: MDA1 (IVM+ALB) | V110: T2 (PZQ) | W110: 14249 | X110: Kilo | Y110: TRUE | Z110: 16.97585793 | AA110: 49933.3803 | AC110: ='MDA1'!M110 -> 46322 | AD110: ='MDA4'!U110 -> 0 | AE110: ='MDA3'!Q110 -> 0 | AF110: ='T1'!O110 -> 0 | AG110: ='T2'!M110 -> 15977 | AH110: =T3_R1!N110 -> 0
A111: =IF(INTRO!$E$34<>0,INTRO!$E$34,"") -> DRC | B111: ITURI | C111: Komanda | D111: 279868 | E111: =IF(INTRO!$E$48="","",ROUND($D111*INTRO!$E$48,0)) -> 47578 | F111: =IF(INTRO!$E$49="","",ROUND($D111*INTRO!$E$49,0)) -> 97954 | G111: =IF(INTRO!$E$50="","",ROUND($D111*INTRO!$E$50,0)) -> 128739 | H111: 1 | I111: 1 | J111: 1 | K111: 2 | L111: 1 | M111: =IF(INTRO!$E$38="Endémique", IF($H111>0, IF($H111=4,"Inconnu", IF($H111=99,"Interrompu", $D111)), 0),"Non requis") -> 279868 | N111: =IF(INTRO!$E$40="Endémique", IF($I111>0, IF($I111=4,"Inconnu",IF($I111=99,"Interrompu", $D111)), 0),"Non requis") -> 279868 | O111: =IF(INTRO!$E$42="Endémique", IF(AND($J111>1,$J111<5), IF($J111=4, "Inconnu", E111+F111), 0),"Non requis") -> 0 | P111: =IF(INTRO!$E$44="Endémique", IF(AND($K111>0,$K111<5), IF($K111=4,"Inconnu", IF($K111=1, $F111*0.33, IF($K111=2, $F111*0.5+$G111*0.2, SUM(F111:G111)))), 0),"Non requis") -> 74724.8 | Q111: 1 | R111: 1 | S111: 0 | T111: 0 | U111: MDA1 (IVM+ALB) | W111: 14250 | X111: Komanda | Y111: TRUE | Z111: 20.78755318 | AA111: 231702.6818 | AC111: ='MDA1'!M111 -> 227628 | AD111: ='MDA4'!U111 -> 0 | AE111: ='MDA3'!Q111 -> 0 | AF111: ='T1'!O111 -> 0 | AG111: ='T2'!M111 -> 0 | AH111: =T3_R1!N111 -> 0
A112: =IF(INTRO!$E$34<>0,INTRO!$E$34,"") -> DRC | B112: ITURI | C112: Laybo | D112: 168081 | E112: =IF(INTRO!$E$48="","",ROUND($D112*INTRO!$E$48,0)) -> 28574 | F112: =IF(INTRO!$E$49="","",ROUND($D112*INTRO!$E$49,0)) -> 58828 | G112: =IF(INTRO!$E$50="","",ROUND($D112*INTRO!$E$50,0)) -> 77317 | H112: 0 | I112: 1 | J112: 1 | K112: 0 | L112: 1 | M112: =IF(INTRO!$E$38="Endémique", IF($H112>0, IF($H112=4,"Inconnu", IF($H112=99,"Interrompu", $D112)), 0),"Non requis") -> 0 | N112: =IF(INTRO!$E$40="Endémique", IF($I112>0, IF($I112=4,"Inconnu",IF($I112=99,"Interrompu", $D112)), 0),"Non requis") -> 168081 | O112: =IF(INTRO!$E$42="Endémique", IF(AND($J112>1,$J112<5), IF($J112=4, "Inconnu", E112+F112), 0),"Non requis") -> 0 | P112: =IF(INTRO!$E$44="Endémique", IF(AND($K112>0,$K112<5), IF($K112=4,"Inconnu", IF($K112=1, $F112*0.33, IF($K112=2, $F112*0.5+$G112*0.2, SUM(F112:G112)))), 0),"Non requis") -> 0 | Q112: 0 | R112: 1 | S112: 0 | T112: 0 | U112: MDA3 (IVM) | W112: 14251 | X112: Laybo | Y112: TRUE | Z112: 8.975210838 | AA112: 184654.0943 | AC112: ='MDA1'!M112 -> 0 | AD112: ='MDA4'!U112 -> 0 | AE112: ='MDA3'!Q112 -> 137562 | AF112: ='T1'!O112 -> 0 | AG112: ='T2'!M112 -> 0 | AH112: =T3_R1!N112 -> 0
A113: =IF(INTRO!$E$34<>0,INTRO!$E$34,"") -> DRC | B113: ITURI | C113: Linga | D113: 123362 | E113: =IF(INTRO!$E$48="","",ROUND($D113*INTRO!$E$48,0)) -> 20972 | F113: =IF(INTRO!$E$49="","",ROUND($D113*INTRO!$E$49,0)) -> 43177 | G113: =IF(INTRO!$E$50="","",ROUND($D113*INTRO!$E$50,0)) -> 56747 | H113: 1 | I113: 4 | J113: 1 | K113: 1 | L113: 0 | M113: =IF(INTRO!$E$38="Endémique", IF($H113>0, IF($H113=4,"Inconnu", IF($H113=99,"Interrompu", $D113)), 0),"Non requis") -> 123362 | N113: =IF(INTRO!$E$40="Endémique", IF($I113>0, IF($I113=4,"Inconnu",IF($I113=99,"Interrompu", $D113)), 0),"Non requis") -> Inconnu | O113: =IF(INTRO!$E$42="Endémique", IF(AND($J113>1,$J113<5), IF($J113=4, "Inconnu", E113+F113), 0),"Non requis") -> 0 | P113: =IF(INTRO!$E$44="Endémique", IF(AND($K113>0,$K113<5), IF($K113=4,"Inconnu", IF($K113=1, $F113*0.33, IF($K113=2, $F113*0.5+$G113*0.2, SUM(F113:G113)))), 0),"Non requis") -> 14248.41 | Q113: 1 | R113: 0 | S113: 0 | T113: 0 | U113: MDA1 (IVM+ALB) | W113: 14253 | X113: Linga | Y113: TRUE | Z113: 3.027648387 | AA113: 127213.5799 | AC113: ='MDA1'!M113 -> 101877 | AD113: ='MDA4'!U113 -> 0 | AE113: ='MDA3'!Q113 -> 0 | AF113: ='T1'!O113 -> 0 | AG113: ='T2'!M113 -> 0 | AH113: =T3_R1!N113 -> 0
A114: =IF(INTRO!$E$34<>0,INTRO!$E$34,"") -> DRC | B114: ITURI | C114: Lita | D114: 146816 | E114: =IF(INTRO!$E$48="","",ROUND($D114*INTRO!$E$48,0)) -> 24959 | F114: =IF(INTRO!$E$49="","",ROUND($D114*INTRO!$E$49,0)) -> 51386 | G114: =IF(INTRO!$E$50="","",ROUND($D114*INTRO!$E$50,0)) -> 67535 | H114: 0 | I114: 4 | J114: 1 | K114: 1 | L114: 1 | M114: =IF(INTRO!$E$38="Endémique", IF($H114>0, IF($H114=4,"Inconnu", IF($H114=99,"Interrompu", $D114)), 0),"Non requis") -> 0 | N114: =IF(INTRO!$E$40="Endémique", IF($I114>0, IF($I114=4,"Inconnu",IF($I114=99,"Interrompu", $D114)), 0),"Non requis") -> Inconnu | O114: =IF(INTRO!$E$42="Endémique", IF(AND($J114>1,$J114<5), IF($J114=4, "Inconnu", E114+F114), 0),"Non requis") -> 0 | P114: =IF(INTRO!$E$44="Endémique", IF(AND($K114>0,$K114<5), IF($K114=4,"Inconnu", IF($K114=1, $F114*0.33, IF($K114=2, $F114*0.5+$G114*0.2, SUM(F114:G114)))), 0),"Non requis") -> 16957.38 | Q114: 0 | R114: 0 | S114: 0 | T114: 0 | W114: 14254 | X114: Lita | Y114: TRUE | Z114: 0.0001163362295 | AA114: 146815.8292 | AC114: ='MDA1'!M114 -> 0 | AD114: ='MDA4'!U114 -> 0 | AE114: ='MDA3'!Q114 -> 0 | AF114: ='T1'!O114 -> 0 | AG114: ='T2'!M114 -> 0 | AH114: =T3_R1!N114 -> 0
A115: =IF(INTRO!$E$34<>0,INTRO!$E$34,"") -> DRC | B115: ITURI | C115: Logo | D115: 115847 | E115: =IF(INTRO!$E$48="","",ROUND($D115*INTRO!$E$48,0)) -> 19694 | F115: =IF(INTRO!$E$49="","",ROUND($D115*INTRO!$E$49,0)) -> 40546 | G115: =IF(INTRO!$E$50="","",ROUND($D115*INTRO!$E$50,0)) -> 53290 | H115: 0 | I115: 4 | J115: 1 | K115: 1 | L115: 0 | M115: =IF(INTRO!$E$38="Endémique", IF($H115>0, IF($H115=4,"Inconnu", IF($H115=99,"Interrompu", $D115)), 0),"Non requis") -> 0 | N115: =IF(INTRO!$E$40="Endémique", IF($I115>0, IF($I115=4,"Inconnu",IF($I115=99,"Interrompu", $D115)), 0),"Non requis") -> Inconnu | O115: =IF(INTRO!$E$42="Endémique", IF(AND($J115>1,$J115<5), IF($J115=4, "Inconnu", E115+F115), 0),"Non requis") -> 0 | P115: =IF(INTRO!$E$44="Endémique", IF(AND($K115>0,$K115<5), IF($K115=4,"Inconnu", IF($K115=1, $F115*0.33, IF($K115=2, $F115*0.5+$G115*0.2, SUM(F115:G115)))), 0),"Non requis") -> 13380.18 | Q115: 0 | R115: 0 | S115: 0 | T115: 0 | U115: T2 (PZQ) | W115: 14255 | X115: Logo | Y115: TRUE | Z115: 0.0002148148923 | AA115: 115847.2489 | AC115: ='MDA1'!M115 -> 0 | AD115: ='MDA4'!U115 -> 0 | AE115: ='MDA3'!Q115 -> 0 | AF115: ='T1'!O115 -> 0 | AG115: ='T2'!M115 -> 0 | AH115: =T3_R1!N115 -> 0
A116: =IF(INTRO!$E$34<>0,INTRO!$E$34,"") -> DRC | B116: ITURI | C116: Lolwa | D116: 75443 | E116: =IF(INTRO!$E$48="","",ROUND($D116*INTRO!$E$48,0)) -> 12825 | F116: =IF(INTRO!$E$49="","",ROUND($D116*INTRO!$E$49,0)) -> 26405 | G116: =IF(INTRO!$E$50="","",ROUND($D116*INTRO!$E$50,0)) -> 34704 | H116: 1 | I116: 1 | J116: 1 | K116: 2 | L116: 1 | M116: =IF(INTRO!$E$38="Endémique", IF($H116>0, IF($H116=4,"Inconnu", IF($H116=99,"Interrompu", $D116)), 0),"Non requis") -> 75443 | N116: =IF(INTRO!$E$40="Endémique", IF($I116>0, IF($I116=4,"Inconnu",IF($I116=99,"Interrompu", $D116)), 0),"Non requis") -> 75443 | O116: =IF(INTRO!$E$42="Endémique", IF(AND($J116>1,$J116<5), IF($J116=4, "Inconnu", E116+F116), 0),"Non requis") -> 0 | P116: =IF(INTRO!$E$44="Endémique", IF(AND($K116>0,$K116<5), IF($K116=4,"Inconnu", IF($K116=1, $F116*0.33, IF($K116=2, $F116*0.5+$G116*0.2, SUM(F116:G116)))), 0),"Non requis") -> 20143.3 | Q116: 1 | R116: 1 | S116: 0 | T116: 0 | U116: MDA1 (IVM+ALB) | W116: 13992 | X116: Lolwa | Y116: TRUE | Z116: 14.24023771 | AA116: 66038.9032 | AC116: ='MDA1'!M116 -> 57342 | AD116: ='MDA4'!U116 -> 0 | AE116: ='MDA3'!Q116 -> 0 | AF116: ='T1'!O116 -> 0 | AG116: ='T2'!M116 -> 0 | AH116: =T3_R1!N116 -> 0
A117: =IF(INTRO!$E$34<>0,INTRO!$E$34,"") -> DRC | B117: ITURI | C117: Mahagi | D117: 196188 | E117: =IF(INTRO!$E$48="","",ROUND($D117*INTRO!$E$48,0)) -> 33352 | F117: =IF(INTRO!$E$49="","",ROUND($D117*INTRO!$E$49,0)) -> 68666 | G117: =IF(INTRO!$E$50="","",ROUND($D117*INTRO!$E$50,0)) -> 90246 | H117: 0 | I117: 4 | J117: 1 | K117: 1 | L117: 0 | M117: =IF(INTRO!$E$38="Endémique", IF($H117>0, IF($H117=4,"Inconnu", IF($H117=99,"Interrompu", $D117)), 0),"Non requis") -> 0 | N117: =IF(INTRO!$E$40="Endémique", IF($I117>0, IF($I117=4,"Inconnu",IF($I117=99,"Interrompu", $D117)), 0),"Non requis") -> Inconnu | O117: =IF(INTRO!$E$42="Endémique", IF(AND($J117>1,$J117<5), IF($J117=4, "Inconnu", E117+F117), 0),"Non requis") -> 0 | P117: =IF(INTRO!$E$44="Endémique", IF(AND($K117>0,$K117<5), IF($K117=4,"Inconnu", IF($K117=1, $F117*0.33, IF($K117=2, $F117*0.5+$G117*0.2, SUM(F117:G117)))), 0),"Non requis") -> 22659.78 | Q117: 0 | R117: 0 | S117: 0 | T117: 0 | W117: 14258 | X117: Mahagi | Y117: TRUE | Z117: 3.364120239e-06 | AA117: 196187.9934 | AC117: ='MDA1'!M117 -> 0 | AD117: ='MDA4'!U117 -> 0 | AE117: ='MDA3'!Q117 -> 0 | AF117: ='T1'!O117 -> 0 | AG117: ='T2'!M117 -> 0 | AH117: =T3_R1!N117 -> 0
A118: =IF(INTRO!$E$34<>0,INTRO!$E$34,"") -> DRC | B118: ITURI | C118: Mambasa | D118: 115063 | E118: =IF(INTRO!$E$48="","",ROUND($D118*INTRO!$E$48,0)) -> 19561 | F118: =IF(INTRO!$E$49="","",ROUND($D118*INTRO!$E$49,0)) -> 40272 | G118: =IF(INTRO!$E$50="","",ROUND($D118*INTRO!$E$50,0)) -> 52929 | H118: 1 | I118: 1 | J118: 1 | K118: 2 | L118: 1 | M118: =IF(INTRO!$E$38="Endémique", IF($H118>0, IF($H118=4,"Inconnu", IF($H118=99,"Interrompu", $D118)), 0),"Non requis") -> 115063 | N118: =IF(INTRO!$E$40="Endémique", IF($I118>0, IF($I118=4,"Inconnu",IF($I118=99,"Interrompu", $D118)), 0),"Non requis") -> 115063 | O118: =IF(INTRO!$E$42="Endémique", IF(AND($J118>1,$J118<5), IF($J118=4, "Inconnu", E118+F118), 0),"Non requis") -> 0 | P118: =IF(INTRO!$E$44="Endémique", IF(AND($K118>0,$K118<5), IF($K118=4,"Inconnu", IF($K118=1, $F118*0.33, IF($K118=2, $F118*0.5+$G118*0.2, SUM(F118:G118)))), 0),"Non requis") -> 30721.8 | Q118: 1 | R118: 1 | S118: 0 | T118: 0 | U118: MDA1 (IVM+ALB) | W118: 14261 | X118: Mambasa | Y118: TRUE | Z118: 0.9525820836 | AA118: 116169.6109 | AC118: ='MDA1'!M118 -> 93117 | AD118: ='MDA4'!U118 -> 0 | AE118: ='MDA3'!Q118 -> 0 | AF118: ='T1'!O118 -> 0 | AG118: ='T2'!M118 -> 0 | AH118: =T3_R1!N118 -> 0
A119: =IF(INTRO!$E$34<>0,INTRO!$E$34,"") -> DRC | B119: ITURI | C119: Mandima | D119: 153056 | E119: =IF(INTRO!$E$48="","",ROUND($D119*INTRO!$E$48,0)) -> 26020 | F119: =IF(INTRO!$E$49="","",ROUND($D119*INTRO!$E$49,0)) -> 53570 | G119: =IF(INTRO!$E$50="","",ROUND($D119*INTRO!$E$50,0)) -> 70406 | H119: 1 | I119: 1 | J119: 2 | K119: 1 | L119: 1 | M119: =IF(INTRO!$E$38="Endémique", IF($H119>0, IF($H119=4,"Inconnu", IF($H119=99,"Interrompu", $D119)), 0),"Non requis") -> 153056 | N119: =IF(INTRO!$E$40="Endémique", IF($I119>0, IF($I119=4,"Inconnu",IF($I119=99,"Interrompu", $D119)), 0),"Non requis") -> 153056 | O119: =IF(INTRO!$E$42="Endémique", IF(AND($J119>1,$J119<5), IF($J119=4, "Inconnu", E119+F119), 0),"Non requis") -> 79590 | P119: =IF(INTRO!$E$44="Endémique", IF(AND($K119>0,$K119<5), IF($K119=4,"Inconnu", IF($K119=1, $F119*0.33, IF($K119=2, $F119*0.5+$G119*0.2, SUM(F119:G119)))), 0),"Non requis") -> 17678.1 | Q119: 1 | R119: 1 | S119: 1 | T119: 1 | U119: MDA1 (IVM+ALB) | V119: T2 (PZQ) | W119: 14262 | X119: Mandima | Y119: TRUE | Z119: 9.047377416 | AA119: 168281.0189 | AC119: ='MDA1'!M119 -> 117414 | AD119: ='MDA4'!U119 -> 0 | AE119: ='MDA3'!Q119 -> 0 | AF119: ='T1'!O119 -> 0 | AG119: ='T2'!M119 -> 39700 | AH119: =T3_R1!N119 -> 0
A120: =IF(INTRO!$E$34<>0,INTRO!$E$34,"") -> DRC | B120: ITURI | C120: Mangala | D120: 86735 | E120: =IF(INTRO!$E$48="","",ROUND($D120*INTRO!$E$48,0)) -> 14745 | F120: =IF(INTRO!$E$49="","",ROUND($D120*INTRO!$E$49,0)) -> 30357 | G120: =IF(INTRO!$E$50="","",ROUND($D120*INTRO!$E$50,0)) -> 39898 | H120: 1 | I120: 4 | J120: 2 | K120: 1 | L120: 0 | M120: =IF(INTRO!$E$38="Endémique", IF($H120>0, IF($H120=4,"Inconnu", IF($H120=99,"Interrompu", $D120)), 0),"Non requis") -> 86735 | N120: =IF(INTRO!$E$40="Endémique", IF($I120>0, IF($I120=4,"Inconnu",IF($I120=99,"Interrompu", $D120)), 0),"Non requis") -> Inconnu | O120: =IF(INTRO!$E$42="Endémique", IF(AND($J120>1,$J120<5), IF($J120=4, "Inconnu", E120+F120), 0),"Non requis") -> 45102 | P120: =IF(INTRO!$E$44="Endémique", IF(AND($K120>0,$K120<5), IF($K120=4,"Inconnu", IF($K120=1, $F120*0.33, IF($K120=2, $F120*0.5+$G120*0.2, SUM(F120:G120)))), 0),"Non requis") -> 10017.81 | Q120: 1 | R120: 0 | S120: 1 | T120: 0 | U120: MDA1 (IVM+ALB) | W120: 14263 | X120: Mangala | Y120: TRUE | Z120: 10.56114629 | AA120: 96976.869 | AC120: ='MDA1'!M120 -> 70022 | AD120: ='MDA4'!U120 -> 0 | AE120: ='MDA3'!Q120 -> 0 | AF120: ='T1'!O120 -> 0 | AG120: ='T2'!M120 -> 0 | AH120: =T3_R1!N120 -> 0
A121: =IF(INTRO!$E$34<>0,INTRO!$E$34,"") -> DRC | B121: ITURI | C121: Mongbwalu | D121: 164389 | E121: =IF(INTRO!$E$48="","",ROUND($D121*INTRO!$E$48,0)) -> 27946 | F121: =IF(INTRO!$E$49="","",ROUND($D121*INTRO!$E$49,0)) -> 57536 | G121: =IF(INTRO!$E$50="","",ROUND($D121*INTRO!$E$50,0)) -> 75619 | H121: 0 | I121: 1 | J121: 2 | K121: 2 | L121: 1 | M121: =IF(INTRO!$E$38="Endémique", IF($H121>0, IF($H121=4,"Inconnu", IF($H121=99,"Interrompu", $D121)), 0),"Non requis") -> 0 | N121: =IF(INTRO!$E$40="Endémique", IF($I121>0, IF($I121=4,"Inconnu",IF($I121=99,"Interrompu", $D121)), 0),"Non requis") -> 164389 | O121: =IF(INTRO!$E$42="Endémique", IF(AND($J121>1,$J121<5), IF($J121=4, "Inconnu", E121+F121), 0),"Non requis") -> 85482 | P121: =IF(INTRO!$E$44="Endémique", IF(AND($K121>0,$K121<5), IF($K121=4,"Inconnu", IF($K121=1, $F121*0.33, IF($K121=2, $F121*0.5+$G121*0.2, SUM(F121:G121)))), 0),"Non requis") -> 43891.8 | Q121: 0 | R121: 1 | S121: 1 | T121: 0 | U121: MDA3 (IVM) | V121: T3 (ALB/MBD) | W121: 14267 | X121: Mongbwalu | Y121: TRUE | Z121: 11.62269944 | AA121: 147272.0162 | AC121: ='MDA1'!M121 -> 0 | AD121: ='MDA4'!U121 -> 0 | AE121: ='MDA3'!Q121 -> 132219 | AF121: ='T1'!O121 -> 0 | AG121: ='T2'!M121 -> 0 | AH121: =T3_R1!N121 -> 49314
A122: =IF(INTRO!$E$34<>0,INTRO!$E$34,"") -> DRC | B122: ITURI | C122: Niania | D122: 80176 | E122: =IF(INTRO!$E$48="","",ROUND($D122*INTRO!$E$48,0)) -> 13630 | F122: =IF(INTRO!$E$49="","",ROUND($D122*INTRO!$E$49,0)) -> 28062 | G122: =IF(INTRO!$E$50="","",ROUND($D122*INTRO!$E$50,0)) -> 36881 | H122: 1 | I122: 1 | J122: 1 | K122: 2 | L122: 1 | M122: =IF(INTRO!$E$38="Endémique", IF($H122>0, IF($H122=4,"Inconnu", IF($H122=99,"Interrompu", $D122)), 0),"Non requis") -> 80176 | N122: =IF(INTRO!$E$40="Endémique", IF($I122>0, IF($I122=4,"Inconnu",IF($I122=99,"Interrompu", $D122)), 0),"Non requis") -> 80176 | O122: =IF(INTRO!$E$42="Endémique", IF(AND($J122>1,$J122<5), IF($J122=4, "Inconnu", E122+F122), 0),"Non requis") -> 0 | P122: =IF(INTRO!$E$44="Endémique", IF(AND($K122>0,$K122<5), IF($K122=4,"Inconnu", IF($K122=1, $F122*0.33, IF($K122=2, $F122*0.5+$G122*0.2, SUM(F122:G122)))), 0),"Non requis") -> 21407.2 | Q122: 1 | R122: 1 | S122: 0 | T122: 0 | U122: MDA1 (IVM+ALB) | W122: 14269 | X122: Niania | Y122: TRUE | Z122: 4.39491879 | AA122: 76800.6728 | AC122: ='MDA1'!M122 -> 64531 | AD122: ='MDA4'!U122 -> 0 | AE122: ='MDA3'!Q122 -> 0 | AF122: ='T1'!O122 -> 0 | AG122: ='T2'!M122 -> 0 | AH122: =T3_R1!N122 -> 0
A123: =IF(INTRO!$E$34<>0,INTRO!$E$34,"") -> DRC | B123: ITURI | C123: Nizi | D123: 167335 | E123: =IF(INTRO!$E$48="","",ROUND($D123*INTRO!$E$48,0)) -> 28447 | F123: =IF(INTRO!$E$49="","",ROUND($D123*INTRO!$E$49,0)) -> 58567 | G123: =IF(INTRO!$E$50="","",ROUND($D123*INTRO!$E$50,0)) -> 76974 | H123: 1 | I123: 4 | J123: 2 | K123: 1 | L123: 0 | M123: =IF(INTRO!$E$38="Endémique", IF($H123>0, IF($H123=4,"Inconnu", IF($H123=99,"Interrompu", $D123)), 0),"Non requis") -> 167335 | N123: =IF(INTRO!$E$40="Endémique", IF($I123>0, IF($I123=4,"Inconnu",IF($I123=99,"Interrompu", $D123)), 0),"Non requis") -> Inconnu | O123: =IF(INTRO!$E$42="Endémique", IF(AND($J123>1,$J123<5), IF($J123=4, "Inconnu", E123+F123), 0),"Non requis") -> 87014 | P123: =IF(INTRO!$E$44="Endémique", IF(AND($K123>0,$K123<5), IF($K123=4,"Inconnu", IF($K123=1, $F123*0.33, IF($K123=2, $F123*0.5+$G123*0.2, SUM(F123:G123)))), 0),"Non requis") -> 19327.11 | Q123: 1 | R123: 0 | S123: 1 | T123: 0 | U123: MDA1 (IVM+ALB) | W123: 14270 | X123: Nizi | Y123: TRUE | Z123: 70.46654683 | AA123: 98162.9552 | AC123: ='MDA1'!M123 -> 140148 | AD123: ='MDA4'!U123 -> 0 | AE123: ='MDA3'!Q123 -> 0 | AF123: ='T1'!O123 -> 0 | AG123: ='T2'!M123 -> 0 | AH123: =T3_R1!N123 -> 0
A124: =IF(INTRO!$E$34<>0,INTRO!$E$34,"") -> DRC | B124: ITURI | C124: Nyankunde | D124: 110890 | E124: =IF(INTRO!$E$48="","",ROUND($D124*INTRO!$E$48,0)) -> 18851 | F124: =IF(INTRO!$E$49="","",ROUND($D124*INTRO!$E$49,0)) -> 38812 | G124: =IF(INTRO!$E$50="","",ROUND($D124*INTRO!$E$50,0)) -> 51009 | H124: 1 | I124: 1 | J124: 1 | K124: 2 | L124: 1 | M124: =IF(INTRO!$E$38="Endémique", IF($H124>0, IF($H124=4,"Inconnu", IF($H124=99,"Interrompu", $D124)), 0),"Non requis") -> 110890 | N124: =IF(INTRO!$E$40="Endémique", IF($I124>0, IF($I124=4,"Inconnu",IF($I124=99,"Interrompu", $D124)), 0),"Non requis") -> 110890 | O124: =IF(INTRO!$E$42="Endémique", IF(AND($J124>1,$J124<5), IF($J124=4, "Inconnu", E124+F124), 0),"Non requis") -> 0 | P124: =IF(INTRO!$E$44="Endémique", IF(AND($K124>0,$K124<5), IF($K124=4,"Inconnu", IF($K124=1, $F124*0.33, IF($K124=2, $F124*0.5+$G124*0.2, SUM(F124:G124)))), 0),"Non requis") -> 29607.8 | Q124: 1 | R124: 1 | S124: 0 | T124: 0 | U124: MDA1 (IVM+ALB) | W124: 14271 | X124: Nyankunde | Y124: TRUE | Z124: 2.633618628 | AA124: 108044.5194 | AC124: ='MDA1'!M124 -> 90063 | AD124: ='MDA4'!U124 -> 0 | AE124: ='MDA3'!Q124 -> 0 | AF124: ='T1'!O124 -> 0 | AG124: ='T2'!M124 -> 0 | AH124: =T3_R1!N124 -> 0
A125: =IF(INTRO!$E$34<>0,INTRO!$E$34,"") -> DRC | B125: ITURI | C125: Nyarambe | D125: 240391 | E125: =IF(INTRO!$E$48="","",ROUND($D125*INTRO!$E$48,0)) -> 40866 | F125: =IF(INTRO!$E$49="","",ROUND($D125*INTRO!$E$49,0)) -> 84137 | G125: =IF(INTRO!$E$50="","",ROUND($D125*INTRO!$E$50,0)) -> 110580 | H125: 1 | I125: 4 | J125: 0 | K125: 3 | L125: 4 | M125: =IF(INTRO!$E$38="Endémique", IF($H125>0, IF($H125=4,"Inconnu", IF($H125=99,"Interrompu", $D125)), 0),"Non requis") -> 240391 | N125: =IF(INTRO!$E$40="Endémique", IF($I125>0, IF($I125=4,"Inconnu",IF($I125=99,"Interrompu", $D125)), 0),"Non requis") -> Inconnu | O125: =IF(INTRO!$E$42="Endémique", IF(AND($J125>1,$J125<5), IF($J125=4, "Inconnu", E125+F125), 0),"Non requis") -> 0 | P125: =IF(INTRO!$E$44="Endémique", IF(AND($K125>0,$K125<5), IF($K125=4,"Inconnu", IF($K125=1, $F125*0.33, IF($K125=2, $F125*0.5+$G125*0.2, SUM(F125:G125)))), 0),"Non requis") -> 194717 | Q125: 1 | R125: 0 | S125: 0 | T125: 1 | U125: MDA1 (IVM+ALB) | V125: T2 (PZQ) | W125: 14272 | X125: Nyarambe | Y125: TRUE | Z125: 1.140246117 | AA125: 237680.8533 | AC125: ='MDA1'!M125 -> 192240 | AD125: ='MDA4'!U125 -> 0 | AE125: ='MDA3'!Q125 -> 0 | AF125: ='T1'!O125 -> 0 | AG125: ='T2'!M125 -> 74966 | AH125: =T3_R1!N125 -> 0
A126: =IF(INTRO!$E$34<>0,INTRO!$E$34,"") -> DRC | B126: ITURI | C126: Rethy | D126: 224359 | E126: =IF(INTRO!$E$48="","",ROUND($D126*INTRO!$E$48,0)) -> 38141 | F126: =IF(INTRO!$E$49="","",ROUND($D126*INTRO!$E$49,0)) -> 78526 | G126: =IF(INTRO!$E$50="","",ROUND($D126*INTRO!$E$50,0)) -> 103205 | H126: 1 | I126: 1 | J126: 1 | K126: 1 | L126: 1 | M126: =IF(INTRO!$E$38="Endémique", IF($H126>0, IF($H126=4,"Inconnu", IF($H126=99,"Interrompu", $D126)), 0),"Non requis") -> 224359 | N126: =IF(INTRO!$E$40="Endémique", IF($I126>0, IF($I126=4,"Inconnu",IF($I126=99,"Interrompu", $D126)), 0),"Non requis") -> 224359 | O126: =IF(INTRO!$E$42="Endémique", IF(AND($J126>1,$J126<5), IF($J126=4, "Inconnu", E126+F126), 0),"Non requis") -> 0 | P126: =IF(INTRO!$E$44="Endémique", IF(AND($K126>0,$K126<5), IF($K126=4,"Inconnu", IF($K126=1, $F126*0.33, IF($K126=2, $F126*0.5+$G126*0.2, SUM(F126:G126)))), 0),"Non requis") -> 25913.58 | Q126: 1 | R126: 1 | S126: 0 | T126: 1 | U126: MDA1 (IVM+ALB) | V126: T2 (PZQ) | W126: 14277 | X126: Rethy | Y126: TRUE | Z126: 3.347786578 | AA126: 232130.2245 | AC126: ='MDA1'!M126 -> 180321 | AD126: ='MDA4'!U126 -> 0 | AE126: ='MDA3'!Q126 -> 0 | AF126: ='T1'!O126 -> 0 | AG126: ='T2'!M126 -> 53347 | AH126: =T3_R1!N126 -> 0
A127: =IF(INTRO!$E$34<>0,INTRO!$E$34,"") -> DRC | B127: ITURI | C127: Rimba | D127: 246679 | E127: =IF(INTRO!$E$48="","",ROUND($D127*INTRO!$E$48,0)) -> 41935 | F127: =IF(INTRO!$E$49="","",ROUND($D127*INTRO!$E$49,0)) -> 86338 | G127: =IF(INTRO!$E$50="","",ROUND($D127*INTRO!$E$50,0)) -> 113472 | H127: 0 | I127: 1 | J127: 1 | K127: 1 | L127: 1 | M127: =IF(INTRO!$E$38="Endémique", IF($H127>0, IF($H127=4,"Inconnu", IF($H127=99,"Interrompu", $D127)), 0),"Non requis") -> 0 | N127: =IF(INTRO!$E$40="Endémique", IF($I127>0, IF($I127=4,"Inconnu",IF($I127=99,"Interrompu", $D127)), 0),"Non requis") -> 246679 | O127: =IF(INTRO!$E$42="Endémique", IF(AND($J127>1,$J127<5), IF($J127=4, "Inconnu", E127+F127), 0),"Non requis") -> 0 | P127: =IF(INTRO!$E$44="Endémique", IF(AND($K127>0,$K127<5), IF($K127=4,"Inconnu", IF($K127=1, $F127*0.33, IF($K127=2, $F127*0.5+$G127*0.2, SUM(F127:G127)))), 0),"Non requis") -> 28491.54 | Q127: 0 | R127: 1 | S127: 0 | T127: 1 | U127: MDA3 (IVM) | V127: T2 (PZQ) | W127: 14278 | X127: Rimba | Y127: TRUE | Z127: 0.7485631022 | AA127: 244846.1719 | AC127: ='MDA1'!M127 -> 0 | AD127: ='MDA4'!U127 -> 0 | AE127: ='MDA3'!Q127 -> 197935 | AF127: ='T1'!O127 -> 0 | AG127: ='T2'!M127 -> 33837 | AH127: =T3_R1!N127 -> 0
A128: =IF(INTRO!$E$34<>0,INTRO!$E$34,"") -> DRC | B128: ITURI | C128: Rwampara | D128: 159191 | E128: =IF(INTRO!$E$48="","",ROUND($D128*INTRO!$E$48,0)) -> 27062 | F128: =IF(INTRO!$E$49="","",ROUND($D128*INTRO!$E$49,0)) -> 55717 | G128: =IF(INTRO!$E$50="","",ROUND($D128*INTRO!$E$50,0)) -> 73228 | H128: 1 | I128: 1 | J128: 1 | K128: 2 | L128: 1 | M128: =IF(INTRO!$E$38="Endémique", IF($H128>0, IF($H128=4,"Inconnu", IF($H128=99,"Interrompu", $D128)), 0),"Non requis") -> 159191 | N128: =IF(INTRO!$E$40="Endémique", IF($I128>0, IF($I128=4,"Inconnu",IF($I128=99,"Interrompu", $D128)), 0),"Non requis") -> 159191 | O128: =IF(INTRO!$E$42="Endémique", IF(AND($J128>1,$J128<5), IF($J128=4, "Inconnu", E128+F128), 0),"Non requis") -> 0 | P128: =IF(INTRO!$E$44="Endémique", IF(AND($K128>0,$K128<5), IF($K128=4,"Inconnu", IF($K128=1, $F128*0.33, IF($K128=2, $F128*0.5+$G128*0.2, SUM(F128:G128)))), 0),"Non requis") -> 42504.1 | Q128: 1 | R128: 1 | S128: 0 | T128: 0 | U128: MDA1 (IVM+ALB) | W128: 14280 | X128: Rwampara | Y128: TRUE | Z128: 4.259797231 | AA128: 152686.8498 | AC128: ='MDA1'!M128 -> 131022 | AD128: ='MDA4'!U128 -> 0 | AE128: ='MDA3'!Q128 -> 0 | AF128: ='T1'!O128 -> 0 | AG128: ='T2'!M128 -> 0 | AH128: =T3_R1!N128 -> 0
A129: =IF(INTRO!$E$34<>0,INTRO!$E$34,"") -> DRC | B129: ITURI | C129: Tchomia | D129: 95958 | E129: =IF(INTRO!$E$48="","",ROUND($D129*INTRO!$E$48,0)) -> 16313 | F129: =IF(INTRO!$E$49="","",ROUND($D129*INTRO!$E$49,0)) -> 33585 | G129: =IF(INTRO!$E$50="","",ROUND($D129*INTRO!$E$50,0)) -> 44141 | H129: 1 | I129: 4 | J129: 1 | K129: 3 | L129: 1 | M129: =IF(INTRO!$E$38="Endémique", IF($H129>0, IF($H129=4,"Inconnu", IF($H129=99,"Interrompu", $D129)), 0),"Non requis") -> 95958 | N129: =IF(INTRO!$E$40="Endémique", IF($I129>0, IF($I129=4,"Inconnu",IF($I129=99,"Interrompu", $D129)), 0),"Non requis") -> Inconnu | O129: =IF(INTRO!$E$42="Endémique", IF(AND($J129>1,$J129<5), IF($J129=4, "Inconnu", E129+F129), 0),"Non requis") -> 0 | P129: =IF(INTRO!$E$44="Endémique", IF(AND($K129>0,$K129<5), IF($K129=4,"Inconnu", IF($K129=1, $F129*0.33, IF($K129=2, $F129*0.5+$G129*0.2, SUM(F129:G129)))), 0),"Non requis") -> 77726 | Q129: 1 | R129: 0 | S129: 0 | T129: 1 | U129: MDA1 (IVM+ALB) | V129: T2 (PZQ) | W129: 14281 | X129: Tchomia | Y129: TRUE | Z129: 30.07034649 | AA129: 73773.9251 | AC129: ='MDA1'!M129 -> 72217 | AD129: ='MDA4'!U129 -> 0 | AE129: ='MDA3'!Q129 -> 0 | AF129: ='T1'!O129 -> 0 | AG129: ='T2'!M129 -> 23749 | AH129: =T3_R1!N129 -> 0
A130: =IF(INTRO!$E$34<>0,INTRO!$E$34,"") -> DRC | B130: Kasai | C130: Banga Lubaka | D130: 314386 | E130: =IF(INTRO!$E$48="","",ROUND($D130*INTRO!$E$48,0)) -> 53446 | F130: =IF(INTRO!$E$49="","",ROUND($D130*INTRO!$E$49,0)) -> 110035 | G130: =IF(INTRO!$E$50="","",ROUND($D130*INTRO!$E$50,0)) -> 144618 | H130: 1 | I130: 1 | J130: 3 | K130: 0 | L130: 1 | M130: =IF(INTRO!$E$38="Endémique", IF($H130>0, IF($H130=4,"Inconnu", IF($H130=99,"Interrompu", $D130)), 0),"Non requis") -> 314386 | N130: =IF(INTRO!$E$40="Endémique", IF($I130>0, IF($I130=4,"Inconnu",IF($I130=99,"Interrompu", $D130)), 0),"Non requis") -> 314386 | O130: =IF(INTRO!$E$42="Endémique", IF(AND($J130>1,$J130<5), IF($J130=4, "Inconnu", E130+F130), 0),"Non requis") -> 163481 | P130: =IF(INTRO!$E$44="Endémique", IF(AND($K130>0,$K130<5), IF($K130=4,"Inconnu", IF($K130=1, $F130*0.33, IF($K130=2, $F130*0.5+$G130*0.2, SUM(F130:G130)))), 0),"Non requis") -> 0 | Q130: 1 | R130: 1 | S130: 1 | T130: 0 | U130: MDA1 (IVM+ALB) | W130: 13968 | X130: Banga Lubaka | Y130: TRUE | Z130: 44.72997098 | AA130: 217222.4577 | AC130: ='MDA1'!M130 -> 258312 | AD130: ='MDA4'!U130 -> 0 | AE130: ='MDA3'!Q130 -> 0 | AF130: ='T1'!O130 -> 0 | AG130: ='T2'!M130 -> 0 | AH130: =T3_R1!N130 -> 0
A131: =IF(INTRO!$E$34<>0,INTRO!$E$34,"") -> DRC | B131: Kasai | C131: Bulape | D131: 198890 | E131: =IF(INTRO!$E$48="","",ROUND($D131*INTRO!$E$48,0)) -> 33811 | F131: =IF(INTRO!$E$49="","",ROUND($D131*INTRO!$E$49,0)) -> 69612 | G131: =IF(INTRO!$E$50="","",ROUND($D131*INTRO!$E$50,0)) -> 91489 | H131: 0 | I131: 1 | J131: 2 | K131: 0 | L131: 1 | M131: =IF(INTRO!$E$38="Endémique", IF($H131>0, IF($H131=4,"Inconnu", IF($H131=99,"Interrompu", $D131)), 0),"Non requis") -> 0 | N131: =IF(INTRO!$E$40="Endémique", IF($I131>0, IF($I131=4,"Inconnu",IF($I131=99,"Interrompu", $D131)), 0),"Non requis") -> 198890 | O131: =IF(INTRO!$E$42="Endémique", IF(AND($J131>1,$J131<5), IF($J131=4, "Inconnu", E131+F131), 0),"Non requis") -> 103423 | P131: =IF(INTRO!$E$44="Endémique", IF(AND($K131>0,$K131<5), IF($K131=4,"Inconnu", IF($K131=1, $F131*0.33, IF($K131=2, $F131*0.5+$G131*0.2, SUM(F131:G131)))), 0),"Non requis") -> 0 | Q131: 0 | R131: 1 | S131: 1 | T131: 0 | U131: MDA3 (IVM) | V131: T3 (ALB/MBD) | W131: 13972 | X131: Bulape | Y131: TRUE | Z131: 5.314492626e-05 | AA131: 198890.1057 | AC131: ='MDA1'!M131 -> 0 | AD131: ='MDA4'!U131 -> 0 | AE131: ='MDA3'!Q131 -> 145688 | AF131: ='T1'!O131 -> 0 | AG131: ='T2'!M131 -> 0 | AH131: =T3_R1!N131 -> 60000
A132: =IF(INTRO!$E$34<>0,INTRO!$E$34,"") -> DRC | B132: Kasai | C132: Dekese | D132: 218395 | E132: =IF(INTRO!$E$48="","",ROUND($D132*INTRO!$E$48,0)) -> 37127 | F132: =IF(INTRO!$E$49="","",ROUND($D132*INTRO!$E$49,0)) -> 76438 | G132: =IF(INTRO!$E$50="","",ROUND($D132*INTRO!$E$50,0)) -> 100462 | H132: 0 | I132: 1 | J132: 3 | K132: 0 | L132: 1 | M132: =IF(INTRO!$E$38="Endémique", IF($H132>0, IF($H132=4,"Inconnu", IF($H132=99,"Interrompu", $D132)), 0),"Non requis") -> 0 | N132: =IF(INTRO!$E$40="Endémique", IF($I132>0, IF($I132=4,"Inconnu",IF($I132=99,"Interrompu", $D132)), 0),"Non requis") -> 218395 | O132: =IF(INTRO!$E$42="Endémique", IF(AND($J132>1,$J132<5), IF($J132=4, "Inconnu", E132+F132), 0),"Non requis") -> 113565 | P132: =IF(INTRO!$E$44="Endémique", IF(AND($K132>0,$K132<5), IF($K132=4,"Inconnu", IF($K132=1, $F132*0.33, IF($K132=2, $F132*0.5+$G132*0.2, SUM(F132:G132)))), 0),"Non requis") -> 0 | Q132: 0 | R132: 1 | S132: 1 | T132: 0 | U132: MDA3 (IVM) | V132: T3 (ALB/MBD) | W132: 13973 | X132: Dekese | Y132: TRUE | Z132: 9.207161883 | AA132: 240542.1006 | AC132: ='MDA1'!M132 -> 0 | AD132: ='MDA4'!U132 -> 0 | AE132: ='MDA3'!Q132 -> 179486 | AF132: ='T1'!O132 -> 0 | AG132: ='T2'!M132 -> 0 | AH132: =T3_R1!N132 -> 64101
A133: =IF(INTRO!$E$34<>0,INTRO!$E$34,"") -> DRC | B133: Kasai | C133: Ilebo | D133: 215600 | E133: =IF(INTRO!$E$48="","",ROUND($D133*INTRO!$E$48,0)) -> 36652 | F133: =IF(INTRO!$E$49="","",ROUND($D133*INTRO!$E$49,0)) -> 75460 | G133: =IF(INTRO!$E$50="","",ROUND($D133*INTRO!$E$50,0)) -> 99176 | H133: 1 | I133: 1 | J133: 2 | K133: 0 | L133: 4 | M133: =IF(INTRO!$E$38="Endémique", IF($H133>0, IF($H133=4,"Inconnu", IF($H133=99,"Interrompu", $D133)), 0),"Non requis") -> 215600 | N133: =IF(INTRO!$E$40="Endémique", IF($I133>0, IF($I133=4,"Inconnu",IF($I133=99,"Interrompu", $D133)), 0),"Non requis") -> 215600 | O133: =IF(INTRO!$E$42="Endémique", IF(AND($J133>1,$J133<5), IF($J133=4, "Inconnu", E133+F133), 0),"Non requis") -> 112112 | P133: =IF(INTRO!$E$44="Endémique", IF(AND($K133>0,$K133<5), IF($K133=4,"Inconnu", IF($K133=1, $F133*0.33, IF($K133=2, $F133*0.5+$G133*0.2, SUM(F133:G133)))), 0),"Non requis") -> 0 | Q133: 1 | R133: 1 | S133: 1 | T133: 0 | U133: MDA1 (IVM+ALB) | W133: 13976 | X133: Ilebo | Y133: TRUE | Z133: 0.2925728539 | AA133: 216232.638 | AC133: ='MDA1'!M133 -> 175645 | AD133: ='MDA4'!U133 -> 0 | AE133: ='MDA3'!Q133 -> 0 | AF133: ='T1'!O133 -> 0 | AG133: ='T2'!M133 -> 0 | AH133: =T3_R1!N133 -> 0
A134: =IF(INTRO!$E$34<>0,INTRO!$E$34,"") -> DRC | B134: Kasai | C134: Kakenge | D134: 201806 | E134: =IF(INTRO!$E$48="","",ROUND($D134*INTRO!$E$48,0)) -> 34307 | F134: =IF(INTRO!$E$49="","",ROUND($D134*INTRO!$E$49,0)) -> 70632 | G134: =IF(INTRO!$E$50="","",ROUND($D134*INTRO!$E$50,0)) -> 92831 | H134: 0 | I134: 1 | J134: 2 | K134: 0 | L134: 1 | M134: =IF(INTRO!$E$38="Endémique", IF($H134>0, IF($H134=4,"Inconnu", IF($H134=99,"Interrompu", $D134)), 0),"Non requis") -> 0 | N134: =IF(INTRO!$E$40="Endémique", IF($I134>0, IF($I134=4,"Inconnu",IF($I134=99,"Interrompu", $D134)), 0),"Non requis") -> 201806 | O134: =IF(INTRO!$E$42="Endémique", IF(AND($J134>1,$J134<5), IF($J134=4, "Inconnu", E134+F134), 0),"Non requis") -> 104939 | P134: =IF(INTRO!$E$44="Endémique", IF(AND($K134>0,$K134<5), IF($K134=4,"Inconnu", IF($K134=1, $F134*0.33, IF($K134=2, $F134*0.5+$G134*0.2, SUM(F134:G134)))), 0),"Non requis") -> 0 | Q134: 0 | R134: 1 | S134: 1 | T134: 0 | U134: MDA3 (IVM) | V134: T3 (ALB/MBD) | W134: 13977 | X134: Kakenge | Y134: TRUE | Z134: 0.2780847252 | AA134: 201246.3646 | AC134: ='MDA1'!M134 -> 0 | AD134: ='MDA4'!U134 -> 0 | AE134: ='MDA3'!Q134 -> 165318 | AF134: ='T1'!O134 -> 0 | AG134: ='T2'!M134 -> 0 | AH134: =T3_R1!N134 -> 64867
A135: =IF(INTRO!$E$34<>0,INTRO!$E$34,"") -> DRC | B135: Kasai | C135: Kalonda | D135: 477947 | E135: =IF(INTRO!$E$48="","",ROUND($D135*INTRO!$E$48,0)) -> 81251 | F135: =IF(INTRO!$E$49="","",ROUND($D135*INTRO!$E$49,0)) -> 167281 | G135: =IF(INTRO!$E$50="","",ROUND($D135*INTRO!$E$50,0)) -> 219856 | H135: 0 | I135: 1 | J135: 1 | K135: 0 | L135: 1 | M135: =IF(INTRO!$E$38="Endémique", IF($H135>0, IF($H135=4,"Inconnu", IF($H135=99,"Interrompu", $D135)), 0),"Non requis") -> 0 | N135: =IF(INTRO!$E$40="Endémique", IF($I135>0, IF($I135=4,"Inconnu",IF($I135=99,"Interrompu", $D135)), 0),"Non requis") -> 477947 | O135: =IF(INTRO!$E$42="Endémique", IF(AND($J135>1,$J135<5), IF($J135=4, "Inconnu", E135+F135), 0),"Non requis") -> 0 | P135: =IF(INTRO!$E$44="Endémique", IF(AND($K135>0,$K135<5), IF($K135=4,"Inconnu", IF($K135=1, $F135*0.33, IF($K135=2, $F135*0.5+$G135*0.2, SUM(F135:G135)))), 0),"Non requis") -> 0 | Q135: 0 | R135: 1 | S135: 0 | T135: 0 | U135: MDA3 (IVM) | W135: 13978 | X135: Kalonda | Y135: TRUE | Z135: 0.7779933434 | AA135: 474257.3097 | AC135: ='MDA1'!M135 -> 0 | AD135: ='MDA4'!U135 -> 0 | AE135: ='MDA3'!Q135 -> 390516 | AF135: ='T1'!O135 -> 0 | AG135: ='T2'!M135 -> 0 | AH135: =T3_R1!N135 -> 0
A136: =IF(INTRO!$E$34<>0,INTRO!$E$34,"") -> DRC | B136: Kasai | C136: Kamonya | D136: 461270 | E136: =IF(INTRO!$E$48="","",ROUND($D136*INTRO!$E$48,0)) -> 78416 | F136: =IF(INTRO!$E$49="","",ROUND($D136*INTRO!$E$49,0)) -> 161445 | G136: =IF(INTRO!$E$50="","",ROUND($D136*INTRO!$E$50,0)) -> 212184 | H136: 1 | I136: 1 | J136: 1 | K136: 0 | L136: 1 | M136: =IF(INTRO!$E$38="Endémique", IF($H136>0, IF($H136=4,"Inconnu", IF($H136=99,"Interrompu", $D136)), 0),"Non requis") -> 461270 | N136: =IF(INTRO!$E$40="Endémique", IF($I136>0, IF($I136=4,"Inconnu",IF($I136=99,"Interrompu", $D136)), 0),"Non requis") -> 461270 | O136: =IF(INTRO!$E$42="Endémique", IF(AND($J136>1,$J136<5), IF($J136=4, "Inconnu", E136+F136), 0),"Non requis") -> 0 | P136: =IF(INTRO!$E$44="Endémique", IF(AND($K136>0,$K136<5), IF($K136=4,"Inconnu", IF($K136=1, $F136*0.33, IF($K136=2, $F136*0.5+$G136*0.2, SUM(F136:G136)))), 0),"Non requis") -> 0 | Q136: 1 | R136: 1 | S136: 0 | T136: 0 | U136: MDA1 (IVM+ALB) | W136: 14340 | X136: Kamonya | Y136: TRUE | Z136: 21.92926249 | AA136: 378309.5137 | AC136: ='MDA1'!M136 -> 374197 | AD136: ='MDA4'!U136 -> 0 | AE136: ='MDA3'!Q136 -> 0 | AF136: ='T1'!O136 -> 0 | AG136: ='T2'!M136 -> 0 | AH136: =T3_R1!N136 -> 0
A137: =IF(INTRO!$E$34<>0,INTRO!$E$34,"") -> DRC | B137: Kasai | C137: Kamwesha | D137: 517399 | E137: =IF(INTRO!$E$48="","",ROUND($D137*INTRO!$E$48,0)) -> 87958 | F137: =IF(INTRO!$E$49="","",ROUND($D137*INTRO!$E$49,0)) -> 181090 | G137: =IF(INTRO!$E$50="","",ROUND($D137*INTRO!$E$50,0)) -> 238004 | H137: 1 | I137: 1 | J137: 1 | K137: 0 | L137: 1 | M137: =IF(INTRO!$E$38="Endémique", IF($H137>0, IF($H137=4,"Inconnu", IF($H137=99,"Interrompu", $D137)), 0),"Non requis") -> 517399 | N137: =IF(INTRO!$E$40="Endémique", IF($I137>0, IF($I137=4,"Inconnu",IF($I137=99,"Interrompu", $D137)), 0),"Non requis") -> 517399 | O137: =IF(INTRO!$E$42="Endémique", IF(AND($J137>1,$J137<5), IF($J137=4, "Inconnu", E137+F137), 0),"Non requis") -> 0 | P137: =IF(INTRO!$E$44="Endémique", IF(AND($K137>0,$K137<5), IF($K137=4,"Inconnu", IF($K137=1, $F137*0.33, IF($K137=2, $F137*0.5+$G137*0.2, SUM(F137:G137)))), 0),"Non requis") -> 0 | Q137: 1 | R137: 1 | S137: 0 | T137: 0 | U137: MDA1 (IVM+ALB) | W137: 13979 | X137: Kamwesha | Y137: TRUE | Z137: 2.121843265 | AA137: 506648.7085 | AC137: ='MDA1'!M137 -> 426634 | AD137: ='MDA4'!U137 -> 0 | AE137: ='MDA3'!Q137 -> 0 | AF137: ='T1'!O137 -> 0 | AG137: ='T2'!M137 -> 0 | AH137: =T3_R1!N137 -> 0
A138: =IF(INTRO!$E$34<>0,INTRO!$E$34,"") -> DRC | B138: Kasai | C138: Kanzala | D138: 378825 | E138: =IF(INTRO!$E$48="","",ROUND($D138*INTRO!$E$48,0)) -> 64400 | F138: =IF(INTRO!$E$49="","",ROUND($D138*INTRO!$E$49,0)) -> 132589 | G138: =IF(INTRO!$E$50="","",ROUND($D138*INTRO!$E$50,0)) -> 174260 | H138: 0 | I138: 1 | J138: 1 | K138: 0 | L138: 1 | M138: =IF(INTRO!$E$38="Endémique", IF($H138>0, IF($H138=4,"Inconnu", IF($H138=99,"Interrompu", $D138)), 0),"Non requis") -> 0 | N138: =IF(INTRO!$E$40="Endémique", IF($I138>0, IF($I138=4,"Inconnu",IF($I138=99,"Interrompu", $D138)), 0),"Non requis") -> 378825 | O138: =IF(INTRO!$E$42="Endémique", IF(AND($J138>1,$J138<5), IF($J138=4, "Inconnu", E138+F138), 0),"Non requis") -> 0 | P138: =IF(INTRO!$E$44="Endémique", IF(AND($K138>0,$K138<5), IF($K138=4,"Inconnu", IF($K138=1, $F138*0.33, IF($K138=2, $F138*0.5+$G138*0.2, SUM(F138:G138)))), 0),"Non requis") -> 0 | Q138: 0 | R138: 1 | S138: 0 | T138: 0 | U138: MDA3 (IVM) | W138: 13981 | X138: Kanzala | Y138: =X138=C138 -> TRUE | Z138: =ABS((D138-AA138)/AA138*100) -> 55.58355595 | AA138: 852893.5806 | AC138: ='MDA1'!M138 -> 0 | AD138: ='MDA4'!U138 -> 0 | AE138: ='MDA3'!Q138 -> 302047 | AF138: ='T1'!O138 -> 0 | AG138: ='T2'!M138 -> 0 | AH138: =T3_R1!N138 -> 0
A139: =IF(INTRO!$E$34<>0,INTRO!$E$34,"") -> DRC | B139: Kasai | C139: Kitangwa | D139: 314386 | E139: =IF(INTRO!$E$48="","",ROUND($D139*INTRO!$E$48,0)) -> 53446 | F139: =IF(INTRO!$E$49="","",ROUND($D139*INTRO!$E$49,0)) -> 110035 | G139: =IF(INTRO!$E$50="","",ROUND($D139*INTRO!$E$50,0)) -> 144618 | H139: 1 | I139: 1 | J139: 1 | K139: 0 | L139: 1 | M139: =IF(INTRO!$E$38="Endémique", IF($H139>0, IF($H139=4,"Inconnu", IF($H139=99,"Interrompu", $D139)), 0),"Non requis") -> 314386 | N139: =IF(INTRO!$E$40="Endémique", IF($I139>0, IF($I139=4,"Inconnu",IF($I139=99,"Interrompu", $D139)), 0),"Non requis") -> 314386 | O139: =IF(INTRO!$E$42="Endémique", IF(AND($J139>1,$J139<5), IF($J139=4, "Inconnu", E139+F139), 0),"Non requis") -> 0 | P139: =IF(INTRO!$E$44="Endémique", IF(AND($K139>0,$K139<5), IF($K139=4,"Inconnu", IF($K139=1, $F139*0.33, IF($K139=2, $F139*0.5+$G139*0.2, SUM(F139:G139)))), 0),"Non requis") -> 0 | Q139: 1 | R139: 1 | S139: 0 | T139: 0 | U139: MDA1 (IVM+ALB) | W139: 13985 | X139: Kitangwa | Y139: TRUE | Z139: 3.353744725 | AA139: 304184.4307 | AC139: ='MDA1'!M139 -> 258312 | AD139: ='MDA4'!U139 -> 0 | AE139: ='MDA3'!Q139 -> 0 | AF139: ='T1'!O139 -> 0 | AG139: ='T2'!M139 -> 0 | AH139: =T3_R1!N139 -> 0
A140: =IF(INTRO!$E$34<>0,INTRO!$E$34,"") -> DRC | B140: Kasai | C140: Luebo | D140: 95947 | E140: =IF(INTRO!$E$48="","",ROUND($D140*INTRO!$E$48,0)) -> 16311 | F140: =IF(INTRO!$E$49="","",ROUND($D140*INTRO!$E$49,0)) -> 33581 | G140: =IF(INTRO!$E$50="","",ROUND($D140*INTRO!$E$50,0)) -> 44136 | H140: 1 | I140: 1 | J140: 3 | K140: 1 | L140: 0 | M140: =IF(INTRO!$E$38="Endémique", IF($H140>0, IF($H140=4,"Inconnu", IF($H140=99,"Interrompu", $D140)), 0),"Non requis") -> 95947 | N140: =IF(INTRO!$E$40="Endémique", IF($I140>0, IF($I140=4,"Inconnu",IF($I140=99,"Interrompu", $D140)), 0),"Non requis") -> 95947 | O140: =IF(INTRO!$E$42="Endémique", IF(AND($J140>1,$J140<5), IF($J140=4, "Inconnu", E140+F140), 0),"Non requis") -> 49892 | P140: =IF(INTRO!$E$44="Endémique", IF(AND($K140>0,$K140<5), IF($K140=4,"Inconnu", IF($K140=1, $F140*0.33, IF($K140=2, $F140*0.5+$G140*0.2, SUM(F140:G140)))), 0),"Non requis") -> 11081.73 | Q140: 1 | R140: 1 | S140: 1 | T140: 1 | U140: MDA1 (IVM+ALB) | V140: T2 (PZQ) | W140: 13989 | X140: Luebo | Y140: TRUE | Z140: 65.99772551 | AA140: 282178.182 | AC140: ='MDA1'!M140 -> 77471 | AD140: ='MDA4'!U140 -> 0 | AE140: ='MDA3'!Q140 -> 0 | AF140: ='T1'!O140 -> 0 | AG140: ='T2'!M140 -> 27599 | AH140: =T3_R1!N140 -> 0
A141: =IF(INTRO!$E$34<>0,INTRO!$E$34,"") -> DRC | B141: Kasai | C141: Mikope | D141: 226663 | E141: =IF(INTRO!$E$48="","",ROUND($D141*INTRO!$E$48,0)) -> 38533 | F141: =IF(INTRO!$E$49="","",ROUND($D141*INTRO!$E$49,0)) -> 79332 | G141: =IF(INTRO!$E$50="","",ROUND($D141*INTRO!$E$50,0)) -> 104265 | H141: 1 | I141: 1 | J141: 3 | K141: 0 | L141: 1 | M141: =IF(INTRO!$E$38="Endémique", IF($H141>0, IF($H141=4,"Inconnu", IF($H141=99,"Interrompu", $D141)), 0),"Non requis") -> 226663 | N141: =IF(INTRO!$E$40="Endémique", IF($I141>0, IF($I141=4,"Inconnu",IF($I141=99,"Interrompu", $D141)), 0),"Non requis") -> 226663 | O141: =IF(INTRO!$E$42="Endémique", IF(AND($J141>1,$J141<5), IF($J141=4, "Inconnu", E141+F141), 0),"Non requis") -> 117865 | P141: =IF(INTRO!$E$44="Endémique", IF(AND($K141>0,$K141<5), IF($K141=4,"Inconnu", IF($K141=1, $F141*0.33, IF($K141=2, $F141*0.5+$G141*0.2, SUM(F141:G141)))), 0),"Non requis") -> 0 | Q141: 1 | R141: 1 | S141: 1 | T141: 0 | U141: MDA1 (IVM+ALB) | W141: 13994 | X141: Mikope | Y141: TRUE | Z141: 19.3377871 | AA141: 281002.7048 | AC141: ='MDA1'!M141 -> 185096 | AD141: ='MDA4'!U141 -> 0 | AE141: ='MDA3'!Q141 -> 0 | AF141: ='T1'!O141 -> 0 | AG141: ='T2'!M141 -> 0 | AH141: =T3_R1!N141 -> 0
A142: =IF(INTRO!$E$34<>0,INTRO!$E$34,"") -> DRC | B142: Kasai | C142: Mushenge | D142: 197056 | E142: =IF(INTRO!$E$48="","",ROUND($D142*INTRO!$E$48,0)) -> 33500 | F142: =IF(INTRO!$E$49="","",ROUND($D142*INTRO!$E$49,0)) -> 68970 | G142: =IF(INTRO!$E$50="","",ROUND($D142*INTRO!$E$50,0)) -> 90646 | H142: 1 | I142: 1 | J142: 3 | K142: 0 | L142: 1 | M142: =IF(INTRO!$E$38="Endémique", IF($H142>0, IF($H142=4,"Inconnu", IF($H142=99,"Interrompu", $D142)), 0),"Non requis") -> 197056 | N142: =IF(INTRO!$E$40="Endémique", IF($I142>0, IF($I142=4,"Inconnu",IF($I142=99,"Interrompu", $D142)), 0),"Non requis") -> 197056 | O142: =IF(INTRO!$E$42="Endémique", IF(AND($J142>1,$J142<5), IF($J142=4, "Inconnu", E142+F142), 0),"Non requis") -> 102470 | P142: =IF(INTRO!$E$44="Endémique", IF(AND($K142>0,$K142<5), IF($K142=4,"Inconnu", IF($K142=1, $F142*0.33, IF($K142=2, $F142*0.5+$G142*0.2, SUM(F142:G142)))), 0),"Non requis") -> 0 | Q142: 1 | R142: 1 | S142: 1 | T142: 0 | U142: MDA1 (IVM+ALB) | W142: 13995 | X142: Mushenge | Y142: TRUE | Z142: 5.191604496 | AA142: 187330.5393 | AC142: ='MDA1'!M142 -> 157841 | AD142: ='MDA4'!U142 -> 0 | AE142: ='MDA3'!Q142 -> 0 | AF142: ='T1'!O142 -> 0 | AG142: ='T2'!M142 -> 0 | AH142: =T3_R1!N142 -> 0
A143: =IF(INTRO!$E$34<>0,INTRO!$E$34,"") -> DRC | B143: Kasai | C143: Mutenna | D143: 326398 | E143: =IF(INTRO!$E$48="","",ROUND($D143*INTRO!$E$48,0)) -> 55488 | F143: =IF(INTRO!$E$49="","",ROUND($D143*INTRO!$E$49,0)) -> 114239 | G143: =IF(INTRO!$E$50="","",ROUND($D143*INTRO!$E$50,0)) -> 150143 | H143: 1 | I143: 1 | J143: 1 | K143: 0 | L143: 0 | M143: =IF(INTRO!$E$38="Endémique", IF($H143>0, IF($H143=4,"Inconnu", IF($H143=99,"Interrompu", $D143)), 0),"Non requis") -> 326398 | N143: =IF(INTRO!$E$40="Endémique", IF($I143>0, IF($I143=4,"Inconnu",IF($I143=99,"Interrompu", $D143)), 0),"Non requis") -> 326398 | O143: =IF(INTRO!$E$42="Endémique", IF(AND($J143>1,$J143<5), IF($J143=4, "Inconnu", E143+F143), 0),"Non requis") -> 0 | P143: =IF(INTRO!$E$44="Endémique", IF(AND($K143>0,$K143<5), IF($K143=4,"Inconnu", IF($K143=1, $F143*0.33, IF($K143=2, $F143*0.5+$G143*0.2, SUM(F143:G143)))), 0),"Non requis") -> 0 | Q143: 1 | R143: 1 | S143: 0 | T143: 0 | U143: MDA1 (IVM+ALB) | W143: 13997 | X143: Mutenna | Y143: TRUE | Z143: 1.851371557 | AA143: 320465.0021 | AC143: ='MDA1'!M143 -> 264830 | AD143: ='MDA4'!U143 -> 0 | AE143: ='MDA3'!Q143 -> 0 | AF143: ='T1'!O143 -> 0 | AG143: ='T2'!M143 -> 0 | AH143: =T3_R1!N143 -> 0
A144: =IF(INTRO!$E$34<>0,INTRO!$E$34,"") -> DRC | B144: Kasai | C144: Mweka | D144: 248421 | E144: =IF(INTRO!$E$48="","",ROUND($D144*INTRO!$E$48,0)) -> 42232 | F144: =IF(INTRO!$E$49="","",ROUND($D144*INTRO!$E$49,0)) -> 86947 | G144: =IF(INTRO!$E$50="","",ROUND($D144*INTRO!$E$50,0)) -> 114274 | H144: 0 | I144: 1 | J144: 2 | K144: 0 | L144: 1 | M144: =IF(INTRO!$E$38="Endémique", IF($H144>0, IF($H144=4,"Inconnu", IF($H144=99,"Interrompu", $D144)), 0),"Non requis") -> 0 | N144: =IF(INTRO!$E$40="Endémique", IF($I144>0, IF($I144=4,"Inconnu",IF($I144=99,"Interrompu", $D144)), 0),"Non requis") -> 248421 | O144: =IF(INTRO!$E$42="Endémique", IF(AND($J144>1,$J144<5), IF($J144=4, "Inconnu", E144+F144), 0),"Non requis") -> 129179 | P144: =IF(INTRO!$E$44="Endémique", IF(AND($K144>0,$K144<5), IF($K144=4,"Inconnu", IF($K144=1, $F144*0.33, IF($K144=2, $F144*0.5+$G144*0.2, SUM(F144:G144)))), 0),"Non requis") -> 0 | Q144: 0 | R144: 1 | S144: 1 | T144: 0 | U144: MDA3 (IVM) | V144: T3 (ALB/MBD) | W144: 13999 | X144: Mweka | Y144: TRUE | Z144: 4.578475337 | AA144: 237545.0581 | AC144: ='MDA1'!M144 -> 0 | AD144: ='MDA4'!U144 -> 0 | AE144: ='MDA3'!Q144 -> 204610 | AF144: ='T1'!O144 -> 0 | AG144: ='T2'!M144 -> 0 | AH144: =T3_R1!N144 -> 68912
A145: =IF(INTRO!$E$34<>0,INTRO!$E$34,"") -> DRC | B145: Kasai | C145: Ndjoko Punda | D145: 194204 | E145: =IF(INTRO!$E$48="","",ROUND($D145*INTRO!$E$48,0)) -> 33015 | F145: =IF(INTRO!$E$49="","",ROUND($D145*INTRO!$E$49,0)) -> 67971 | G145: =IF(INTRO!$E$50="","",ROUND($D145*INTRO!$E$50,0)) -> 89334 | H145: 1 | I145: 1 | J145: 3 | K145: 0 | L145: 1 | M145: =IF(INTRO!$E$38="Endémique", IF($H145>0, IF($H145=4,"Inconnu", IF($H145=99,"Interrompu", $D145)), 0),"Non requis") -> 194204 | N145: =IF(INTRO!$E$40="Endémique", IF($I145>0, IF($I145=4,"Inconnu",IF($I145=99,"Interrompu", $D145)), 0),"Non requis") -> 194204 | O145: =IF(INTRO!$E$42="Endémique", IF(AND($J145>1,$J145<5), IF($J145=4, "Inconnu", E145+F145), 0),"Non requis") -> 100986 | P145: =IF(INTRO!$E$44="Endémique", IF(AND($K145>0,$K145<5), IF($K145=4,"Inconnu", IF($K145=1, $F145*0.33, IF($K145=2, $F145*0.5+$G145*0.2, SUM(F145:G145)))), 0),"Non requis") -> 0 | Q145: 1 | R145: 1 | S145: 1 | T145: 0 | U145: MDA1 (IVM+ALB) | W145: 14003 | X145: Ndjoko Punda | Y145: TRUE | Z145: 1.269142308 | AA145: 196700.4081 | AC145: ='MDA1'!M145 -> 160299 | AD145: ='MDA4'!U145 -> 0 | AE145: ='MDA3'!Q145 -> 0 | AF145: ='T1'!O145 -> 0 | AG145: ='T2'!M145 -> 0 | AH145: =T3_R1!N145 -> 0
A146: =IF(INTRO!$E$34<>0,INTRO!$E$34,"") -> DRC | B146: Kasai | C146: Nyanga | D146: 146551 | E146: =IF(INTRO!$E$48="","",ROUND($D146*INTRO!$E$48,0)) -> 24914 | F146: =IF(INTRO!$E$49="","",ROUND($D146*INTRO!$E$49,0)) -> 51293 | G146: =IF(INTRO!$E$50="","",ROUND($D146*INTRO!$E$50,0)) -> 67413 | H146: 1 | I146: 1 | J146: 1 | K146: 0 | L146: 0 | M146: =IF(INTRO!$E$38="Endémique", IF($H146>0, IF($H146=4,"Inconnu", IF($H146=99,"Interrompu", $D146)), 0),"Non requis") -> 146551 | N146: =IF(INTRO!$E$40="Endémique", IF($I146>0, IF($I146=4,"Inconnu",IF($I146=99,"Interrompu", $D146)), 0),"Non requis") -> 146551 | O146: =IF(INTRO!$E$42="Endémique", IF(AND($J146>1,$J146<5), IF($J146=4, "Inconnu", E146+F146), 0),"Non requis") -> 0 | P146: =IF(INTRO!$E$44="Endémique", IF(AND($K146>0,$K146<5), IF($K146=4,"Inconnu", IF($K146=1, $F146*0.33, IF($K146=2, $F146*0.5+$G146*0.2, SUM(F146:G146)))), 0),"Non requis") -> 0 | Q146: 1 | R146: 1 | S146: 0 | T146: 0 | U146: MDA1 (IVM+ALB) | W146: 14004 | X146: Nyanga | Y146: TRUE | Z146: 17.51956534 | AA146: 124703.4905 | AC146: ='MDA1'!M146 -> 120290 | AD146: ='MDA4'!U146 -> 0 | AE146: ='MDA3'!Q146 -> 0 | AF146: ='T1'!O146 -> 0 | AG146: ='T2'!M146 -> 0 | AH146: =T3_R1!N146 -> 0
A147: =IF(INTRO!$E$34<>0,INTRO!$E$34,"") -> DRC | B147: Kasai | C147: Tshikapa | D147: 439750 | E147: =IF(INTRO!$E$48="","",ROUND($D147*INTRO!$E$48,0)) -> 74758 | F147: =IF(INTRO!$E$49="","",ROUND($D147*INTRO!$E$49,0)) -> 153913 | G147: =IF(INTRO!$E$50="","",ROUND($D147*INTRO!$E$50,0)) -> 202285 | H147: 0 | I147: 1 | J147: 1 | K147: 0 | L147: 1 | M147: =IF(INTRO!$E$38="Endémique", IF($H147>0, IF($H147=4,"Inconnu", IF($H147=99,"Interrompu", $D147)), 0),"Non requis") -> 0 | N147: =IF(INTRO!$E$40="Endémique", IF($I147>0, IF($I147=4,"Inconnu",IF($I147=99,"Interrompu", $D147)), 0),"Non requis") -> 439750 | O147: =IF(INTRO!$E$42="Endémique", IF(AND($J147>1,$J147<5), IF($J147=4, "Inconnu", E147+F147), 0),"Non requis") -> 0 | P147: =IF(INTRO!$E$44="Endémique", IF(AND($K147>0,$K147<5), IF($K147=4,"Inconnu", IF($K147=1, $F147*0.33, IF($K147=2, $F147*0.5+$G147*0.2, SUM(F147:G147)))), 0),"Non requis") -> 0 | Q147: 0 | R147: 1 | S147: 0 | T147: 0 | U147: MDA3 (IVM) | W147: 14006 | X147: Tshikapa | Y147: TRUE | Z147: 0.2547011799 | AA147: 440872.9085 | AC147: ='MDA1'!M147 -> 0 | AD147: ='MDA4'!U147 -> 0 | AE147: ='MDA3'!Q147 -> 360997 | AF147: ='T1'!O147 -> 0 | AG147: ='T2'!M147 -> 0 | AH147: =T3_R1!N147 -> 0
A148: =IF(INTRO!$E$34<>0,INTRO!$E$34,"") -> DRC | B148: Kasai Central | C148: Bena Leke | D148: 321361 | E148: =IF(INTRO!$E$48="","",ROUND($D148*INTRO!$E$48,0)) -> 54631 | F148: =IF(INTRO!$E$49="","",ROUND($D148*INTRO!$E$49,0)) -> 112476 | G148: =IF(INTRO!$E$50="","",ROUND($D148*INTRO!$E$50,0)) -> 147826 | H148: 0 | I148: 1 | J148: 3 | K148: 0 | L148: 1 | M148: =IF(INTRO!$E$38="Endémique", IF($H148>0, IF($H148=4,"Inconnu", IF($H148=99,"Interrompu", $D148)), 0),"Non requis") -> 0 | N148: =IF(INTRO!$E$40="Endémique", IF($I148>0, IF($I148=4,"Inconnu",IF($I148=99,"Interrompu", $D148)), 0),"Non requis") -> 321361 | O148: =IF(INTRO!$E$42="Endémique", IF(AND($J148>1,$J148<5), IF($J148=4, "Inconnu", E148+F148), 0),"Non requis") -> 167107 | P148: =IF(INTRO!$E$44="Endémique", IF(AND($K148>0,$K148<5), IF($K148=4,"Inconnu", IF($K148=1, $F148*0.33, IF($K148=2, $F148*0.5+$G148*0.2, SUM(F148:G148)))), 0),"Non requis") -> 0 | Q148: 0 | R148: 1 | S148: 1 | T148: 0 | U148: MDA3 (IVM) | V148: T3 (ALB/MBD) | W148: 13969 | X148: Bena Leke | Y148: TRUE | Z148: 2.576959162 | AA148: 329861.3934 | AC148: ='MDA1'!M148 -> 0 | AD148: ='MDA4'!U148 -> 0 | AE148: ='MDA3'!Q148 -> 265479 | AF148: ='T1'!O148 -> 0 | AG148: ='T2'!M148 -> 0 | AH148: =T3_R1!N148 -> 89000
A149: =IF(INTRO!$E$34<>0,INTRO!$E$34,"") -> DRC | B149: Kasai Central | C149: Bena Tshadi | D149: 130173 | E149: =IF(INTRO!$E$48="","",ROUND($D149*INTRO!$E$48,0)) -> 22129 | F149: =IF(INTRO!$E$49="","",ROUND($D149*INTRO!$E$49,0)) -> 45561 | G149: =IF(INTRO!$E$50="","",ROUND($D149*INTRO!$E$50,0)) -> 59880 | H149: 0 | I149: 1 | J149: 3 | K149: 0 | L149: 4 | M149: =IF(INTRO!$E$38="Endémique", IF($H149>0, IF($H149=4,"Inconnu", IF($H149=99,"Interrompu", $D149)), 0),"Non requis") -> 0 | N149: =IF(INTRO!$E$40="Endémique", IF($I149>0, IF($I149=4,"Inconnu",IF($I149=99,"Interrompu", $D149)), 0),"Non requis") -> 130173 | O149: =IF(INTRO!$E$42="Endémique", IF(AND($J149>1,$J149<5), IF($J149=4, "Inconnu", E149+F149), 0),"Non requis") -> 67690 | P149: =IF(INTRO!$E$44="Endémique", IF(AND($K149>0,$K149<5), IF($K149=4,"Inconnu", IF($K149=1, $F149*0.33, IF($K149=2, $F149*0.5+$G149*0.2, SUM(F149:G149)))), 0),"Non requis") -> 0 | Q149: 0 | R149: 1 | S149: 1 | T149: 0 | U149: MDA3 (IVM) | V149: T3 (ALB/MBD) | W149: 13982 | X149: Bena Tshadi | Y149: TRUE | Z149: 0.0004378807402 | AA149: 130172.43 | AC149: ='MDA1'!M149 -> 0 | AD149: ='MDA4'!U149 -> 0 | AE149: ='MDA3'!Q149 -> 107098 | AF149: ='T1'!O149 -> 0 | AG149: ='T2'!M149 -> 0 | AH149: =T3_R1!N149 -> 39041
A150: =IF(INTRO!$E$34<>0,INTRO!$E$34,"") -> DRC | B150: Kasai Central | C150: Bilonda | D150: 106496 | E150: =IF(INTRO!$E$48="","",ROUND($D150*INTRO!$E$48,0)) -> 18104 | F150: =IF(INTRO!$E$49="","",ROUND($D150*INTRO!$E$49,0)) -> 37274 | G150: =IF(INTRO!$E$50="","",ROUND($D150*INTRO!$E$50,0)) -> 48988 | H150: 1 | I150: 1 | J150: 2 | K150: 0 | L150: 1 | M150: =IF(INTRO!$E$38="Endémique", IF($H150>0, IF($H150=4,"Inconnu", IF($H150=99,"Interrompu", $D150)), 0),"Non requis") -> 106496 | N150: =IF(INTRO!$E$40="Endémique", IF($I150>0, IF($I150=4,"Inconnu",IF($I150=99,"Interrompu", $D150)), 0),"Non requis") -> 106496 | O150: =IF(INTRO!$E$42="Endémique", IF(AND($J150>1,$J150<5), IF($J150=4, "Inconnu", E150+F150), 0),"Non requis") -> 55378 | P150: =IF(INTRO!$E$44="Endémique", IF(AND($K150>0,$K150<5), IF($K150=4,"Inconnu", IF($K150=1, $F150*0.33, IF($K150=2, $F150*0.5+$G150*0.2, SUM(F150:G150)))), 0),"Non requis") -> 0 | Q150: 1 | R150: 1 | S150: 1 | T150: 0 | U150: MDA1 (IVM+ALB) | W150: 13970 | X150: Bilonda | Y150: TRUE | Z150: 1.285579763 | AA150: 107882.921 | AC150: ='MDA1'!M150 -> 86613 | AD150: ='MDA4'!U150 -> 0 | AE150: ='MDA3'!Q150 -> 0 | AF150: ='T1'!O150 -> 0 | AG150: ='T2'!M150 -> 0 | AH150: =T3_R1!N150 -> 0
A151: =IF(INTRO!$E$34<>0,INTRO!$E$34,"") -> DRC | B151: Kasai Central | C151: Bobozo | D151: 55132 | E151: =IF(INTRO!$E$48="","",ROUND($D151*INTRO!$E$48,0)) -> 9372 | F151: =IF(INTRO!$E$49="","",ROUND($D151*INTRO!$E$49,0)) -> 19296 | G151: =IF(INTRO!$E$50="","",ROUND($D151*INTRO!$E$50,0)) -> 25361 | H151: 0 | I151: 1 | J151: 2 | K151: 0 | L151: 4 | M151: =IF(INTRO!$E$38="Endémique", IF($H151>0, IF($H151=4,"Inconnu", IF($H151=99,"Interrompu", $D151)), 0),"Non requis") -> 0 | N151: =IF(INTRO!$E$40="Endémique", IF($I151>0, IF($I151=4,"Inconnu",IF($I151=99,"Interrompu", $D151)), 0),"Non requis") -> 55132 | O151: =IF(INTRO!$E$42="Endémique", IF(AND($J151>1,$J151<5), IF($J151=4, "Inconnu", E151+F151), 0),"Non requis") -> 28668 | P151: =IF(INTRO!$E$44="Endémique", IF(AND($K151>0,$K151<5), IF($K151=4,"Inconnu", IF($K151=1, $F151*0.33, IF($K151=2, $F151*0.5+$G151*0.2, SUM(F151:G151)))), 0),"Non requis") -> 0 | Q151: 0 | R151: 1 | S151: 1 | T151: 0 | U151: MDA3 (IVM) | V151: T3 (ALB/MBD) | W151: 13971 | X151: Bobozo | Y151: TRUE | Z151: 12.40253239 | AA151: 62937.8925 | AC151: ='MDA1'!M151 -> 0 | AD151: ='MDA4'!U151 -> 0 | AE151: ='MDA3'!Q151 -> 44576 | AF151: ='T1'!O151 -> 0 | AG151: ='T2'!M151 -> 0 | AH151: =T3_R1!N151 -> 17617
A152: =IF(INTRO!$E$34<>0,INTRO!$E$34,"") -> DRC | B152: Kasai Central | C152: Bukonde | D152: 119592 | E152: =IF(INTRO!$E$48="","",ROUND($D152*INTRO!$E$48,0)) -> 20331 | F152: =IF(INTRO!$E$49="","",ROUND($D152*INTRO!$E$49,0)) -> 41857 | G152: =IF(INTRO!$E$50="","",ROUND($D152*INTRO!$E$50,0)) -> 55012 | H152: 0 | I152: 1 | J152: 2 | K152: 1 | L152: 1 | M152: =IF(INTRO!$E$38="Endémique", IF($H152>0, IF($H152=4,"Inconnu", IF($H152=99,"Interrompu", $D152)), 0),"Non requis") -> 0 | N152: =IF(INTRO!$E$40="Endémique", IF($I152>0, IF($I152=4,"Inconnu",IF($I152=99,"Interrompu", $D152)), 0),"Non requis") -> 119592 | O152: =IF(INTRO!$E$42="Endémique", IF(AND($J152>1,$J152<5), IF($J152=4, "Inconnu", E152+F152), 0),"Non requis") -> 62188 | P152: =IF(INTRO!$E$44="Endémique", IF(AND($K152>0,$K152<5), IF($K152=4,"Inconnu", IF($K152=1, $F152*0.33, IF($K152=2, $F152*0.5+$G152*0.2, SUM(F152:G152)))), 0),"Non requis") -> 13812.81 | Q152: 0 | R152: 1 | S152: 1 | T152: 1 | U152: MDA3 (IVM) | V152: T1 (PZQ+ALB/MBD) | W152: 14338 | X152: Bukonde | Y152: TRUE | Z152: 0.2513649422 | AA152: 119893.3699 | AC152: ='MDA1'!M152 -> 0 | AD152: ='MDA4'!U152 -> 0 | AE152: ='MDA3'!Q152 -> 97429 | AF152: ='T1'!O152 -> 35173 | AG152: ='T2'!M152 -> 0 | AH152: =T3_R1!N152 -> 0
A153: =IF(INTRO!$E$34<>0,INTRO!$E$34,"") -> DRC | B153: Kasai Central | C153: Demba | D153: 386718 | E153: =IF(INTRO!$E$48="","",ROUND($D153*INTRO!$E$48,0)) -> 65742 | F153: =IF(INTRO!$E$49="","",ROUND($D153*INTRO!$E$49,0)) -> 135351 | G153: =IF(INTRO!$E$50="","",ROUND($D153*INTRO!$E$50,0)) -> 177890 | H153: 0 | I153: 1 | J153: 2 | K153: 0 | L153: 1 | M153: =IF(INTRO!$E$38="Endémique", IF($H153>0, IF($H153=4,"Inconnu", IF($H153=99,"Interrompu", $D153)), 0),"Non requis") -> 0 | N153: =IF(INTRO!$E$40="Endémique", IF($I153>0, IF($I153=4,"Inconnu",IF($I153=99,"Interrompu", $D153)), 0),"Non requis") -> 386718 | O153: =IF(INTRO!$E$42="Endémique", IF(AND($J153>1,$J153<5), IF($J153=4, "Inconnu", E153+F153), 0),"Non requis") -> 201093 | P153: =IF(INTRO!$E$44="Endémique", IF(AND($K153>0,$K153<5), IF($K153=4,"Inconnu", IF($K153=1, $F153*0.33, IF($K153=2, $F153*0.5+$G153*0.2, SUM(F153:G153)))), 0),"Non requis") -> 0 | Q153: 0 | R153: 1 | S153: 1 | T153: 0 | U153: MDA3 (IVM) | V153: T3 (ALB/MBD) | W153: 13974 | X153: Demba | Y153: TRUE | Z153: 2.086662705 | AA153: 378813.4412 | AC153: ='MDA1'!M153 -> 0 | AD153: ='MDA4'!U153 -> 0 | AE153: ='MDA3'!Q153 -> 318698 | AF153: ='T1'!O153 -> 0 | AG153: ='T2'!M153 -> 0 | AH153: =T3_R1!N153 -> 124013
A154: =IF(INTRO!$E$34<>0,INTRO!$E$34,"") -> DRC | B154: Kasai Central | C154: Dibaya | D154: 210590 | E154: =IF(INTRO!$E$48="","",ROUND($D154*INTRO!$E$48,0)) -> 35800 | F154: =IF(INTRO!$E$49="","",ROUND($D154*INTRO!$E$49,0)) -> 73707 | G154: =IF(INTRO!$E$50="","",ROUND($D154*INTRO!$E$50,0)) -> 96871 | H154: 0 | I154: 1 | J154: 2 | K154: 0 | L154: 0 | M154: =IF(INTRO!$E$38="Endémique", IF($H154>0, IF($H154=4,"Inconnu", IF($H154=99,"Interrompu", $D154)), 0),"Non requis") -> 0 | N154: =IF(INTRO!$E$40="Endémique", IF($I154>0, IF($I154=4,"Inconnu",IF($I154=99,"Interrompu", $D154)), 0),"Non requis") -> 210590 | O154: =IF(INTRO!$E$42="Endémique", IF(AND($J154>1,$J154<5), IF($J154=4, "Inconnu", E154+F154), 0),"Non requis") -> 109507 | P154: =IF(INTRO!$E$44="Endémique", IF(AND($K154>0,$K154<5), IF($K154=4,"Inconnu", IF($K154=1, $F154*0.33, IF($K154=2, $F154*0.5+$G154*0.2, SUM(F154:G154)))), 0),"Non requis") -> 0 | Q154: 0 | R154: 1 | S154: 1 | T154: 0 | U154: MDA3 (IVM) | V154: T3 (ALB/MBD) | W154: 13975 | X154: Dibaya | Y154: TRUE | Z154: 3.048488288 | AA154: 204360.1061 | AC154: ='MDA1'!M154 -> 0 | AD154: ='MDA4'!U154 -> 0 | AE154: ='MDA3'!Q154 -> 176232 | AF154: ='T1'!O154 -> 0 | AG154: ='T2'!M154 -> 0 | AH154: =T3_R1!N154 -> 62004
A155: =IF(INTRO!$E$34<>0,INTRO!$E$34,"") -> DRC | B155: Kasai Central | C155: Kalomda | D155: 172880 | E155: =IF(INTRO!$E$48="","",ROUND($D155*INTRO!$E$48,0)) -> 29390 | F155: =IF(INTRO!$E$49="","",ROUND($D155*INTRO!$E$49,0)) -> 60508 | G155: =IF(INTRO!$E$50="","",ROUND($D155*INTRO!$E$50,0)) -> 79525 | H155: 1 | I155: 1 | J155: 2 | K155: 0 | L155: 1 | M155: =IF(INTRO!$E$38="Endémique", IF($H155>0, IF($H155=4,"Inconnu", IF($H155=99,"Interrompu", $D155)), 0),"Non requis") -> 172880 | N155: =IF(INTRO!$E$40="Endémique", IF($I155>0, IF($I155=4,"Inconnu",IF($I155=99,"Interrompu", $D155)), 0),"Non requis") -> 172880 | O155: =IF(INTRO!$E$42="Endémique", IF(AND($J155>1,$J155<5), IF($J155=4, "Inconnu", E155+F155), 0),"Non requis") -> 89898 | P155: =IF(INTRO!$E$44="Endémique", IF(AND($K155>0,$K155<5), IF($K155=4,"Inconnu", IF($K155=1, $F155*0.33, IF($K155=2, $F155*0.5+$G155*0.2, SUM(F155:G155)))), 0),"Non requis") -> 0 | Q155: 1 | R155: 1 | S155: 1 | T155: 0 | U155: MDA1 (IVM+ALB) | W155: 14332 | X155: Kalomda | Y155: TRUE | Z155: 3.643763966 | AA155: 166802.1243 | AC155: ='MDA1'!M155 -> 143688 | AD155: ='MDA4'!U155 -> 0 | AE155: ='MDA3'!Q155 -> 0 | AF155: ='T1'!O155 -> 0 | AG155: ='T2'!M155 -> 0 | AH155: =T3_R1!N155 -> 0
A156: =IF(INTRO!$E$34<>0,INTRO!$E$34,"") -> DRC | B156: Kasai Central | C156: Kananga | D156: 357147 | E156: =IF(INTRO!$E$48="","",ROUND($D156*INTRO!$E$48,0)) -> 60715 | F156: =IF(INTRO!$E$49="","",ROUND($D156*INTRO!$E$49,0)) -> 125001 | G156: =IF(INTRO!$E$50="","",ROUND($D156*INTRO!$E$50,0)) -> 164288 | H156: 1 | I156: 1 | J156: 2 | K156: 0 | L156: 1 | M156: =IF(INTRO!$E$38="Endémique", IF($H156>0, IF($H156=4,"Inconnu", IF($H156=99,"Interrompu", $D156)), 0),"Non requis") -> 357147 | N156: =IF(INTRO!$E$40="Endémique", IF($I156>0, IF($I156=4,"Inconnu",IF($I156=99,"Interrompu", $D156)), 0),"Non requis") -> 357147 | O156: =IF(INTRO!$E$42="Endémique", IF(AND($J156>1,$J156<5), IF($J156=4, "Inconnu", E156+F156), 0),"Non requis") -> 185716 | P156: =IF(INTRO!$E$44="Endémique", IF(AND($K156>0,$K156<5), IF($K156=4,"Inconnu", IF($K156=1, $F156*0.33, IF($K156=2, $F156*0.5+$G156*0.2, SUM(F156:G156)))), 0),"Non requis") -> 0 | Q156: 1 | R156: 1 | S156: 1 | T156: 0 | U156: MDA1 (IVM+ALB) | W156: 13980 | X156: Kananga | Y156: TRUE | Z156: 4.729392508 | AA156: 341018.8787 | AC156: ='MDA1'!M156 -> 294129 | AD156: ='MDA4'!U156 -> 0 | AE156: ='MDA3'!Q156 -> 0 | AF156: ='T1'!O156 -> 0 | AG156: ='T2'!M156 -> 0 | AH156: =T3_R1!N156 -> 0
A157: =IF(INTRO!$E$34<>0,INTRO!$E$34,"") -> DRC | B157: Kasai Central | C157: Katende | D157: 105785 | E157: =IF(INTRO!$E$48="","",ROUND($D157*INTRO!$E$48,0)) -> 17983 | F157: =IF(INTRO!$E$49="","",ROUND($D157*INTRO!$E$49,0)) -> 37025 | G157: =IF(INTRO!$E$50="","",ROUND($D157*INTRO!$E$50,0)) -> 48661 | H157: 1 | I157: 1 | J157: 3 | K157: 0 | L157: 1 | M157: =IF(INTRO!$E$38="Endémique", IF($H157>0, IF($H157=4,"Inconnu", IF($H157=99,"Interrompu", $D157)), 0),"Non requis") -> 105785 | N157: =IF(INTRO!$E$40="Endémique", IF($I157>0, IF($I157=4,"Inconnu",IF($I157=99,"Interrompu", $D157)), 0),"Non requis") -> 105785 | O157: =IF(INTRO!$E$42="Endémique", IF(AND($J157>1,$J157<5), IF($J157=4, "Inconnu", E157+F157), 0),"Non requis") -> 55008 | P157: =IF(INTRO!$E$44="Endémique", IF(AND($K157>0,$K157<5), IF($K157=4,"Inconnu", IF($K157=1, $F157*0.33, IF($K157=2, $F157*0.5+$G157*0.2, SUM(F157:G157)))), 0),"Non requis") -> 0 | Q157: 1 | R157: 1 | S157: 1 | T157: 0 | U157: MDA1 (IVM+ALB) | W157: 13983 | X157: Katende | Y157: TRUE | Z157: 5.149526998 | AA157: 111528.1734 | AC157: ='MDA1'!M157 -> 86494 | AD157: ='MDA4'!U157 -> 0 | AE157: ='MDA3'!Q157 -> 0 | AF157: ='T1'!O157 -> 0 | AG157: ='T2'!M157 -> 0 | AH157: =T3_R1!N157 -> 0
A158: =IF(INTRO!$E$34<>0,INTRO!$E$34,"") -> DRC | B158: Kasai Central | C158: Katoka | D158: 147531 | E158: =IF(INTRO!$E$48="","",ROUND($D158*INTRO!$E$48,0)) -> 25080 | F158: =IF(INTRO!$E$49="","",ROUND($D158*INTRO!$E$49,0)) -> 51636 | G158: =IF(INTRO!$E$50="","",ROUND($D158*INTRO!$E$50,0)) -> 67864 | H158: 0 | I158: 1 | J158: 1 | K158: 1 | L158: 1 | M158: =IF(INTRO!$E$38="Endémique", IF($H158>0, IF($H158=4,"Inconnu", IF($H158=99,"Interrompu", $D158)), 0),"Non requis") -> 0 | N158: =IF(INTRO!$E$40="Endémique", IF($I158>0, IF($I158=4,"Inconnu",IF($I158=99,"Interrompu", $D158)), 0),"Non requis") -> 147531 | O158: =IF(INTRO!$E$42="Endémique", IF(AND($J158>1,$J158<5), IF($J158=4, "Inconnu", E158+F158), 0),"Non requis") -> 0 | P158: =IF(INTRO!$E$44="Endémique", IF(AND($K158>0,$K158<5), IF($K158=4,"Inconnu", IF($K158=1, $F158*0.33, IF($K158=2, $F158*0.5+$G158*0.2, SUM(F158:G158)))), 0),"Non requis") -> 17039.88 | Q158: 0 | R158: 1 | S158: 0 | T158: 1 | U158: MDA3 (IVM) | V158: T2 (PZQ) | W158: 13984 | X158: Katoka | Y158: TRUE | Z158: 5.284586626 | AA158: 155762.3989 | AC158: ='MDA1'!M158 -> 0 | AD158: ='MDA4'!U158 -> 0 | AE158: ='MDA3'!Q158 -> 121789 | AF158: ='T1'!O158 -> 0 | AG158: ='T2'!M158 -> 94255 | AH158: =T3_R1!N158 -> 0
A159: =IF(INTRO!$E$34<>0,INTRO!$E$34,"") -> DRC | B159: Kasai Central | C159: Luambo | D159: 296241 | E159: =IF(INTRO!$E$48="","",ROUND($D159*INTRO!$E$48,0)) -> 50361 | F159: =IF(INTRO!$E$49="","",ROUND($D159*INTRO!$E$49,0)) -> 103684 | G159: =IF(INTRO!$E$50="","",ROUND($D159*INTRO!$E$50,0)) -> 136271 | H159: 1 | I159: 1 | J159: 3 | K159: 1 | L159: 1 | M159: =IF(INTRO!$E$38="Endémique", IF($H159>0, IF($H159=4,"Inconnu", IF($H159=99,"Interrompu", $D159)), 0),"Non requis") -> 296241 | N159: =IF(INTRO!$E$40="Endémique", IF($I159>0, IF($I159=4,"Inconnu",IF($I159=99,"Interrompu", $D159)), 0),"Non requis") -> 296241 | O159: =IF(INTRO!$E$42="Endémique", IF(AND($J159>1,$J159<5), IF($J159=4, "Inconnu", E159+F159), 0),"Non requis") -> 154045 | P159: =IF(INTRO!$E$44="Endémique", IF(AND($K159>0,$K159<5), IF($K159=4,"Inconnu", IF($K159=1, $F159*0.33, IF($K159=2, $F159*0.5+$G159*0.2, SUM(F159:G159)))), 0),"Non requis") -> 34215.72 | Q159: 1 | R159: 1 | S159: 1 | T159: 1 | U159: MDA1 (IVM+ALB) | V159: T2 (PZQ) | W159: 13986 | X159: Luambo | Y159: TRUE | Z159: 2.1832378 | AA159: 302853.0012 | AC159: ='MDA1'!M159 -> 241209 | AD159: ='MDA4'!U159 -> 0 | AE159: ='MDA3'!Q159 -> 0 | AF159: ='T1'!O159 -> 0 | AG159: ='T2'!M159 -> 103761 | AH159: =T3_R1!N159 -> 0
A160: =IF(INTRO!$E$34<>0,INTRO!$E$34,"") -> DRC | B160: Kasai Central | C160: Lubondaie | D160: 151039 | E160: =IF(INTRO!$E$48="","",ROUND($D160*INTRO!$E$48,0)) -> 25677 | F160: =IF(INTRO!$E$49="","",ROUND($D160*INTRO!$E$49,0)) -> 52864 | G160: =IF(INTRO!$E$50="","",ROUND($D160*INTRO!$E$50,0)) -> 69478 | H160: 0 | I160: 1 | J160: 3 | K160: 1 | L160: 0 | M160: =IF(INTRO!$E$38="Endémique", IF($H160>0, IF($H160=4,"Inconnu", IF($H160=99,"Interrompu", $D160)), 0),"Non requis") -> 0 | N160: =IF(INTRO!$E$40="Endémique", IF($I160>0, IF($I160=4,"Inconnu",IF($I160=99,"Interrompu", $D160)), 0),"Non requis") -> 151039 | O160: =IF(INTRO!$E$42="Endémique", IF(AND($J160>1,$J160<5), IF($J160=4, "Inconnu", E160+F160), 0),"Non requis") -> 78541 | P160: =IF(INTRO!$E$44="Endémique", IF(AND($K160>0,$K160<5), IF($K160=4,"Inconnu", IF($K160=1, $F160*0.33, IF($K160=2, $F160*0.5+$G160*0.2, SUM(F160:G160)))), 0),"Non requis") -> 17445.12 | Q160: 0 | R160: 1 | S160: 1 | T160: 1 | U160: MDA3 (IVM) | V160: T1 (PZQ+ALB/MBD) | W160: 13987 | X160: Lubondaie | Y160: TRUE | Z160: 10.31551207 | AA160: 168411.5096 | AC160: ='MDA1'!M160 -> 0 | AD160: ='MDA4'!U160 -> 0 | AE160: ='MDA3'!Q160 -> 124714 | AF160: ='T1'!O160 -> 48157 | AG160: ='T2'!M160 -> 0 | AH160: =T3_R1!N160 -> 0
A161: =IF(INTRO!$E$34<>0,INTRO!$E$34,"") -> DRC | B161: Kasai Central | C161: Lubunga 1 | D161: 116382 | E161: =IF(INTRO!$E$48="","",ROUND($D161*INTRO!$E$48,0)) -> 19785 | F161: =IF(INTRO!$E$49="","",ROUND($D161*INTRO!$E$49,0)) -> 40734 | G161: =IF(INTRO!$E$50="","",ROUND($D161*INTRO!$E$50,0)) -> 53536 | H161: 0 | I161: 1 | J161: 3 | K161: 2 | L161: 1 | M161: =IF(INTRO!$E$38="Endémique", IF($H161>0, IF($H161=4,"Inconnu", IF($H161=99,"Interrompu", $D161)), 0),"Non requis") -> 0 | N161: =IF(INTRO!$E$40="Endémique", IF($I161>0, IF($I161=4,"Inconnu",IF($I161=99,"Interrompu", $D161)), 0),"Non requis") -> 116382 | O161: =IF(INTRO!$E$42="Endémique", IF(AND($J161>1,$J161<5), IF($J161=4, "Inconnu", E161+F161), 0),"Non requis") -> 60519 | P161: =IF(INTRO!$E$44="Endémique", IF(AND($K161>0,$K161<5), IF($K161=4,"Inconnu", IF($K161=1, $F161*0.33, IF($K161=2, $F161*0.5+$G161*0.2, SUM(F161:G161)))), 0),"Non requis") -> 31074.2 | Q161: 0 | R161: 1 | S161: 1 | T161: 0 | U161: MDA3 (IVM) | V161: T3 (ALB/MBD) | W161: 14257 | X161: Lubunga (1) | Y161: FALSE | Z161: 3.80884993 | AA161: 120990.3405 | AC161: ='MDA1'!M161 -> 0 | AD161: ='MDA4'!U161 -> 0 | AE161: ='MDA3'!Q161 -> 95023 | AF161: ='T1'!O161 -> 0 | AG161: ='T2'!M161 -> 0 | AH161: =T3_R1!N161 -> 33050
A162: =IF(INTRO!$E$34<>0,INTRO!$E$34,"") -> DRC | B162: Kasai Central | C162: Luiza | D162: 201172 | E162: =IF(INTRO!$E$48="","",ROUND($D162*INTRO!$E$48,0)) -> 34199 | F162: =IF(INTRO!$E$49="","",ROUND($D162*INTRO!$E$49,0)) -> 70410 | G162: =IF(INTRO!$E$50="","",ROUND($D162*INTRO!$E$50,0)) -> 92539 | H162: 0 | I162: 1 | J162: 2 | K162: 0 | L162: 0 | M162: =IF(INTRO!$E$38="Endémique", IF($H162>0, IF($H162=4,"Inconnu", IF($H162=99,"Interrompu", $D162)), 0),"Non requis") -> 0 | N162: =IF(INTRO!$E$40="Endémique", IF($I162>0, IF($I162=4,"Inconnu",IF($I162=99,"Interrompu", $D162)), 0),"Non requis") -> 201172 | O162: =IF(INTRO!$E$42="Endémique", IF(AND($J162>1,$J162<5), IF($J162=4, "Inconnu", E162+F162), 0),"Non requis") -> 104609 | P162: =IF(INTRO!$E$44="Endémique", IF(AND($K162>0,$K162<5), IF($K162=4,"Inconnu", IF($K162=1, $F162*0.33, IF($K162=2, $F162*0.5+$G162*0.2, SUM(F162:G162)))), 0),"Non requis") -> 0 | Q162: 0 | R162: 1 | S162: 1 | T162: 0 | U162: MDA3 (IVM) | V162: T3 (ALB/MBD) | W162: 13990 | X162: Luiza | Y162: TRUE | Z162: 2.687575737 | AA162: 195906.8549 | AC162: ='MDA1'!M162 -> 0 | AD162: ='MDA4'!U162 -> 0 | AE162: ='MDA3'!Q162 -> 165215 | AF162: ='T1'!O162 -> 0 | AG162: ='T2'!M162 -> 0 | AH162: =T3_R1!N162 -> 65059
A163: =IF(INTRO!$E$34<>0,INTRO!$E$34,"") -> DRC | B163: Kasai Central | C163: Lukonga | D163: 321874 | E163: =IF(INTRO!$E$48="","",ROUND($D163*INTRO!$E$48,0)) -> 54719 | F163: =IF(INTRO!$E$49="","",ROUND($D163*INTRO!$E$49,0)) -> 112656 | G163: =IF(INTRO!$E$50="","",ROUND($D163*INTRO!$E$50,0)) -> 148062 | H163: 1 | I163: 1 | J163: 2 | K163: 1 | L163: 1 | M163: =IF(INTRO!$E$38="Endémique", IF($H163>0, IF($H163=4,"Inconnu", IF($H163=99,"Interrompu", $D163)), 0),"Non requis") -> 321874 | N163: =IF(INTRO!$E$40="Endémique", IF($I163>0, IF($I163=4,"Inconnu",IF($I163=99,"Interrompu", $D163)), 0),"Non requis") -> 321874 | O163: =IF(INTRO!$E$42="Endémique", IF(AND($J163>1,$J163<5), IF($J163=4, "Inconnu", E163+F163), 0),"Non requis") -> 167375 | P163: =IF(INTRO!$E$44="Endémique", IF(AND($K163>0,$K163<5), IF($K163=4,"Inconnu", IF($K163=1, $F163*0.33, IF($K163=2, $F163*0.5+$G163*0.2, SUM(F163:G163)))), 0),"Non requis") -> 37176.48 | Q163: 1 | R163: 1 | S163: 1 | T163: 1 | U163: MDA1 (IVM+ALB) | V163: T2 (PZQ) | W163: 13991 | X163: Lukonga | Y163: TRUE | Z163: 0.3755403116 | AA163: 320669.7558 | AC163: ='MDA1'!M163 -> 266264 | AD163: ='MDA4'!U163 -> 0 | AE163: ='MDA3'!Q163 -> 0 | AF163: ='T1'!O163 -> 0 | AG163: ='T2'!M163 -> 98736 | AH163: =T3_R1!N163 -> 0
A164: =IF(INTRO!$E$34<>0,INTRO!$E$34,"") -> DRC | B164: Kasai Central | C164: Mikalayi | D164: 336498 | E164: =IF(INTRO!$E$48="","",ROUND($D164*INTRO!$E$48,0)) -> 57205 | F164: =IF(INTRO!$E$49="","",ROUND($D164*INTRO!$E$49,0)) -> 117774 | G164: =IF(INTRO!$E$50="","",ROUND($D164*INTRO!$E$50,0)) -> 154789 | H164: 0 | I164: 1 | J164: 3 | K164: 0 | L164: 1 | M164: =IF(INTRO!$E$38="Endémique", IF($H164>0, IF($H164=4,"Inconnu", IF($H164=99,"Interrompu", $D164)), 0),"Non requis") -> 0 | N164: =IF(INTRO!$E$40="Endémique", IF($I164>0, IF($I164=4,"Inconnu",IF($I164=99,"Interrompu", $D164)), 0),"Non requis") -> 336498 | O164: =IF(INTRO!$E$42="Endémique", IF(AND($J164>1,$J164<5), IF($J164=4, "Inconnu", E164+F164), 0),"Non requis") -> 174979 | P164: =IF(INTRO!$E$44="Endémique", IF(AND($K164>0,$K164<5), IF($K164=4,"Inconnu", IF($K164=1, $F164*0.33, IF($K164=2, $F164*0.5+$G164*0.2, SUM(F164:G164)))), 0),"Non requis") -> 0 | Q164: 0 | R164: 1 | S164: 1 | T164: 0 | U164: MDA3 (IVM) | V164: T3 (ALB/MBD) | W164: 13993 | X164: Mikalayi | Y164: TRUE | Z164: 32.16342138 | AA164: 254607.5128 | AC164: ='MDA1'!M164 -> 0 | AD164: ='MDA4'!U164 -> 0 | AE164: ='MDA3'!Q164 -> 271912 | AF164: ='T1'!O164 -> 0 | AG164: ='T2'!M164 -> 0 | AH164: =T3_R1!N164 -> 94255
A165: =IF(INTRO!$E$34<>0,INTRO!$E$34,"") -> DRC | B165: Kasai Central | C165: Musuika | D165: 242336 | E165: =IF(INTRO!$E$48="","",ROUND($D165*INTRO!$E$48,0)) -> 41197 | F165: =IF(INTRO!$E$49="","",ROUND($D165*INTRO!$E$49,0)) -> 84818 | G165: =IF(INTRO!$E$50="","",ROUND($D165*INTRO!$E$50,0)) -> 111475 | H165: 1 | I165: 1 | J165: 3 | K165: 0 | L165: 0 | M165: =IF(INTRO!$E$38="Endémique", IF($H165>0, IF($H165=4,"Inconnu", IF($H165=99,"Interrompu", $D165)), 0),"Non requis") -> 242336 | N165: =IF(INTRO!$E$40="Endémique", IF($I165>0, IF($I165=4,"Inconnu",IF($I165=99,"Interrompu", $D165)), 0),"Non requis") -> 242336 | O165: =IF(INTRO!$E$42="Endémique", IF(AND($J165>1,$J165<5), IF($J165=4, "Inconnu", E165+F165), 0),"Non requis") -> 126015 | P165: =IF(INTRO!$E$44="Endémique", IF(AND($K165>0,$K165<5), IF($K165=4,"Inconnu", IF($K165=1, $F165*0.33, IF($K165=2, $F165*0.5+$G165*0.2, SUM(F165:G165)))), 0),"Non requis") -> 0 | Q165: 1 | R165: 1 | S165: 1 | T165: 0 | U165: MDA1 (IVM+ALB) | W165: 13996 | X165: Musuika | Y165: TRUE | Z165: 1.563264358 | AA165: 238605.9581 | AC165: ='MDA1'!M165 -> 198826 | AD165: ='MDA4'!U165 -> 0 | AE165: ='MDA3'!Q165 -> 0 | AF165: ='T1'!O165 -> 0 | AG165: ='T2'!M165 -> 0 | AH165: =T3_R1!N165 -> 0
A166: =IF(INTRO!$E$34<>0,INTRO!$E$34,"") -> DRC | B166: Kasai Central | C166: Mutoto | D166: 151430 | E166: =IF(INTRO!$E$48="","",ROUND($D166*INTRO!$E$48,0)) -> 25743 | F166: =IF(INTRO!$E$49="","",ROUND($D166*INTRO!$E$49,0)) -> 53001 | G166: =IF(INTRO!$E$50="","",ROUND($D166*INTRO!$E$50,0)) -> 69658 | H166: 1 | I166: 1 | J166: 3 | K166: 0 | L166: 1 | M166: =IF(INTRO!$E$38="Endémique", IF($H166>0, IF($H166=4,"Inconnu", IF($H166=99,"Interrompu", $D166)), 0),"Non requis") -> 151430 | N166: =IF(INTRO!$E$40="Endémique", IF($I166>0, IF($I166=4,"Inconnu",IF($I166=99,"Interrompu", $D166)), 0),"Non requis") -> 151430 | O166: =IF(INTRO!$E$42="Endémique", IF(AND($J166>1,$J166<5), IF($J166=4, "Inconnu", E166+F166), 0),"Non requis") -> 78744 | P166: =IF(INTRO!$E$44="Endémique", IF(AND($K166>0,$K166<5), IF($K166=4,"Inconnu", IF($K166=1, $F166*0.33, IF($K166=2, $F166*0.5+$G166*0.2, SUM(F166:G166)))), 0),"Non requis") -> 0 | Q166: 1 | R166: 1 | S166: 1 | T166: 0 | U166: MDA1 (IVM+ALB) | W166: 13998 | X166: Mutoto | Y166: TRUE | Z166: 0.001192021715 | AA166: 151431.8051 | AC166: ='MDA1'!M166 -> 125536 | AD166: ='MDA4'!U166 -> 0 | AE166: ='MDA3'!Q166 -> 0 | AF166: ='T1'!O166 -> 0 | AG166: ='T2'!M166 -> 0 | AH166: =T3_R1!N166 -> 0
A167: =IF(INTRO!$E$34<>0,INTRO!$E$34,"") -> DRC | B167: Kasai Central | C167: Mwetshi | D167: 134135 | E167: =IF(INTRO!$E$48="","",ROUND($D167*INTRO!$E$48,0)) -> 22803 | F167: =IF(INTRO!$E$49="","",ROUND($D167*INTRO!$E$49,0)) -> 46947 | G167: =IF(INTRO!$E$50="","",ROUND($D167*INTRO!$E$50,0)) -> 61702 | H167: 0 | I167: 1 | J167: 3 | K167: 1 | L167: 1 | M167: =IF(INTRO!$E$38="Endémique", IF($H167>0, IF($H167=4,"Inconnu", IF($H167=99,"Interrompu", $D167)), 0),"Non requis") -> 0 | N167: =IF(INTRO!$E$40="Endémique", IF($I167>0, IF($I167=4,"Inconnu",IF($I167=99,"Interrompu", $D167)), 0),"Non requis") -> 134135 | O167: =IF(INTRO!$E$42="Endémique", IF(AND($J167>1,$J167<5), IF($J167=4, "Inconnu", E167+F167), 0),"Non requis") -> 69750 | P167: =IF(INTRO!$E$44="Endémique", IF(AND($K167>0,$K167<5), IF($K167=4,"Inconnu", IF($K167=1, $F167*0.33, IF($K167=2, $F167*0.5+$G167*0.2, SUM(F167:G167)))), 0),"Non requis") -> 15492.51 | Q167: 0 | R167: 1 | S167: 1 | T167: 1 | U167: MDA3 (IVM) | V167: T1 (PZQ+ALB/MBD) | W167: 14000 | X167: Mwetshi | Y167: TRUE | Z167: 2.531547212 | AA167: 137618.8871 | AC167: ='MDA1'!M167 -> 0 | AD167: ='MDA4'!U167 -> 0 | AE167: ='MDA3'!Q167 -> 110623 | AF167: ='T1'!O167 -> 35518 | AG167: ='T2'!M167 -> 0 | AH167: =T3_R1!N167 -> 0
A168: =IF(INTRO!$E$34<>0,INTRO!$E$34,"") -> DRC | B168: Kasai Central | C168: Ndekesha | D168: 184805 | E168: =IF(INTRO!$E$48="","",ROUND($D168*INTRO!$E$48,0)) -> 31417 | F168: =IF(INTRO!$E$49="","",ROUND($D168*INTRO!$E$49,0)) -> 64682 | G168: =IF(INTRO!$E$50="","",ROUND($D168*INTRO!$E$50,0)) -> 85010 | H168: 0 | I168: 1 | J168: 2 | K168: 0 | L168: 1 | M168: =IF(INTRO!$E$38="Endémique", IF($H168>0, IF($H168=4,"Inconnu", IF($H168=99,"Interrompu", $D168)), 0),"Non requis") -> 0 | N168: =IF(INTRO!$E$40="Endémique", IF($I168>0, IF($I168=4,"Inconnu",IF($I168=99,"Interrompu", $D168)), 0),"Non requis") -> 184805 | O168: =IF(INTRO!$E$42="Endémique", IF(AND($J168>1,$J168<5), IF($J168=4, "Inconnu", E168+F168), 0),"Non requis") -> 96099 | P168: =IF(INTRO!$E$44="Endémique", IF(AND($K168>0,$K168<5), IF($K168=4,"Inconnu", IF($K168=1, $F168*0.33, IF($K168=2, $F168*0.5+$G168*0.2, SUM(F168:G168)))), 0),"Non requis") -> 0 | Q168: 0 | R168: 1 | S168: 1 | T168: 0 | U168: MDA3 (IVM) | V168: T3 (ALB/MBD) | W168: 14001 | X168: Ndekesha | Y168: TRUE | Z168: 4.313616132 | AA168: 177162.8737 | AC168: ='MDA1'!M168 -> 0 | AD168: ='MDA4'!U168 -> 0 | AE168: ='MDA3'!Q168 -> 150589 | AF168: ='T1'!O168 -> 0 | AG168: ='T2'!M168 -> 0 | AH168: =T3_R1!N168 -> 61985
A169: =IF(INTRO!$E$34<>0,INTRO!$E$34,"") -> DRC | B169: Kasai Central | C169: Ndesha | D169: 123139 | E169: =IF(INTRO!$E$48="","",ROUND($D169*INTRO!$E$48,0)) -> 20934 | F169: =IF(INTRO!$E$49="","",ROUND($D169*INTRO!$E$49,0)) -> 43099 | G169: =IF(INTRO!$E$50="","",ROUND($D169*INTRO!$E$50,0)) -> 56644 | H169: 0 | I169: 1 | J169: 2 | K169: 0 | L169: 1 | M169: =IF(INTRO!$E$38="Endémique", IF($H169>0, IF($H169=4,"Inconnu", IF($H169=99,"Interrompu", $D169)), 0),"Non requis") -> 0 | N169: =IF(INTRO!$E$40="Endémique", IF($I169>0, IF($I169=4,"Inconnu",IF($I169=99,"Interrompu", $D169)), 0),"Non requis") -> 123139 | O169: =IF(INTRO!$E$42="Endémique", IF(AND($J169>1,$J169<5), IF($J169=4, "Inconnu", E169+F169), 0),"Non requis") -> 64033 | P169: =IF(INTRO!$E$44="Endémique", IF(AND($K169>0,$K169<5), IF($K169=4,"Inconnu", IF($K169=1, $F169*0.33, IF($K169=2, $F169*0.5+$G169*0.2, SUM(F169:G169)))), 0),"Non requis") -> 0 | Q169: 0 | R169: 1 | S169: 1 | T169: 0 | U169: MDA3 (IVM) | V169: T3 (ALB/MBD) | W169: 14002 | X169: Ndesha | Y169: TRUE | Z169: 13.88263229 | AA169: 108127.9889 | AC169: ='MDA1'!M169 -> 0 | AD169: ='MDA4'!U169 -> 0 | AE169: ='MDA3'!Q169 -> 101262 | AF169: ='T1'!O169 -> 0 | AG169: ='T2'!M169 -> 0 | AH169: =T3_R1!N169 -> 41406
A170: =IF(INTRO!$E$34<>0,INTRO!$E$34,"") -> DRC | B170: Kasai Central | C170: Tshibala | D170: 275030 | E170: =IF(INTRO!$E$48="","",ROUND($D170*INTRO!$E$48,0)) -> 46755 | F170: =IF(INTRO!$E$49="","",ROUND($D170*INTRO!$E$49,0)) -> 96261 | G170: =IF(INTRO!$E$50="","",ROUND($D170*INTRO!$E$50,0)) -> 126514 | H170: 1 | I170: 1 | J170: 2 | K170: 0 | L170: 1 | M170: =IF(INTRO!$E$38="Endémique", IF($H170>0, IF($H170=4,"Inconnu", IF($H170=99,"Interrompu", $D170)), 0),"Non requis") -> 275030 | N170: =IF(INTRO!$E$40="Endémique", IF($I170>0, IF($I170=4,"Inconnu",IF($I170=99,"Interrompu", $D170)), 0),"Non requis") -> 275030 | O170: =IF(INTRO!$E$42="Endémique", IF(AND($J170>1,$J170<5), IF($J170=4, "Inconnu", E170+F170), 0),"Non requis") -> 143016 | P170: =IF(INTRO!$E$44="Endémique", IF(AND($K170>0,$K170<5), IF($K170=4,"Inconnu", IF($K170=1, $F170*0.33, IF($K170=2, $F170*0.5+$G170*0.2, SUM(F170:G170)))), 0),"Non requis") -> 0 | Q170: 1 | R170: 1 | S170: 1 | T170: 0 | U170: MDA1 (IVM+ALB) | W170: 14005 | X170: Tshibala | Y170: TRUE | Z170: 1.021803791 | AA170: 272248.158 | AC170: ='MDA1'!M170 -> 226274 | AD170: ='MDA4'!U170 -> 0 | AE170: ='MDA3'!Q170 -> 0 | AF170: ='T1'!O170 -> 0 | AG170: ='T2'!M170 -> 0 | AH170: =T3_R1!N170 -> 0
A171: =IF(INTRO!$E$34<>0,INTRO!$E$34,"") -> DRC | B171: Kasai Central | C171: Tshikaji | D171: 144759 | E171: =IF(INTRO!$E$48="","",ROUND($D171*INTRO!$E$48,0)) -> 24609 | F171: =IF(INTRO!$E$49="","",ROUND($D171*INTRO!$E$49,0)) -> 50666 | G171: =IF(INTRO!$E$50="","",ROUND($D171*INTRO!$E$50,0)) -> 66589 | H171: 0 | I171: 1 | J171: 3 | K171: 0 | L171: 1 | M171: =IF(INTRO!$E$38="Endémique", IF($H171>0, IF($H171=4,"Inconnu", IF($H171=99,"Interrompu", $D171)), 0),"Non requis") -> 0 | N171: =IF(INTRO!$E$40="Endémique", IF($I171>0, IF($I171=4,"Inconnu",IF($I171=99,"Interrompu", $D171)), 0),"Non requis") -> 144759 | O171: =IF(INTRO!$E$42="Endémique", IF(AND($J171>1,$J171<5), IF($J171=4, "Inconnu", E171+F171), 0),"Non requis") -> 75275 | P171: =IF(INTRO!$E$44="Endémique", IF(AND($K171>0,$K171<5), IF($K171=4,"Inconnu", IF($K171=1, $F171*0.33, IF($K171=2, $F171*0.5+$G171*0.2, SUM(F171:G171)))), 0),"Non requis") -> 0 | Q171: 0 | R171: 1 | S171: 1 | T171: 0 | U171: MDA3 (IVM) | V171: T3 (ALB/MBD) | W171: 14058 | X171: Tshikaji | Y171: TRUE | Z171: 3.671441539 | AA171: 139632.4753 | AC171: ='MDA1'!M171 -> 0 | AD171: ='MDA4'!U171 -> 0 | AE171: ='MDA3'!Q171 -> 118256 | AF171: ='T1'!O171 -> 0 | AG171: ='T2'!M171 -> 0 | AH171: =T3_R1!N171 -> 41471
A172: =IF(INTRO!$E$34<>0,INTRO!$E$34,"") -> DRC | B172: Kasai Central | C172: Tshikula | D172: 155065 | E172: =IF(INTRO!$E$48="","",ROUND($D172*INTRO!$E$48,0)) -> 26361 | F172: =IF(INTRO!$E$49="","",ROUND($D172*INTRO!$E$49,0)) -> 54273 | G172: =IF(INTRO!$E$50="","",ROUND($D172*INTRO!$E$50,0)) -> 71330 | H172: 0 | I172: 1 | J172: 2 | K172: 0 | L172: 1 | M172: =IF(INTRO!$E$38="Endémique", IF($H172>0, IF($H172=4,"Inconnu", IF($H172=99,"Interrompu", $D172)), 0),"Non requis") -> 0 | N172: =IF(INTRO!$E$40="Endémique", IF($I172>0, IF($I172=4,"Inconnu",IF($I172=99,"Interrompu", $D172)), 0),"Non requis") -> 155065 | O172: =IF(INTRO!$E$42="Endémique", IF(AND($J172>1,$J172<5), IF($J172=4, "Inconnu", E172+F172), 0),"Non requis") -> 80634 | P172: =IF(INTRO!$E$44="Endémique", IF(AND($K172>0,$K172<5), IF($K172=4,"Inconnu", IF($K172=1, $F172*0.33, IF($K172=2, $F172*0.5+$G172*0.2, SUM(F172:G172)))), 0),"Non requis") -> 0 | Q172: 0 | R172: 1 | S172: 1 | T172: 0 | U172: MDA3 (IVM) | V172: T3 (ALB/MBD) | W172: 14007 | X172: Tshikula | Y172: TRUE | Z172: 3.343075507 | AA172: 160428.2371 | AC172: ='MDA1'!M172 -> 0 | AD172: ='MDA4'!U172 -> 0 | AE172: ='MDA3'!Q172 -> 125746 | AF172: ='T1'!O172 -> 0 | AG172: ='T2'!M172 -> 0 | AH172: =T3_R1!N172 -> 39002
A173: =IF(INTRO!$E$34<>0,INTRO!$E$34,"") -> DRC | B173: Kasai Central | C173: Yangala | D173: 179526 | E173: =IF(INTRO!$E$48="","",ROUND($D173*INTRO!$E$48,0)) -> 30519 | F173: =IF(INTRO!$E$49="","",ROUND($D173*INTRO!$E$49,0)) -> 62834 | G173: =IF(INTRO!$E$50="","",ROUND($D173*INTRO!$E$50,0)) -> 82582 | H173: 1 | I173: 1 | J173: 2 | K173: 1 | L173: 0 | M173: =IF(INTRO!$E$38="Endémique", IF($H173>0, IF($H173=4,"Inconnu", IF($H173=99,"Interrompu", $D173)), 0),"Non requis") -> 179526 | N173: =IF(INTRO!$E$40="Endémique", IF($I173>0, IF($I173=4,"Inconnu",IF($I173=99,"Interrompu", $D173)), 0),"Non requis") -> 179526 | O173: =IF(INTRO!$E$42="Endémique", IF(AND($J173>1,$J173<5), IF($J173=4, "Inconnu", E173+F173), 0),"Non requis") -> 93353 | P173: =IF(INTRO!$E$44="Endémique", IF(AND($K173>0,$K173<5), IF($K173=4,"Inconnu", IF($K173=1, $F173*0.33, IF($K173=2, $F173*0.5+$G173*0.2, SUM(F173:G173)))), 0),"Non requis") -> 20735.22 | Q173: 1 | R173: 1 | S173: 1 | T173: 1 | U173: MDA1 (IVM+ALB) | V173: T2 (PZQ) | W173: 14008 | X173: Yangala | Y173: TRUE | Z173: 2.84333069 | AA173: 174562.6078 | AC173: ='MDA1'!M173 -> 146643 | AD173: ='MDA4'!U173 -> 0 | AE173: ='MDA3'!Q173 -> 0 | AF173: ='T1'!O173 -> 0 | AG173: ='T2'!M173 -> 61043 | AH173: =T3_R1!N173 -> 0
A174: =IF(INTRO!$E$34<>0,INTRO!$E$34,"") -> DRC | B174: KASAI ORIENTAL | C174: Bibanga | D174: 169897 | E174: =IF(INTRO!$E$48="","",ROUND($D174*INTRO!$E$48,0)) -> 28882 | F174: =IF(INTRO!$E$49="","",ROUND($D174*INTRO!$E$49,0)) -> 59464 | G174: =IF(INTRO!$E$50="","",ROUND($D174*INTRO!$E$50,0)) -> 78153 | H174: 1 | I174: 1 | J174: 1 | K174: 2 | L174: 0 | M174: =IF(INTRO!$E$38="Endémique", IF($H174>0, IF($H174=4,"Inconnu", IF($H174=99,"Interrompu", $D174)), 0),"Non requis") -> 169897 | N174: =IF(INTRO!$E$40="Endémique", IF($I174>0, IF($I174=4,"Inconnu",IF($I174=99,"Interrompu", $D174)), 0),"Non requis") -> 169897 | O174: =IF(INTRO!$E$42="Endémique", IF(AND($J174>1,$J174<5), IF($J174=4, "Inconnu", E174+F174), 0),"Non requis") -> 0 | P174: =IF(INTRO!$E$44="Endémique", IF(AND($K174>0,$K174<5), IF($K174=4,"Inconnu", IF($K174=1, $F174*0.33, IF($K174=2, $F174*0.5+$G174*0.2, SUM(F174:G174)))), 0),"Non requis") -> 45362.6 | Q174: 1 | R174: 1 | S174: 0 | T174: 1 | U174: MDA1 (IVM+ALB) | V174: T2 (PZQ) | W174: 14010 | X174: Bibanga | Y174: TRUE | Z174: 2.109348092 | AA174: 166387.3124 | AC174: ='MDA1'!M174 -> 133921 | AD174: ='MDA4'!U174 -> 0 | AE174: ='MDA3'!Q174 -> 0 | AF174: ='T1'!O174 -> 0 | AG174: ='T2'!M174 -> 58726 | AH174: =T3_R1!N174 -> 0
A175: =IF(INTRO!$E$34<>0,INTRO!$E$34,"") -> DRC | B175: KASAI ORIENTAL | C175: Bimpemba | D175: 272632 | E175: =IF(INTRO!$E$48="","",ROUND($D175*INTRO!$E$48,0)) -> 46347 | F175: =IF(INTRO!$E$49="","",ROUND($D175*INTRO!$E$49,0)) -> 95421 | G175: =IF(INTRO!$E$50="","",ROUND($D175*INTRO!$E$50,0)) -> 125411 | H175: 0 | I175: 4 | J175: 1 | K175: 2 | L175: 0 | M175: =IF(INTRO!$E$38="Endémique", IF($H175>0, IF($H175=4,"Inconnu", IF($H175=99,"Interrompu", $D175)), 0),"Non requis") -> 0 | N175: =IF(INTRO!$E$40="Endémique", IF($I175>0, IF($I175=4,"Inconnu",IF($I175=99,"Interrompu", $D175)), 0),"Non requis") -> Inconnu | O175: =IF(INTRO!$E$42="Endémique", IF(AND($J175>1,$J175<5), IF($J175=4, "Inconnu", E175+F175), 0),"Non requis") -> 0 | P175: =IF(INTRO!$E$44="Endémique", IF(AND($K175>0,$K175<5), IF($K175=4,"Inconnu", IF($K175=1, $F175*0.33, IF($K175=2, $F175*0.5+$G175*0.2, SUM(F175:G175)))), 0),"Non requis") -> 72792.7 | Q175: 0 | R175: 0 | S175: 0 | T175: 0 | W175: 14011 | X175: Bimpemba | Y175: TRUE | Z175: 9.903469417e-05 | AA175: 272631.73 | AC175: ='MDA1'!M175 -> 0 | AD175: ='MDA4'!U175 -> 0 | AE175: ='MDA3'!Q175 -> 0 | AF175: ='T1'!O175 -> 0 | AG175: ='T2'!M175 -> 0 | AH175: =T3_R1!N175 -> 0
A176: =IF(INTRO!$E$34<>0,INTRO!$E$34,"") -> DRC | B176: KASAI ORIENTAL | C176: Bonzola | D176: 173722 | E176: =IF(INTRO!$E$48="","",ROUND($D176*INTRO!$E$48,0)) -> 29533 | F176: =IF(INTRO!$E$49="","",ROUND($D176*INTRO!$E$49,0)) -> 60803 | G176: =IF(INTRO!$E$50="","",ROUND($D176*INTRO!$E$50,0)) -> 79912 | H176: 1 | I176: 4 | J176: 1 | K176: 1 | L176: 0 | M176: =IF(INTRO!$E$38="Endémique", IF($H176>0, IF($H176=4,"Inconnu", IF($H176=99,"Interrompu", $D176)), 0),"Non requis") -> 173722 | N176: =IF(INTRO!$E$40="Endémique", IF($I176>0, IF($I176=4,"Inconnu",IF($I176=99,"Interrompu", $D176)), 0),"Non requis") -> Inconnu | O176: =IF(INTRO!$E$42="Endémique", IF(AND($J176>1,$J176<5), IF($J176=4, "Inconnu", E176+F176), 0),"Non requis") -> 0 | P176: =IF(INTRO!$E$44="Endémique", IF(AND($K176>0,$K176<5), IF($K176=4,"Inconnu", IF($K176=1, $F176*0.33, IF($K176=2, $F176*0.5+$G176*0.2, SUM(F176:G176)))), 0),"Non requis") -> 20064.99 | Q176: 1 | R176: 0 | S176: 0 | T176: 1 | U176: MDA1 (IVM+ALB) | V176: T2 (PZQ) | W176: 14012 | X176: Bonzola | Y176: TRUE | Z176: 12.03066093 | AA176: 197480.1696 | AC176: ='MDA1'!M176 -> 155738 | AD176: ='MDA4'!U176 -> 0 | AE176: ='MDA3'!Q176 -> 0 | AF176: ='T1'!O176 -> 0 | AG176: ='T2'!M176 -> 64182 | AH176: =T3_R1!N176 -> 0
A177: =IF(INTRO!$E$34<>0,INTRO!$E$34,"") -> DRC | B177: KASAI ORIENTAL | C177: Dibindi | D177: 300545 | E177: =IF(INTRO!$E$48="","",ROUND($D177*INTRO!$E$48,0)) -> 51093 | F177: =IF(INTRO!$E$49="","",ROUND($D177*INTRO!$E$49,0)) -> 105191 | G177: =IF(INTRO!$E$50="","",ROUND($D177*INTRO!$E$50,0)) -> 138251 | H177: 0 | I177: 4 | J177: 2 | K177: 2 | L177: 0 | M177: =IF(INTRO!$E$38="Endémique", IF($H177>0, IF($H177=4,"Inconnu", IF($H177=99,"Interrompu", $D177)), 0),"Non requis") -> 0 | N177: =IF(INTRO!$E$40="Endémique", IF($I177>0, IF($I177=4,"Inconnu",IF($I177=99,"Interrompu", $D177)), 0),"Non requis") -> Inconnu | O177: =IF(INTRO!$E$42="Endémique", IF(AND($J177>1,$J177<5), IF($J177=4, "Inconnu", E177+F177), 0),"Non requis") -> 156284 | P177: =IF(INTRO!$E$44="Endémique", IF(AND($K177>0,$K177<5), IF($K177=4,"Inconnu", IF($K177=1, $F177*0.33, IF($K177=2, $F177*0.5+$G177*0.2, SUM(F177:G177)))), 0),"Non requis") -> 80245.7 | Q177: 0 | R177: 0 | S177: 1 | T177: 0 | U177: T3 (ALB/MBD) | W177: 14013 | X177: Dibindi | Y177: TRUE | Z177: 5.356274875 | AA177: 285265.401 | AC177: ='MDA1'!M177 -> 0 | AD177: ='MDA4'!U177 -> 0 | AE177: ='MDA3'!Q177 -> 0 | AF177: ='T1'!O177 -> 0 | AG177: ='T2'!M177 -> 0 | AH177: =T3_R1!N177 -> 84518
A178: =IF(INTRO!$E$34<>0,INTRO!$E$34,"") -> DRC | B178: KASAI ORIENTAL | C178: Diulu | D178: 416102 | E178: =IF(INTRO!$E$48="","",ROUND($D178*INTRO!$E$48,0)) -> 70737 | F178: =IF(INTRO!$E$49="","",ROUND($D178*INTRO!$E$49,0)) -> 145636 | G178: =IF(INTRO!$E$50="","",ROUND($D178*INTRO!$E$50,0)) -> 191407 | H178: 0 | I178: 4 | J178: 1 | K178: 2 | L178: 0 | M178: =IF(INTRO!$E$38="Endémique", IF($H178>0, IF($H178=4,"Inconnu", IF($H178=99,"Interrompu", $D178)), 0),"Non requis") -> 0 | N178: =IF(INTRO!$E$40="Endémique", IF($I178>0, IF($I178=4,"Inconnu",IF($I178=99,"Interrompu", $D178)), 0),"Non requis") -> Inconnu | O178: =IF(INTRO!$E$42="Endémique", IF(AND($J178>1,$J178<5), IF($J178=4, "Inconnu", E178+F178), 0),"Non requis") -> 0 | P178: =IF(INTRO!$E$44="Endémique", IF(AND($K178>0,$K178<5), IF($K178=4,"Inconnu", IF($K178=1, $F178*0.33, IF($K178=2, $F178*0.5+$G178*0.2, SUM(F178:G178)))), 0),"Non requis") -> 111099.4 | Q178: 0 | R178: 0 | S178: 0 | T178: 0 | W178: 14014 | X178: Diulu | Y178: TRUE | Z178: 0.0001177594491 | AA178: 416102.49 | AC178: ='MDA1'!M178 -> 0 | AD178: ='MDA4'!U178 -> 0 | AE178: ='MDA3'!Q178 -> 0 | AF178: ='T1'!O178 -> 0 | AG178: ='T2'!M178 -> 0 | AH178: =T3_R1!N178 -> 0
A179: =IF(INTRO!$E$34<>0,INTRO!$E$34,"") -> DRC | B179: KASAI ORIENTAL | C179: Kabeya Kamuanga | D179: 206349 | E179: =IF(INTRO!$E$48="","",ROUND($D179*INTRO!$E$48,0)) -> 35079 | F179: =IF(INTRO!$E$49="","",ROUND($D179*INTRO!$E$49,0)) -> 72222 | G179: =IF(INTRO!$E$50="","",ROUND($D179*INTRO!$E$50,0)) -> 94921 | H179: 0 | I179: 1 | J179: 1 | K179: 2 | L179: 0 | M179: =IF(INTRO!$E$38="Endémique", IF($H179>0, IF($H179=4,"Inconnu", IF($H179=99,"Interrompu", $D179)), 0),"Non requis") -> 0 | N179: =IF(INTRO!$E$40="Endémique", IF($I179>0, IF($I179=4,"Inconnu",IF($I179=99,"Interrompu", $D179)), 0),"Non requis") -> 206349 | O179: =IF(INTRO!$E$42="Endémique", IF(AND($J179>1,$J179<5), IF($J179=4, "Inconnu", E179+F179), 0),"Non requis") -> 0 | P179: =IF(INTRO!$E$44="Endémique", IF(AND($K179>0,$K179<5), IF($K179=4,"Inconnu", IF($K179=1, $F179*0.33, IF($K179=2, $F179*0.5+$G179*0.2, SUM(F179:G179)))), 0),"Non requis") -> 55095.2 | Q179: 0 | R179: 1 | S179: 0 | T179: 1 | U179: MDA3 (IVM) | V179: T2 (PZQ) | W179: 14016 | X179: Kabeya Kamuanga | Y179: TRUE | Z179: 0.08798086357 | AA179: 206530.7075 | AC179: ='MDA1'!M179 -> 0 | AD179: ='MDA4'!U179 -> 0 | AE179: ='MDA3'!Q179 -> 166043 | AF179: ='T1'!O179 -> 0 | AG179: ='T2'!M179 -> 65754 | AH179: =T3_R1!N179 -> 0
A180: =IF(INTRO!$E$34<>0,INTRO!$E$34,"") -> DRC | B180: KASAI ORIENTAL | C180: Kansele | D180: 243284 | E180: =IF(INTRO!$E$48="","",ROUND($D180*INTRO!$E$48,0)) -> 41358 | F180: =IF(INTRO!$E$49="","",ROUND($D180*INTRO!$E$49,0)) -> 85149 | G180: =IF(INTRO!$E$50="","",ROUND($D180*INTRO!$E$50,0)) -> 111911 | H180: 0 | I180: 4 | J180: 2 | K180: 1 | L180: 0 | M180: =IF(INTRO!$E$38="Endémique", IF($H180>0, IF($H180=4,"Inconnu", IF($H180=99,"Interrompu", $D180)), 0),"Non requis") -> 0 | N180: =IF(INTRO!$E$40="Endémique", IF($I180>0, IF($I180=4,"Inconnu",IF($I180=99,"Interrompu", $D180)), 0),"Non requis") -> Inconnu | O180: =IF(INTRO!$E$42="Endémique", IF(AND($J180>1,$J180<5), IF($J180=4, "Inconnu", E180+F180), 0),"Non requis") -> 126507 | P180: =IF(INTRO!$E$44="Endémique", IF(AND($K180>0,$K180<5), IF($K180=4,"Inconnu", IF($K180=1, $F180*0.33, IF($K180=2, $F180*0.5+$G180*0.2, SUM(F180:G180)))), 0),"Non requis") -> 28099.17 | Q180: 0 | R180: 0 | S180: 1 | T180: 1 | U180: T1 (PZQ+ALB/MBD) | W180: 14024 | X180: Kansele | Y180: TRUE | Z180: 15.12411933 | AA180: 286635.0229 | AC180: ='MDA1'!M180 -> 0 | AD180: ='MDA4'!U180 -> 0 | AE180: ='MDA3'!Q180 -> 0 | AF180: ='T1'!O180 -> 89430 | AG180: ='T2'!M180 -> 0 | AH180: =T3_R1!N180 -> 0
A181: =IF(INTRO!$E$34<>0,INTRO!$E$34,"") -> DRC | B181: KASAI ORIENTAL | C181: Kasansa | D181: 232325 | E181: =IF(INTRO!$E$48="","",ROUND($D181*INTRO!$E$48,0)) -> 39495 | F181: =IF(INTRO!$E$49="","",ROUND($D181*INTRO!$E$49,0)) -> 81314 | G181: =IF(INTRO!$E$50="","",ROUND($D181*INTRO!$E$50,0)) -> 106870 | H181: 0 | I181: 1 | J181: 1 | K181: 2 | L181: 0 | M181: =IF(INTRO!$E$38="Endémique", IF($H181>0, IF($H181=4,"Inconnu", IF($H181=99,"Interrompu", $D181)), 0),"Non requis") -> 0 | N181: =IF(INTRO!$E$40="Endémique", IF($I181>0, IF($I181=4,"Inconnu",IF($I181=99,"Interrompu", $D181)), 0),"Non requis") -> 232325 | O181: =IF(INTRO!$E$42="Endémique", IF(AND($J181>1,$J181<5), IF($J181=4, "Inconnu", E181+F181), 0),"Non requis") -> 0 | P181: =IF(INTRO!$E$44="Endémique", IF(AND($K181>0,$K181<5), IF($K181=4,"Inconnu", IF($K181=1, $F181*0.33, IF($K181=2, $F181*0.5+$G181*0.2, SUM(F181:G181)))), 0),"Non requis") -> 62031 | Q181: 0 | R181: 1 | S181: 0 | T181: 1 | U181: MDA3 (IVM) | V181: T2 (PZQ) | W181: 14025 | X181: Kasansa | Y181: TRUE | Z181: 0.440722961 | AA181: 233353.4422 | AC181: ='MDA1'!M181 -> 0 | AD181: ='MDA4'!U181 -> 0 | AE181: ='MDA3'!Q181 -> 187325 | AF181: ='T1'!O181 -> 0 | AG181: ='T2'!M181 -> 68658 | AH181: =T3_R1!N181 -> 0
A182: =IF(INTRO!$E$34<>0,INTRO!$E$34,"") -> DRC | B182: KASAI ORIENTAL | C182: Lubilanji | D182: 260389 | E182: =IF(INTRO!$E$48="","",ROUND($D182*INTRO!$E$48,0)) -> 44266 | F182: =IF(INTRO!$E$49="","",ROUND($D182*INTRO!$E$49,0)) -> 91136 | G182: =IF(INTRO!$E$50="","",ROUND($D182*INTRO!$E$50,0)) -> 119779 | H182: 1 | I182: 4 | J182: 2 | K182: 2 | L182: 0 | M182: =IF(INTRO!$E$38="Endémique", IF($H182>0, IF($H182=4,"Inconnu", IF($H182=99,"Interrompu", $D182)), 0),"Non requis") -> 260389 | N182: =IF(INTRO!$E$40="Endémique", IF($I182>0, IF($I182=4,"Inconnu",IF($I182=99,"Interrompu", $D182)), 0),"Non requis") -> Inconnu | O182: =IF(INTRO!$E$42="Endémique", IF(AND($J182>1,$J182<5), IF($J182=4, "Inconnu", E182+F182), 0),"Non requis") -> 135402 | P182: =IF(INTRO!$E$44="Endémique", IF(AND($K182>0,$K182<5), IF($K182=4,"Inconnu", IF($K182=1, $F182*0.33, IF($K182=2, $F182*0.5+$G182*0.2, SUM(F182:G182)))), 0),"Non requis") -> 69523.8 | Q182: 1 | R182: 0 | S182: 1 | T182: 0 | U182: MDA1 (IVM+ALB) | W182: 14031 | X182: Lubilanji | Y182: TRUE | Z182: 9.929024733 | AA182: 289093.1282 | AC182: ='MDA1'!M182 -> 209466 | AD182: ='MDA4'!U182 -> 0 | AE182: ='MDA3'!Q182 -> 0 | AF182: ='T1'!O182 -> 0 | AG182: ='T2'!M182 -> 0 | AH182: =T3_R1!N182 -> 0
A183: =IF(INTRO!$E$34<>0,INTRO!$E$34,"") -> DRC | B183: KASAI ORIENTAL | C183: Lukelenge | D183: 295267 | E183: =IF(INTRO!$E$48="","",ROUND($D183*INTRO!$E$48,0)) -> 50195 | F183: =IF(INTRO!$E$49="","",ROUND($D183*INTRO!$E$49,0)) -> 103343 | G183: =IF(INTRO!$E$50="","",ROUND($D183*INTRO!$E$50,0)) -> 135823 | H183: 0 | I183: 4 | J183: 1 | K183: 2 | L183: 0 | M183: =IF(INTRO!$E$38="Endémique", IF($H183>0, IF($H183=4,"Inconnu", IF($H183=99,"Interrompu", $D183)), 0),"Non requis") -> 0 | N183: =IF(INTRO!$E$40="Endémique", IF($I183>0, IF($I183=4,"Inconnu",IF($I183=99,"Interrompu", $D183)), 0),"Non requis") -> Inconnu | O183: =IF(INTRO!$E$42="Endémique", IF(AND($J183>1,$J183<5), IF($J183=4, "Inconnu", E183+F183), 0),"Non requis") -> 0 | P183: =IF(INTRO!$E$44="Endémique", IF(AND($K183>0,$K183<5), IF($K183=4,"Inconnu", IF($K183=1, $F183*0.33, IF($K183=2, $F183*0.5+$G183*0.2, SUM(F183:G183)))), 0),"Non requis") -> 78836.1 | Q183: 0 | R183: 0 | S183: 0 | T183: 1 | U183: T2 (PZQ) | W183: 14033 | X183: Lukelenge | Y183: TRUE | Z183: 0.0001675435551 | AA183: 295266.5053 | AC183: ='MDA1'!M183 -> 0 | AD183: ='MDA4'!U183 -> 0 | AE183: ='MDA3'!Q183 -> 0 | AF183: ='T1'!O183 -> 0 | AG183: ='T2'!M183 -> 94563 | AH183: =T3_R1!N183 -> 0
A184: =IF(INTRO!$E$34<>0,INTRO!$E$34,"") -> DRC | B184: KASAI ORIENTAL | C184: Miabi | D184: 169929 | E184: =IF(INTRO!$E$48="","",ROUND($D184*INTRO!$E$48,0)) -> 28888 | F184: =IF(INTRO!$E$49="","",ROUND($D184*INTRO!$E$49,0)) -> 59475 | G184: =IF(INTRO!$E$50="","",ROUND($D184*INTRO!$E$50,0)) -> 78167 | H184: 0 | I184: 1 | J184: 1 | K184: 1 | L184: 0 | M184: =IF(INTRO!$E$38="Endémique", IF($H184>0, IF($H184=4,"Inconnu", IF($H184=99,"Interrompu", $D184)), 0),"Non requis") -> 0 | N184: =IF(INTRO!$E$40="Endémique", IF($I184>0, IF($I184=4,"Inconnu",IF($I184=99,"Interrompu", $D184)), 0),"Non requis") -> 169929 | O184: =IF(INTRO!$E$42="Endémique", IF(AND($J184>1,$J184<5), IF($J184=4, "Inconnu", E184+F184), 0),"Non requis") -> 0 | P184: =IF(INTRO!$E$44="Endémique", IF(AND($K184>0,$K184<5), IF($K184=4,"Inconnu", IF($K184=1, $F184*0.33, IF($K184=2, $F184*0.5+$G184*0.2, SUM(F184:G184)))), 0),"Non requis") -> 19626.75 | Q184: 0 | R184: 1 | S184: 0 | T184: 1 | U184: MDA3 (IVM) | V184: T2 (PZQ) | W184: 14037 | X184: Miabi | Y184: TRUE | Z184: 3.261151966 | AA184: 175657.4566 | AC184: ='MDA1'!M184 -> 0 | AD184: ='MDA4'!U184 -> 0 | AE184: ='MDA3'!Q184 -> 137271 | AF184: ='T1'!O184 -> 0 | AG184: ='T2'!M184 -> 48051 | AH184: =T3_R1!N184 -> 0
A185: =IF(INTRO!$E$34<>0,INTRO!$E$34,"") -> DRC | B185: KASAI ORIENTAL | C185: Mpokolo | D185: 309666 | E185: =IF(INTRO!$E$48="","",ROUND($D185*INTRO!$E$48,0)) -> 52643 | F185: =IF(INTRO!$E$49="","",ROUND($D185*INTRO!$E$49,0)) -> 108383 | G185: =IF(INTRO!$E$50="","",ROUND($D185*INTRO!$E$50,0)) -> 142446 | H185: 1 | I185: 4 | J185: 1 | K185: 2 | L185: 0 | M185: =IF(INTRO!$E$38="Endémique", IF($H185>0, IF($H185=4,"Inconnu", IF($H185=99,"Interrompu", $D185)), 0),"Non requis") -> 309666 | N185: =IF(INTRO!$E$40="Endémique", IF($I185>0, IF($I185=4,"Inconnu",IF($I185=99,"Interrompu", $D185)), 0),"Non requis") -> Inconnu | O185: =IF(INTRO!$E$42="Endémique", IF(AND($J185>1,$J185<5), IF($J185=4, "Inconnu", E185+F185), 0),"Non requis") -> 0 | P185: =IF(INTRO!$E$44="Endémique", IF(AND($K185>0,$K185<5), IF($K185=4,"Inconnu", IF($K185=1, $F185*0.33, IF($K185=2, $F185*0.5+$G185*0.2, SUM(F185:G185)))), 0),"Non requis") -> 82680.7 | Q185: 1 | R185: 0 | S185: 0 | T185: 1 | U185: MDA1 (IVM+ALB) | V185: T2 (PZQ) | W185: 14039 | X185: Mpokolo | Y185: TRUE | Z185: 1.560129155 | AA185: 304909.0254 | AC185: ='MDA1'!M185 -> 248434 | AD185: ='MDA4'!U185 -> 0 | AE185: ='MDA3'!Q185 -> 0 | AF185: ='T1'!O185 -> 0 | AG185: ='T2'!M185 -> 97565 | AH185: =T3_R1!N185 -> 0
A186: =IF(INTRO!$E$34<>0,INTRO!$E$34,"") -> DRC | B186: KASAI ORIENTAL | C186: Mukumbi | D186: 178585 | E186: =IF(INTRO!$E$48="","",ROUND($D186*INTRO!$E$48,0)) -> 30359 | F186: =IF(INTRO!$E$49="","",ROUND($D186*INTRO!$E$49,0)) -> 62505 | G186: =IF(INTRO!$E$50="","",ROUND($D186*INTRO!$E$50,0)) -> 82149 | H186: 1 | I186: 1 | J186: 1 | K186: 2 | L186: 0 | M186: =IF(INTRO!$E$38="Endémique", IF($H186>0, IF($H186=4,"Inconnu", IF($H186=99,"Interrompu", $D186)), 0),"Non requis") -> 178585 | N186: =IF(INTRO!$E$40="Endémique", IF($I186>0, IF($I186=4,"Inconnu",IF($I186=99,"Interrompu", $D186)), 0),"Non requis") -> 178585 | O186: =IF(INTRO!$E$42="Endémique", IF(AND($J186>1,$J186<5), IF($J186=4, "Inconnu", E186+F186), 0),"Non requis") -> 0 | P186: =IF(INTRO!$E$44="Endémique", IF(AND($K186>0,$K186<5), IF($K186=4,"Inconnu", IF($K186=1, $F186*0.33, IF($K186=2, $F186*0.5+$G186*0.2, SUM(F186:G186)))), 0),"Non requis") -> 47682.3 | Q186: 1 | R186: 1 | S186: 0 | T186: 0 | U186: MDA1 (IVM+ALB) | W186: 14040 | X186: Mukumbi | Y186: TRUE | Z186: 12.53903764 | AA186: 204188.2403 | AC186: ='MDA1'!M186 -> 143772 | AD186: ='MDA4'!U186 -> 0 | AE186: ='MDA3'!Q186 -> 0 | AF186: ='T1'!O186 -> 0 | AG186: ='T2'!M186 -> 0 | AH186: =T3_R1!N186 -> 0
A187: =IF(INTRO!$E$34<>0,INTRO!$E$34,"") -> DRC | B187: KASAI ORIENTAL | C187: Muya | D187: 354758 | E187: =IF(INTRO!$E$48="","",ROUND($D187*INTRO!$E$48,0)) -> 60309 | F187: =IF(INTRO!$E$49="","",ROUND($D187*INTRO!$E$49,0)) -> 124165 | G187: =IF(INTRO!$E$50="","",ROUND($D187*INTRO!$E$50,0)) -> 163189 | H187: 0 | I187: 4 | J187: 1 | K187: 2 | L187: 0 | M187: =IF(INTRO!$E$38="Endémique", IF($H187>0, IF($H187=4,"Inconnu", IF($H187=99,"Interrompu", $D187)), 0),"Non requis") -> 0 | N187: =IF(INTRO!$E$40="Endémique", IF($I187>0, IF($I187=4,"Inconnu",IF($I187=99,"Interrompu", $D187)), 0),"Non requis") -> Inconnu | O187: =IF(INTRO!$E$42="Endémique", IF(AND($J187>1,$J187<5), IF($J187=4, "Inconnu", E187+F187), 0),"Non requis") -> 0 | P187: =IF(INTRO!$E$44="Endémique", IF(AND($K187>0,$K187<5), IF($K187=4,"Inconnu", IF($K187=1, $F187*0.33, IF($K187=2, $F187*0.5+$G187*0.2, SUM(F187:G187)))), 0),"Non requis") -> 94720.3 | Q187: 0 | R187: 0 | S187: 0 | T187: 1 | U187: T2 (PZQ) | W187: 14042 | X187: Muya | Y187: TRUE | Z187: 0.000131441888 | AA187: 354757.5337 | AC187: ='MDA1'!M187 -> 0 | AD187: ='MDA4'!U187 -> 0 | AE187: ='MDA3'!Q187 -> 0 | AF187: ='T1'!O187 -> 0 | AG187: ='T2'!M187 -> 112265 | AH187: =T3_R1!N187 -> 0
A188: =IF(INTRO!$E$34<>0,INTRO!$E$34,"") -> DRC | B188: KASAI ORIENTAL | C188: Nzaba | D188: 256814 | E188: =IF(INTRO!$E$48="","",ROUND($D188*INTRO!$E$48,0)) -> 43658 | F188: =IF(INTRO!$E$49="","",ROUND($D188*INTRO!$E$49,0)) -> 89885 | G188: =IF(INTRO!$E$50="","",ROUND($D188*INTRO!$E$50,0)) -> 118134 | H188: 0 | I188: 4 | J188: 1 | K188: 1 | L188: 0 | M188: =IF(INTRO!$E$38="Endémique", IF($H188>0, IF($H188=4,"Inconnu", IF($H188=99,"Interrompu", $D188)), 0),"Non requis") -> 0 | N188: =IF(INTRO!$E$40="Endémique", IF($I188>0, IF($I188=4,"Inconnu",IF($I188=99,"Interrompu", $D188)), 0),"Non requis") -> Inconnu | O188: =IF(INTRO!$E$42="Endémique", IF(AND($J188>1,$J188<5), IF($J188=4, "Inconnu", E188+F188), 0),"Non requis") -> 0 | P188: =IF(INTRO!$E$44="Endémique", IF(AND($K188>0,$K188<5), IF($K188=4,"Inconnu", IF($K188=1, $F188*0.33, IF($K188=2, $F188*0.5+$G188*0.2, SUM(F188:G188)))), 0),"Non requis") -> 29662.05 | Q188: 0 | R188: 0 | S188: 0 | T188: 0 | W188: 14045 | X188: Nzaba | Y188: TRUE | Z188: 7.195864207e-05 | AA188: 256814.1848 | AC188: ='MDA1'!M188 -> 0 | AD188: ='MDA4'!U188 -> 0 | AE188: ='MDA3'!Q188 -> 0 | AF188: ='T1'!O188 -> 0 | AG188: ='T2'!M188 -> 0 | AH188: =T3_R1!N188 -> 0
A189: =IF(INTRO!$E$34<>0,INTRO!$E$34,"") -> DRC | B189: KASAI ORIENTAL | C189: Tshilenge | D189: 325311 | E189: =IF(INTRO!$E$48="","",ROUND($D189*INTRO!$E$48,0)) -> 55303 | F189: =IF(INTRO!$E$49="","",ROUND($D189*INTRO!$E$49,0)) -> 113859 | G189: =IF(INTRO!$E$50="","",ROUND($D189*INTRO!$E$50,0)) -> 149643 | H189: 0 | I189: 1 | J189: 2 | K189: 2 | L189: 0 | M189: =IF(INTRO!$E$38="Endémique", IF($H189>0, IF($H189=4,"Inconnu", IF($H189=99,"Interrompu", $D189)), 0),"Non requis") -> 0 | N189: =IF(INTRO!$E$40="Endémique", IF($I189>0, IF($I189=4,"Inconnu",IF($I189=99,"Interrompu", $D189)), 0),"Non requis") -> 325311 | O189: =IF(INTRO!$E$42="Endémique", IF(AND($J189>1,$J189<5), IF($J189=4, "Inconnu", E189+F189), 0),"Non requis") -> 169162 | P189: =IF(INTRO!$E$44="Endémique", IF(AND($K189>0,$K189<5), IF($K189=4,"Inconnu", IF($K189=1, $F189*0.33, IF($K189=2, $F189*0.5+$G189*0.2, SUM(F189:G189)))), 0),"Non requis") -> 86858.1 | Q189: 0 | R189: 1 | S189: 1 | T189: 1 | U189: MDA3 (IVM) | V189: T1 (PZQ+ALB/MBD) | W189: 14049 | X189: Tshilenge | Y189: TRUE | Z189: 0.4826570484 | AA189: 326888.7516 | AC189: ='MDA1'!M189 -> 0 | AD189: ='MDA4'!U189 -> 0 | AE189: ='MDA3'!Q189 -> 264119 | AF189: ='T1'!O189 -> 105511 | AG189: ='T2'!M189 -> 0 | AH189: =T3_R1!N189 -> 0
A190: =IF(INTRO!$E$34<>0,INTRO!$E$34,"") -> DRC | B190: KASAI ORIENTAL | C190: Tshilundu | D190: 207773 | E190: =IF(INTRO!$E$48="","",ROUND($D190*INTRO!$E$48,0)) -> 35321 | F190: =IF(INTRO!$E$49="","",ROUND($D190*INTRO!$E$49,0)) -> 72721 | G190: =IF(INTRO!$E$50="","",ROUND($D190*INTRO!$E$50,0)) -> 95576 | H190: 0 | I190: 1 | J190: 1 | K190: 1 | L190: 0 | M190: =IF(INTRO!$E$38="Endémique", IF($H190>0, IF($H190=4,"Inconnu", IF($H190=99,"Interrompu", $D190)), 0),"Non requis") -> 0 | N190: =IF(INTRO!$E$40="Endémique", IF($I190>0, IF($I190=4,"Inconnu",IF($I190=99,"Interrompu", $D190)), 0),"Non requis") -> 207773 | O190: =IF(INTRO!$E$42="Endémique", IF(AND($J190>1,$J190<5), IF($J190=4, "Inconnu", E190+F190), 0),"Non requis") -> 0 | P190: =IF(INTRO!$E$44="Endémique", IF(AND($K190>0,$K190<5), IF($K190=4,"Inconnu", IF($K190=1, $F190*0.33, IF($K190=2, $F190*0.5+$G190*0.2, SUM(F190:G190)))), 0),"Non requis") -> 23997.93 | Q190: 0 | R190: 1 | S190: 0 | T190: 1 | U190: MDA3 (IVM) | V190: T2 (PZQ) | W190: 14050 | X190: Tshilundu | Y190: TRUE | Z190: 1.700132848 | AA190: 204299.6348 | AC190: ='MDA1'!M190 -> 0 | AD190: ='MDA4'!U190 -> 0 | AE190: ='MDA3'!Q190 -> 162201 | AF190: ='T1'!O190 -> 0 | AG190: ='T2'!M190 -> 61140 | AH190: =T3_R1!N190 -> 0
A191: =IF(INTRO!$E$34<>0,INTRO!$E$34,"") -> DRC | B191: KASAI ORIENTAL | C191: Tshitenge | D191: 266900 | E191: =IF(INTRO!$E$48="","",ROUND($D191*INTRO!$E$48,0)) -> 45373 | F191: =IF(INTRO!$E$49="","",ROUND($D191*INTRO!$E$49,0)) -> 93415 | G191: =IF(INTRO!$E$50="","",ROUND($D191*INTRO!$E$50,0)) -> 122774 | H191: 1 | I191: 1 | J191: 1 | K191: 2 | L191: 0 | M191: =IF(INTRO!$E$38="Endémique", IF($H191>0, IF($H191=4,"Inconnu", IF($H191=99,"Interrompu", $D191)), 0),"Non requis") -> 266900 | N191: =IF(INTRO!$E$40="Endémique", IF($I191>0, IF($I191=4,"Inconnu",IF($I191=99,"Interrompu", $D191)), 0),"Non requis") -> 266900 | O191: =IF(INTRO!$E$42="Endémique", IF(AND($J191>1,$J191<5), IF($J191=4, "Inconnu", E191+F191), 0),"Non requis") -> 0 | P191: =IF(INTRO!$E$44="Endémique", IF(AND($K191>0,$K191<5), IF($K191=4,"Inconnu", IF($K191=1, $F191*0.33, IF($K191=2, $F191*0.5+$G191*0.2, SUM(F191:G191)))), 0),"Non requis") -> 71262.3 | Q191: 1 | R191: 1 | S191: 0 | T191: 1 | U191: MDA1 (IVM+ALB) | V191: T2 (PZQ) | W191: 14057 | X191: Tshitenge | Y191: TRUE | Z191: 2.293605766 | AA191: 260915.6242 | AC191: ='MDA1'!M191 -> 214176 | AD191: ='MDA4'!U191 -> 0 | AE191: ='MDA3'!Q191 -> 0 | AF191: ='T1'!O191 -> 0 | AG191: ='T2'!M191 -> 91517 | AH191: =T3_R1!N191 -> 0
A192: =IF(INTRO!$E$34<>0,INTRO!$E$34,"") -> DRC | B192: KASAI ORIENTAL | C192: Tshitshimbi | D192: 205416 | E192: =IF(INTRO!$E$48="","",ROUND($D192*INTRO!$E$48,0)) -> 34921 | F192: =IF(INTRO!$E$49="","",ROUND($D192*INTRO!$E$49,0)) -> 71896 | G192: =IF(INTRO!$E$50="","",ROUND($D192*INTRO!$E$50,0)) -> 94491 | H192: 0 | I192: 1 | J192: 1 | K192: 2 | L192: 0 | M192: =IF(INTRO!$E$38="Endémique", IF($H192>0, IF($H192=4,"Inconnu", IF($H192=99,"Interrompu", $D192)), 0),"Non requis") -> 0 | N192: =IF(INTRO!$E$40="Endémique", IF($I192>0, IF($I192=4,"Inconnu",IF($I192=99,"Interrompu", $D192)), 0),"Non requis") -> 205416 | O192: =IF(INTRO!$E$42="Endémique", IF(AND($J192>1,$J192<5), IF($J192=4, "Inconnu", E192+F192), 0),"Non requis") -> 0 | P192: =IF(INTRO!$E$44="Endémique", IF(AND($K192>0,$K192<5), IF($K192=4,"Inconnu", IF($K192=1, $F192*0.33, IF($K192=2, $F192*0.5+$G192*0.2, SUM(F192:G192)))), 0),"Non requis") -> 54846.2 | Q192: 0 | R192: 1 | S192: 0 | T192: 1 | U192: MDA3 (IVM) | V192: T2 (PZQ) | W192: 14051 | X192: Tshitshimbi | Y192: TRUE | Z192: 1.44567169 | AA192: 202488.6785 | AC192: ='MDA1'!M192 -> 0 | AD192: ='MDA4'!U192 -> 0 | AE192: ='MDA3'!Q192 -> 165450 | AF192: ='T1'!O192 -> 0 | AG192: ='T2'!M192 -> 60163 | AH192: =T3_R1!N192 -> 0
A193: =IF(INTRO!$E$34<>0,INTRO!$E$34,"") -> DRC | B193: KINSHASA | C193: Bandalungwa | D193: 202267 | E193: =IF(INTRO!$E$48="","",ROUND($D193*INTRO!$E$48,0)) -> 34385 | F193: =IF(INTRO!$E$49="","",ROUND($D193*INTRO!$E$49,0)) -> 70793 | G193: =IF(INTRO!$E$50="","",ROUND($D193*INTRO!$E$50,0)) -> 93043 | H193: 0 | I193: 4 | J193: 3 | K193: 1 | L193: 1 | M193: =IF(INTRO!$E$38="Endémique", IF($H193>0, IF($H193=4,"Inconnu", IF($H193=99,"Interrompu", $D193)), 0),"Non requis") -> 0 | N193: =IF(INTRO!$E$40="Endémique", IF($I193>0, IF($I193=4,"Inconnu",IF($I193=99,"Interrompu", $D193)), 0),"Non requis") -> Inconnu | O193: =IF(INTRO!$E$42="Endémique", IF(AND($J193>1,$J193<5), IF($J193=4, "Inconnu", E193+F193), 0),"Non requis") -> 105178 | P193: =IF(INTRO!$E$44="Endémique", IF(AND($K193>0,$K193<5), IF($K193=4,"Inconnu", IF($K193=1, $F193*0.33, IF($K193=2, $F193*0.5+$G193*0.2, SUM(F193:G193)))), 0),"Non requis") -> 23361.69 | Q193: 0 | R193: 0 | S193: 0 | T193: 0 | W193: 14126 | X193: Bandalungwa | Y193: TRUE | Z193: 0.0001384306943 | AA193: 202267.28 | AC193: ='MDA1'!M193 -> 0 | AD193: ='MDA4'!U193 -> 0 | AE193: ='MDA3'!Q193 -> 0 | AF193: ='T1'!O193 -> 0 | AG193: ='T2'!M193 -> 0 | AH193: =T3_R1!N193 -> 0
A194: =IF(INTRO!$E$34<>0,INTRO!$E$34,"") -> DRC | B194: KINSHASA | C194: Barumbu | D194: 169084 | E194: =IF(INTRO!$E$48="","",ROUND($D194*INTRO!$E$48,0)) -> 28744 | F194: =IF(INTRO!$E$49="","",ROUND($D194*INTRO!$E$49,0)) -> 59179 | G194: =IF(INTRO!$E$50="","",ROUND($D194*INTRO!$E$50,0)) -> 77779 | H194: 0 | I194: 4 | J194: 3 | K194: 1 | L194: 1 | M194: =IF(INTRO!$E$38="Endémique", IF($H194>0, IF($H194=4,"Inconnu", IF($H194=99,"Interrompu", $D194)), 0),"Non requis") -> 0 | N194: =IF(INTRO!$E$40="Endémique", IF($I194>0, IF($I194=4,"Inconnu",IF($I194=99,"Interrompu", $D194)), 0),"Non requis") -> Inconnu | O194: =IF(INTRO!$E$42="Endémique", IF(AND($J194>1,$J194<5), IF($J194=4, "Inconnu", E194+F194), 0),"Non requis") -> 87923 | P194: =IF(INTRO!$E$44="Endémique", IF(AND($K194>0,$K194<5), IF($K194=4,"Inconnu", IF($K194=1, $F194*0.33, IF($K194=2, $F194*0.5+$G194*0.2, SUM(F194:G194)))), 0),"Non requis") -> 19529.07 | Q194: 0 | R194: 0 | S194: 0 | T194: 0 | W194: 14127 | X194: Barumbu | Y194: TRUE | Z194: 0.0001360272485 | AA194: 169083.77 | AC194: ='MDA1'!M194 -> 0 | AD194: ='MDA4'!U194 -> 0 | AE194: ='MDA3'!Q194 -> 0 | AF194: ='T1'!O194 -> 0 | AG194: ='T2'!M194 -> 0 | AH194: =T3_R1!N194 -> 0
A195: =IF(INTRO!$E$34<>0,INTRO!$E$34,"") -> DRC | B195: KINSHASA | C195: Binza-Metéo | D195: 447039 | E195: =IF(INTRO!$E$48="","",ROUND($D195*INTRO!$E$48,0)) -> 75997 | F195: =IF(INTRO!$E$49="","",ROUND($D195*INTRO!$E$49,0)) -> 156464 | G195: =IF(INTRO!$E$50="","",ROUND($D195*INTRO!$E$50,0)) -> 205638 | H195: 0 | I195: 4 | J195: 3 | K195: 1 | L195: 1 | M195: =IF(INTRO!$E$38="Endémique", IF($H195>0, IF($H195=4,"Inconnu", IF($H195=99,"Interrompu", $D195)), 0),"Non requis") -> 0 | N195: =IF(INTRO!$E$40="Endémique", IF($I195>0, IF($I195=4,"Inconnu",IF($I195=99,"Interrompu", $D195)), 0),"Non requis") -> Inconnu | O195: =IF(INTRO!$E$42="Endémique", IF(AND($J195>1,$J195<5), IF($J195=4, "Inconnu", E195+F195), 0),"Non requis") -> 232461 | P195: =IF(INTRO!$E$44="Endémique", IF(AND($K195>0,$K195<5), IF($K195=4,"Inconnu", IF($K195=1, $F195*0.33, IF($K195=2, $F195*0.5+$G195*0.2, SUM(F195:G195)))), 0),"Non requis") -> 51633.12 | Q195: 0 | R195: 0 | S195: 0 | T195: 0 | W195: 14128 | X195: Binza-Metéo | Y195: TRUE | Z195: 0.0001028994055 | AA195: 447038.54 | AC195: ='MDA1'!M195 -> 0 | AD195: ='MDA4'!U195 -> 0 | AE195: ='MDA3'!Q195 -> 0 | AF195: ='T1'!O195 -> 0 | AG195: ='T2'!M195 -> 0 | AH195: =T3_R1!N195 -> 0
A196: =IF(INTRO!$E$34<>0,INTRO!$E$34,"") -> DRC | B196: KINSHASA | C196: Binza-Ozone | D196: 43883 | E196: =IF(INTRO!$E$48="","",ROUND($D196*INTRO!$E$48,0)) -> 7460 | F196: =IF(INTRO!$E$49="","",ROUND($D196*INTRO!$E$49,0)) -> 15359 | G196: =IF(INTRO!$E$50="","",ROUND($D196*INTRO!$E$50,0)) -> 20186 | H196: 0 | I196: 1 | J196: 3 | K196: 1 | L196: 1 | M196: =IF(INTRO!$E$38="Endémique", IF($H196>0, IF($H196=4,"Inconnu", IF($H196=99,"Interrompu", $D196)), 0),"Non requis") -> 0 | N196: =IF(INTRO!$E$40="Endémique", IF($I196>0, IF($I196=4,"Inconnu",IF($I196=99,"Interrompu", $D196)), 0),"Non requis") -> 43883 | O196: =IF(INTRO!$E$42="Endémique", IF(AND($J196>1,$J196<5), IF($J196=4, "Inconnu", E196+F196), 0),"Non requis") -> 22819 | P196: =IF(INTRO!$E$44="Endémique", IF(AND($K196>0,$K196<5), IF($K196=4,"Inconnu", IF($K196=1, $F196*0.33, IF($K196=2, $F196*0.5+$G196*0.2, SUM(F196:G196)))), 0),"Non requis") -> 5068.47 | Q196: 0 | R196: 1 | S196: 0 | T196: 0 | U196: MDA3 (IVM) | W196: 14129 | X196: Binza-Ozone | Y196: TRUE | Z196: 5.740409087 | AA196: 46555.4747 | AC196: ='MDA1'!M196 -> 0 | AD196: ='MDA4'!U196 -> 0 | AE196: ='MDA3'!Q196 -> 35406 | AF196: ='T1'!O196 -> 0 | AG196: ='T2'!M196 -> 0 | AH196: =T3_R1!N196 -> 0
A197: =IF(INTRO!$E$34<>0,INTRO!$E$34,"") -> DRC | B197: KINSHASA | C197: Biyela | D197: 250578 | E197: =IF(INTRO!$E$48="","",ROUND($D197*INTRO!$E$48,0)) -> 42598 | F197: =IF(INTRO!$E$49="","",ROUND($D197*INTRO!$E$49,0)) -> 87702 | G197: =IF(INTRO!$E$50="","",ROUND($D197*INTRO!$E$50,0)) -> 115266 | H197: 0 | I197: 4 | J197: 3 | K197: 1 | L197: 1 | M197: =IF(INTRO!$E$38="Endémique", IF($H197>0, IF($H197=4,"Inconnu", IF($H197=99,"Interrompu", $D197)), 0),"Non requis") -> 0 | N197: =IF(INTRO!$E$40="Endémique", IF($I197>0, IF($I197=4,"Inconnu",IF($I197=99,"Interrompu", $D197)), 0),"Non requis") -> Inconnu | O197: =IF(INTRO!$E$42="Endémique", IF(AND($J197>1,$J197<5), IF($J197=4, "Inconnu", E197+F197), 0),"Non requis") -> 130300 | P197: =IF(INTRO!$E$44="Endémique", IF(AND($K197>0,$K197<5), IF($K197=4,"Inconnu", IF($K197=1, $F197*0.33, IF($K197=2, $F197*0.5+$G197*0.2, SUM(F197:G197)))), 0),"Non requis") -> 28941.66 | Q197: 0 | R197: 0 | S197: 0 | T197: 0 | W197: 14130 | X197: Biyela | Y197: TRUE | Z197: 0.0001596306785 | AA197: 250578.4 | AC197: ='MDA1'!M197 -> 0 | AD197: ='MDA4'!U197 -> 0 | AE197: ='MDA3'!Q197 -> 0 | AF197: ='T1'!O197 -> 0 | AG197: ='T2'!M197 -> 0 | AH197: =T3_R1!N197 -> 0
A198: =IF(INTRO!$E$34<>0,INTRO!$E$34,"") -> DRC | B198: KINSHASA | C198: Bumbu | D198: 461337 | E198: =IF(INTRO!$E$48="","",ROUND($D198*INTRO!$E$48,0)) -> 78427 | F198: =IF(INTRO!$E$49="","",ROUND($D198*INTRO!$E$49,0)) -> 161468 | G198: =IF(INTRO!$E$50="","",ROUND($D198*INTRO!$E$50,0)) -> 212215 | H198: 0 | I198: 4 | J198: 3 | K198: 1 | L198: 1 | M198: =IF(INTRO!$E$38="Endémique", IF($H198>0, IF($H198=4,"Inconnu", IF($H198=99,"Interrompu", $D198)), 0),"Non requis") -> 0 | N198: =IF(INTRO!$E$40="Endémique", IF($I198>0, IF($I198=4,"Inconnu",IF($I198=99,"Interrompu", $D198)), 0),"Non requis") -> Inconnu | O198: =IF(INTRO!$E$42="Endémique", IF(AND($J198>1,$J198<5), IF($J198=4, "Inconnu", E198+F198), 0),"Non requis") -> 239895 | P198: =IF(INTRO!$E$44="Endémique", IF(AND($K198>0,$K198<5), IF($K198=4,"Inconnu", IF($K198=1, $F198*0.33, IF($K198=2, $F198*0.5+$G198*0.2, SUM(F198:G198)))), 0),"Non requis") -> 53284.44 | Q198: 0 | R198: 0 | S198: 0 | T198: 0 | W198: 14131 | X198: Bumbu | Y198: TRUE | Z198: 0 | AA198: 461337 | AC198: ='MDA1'!M198 -> 0 | AD198: ='MDA4'!U198 -> 0 | AE198: ='MDA3'!Q198 -> 0 | AF198: ='T1'!O198 -> 0 | AG198: ='T2'!M198 -> 0 | AH198: =T3_R1!N198 -> 0
A199: =IF(INTRO!$E$34<>0,INTRO!$E$34,"") -> DRC | B199: KINSHASA | C199: Gombe | D199: 36299 | E199: =IF(INTRO!$E$48="","",ROUND($D199*INTRO!$E$48,0)) -> 6171 | F199: =IF(INTRO!$E$49="","",ROUND($D199*INTRO!$E$49,0)) -> 12705 | G199: =IF(INTRO!$E$50="","",ROUND($D199*INTRO!$E$50,0)) -> 16698 | H199: 0 | I199: 4 | J199: 3 | K199: 1 | L199: 0 | M199: =IF(INTRO!$E$38="Endémique", IF($H199>0, IF($H199=4,"Inconnu", IF($H199=99,"Interrompu", $D199)), 0),"Non requis") -> 0 | N199: =IF(INTRO!$E$40="Endémique", IF($I199>0, IF($I199=4,"Inconnu",IF($I199=99,"Interrompu", $D199)), 0),"Non requis") -> Inconnu | O199: =IF(INTRO!$E$42="Endémique", IF(AND($J199>1,$J199<5), IF($J199=4, "Inconnu", E199+F199), 0),"Non requis") -> 18876 | P199: =IF(INTRO!$E$44="Endémique", IF(AND($K199>0,$K199<5), IF($K199=4,"Inconnu", IF($K199=1, $F199*0.33, IF($K199=2, $F199*0.5+$G199*0.2, SUM(F199:G199)))), 0),"Non requis") -> 4192.65 | Q199: 0 | R199: 0 | S199: 0 | T199: 0 | W199: 14132 | X199: Gombe | Y199: TRUE | Z199: 0.0007162680451 | AA199: 36299.26 | AC199: ='MDA1'!M199 -> 0 | AD199: ='MDA4'!U199 -> 0 | AE199: ='MDA3'!Q199 -> 0 | AF199: ='T1'!O199 -> 0 | AG199: ='T2'!M199 -> 0 | AH199: =T3_R1!N199 -> 0
A200: =IF(INTRO!$E$34<>0,INTRO!$E$34,"") -> DRC | B200: KINSHASA | C200: Kalamu I | D200: 162391 | E200: =IF(INTRO!$E$48="","",ROUND($D200*INTRO!$E$48,0)) -> 27606 | F200: =IF(INTRO!$E$49="","",ROUND($D200*INTRO!$E$49,0)) -> 56837 | G200: =IF(INTRO!$E$50="","",ROUND($D200*INTRO!$E$50,0)) -> 74700 | H200: 0 | I200: 4 | J200: 3 | K200: 1 | L200: 0 | M200: =IF(INTRO!$E$38="Endémique", IF($H200>0, IF($H200=4,"Inconnu", IF($H200=99,"Interrompu", $D200)), 0),"Non requis") -> 0 | N200: =IF(INTRO!$E$40="Endémique", IF($I200>0, IF($I200=4,"Inconnu",IF($I200=99,"Interrompu", $D200)), 0),"Non requis") -> Inconnu | O200: =IF(INTRO!$E$42="Endémique", IF(AND($J200>1,$J200<5), IF($J200=4, "Inconnu", E200+F200), 0),"Non requis") -> 84443 | P200: =IF(INTRO!$E$44="Endémique", IF(AND($K200>0,$K200<5), IF($K200=4,"Inconnu", IF($K200=1, $F200*0.33, IF($K200=2, $F200*0.5+$G200*0.2, SUM(F200:G200)))), 0),"Non requis") -> 18756.21 | Q200: 0 | R200: 0 | S200: 0 | T200: 0 | W200: 14133 | X200: Kalamu I | Y200: TRUE | Z200: 0.0001046857141 | AA200: 162390.83 | AC200: ='MDA1'!M200 -> 0 | AD200: ='MDA4'!U200 -> 0 | AE200: ='MDA3'!Q200 -> 0 | AF200: ='T1'!O200 -> 0 | AG200: ='T2'!M200 -> 0 | AH200: =T3_R1!N200 -> 0
A201: =IF(INTRO!$E$34<>0,INTRO!$E$34,"") -> DRC | B201: KINSHASA | C201: Kalamu II | D201: 144944 | E201: =IF(INTRO!$E$48="","",ROUND($D201*INTRO!$E$48,0)) -> 24640 | F201: =IF(INTRO!$E$49="","",ROUND($D201*INTRO!$E$49,0)) -> 50730 | G201: =IF(INTRO!$E$50="","",ROUND($D201*INTRO!$E$50,0)) -> 66674 | H201: 0 | I201: 4 | J201: 3 | K201: 1 | L201: 0 | M201: =IF(INTRO!$E$38="Endémique", IF($H201>0, IF($H201=4,"Inconnu", IF($H201=99,"Interrompu", $D201)), 0),"Non requis") -> 0 | N201: =IF(INTRO!$E$40="Endémique", IF($I201>0, IF($I201=4,"Inconnu",IF($I201=99,"Interrompu", $D201)), 0),"Non requis") -> Inconnu | O201: =IF(INTRO!$E$42="Endémique", IF(AND($J201>1,$J201<5), IF($J201=4, "Inconnu", E201+F201), 0),"Non requis") -> 75370 | P201: =IF(INTRO!$E$44="Endémique", IF(AND($K201>0,$K201<5), IF($K201=4,"Inconnu", IF($K201=1, $F201*0.33, IF($K201=2, $F201*0.5+$G201*0.2, SUM(F201:G201)))), 0),"Non requis") -> 16740.9 | Q201: 0 | R201: 0 | S201: 0 | T201: 0 | W201: 14134 | X201: Kalamu II | Y201: TRUE | Z201: 0.0002345739027 | AA201: 144943.66 | AC201: ='MDA1'!M201 -> 0 | AD201: ='MDA4'!U201 -> 0 | AE201: ='MDA3'!Q201 -> 0 | AF201: ='T1'!O201 -> 0 | AG201: ='T2'!M201 -> 0 | AH201: =T3_R1!N201 -> 0
A202: =IF(INTRO!$E$34<>0,INTRO!$E$34,"") -> DRC | B202: KINSHASA | C202: Kasa Vubu | D202: 147924 | E202: =IF(INTRO!$E$48="","",ROUND($D202*INTRO!$E$48,0)) -> 25147 | F202: =IF(INTRO!$E$49="","",ROUND($D202*INTRO!$E$49,0)) -> 51773 | G202: =IF(INTRO!$E$50="","",ROUND($D202*INTRO!$E$50,0)) -> 68045 | H202: 0 | I202: 4 | J202: 3 | K202: 1 | L202: 0 | M202: =IF(INTRO!$E$38="Endémique", IF($H202>0, IF($H202=4,"Inconnu", IF($H202=99,"Interrompu", $D202)), 0),"Non requis") -> 0 | N202: =IF(INTRO!$E$40="Endémique", IF($I202>0, IF($I202=4,"Inconnu",IF($I202=99,"Interrompu", $D202)), 0),"Non requis") -> Inconnu | O202: =IF(INTRO!$E$42="Endémique", IF(AND($J202>1,$J202<5), IF($J202=4, "Inconnu", E202+F202), 0),"Non requis") -> 76920 | P202: =IF(INTRO!$E$44="Endémique", IF(AND($K202>0,$K202<5), IF($K202=4,"Inconnu", IF($K202=1, $F202*0.33, IF($K202=2, $F202*0.5+$G202*0.2, SUM(F202:G202)))), 0),"Non requis") -> 17085.09 | Q202: 0 | R202: 0 | S202: 0 | T202: 0 | W202: 14135 | X202: Kasa Vubu | Y202: =X202=C202 -> TRUE | Z202: =ABS((D202-AA202)/AA202*100) -> 0.0003244899019 | AA202: 147924.48 | AC202: ='MDA1'!M202 -> 0 | AD202: ='MDA4'!U202 -> 0 | AE202: ='MDA3'!Q202 -> 0 | AF202: ='T1'!O202 -> 0 | AG202: ='T2'!M202 -> 0 | AH202: =T3_R1!N202 -> 0
A203: =IF(INTRO!$E$34<>0,INTRO!$E$34,"") -> DRC | B203: KINSHASA | C203: Kikimi | D203: 286194 | E203: =IF(INTRO!$E$48="","",ROUND($D203*INTRO!$E$48,0)) -> 48653 | F203: =IF(INTRO!$E$49="","",ROUND($D203*INTRO!$E$49,0)) -> 100168 | G203: =IF(INTRO!$E$50="","",ROUND($D203*INTRO!$E$50,0)) -> 131649 | H203: 0 | I203: 4 | J203: 3 | K203: 1 | L203: 1 | M203: =IF(INTRO!$E$38="Endémique", IF($H203>0, IF($H203=4,"Inconnu", IF($H203=99,"Interrompu", $D203)), 0),"Non requis") -> 0 | N203: =IF(INTRO!$E$40="Endémique", IF($I203>0, IF($I203=4,"Inconnu",IF($I203=99,"Interrompu", $D203)), 0),"Non requis") -> Inconnu | O203: =IF(INTRO!$E$42="Endémique", IF(AND($J203>1,$J203<5), IF($J203=4, "Inconnu", E203+F203), 0),"Non requis") -> 148821 | P203: =IF(INTRO!$E$44="Endémique", IF(AND($K203>0,$K203<5), IF($K203=4,"Inconnu", IF($K203=1, $F203*0.33, IF($K203=2, $F203*0.5+$G203*0.2, SUM(F203:G203)))), 0),"Non requis") -> 33055.44 | Q203: 0 | R203: 0 | S203: 0 | T203: 0 | W203: 14136 | X203: Kikimi | Y203: TRUE | Z203: 9.084754964e-05 | AA203: 286193.74 | AC203: ='MDA1'!M203 -> 0 | AD203: ='MDA4'!U203 -> 0 | AE203: ='MDA3'!Q203 -> 0 | AF203: ='T1'!O203 -> 0 | AG203: ='T2'!M203 -> 0 | AH203: =T3_R1!N203 -> 0
... 324 more rows

Sheet MDA1
A1: MDA 1 - Ivermectine (IVM) et Albendazole (ALB)
A2: Structure administrative, population nécessitant une chimioprévention par groupe d'âge, population traitée par groupe d'âge et couverture
A4: TOTAL | G4: =SUM(G$9:G$1000) -> 11932116 | H4: =SUM(H$9:H$1000) -> 15682200 | I4: =SUM(I$9:I$1000) -> 27614316 | K4: =SUM(K$9:K$1000) -> 11880436.73 | L4: =SUM(L$9:L$1000) -> 15614288.27 | M4: =SUM(M$9:M$1000) -> 27494725 | O4: =IF(G4<>0, IF(K4/G4*100=0, "-", K4/G4*100), " ") -> 99.5668893 | P4: =IF(H4<>0, IF(L4/H4*100=0, "-", L4/H4*100), " ") -> 99.56695025 | Q4: =IF(I4<>0, IF(M4/I4*100=0, "-", M4/I4*100), " ") -> 99.56692391
A6: Structure administrative du pays | D6: Mise en oeuvre de la CP | E6: Date | F6: Population ciblée pour MDA 1 | J6: Population traitée | N6: Couverture du Programme (%)
A7: Pays | B7: Région/Département | C7: District | F7: EAPréS | G7: EAS | H7: Adultes | I7: Total | J7: EAPréS | K7: EAS | L7: Adultes | M7: Total | N7: EAPréS | O7: EAS | P7: Adultes | Q7: Total
A9: =IF(COUNTRY_INFO!A9=0," ",COUNTRY_INFO!A9) -> DRC | B9: =IF(COUNTRY_INFO!B9=0," ",COUNTRY_INFO!B9) -> BAS UELE | C9: =IF(COUNTRY_INFO!C9=0," ",COUNTRY_INFO!C9) -> Aketi | D9: =IF(COUNTRY_INFO!$U$9:$U$1000="MDA1 (IVM+ALB)", COUNTRY_INFO!$U$9:$U$1000, " ") -> MDA1 (IVM+ALB) | E9: DEC 2019 | G9: 51412 | H9: 67570 | I9: =SUM(F9:H9) -> 118982 | K9: 51711.41975 | L9: 67963.58025 | M9: 119675 | O9: =IF(G9<>0, IF(K9/G9*100=0, "-", K9/G9*100), " ") -> 100.5823927 | P9: =IF(H9<>0, IF(L9/H9*100=0, "-", L9/H9*100), " ") -> 100.5824778 | Q9: =IF(I9<>0, IF(M9/I9*100=0, "-", M9/I9*100), " ") -> 100.582441
A10: =IF(COUNTRY_INFO!A10=0," ",COUNTRY_INFO!A10) -> DRC | B10: =IF(COUNTRY_INFO!B10=0," ",COUNTRY_INFO!B10) -> BAS UELE | C10: =IF(COUNTRY_INFO!C10=0," ",COUNTRY_INFO!C10) -> Ango | D10: =IF(COUNTRY_INFO!$U$9:$U$1000="MDA1 (IVM+ALB)", COUNTRY_INFO!$U$9:$U$1000, " ") ->  | I10: =SUM(F10:H10) -> 0 | O10: =IF(G10<>0, IF(K10/G10*100=0, "-", K10/G10*100), " ") ->  | P10: =IF(H10<>0, IF(L10/H10*100=0, "-", L10/H10*100), " ") ->  | Q10: =IF(I10<>0, IF(M10/I10*100=0, "-", M10/I10*100), " ") -> 
A11: =IF(COUNTRY_INFO!A11=0," ",COUNTRY_INFO!A11) -> DRC | B11: =IF(COUNTRY_INFO!B11=0," ",COUNTRY_INFO!B11) -> BAS UELE | C11: =IF(COUNTRY_INFO!C11=0," ",COUNTRY_INFO!C11) -> Bili 1 | D11: =IF(COUNTRY_INFO!$U$9:$U$1000="MDA1 (IVM+ALB)", COUNTRY_INFO!$U$9:$U$1000, " ") ->  | I11: 0
A12: =IF(COUNTRY_INFO!A12=0," ",COUNTRY_INFO!A12) -> DRC | B12: =IF(COUNTRY_INFO!B12=0," ",COUNTRY_INFO!B12) -> BAS UELE | C12: =IF(COUNTRY_INFO!C12=0," ",COUNTRY_INFO!C12) -> Bondo | D12: =IF(COUNTRY_INFO!$U$9:$U$1000="MDA1 (IVM+ALB)", COUNTRY_INFO!$U$9:$U$1000, " ") -> MDA1 (IVM+ALB) | E12: DEC 2019 | G12: 53443 | H12: 70239 | I12: 123682 | K12: 54235.74074 | L12: 71281.25926 | M12: 125517 | O12: 101.4833388 | P12: 101.4838754 | Q12: 101.4836435
A13: =IF(COUNTRY_INFO!A13=0," ",COUNTRY_INFO!A13) -> DRC | B13: =IF(COUNTRY_INFO!B13=0," ",COUNTRY_INFO!B13) -> BAS UELE | C13: =IF(COUNTRY_INFO!C13=0," ",COUNTRY_INFO!C13) -> Buta | D13: =IF(COUNTRY_INFO!$U$9:$U$1000="MDA1 (IVM+ALB)", COUNTRY_INFO!$U$9:$U$1000, " ") -> MDA1 (IVM+ALB) | E13: DEC 2019 | G13: 77159 | H13: 101409 | I13: 178568 | K13: 77816.66667 | L13: 102273.3333 | M13: 180090 | O13: 100.8523525 | P13: 100.8523241 | Q13: 100.8523364
A14: =IF(COUNTRY_INFO!A14=0," ",COUNTRY_INFO!A14) -> DRC | B14: =IF(COUNTRY_INFO!B14=0," ",COUNTRY_INFO!B14) -> BAS UELE | C14: =IF(COUNTRY_INFO!C14=0," ",COUNTRY_INFO!C14) -> Dingela | D14: =IF(COUNTRY_INFO!$U$9:$U$1000="MDA1 (IVM+ALB)", COUNTRY_INFO!$U$9:$U$1000, " ") ->  | I14: 0
A15: =IF(COUNTRY_INFO!A15=0," ",COUNTRY_INFO!A15) -> DRC | B15: =IF(COUNTRY_INFO!B15=0," ",COUNTRY_INFO!B15) -> BAS UELE | C15: =IF(COUNTRY_INFO!C15=0," ",COUNTRY_INFO!C15) -> Likati | D15: =IF(COUNTRY_INFO!$U$9:$U$1000="MDA1 (IVM+ALB)", COUNTRY_INFO!$U$9:$U$1000, " ") -> MDA1 (IVM+ALB) | E15: DEC 2019 | G15: 29936 | H15: 39345 | I15: 69281 | K15: 30040.37037 | L15: 39481.62963 | M15: 69522 | O15: 100.348645 | P15: 100.3472605 | Q15: 100.3478587
A16: =IF(COUNTRY_INFO!A16=0," ",COUNTRY_INFO!A16) -> DRC | B16: =IF(COUNTRY_INFO!B16=0," ",COUNTRY_INFO!B16) -> BAS UELE | C16: =IF(COUNTRY_INFO!C16=0," ",COUNTRY_INFO!C16) -> Monga | D16: =IF(COUNTRY_INFO!$U$9:$U$1000="MDA1 (IVM+ALB)", COUNTRY_INFO!$U$9:$U$1000, " ") -> MDA1 (IVM+ALB) | E16: DEC 2019 | G16: 31252 | H16: 41074 | I16: 72326 | K16: 31726.41975 | L16: 41697.58025 | M16: 73424 | O16: 101.5180461 | P16: 101.5181873 | Q16: 101.5181263
A17: =IF(COUNTRY_INFO!A17=0," ",COUNTRY_INFO!A17) -> DRC | B17: =IF(COUNTRY_INFO!B17=0," ",COUNTRY_INFO!B17) -> BAS UELE | C17: =IF(COUNTRY_INFO!C17=0," ",COUNTRY_INFO!C17) -> Poko | D17: =IF(COUNTRY_INFO!$U$9:$U$1000="MDA1 (IVM+ALB)", COUNTRY_INFO!$U$9:$U$1000, " ") -> MDA1 (IVM+ALB) | E17: DEC 2019 | G17: 49522 | H17: 65086 | I17: 114608 | K17: 50521.41975 | L17: 66399.58025 | M17: 116921 | O17: 102.0181329 | P17: 102.0182224 | Q17: 102.0181837
A18: =IF(COUNTRY_INFO!A18=0," ",COUNTRY_INFO!A18) -> DRC | B18: =IF(COUNTRY_INFO!B18=0," ",COUNTRY_INFO!B18) -> BAS UELE | C18: =IF(COUNTRY_INFO!C18=0," ",COUNTRY_INFO!C18) -> Titule | D18: =IF(COUNTRY_INFO!$U$9:$U$1000="MDA1 (IVM+ALB)", COUNTRY_INFO!$U$9:$U$1000, " ") ->  | I18: 0
A19: =IF(COUNTRY_INFO!A19=0," ",COUNTRY_INFO!A19) -> DRC | B19: =IF(COUNTRY_INFO!B19=0," ",COUNTRY_INFO!B19) -> BAS UELE | C19: =IF(COUNTRY_INFO!C19=0," ",COUNTRY_INFO!C19) -> Viadana | D19: =IF(COUNTRY_INFO!$U$9:$U$1000="MDA1 (IVM+ALB)", COUNTRY_INFO!$U$9:$U$1000, " ") -> MDA1 (IVM+ALB) | E19: DEC 2019 | G19: 43288 | H19: 56893 | I19: 100181 | K19: 43000.74074 | L19: 56515.25926 | M19: 99516 | O19: 99.33639979 | P19: 99.33605058 | Q19: 99.33620148
A20: =IF(COUNTRY_INFO!A20=0," ",COUNTRY_INFO!A20) -> DRC | B20: =IF(COUNTRY_INFO!B20=0," ",COUNTRY_INFO!B20) -> EQUATEUR | C20: =IF(COUNTRY_INFO!C20=0," ",COUNTRY_INFO!C20) -> Basankusu | D20: =IF(COUNTRY_INFO!$U$9:$U$1000="MDA1 (IVM+ALB)", COUNTRY_INFO!$U$9:$U$1000, " ") -> MDA1 (IVM+ALB) | E20: DEC 2019 | G20: 96776 | H20: 127191 | I20: 223967 | K20: 95909.07407 | L20: 126051.9259 | M20: 221961 | O20: 99.10419326 | P20: 99.10443815 | Q20: 99.10433233
A21: =IF(COUNTRY_INFO!A21=0," ",COUNTRY_INFO!A21) -> DRC | B21: =IF(COUNTRY_INFO!B21=0," ",COUNTRY_INFO!B21) -> EQUATEUR | C21: =IF(COUNTRY_INFO!C21=0," ",COUNTRY_INFO!C21) -> Bikoro | D21: =IF(COUNTRY_INFO!$U$9:$U$1000="MDA1 (IVM+ALB)", COUNTRY_INFO!$U$9:$U$1000, " ") ->  | I21: 0
A22: =IF(COUNTRY_INFO!A22=0," ",COUNTRY_INFO!A22) -> DRC | B22: =IF(COUNTRY_INFO!B22=0," ",COUNTRY_INFO!B22) -> EQUATEUR | C22: =IF(COUNTRY_INFO!C22=0," ",COUNTRY_INFO!C22) -> Bolenge | D22: =IF(COUNTRY_INFO!$U$9:$U$1000="MDA1 (IVM+ALB)", COUNTRY_INFO!$U$9:$U$1000, " ") ->  | I22: 0
A23: =IF(COUNTRY_INFO!A23=0," ",COUNTRY_INFO!A23) -> DRC | B23: =IF(COUNTRY_INFO!B23=0," ",COUNTRY_INFO!B23) -> EQUATEUR | C23: =IF(COUNTRY_INFO!C23=0," ",COUNTRY_INFO!C23) -> Bolomba | D23: =IF(COUNTRY_INFO!$U$9:$U$1000="MDA1 (IVM+ALB)", COUNTRY_INFO!$U$9:$U$1000, " ") -> MDA1 (IVM+ALB) | E23: DEC 2019 | G23: 108962 | H23: 143207 | I23: 252169 | K23: 108033.7654 | L23: 141987.2346 | M23: 250021 | O23: 99.14811166 | P23: 99.14825013 | Q23: 99.1481903
A24: =IF(COUNTRY_INFO!A24=0," ",COUNTRY_INFO!A24) -> DRC | B24: =IF(COUNTRY_INFO!B24=0," ",COUNTRY_INFO!B24) -> EQUATEUR | C24: =IF(COUNTRY_INFO!C24=0," ",COUNTRY_INFO!C24) -> Bomongo | D24: =IF(COUNTRY_INFO!$U$9:$U$1000="MDA1 (IVM+ALB)", COUNTRY_INFO!$U$9:$U$1000, " ") ->  | I24: 0
A25: =IF(COUNTRY_INFO!A25=0," ",COUNTRY_INFO!A25) -> DRC | B25: =IF(COUNTRY_INFO!B25=0," ",COUNTRY_INFO!B25) -> EQUATEUR | C25: =IF(COUNTRY_INFO!C25=0," ",COUNTRY_INFO!C25) -> Djombo | D25: =IF(COUNTRY_INFO!$U$9:$U$1000="MDA1 (IVM+ALB)", COUNTRY_INFO!$U$9:$U$1000, " ") -> MDA1 (IVM+ALB) | E25: DEC 2019 | G25: 46954 | H25: 61710 | I25: 108664 | K25: 46505.49383 | L25: 61121.50617 | M25: 107627 | O25: 99.04479667 | P25: 99.04635581 | Q25: 99.0456821
A26: =IF(COUNTRY_INFO!A26=0," ",COUNTRY_INFO!A26) -> DRC | B26: =IF(COUNTRY_INFO!B26=0," ",COUNTRY_INFO!B26) -> EQUATEUR | C26: =IF(COUNTRY_INFO!C26=0," ",COUNTRY_INFO!C26) -> Iboko | D26: =IF(COUNTRY_INFO!$U$9:$U$1000="MDA1 (IVM+ALB)", COUNTRY_INFO!$U$9:$U$1000, " ") ->  | I26: 0
A27: =IF(COUNTRY_INFO!A27=0," ",COUNTRY_INFO!A27) -> DRC | B27: =IF(COUNTRY_INFO!B27=0," ",COUNTRY_INFO!B27) -> EQUATEUR | C27: =IF(COUNTRY_INFO!C27=0," ",COUNTRY_INFO!C27) -> Ingende | D27: =IF(COUNTRY_INFO!$U$9:$U$1000="MDA1 (IVM+ALB)", COUNTRY_INFO!$U$9:$U$1000, " ") -> MDA1 (IVM+ALB) | E27: DEC 2019 | G27: 59416 | H27: 78090 | I27: 137506 | K27: 58885.98765 | L27: 77393.01235 | M27: 136279 | O27: 99.1079636 | P27: 99.10745594 | Q27: 99.1076753
A28: =IF(COUNTRY_INFO!A28=0," ",COUNTRY_INFO!A28) -> DRC | B28: =IF(COUNTRY_INFO!B28=0," ",COUNTRY_INFO!B28) -> EQUATEUR | C28: =IF(COUNTRY_INFO!C28=0," ",COUNTRY_INFO!C28) -> Irebu | D28: =IF(COUNTRY_INFO!$U$9:$U$1000="MDA1 (IVM+ALB)", COUNTRY_INFO!$U$9:$U$1000, " ") ->  | I28: 0
A29: =IF(COUNTRY_INFO!A29=0," ",COUNTRY_INFO!A29) -> DRC | B29: =IF(COUNTRY_INFO!B29=0," ",COUNTRY_INFO!B29) -> EQUATEUR | C29: =IF(COUNTRY_INFO!C29=0," ",COUNTRY_INFO!C29) -> Lilanga Bobangi | D29: =IF(COUNTRY_INFO!$U$9:$U$1000="MDA1 (IVM+ALB)", COUNTRY_INFO!$U$9:$U$1000, " ") ->  | I29: 0
A30: =IF(COUNTRY_INFO!A30=0," ",COUNTRY_INFO!A30) -> DRC | B30: =IF(COUNTRY_INFO!B30=0," ",COUNTRY_INFO!B30) -> EQUATEUR | C30: =IF(COUNTRY_INFO!C30=0," ",COUNTRY_INFO!C30) -> Lotumbe | D30: =IF(COUNTRY_INFO!$U$9:$U$1000="MDA1 (IVM+ALB)", COUNTRY_INFO!$U$9:$U$1000, " ") ->  | I30: 0
A31: =IF(COUNTRY_INFO!A31=0," ",COUNTRY_INFO!A31) -> DRC | B31: =IF(COUNTRY_INFO!B31=0," ",COUNTRY_INFO!B31) -> EQUATEUR | C31: =IF(COUNTRY_INFO!C31=0," ",COUNTRY_INFO!C31) -> Lukolela | D31: =IF(COUNTRY_INFO!$U$9:$U$1000="MDA1 (IVM+ALB)", COUNTRY_INFO!$U$9:$U$1000, " ") ->  | I31: 0
A32: =IF(COUNTRY_INFO!A32=0," ",COUNTRY_INFO!A32) -> DRC | B32: =IF(COUNTRY_INFO!B32=0," ",COUNTRY_INFO!B32) -> EQUATEUR | C32: =IF(COUNTRY_INFO!C32=0," ",COUNTRY_INFO!C32) -> Makanza | D32: =IF(COUNTRY_INFO!$U$9:$U$1000="MDA1 (IVM+ALB)", COUNTRY_INFO!$U$9:$U$1000, " ") ->  | I32: 0
A33: =IF(COUNTRY_INFO!A33=0," ",COUNTRY_INFO!A33) -> DRC | B33: =IF(COUNTRY_INFO!B33=0," ",COUNTRY_INFO!B33) -> EQUATEUR | C33: =IF(COUNTRY_INFO!C33=0," ",COUNTRY_INFO!C33) -> Mampoko | D33: =IF(COUNTRY_INFO!$U$9:$U$1000="MDA1 (IVM+ALB)", COUNTRY_INFO!$U$9:$U$1000, " ") -> MDA1 (IVM+ALB) | E33: DEC 2019 | G33: 43996 | H33: 57823 | I33: 101819 | K33: 43568.95062 | L33: 57262.04938 | M33: 100831 | O33: 99.02934498 | P33: 99.02988323 | Q33: 99.02965065
A34: =IF(COUNTRY_INFO!A34=0," ",COUNTRY_INFO!A34) -> DRC | B34: =IF(COUNTRY_INFO!B34=0," ",COUNTRY_INFO!B34) -> EQUATEUR | C34: =IF(COUNTRY_INFO!C34=0," ",COUNTRY_INFO!C34) -> Mbandaka | D34: =IF(COUNTRY_INFO!$U$9:$U$1000="MDA1 (IVM+ALB)", COUNTRY_INFO!$U$9:$U$1000, " ") ->  | I34: 0
A35: =IF(COUNTRY_INFO!A35=0," ",COUNTRY_INFO!A35) -> DRC | B35: =IF(COUNTRY_INFO!B35=0," ",COUNTRY_INFO!B35) -> EQUATEUR | C35: =IF(COUNTRY_INFO!C35=0," ",COUNTRY_INFO!C35) -> Monieka | D35: =IF(COUNTRY_INFO!$U$9:$U$1000="MDA1 (IVM+ALB)", COUNTRY_INFO!$U$9:$U$1000, " ") -> MDA1 (IVM+ALB) | E35: DEC 2019 | G35: 31590 | H35: 41519 | I35: 73109 | K35: 31337.96296 | L35: 41187.03704 | M35: 72525 | O35: 99.20216196 | P35: 99.2004553 | Q35: 99.20119274
A36: =IF(COUNTRY_INFO!A36=0," ",COUNTRY_INFO!A36) -> DRC | B36: =IF(COUNTRY_INFO!B36=0," ",COUNTRY_INFO!B36) -> EQUATEUR | C36: =IF(COUNTRY_INFO!C36=0," ",COUNTRY_INFO!C36) -> Ntondo | D36: =IF(COUNTRY_INFO!$U$9:$U$1000="MDA1 (IVM+ALB)", COUNTRY_INFO!$U$9:$U$1000, " ") ->  | I36: 0
A37: =IF(COUNTRY_INFO!A37=0," ",COUNTRY_INFO!A37) -> DRC | B37: =IF(COUNTRY_INFO!B37=0," ",COUNTRY_INFO!B37) -> EQUATEUR | C37: =IF(COUNTRY_INFO!C37=0," ",COUNTRY_INFO!C37) -> Wangata | D37: =IF(COUNTRY_INFO!$U$9:$U$1000="MDA1 (IVM+ALB)", COUNTRY_INFO!$U$9:$U$1000, " ") -> MDA1 (IVM+ALB) | E37: DEC 2019 | G37: 65549 | H37: 86150 | I37: 151699 | K37: 64974.69136 | L37: 85395.30864 | M37: 150370 | O37: 99.12384835 | P37: 99.12397985 | Q37: 99.12392303
A38: =IF(COUNTRY_INFO!A38=0," ",COUNTRY_INFO!A38) -> DRC | B38: =IF(COUNTRY_INFO!B38=0," ",COUNTRY_INFO!B38) -> Haut Katanga | C38: =IF(COUNTRY_INFO!C38=0," ",COUNTRY_INFO!C38) -> Kafubu | D38: =IF(COUNTRY_INFO!$U$9:$U$1000="MDA1 (IVM+ALB)", COUNTRY_INFO!$U$9:$U$1000, " ") ->  | I38: 0
A39: =IF(COUNTRY_INFO!A39=0," ",COUNTRY_INFO!A39) -> DRC | B39: =IF(COUNTRY_INFO!B39=0," ",COUNTRY_INFO!B39) -> Haut Katanga | C39: =IF(COUNTRY_INFO!C39=0," ",COUNTRY_INFO!C39) -> Kamalondo | D39: =IF(COUNTRY_INFO!$U$9:$U$1000="MDA1 (IVM+ALB)", COUNTRY_INFO!$U$9:$U$1000, " ") ->  | I39: 0
A40: =IF(COUNTRY_INFO!A40=0," ",COUNTRY_INFO!A40) -> DRC | B40: =IF(COUNTRY_INFO!B40=0," ",COUNTRY_INFO!B40) -> Haut Katanga | C40: =IF(COUNTRY_INFO!C40=0," ",COUNTRY_INFO!C40) -> Kambove | D40: =IF(COUNTRY_INFO!$U$9:$U$1000="MDA1 (IVM+ALB)", COUNTRY_INFO!$U$9:$U$1000, " ") ->  | I40: 0
A41: =IF(COUNTRY_INFO!A41=0," ",COUNTRY_INFO!A41) -> DRC | B41: =IF(COUNTRY_INFO!B41=0," ",COUNTRY_INFO!B41) -> Haut Katanga | C41: =IF(COUNTRY_INFO!C41=0," ",COUNTRY_INFO!C41) -> Kampemba | D41: =IF(COUNTRY_INFO!$U$9:$U$1000="MDA1 (IVM+ALB)", COUNTRY_INFO!$U$9:$U$1000, " ") ->  | I41: 0
A42: =IF(COUNTRY_INFO!A42=0," ",COUNTRY_INFO!A42) -> DRC | B42: =IF(COUNTRY_INFO!B42=0," ",COUNTRY_INFO!B42) -> Haut Katanga | C42: =IF(COUNTRY_INFO!C42=0," ",COUNTRY_INFO!C42) -> Kapolobwe | D42: =IF(COUNTRY_INFO!$U$9:$U$1000="MDA1 (IVM+ALB)", COUNTRY_INFO!$U$9:$U$1000, " ") ->  | I42: 0
A43: =IF(COUNTRY_INFO!A43=0," ",COUNTRY_INFO!A43) -> DRC | B43: =IF(COUNTRY_INFO!B43=0," ",COUNTRY_INFO!B43) -> Haut Katanga | C43: =IF(COUNTRY_INFO!C43=0," ",COUNTRY_INFO!C43) -> Kasenga | D43: =IF(COUNTRY_INFO!$U$9:$U$1000="MDA1 (IVM+ALB)", COUNTRY_INFO!$U$9:$U$1000, " ") -> MDA1 (IVM+ALB) | E43: DEC 2019 | G43: 58127 | H43: 76395 | I43: 134522 | K43: 58119.44444 | L43: 76385.55556 | M43: 134505 | O43: 99.98700164 | P43: 99.98763735 | Q43: 99.98736266
A44: =IF(COUNTRY_INFO!A44=0," ",COUNTRY_INFO!A44) -> DRC | B44: =IF(COUNTRY_INFO!B44=0," ",COUNTRY_INFO!B44) -> Haut Katanga | C44: =IF(COUNTRY_INFO!C44=0," ",COUNTRY_INFO!C44) -> Kashobwe | D44: =IF(COUNTRY_INFO!$U$9:$U$1000="MDA1 (IVM+ALB)", COUNTRY_INFO!$U$9:$U$1000, " ") ->  | I44: 0
A45: =IF(COUNTRY_INFO!A45=0," ",COUNTRY_INFO!A45) -> DRC | B45: =IF(COUNTRY_INFO!B45=0," ",COUNTRY_INFO!B45) -> Haut Katanga | C45: =IF(COUNTRY_INFO!C45=0," ",COUNTRY_INFO!C45) -> Katuba | D45: =IF(COUNTRY_INFO!$U$9:$U$1000="MDA1 (IVM+ALB)", COUNTRY_INFO!$U$9:$U$1000, " ") ->  | I45: 0
A46: =IF(COUNTRY_INFO!A46=0," ",COUNTRY_INFO!A46) -> DRC | B46: =IF(COUNTRY_INFO!B46=0," ",COUNTRY_INFO!B46) -> Haut Katanga | C46: =IF(COUNTRY_INFO!C46=0," ",COUNTRY_INFO!C46) -> Kenya | D46: =IF(COUNTRY_INFO!$U$9:$U$1000="MDA1 (IVM+ALB)", COUNTRY_INFO!$U$9:$U$1000, " ") -> MDA1 (IVM+ALB) | E46: DEC 2019 | G46: 77171 | H46: 101424 | I46: 178595 | K46: 77619.62963 | L46: 102014.3704 | M46: 179634 | O46: 100.5813448 | P46: 100.5820815 | Q46: 100.5817632
A47: =IF(COUNTRY_INFO!A47=0," ",COUNTRY_INFO!A47) -> DRC | B47: =IF(COUNTRY_INFO!B47=0," ",COUNTRY_INFO!B47) -> Haut Katanga | C47: =IF(COUNTRY_INFO!C47=0," ",COUNTRY_INFO!C47) -> Kikula | D47: =IF(COUNTRY_INFO!$U$9:$U$1000="MDA1 (IVM+ALB)", COUNTRY_INFO!$U$9:$U$1000, " ") ->  | I47: 0
A48: =IF(COUNTRY_INFO!A48=0," ",COUNTRY_INFO!A48) -> DRC | B48: =IF(COUNTRY_INFO!B48=0," ",COUNTRY_INFO!B48) -> Haut Katanga | C48: =IF(COUNTRY_INFO!C48=0," ",COUNTRY_INFO!C48) -> Kilela Balanda | D48: =IF(COUNTRY_INFO!$U$9:$U$1000="MDA1 (IVM+ALB)", COUNTRY_INFO!$U$9:$U$1000, " ") ->  | I48: 0
A49: =IF(COUNTRY_INFO!A49=0," ",COUNTRY_INFO!A49) -> DRC | B49: =IF(COUNTRY_INFO!B49=0," ",COUNTRY_INFO!B49) -> Haut Katanga | C49: =IF(COUNTRY_INFO!C49=0," ",COUNTRY_INFO!C49) -> Kilwa | D49: =IF(COUNTRY_INFO!$U$9:$U$1000="MDA1 (IVM+ALB)", COUNTRY_INFO!$U$9:$U$1000, " ") -> MDA1 (IVM+ALB) | E49: DEC 2019 | G49: 130536 | H49: 171562 | I49: 302098 | K49: 128205 | L49: 168498 | M49: 296703 | O49: 98.21428571 | P49: 98.21405673 | Q49: 98.21415567
A50: =IF(COUNTRY_INFO!A50=0," ",COUNTRY_INFO!A50) -> DRC | B50: =IF(COUNTRY_INFO!B50=0," ",COUNTRY_INFO!B50) -> Haut Katanga | C50: =IF(COUNTRY_INFO!C50=0," ",COUNTRY_INFO!C50) -> Kipushi | D50: =IF(COUNTRY_INFO!$U$9:$U$1000="MDA1 (IVM+ALB)", COUNTRY_INFO!$U$9:$U$1000, " ") -> MDA1 (IVM+ALB) | E50: DEC 2019 | G50: 69614 | H50: 91492 | I50: 161106 | K50: 69909.25926 | L50: 91880.74074 | M50: 161790 | O50: 100.4241378 | P50: 100.4248904 | Q50: 100.4245652
A51: =IF(COUNTRY_INFO!A51=0," ",COUNTRY_INFO!A51) -> DRC | B51: =IF(COUNTRY_INFO!B51=0," ",COUNTRY_INFO!B51) -> Haut Katanga | C51: =IF(COUNTRY_INFO!C51=0," ",COUNTRY_INFO!C51) -> Kisanga | D51: =IF(COUNTRY_INFO!$U$9:$U$1000="MDA1 (IVM+ALB)", COUNTRY_INFO!$U$9:$U$1000, " ") -> MDA1 (IVM+ALB) | E51: DEC 2019 | G51: 98016 | H51: 128821 | I51: 226837 | K51: 113289.3827 | L51: 148894.6173 | M51: 262184 | O51: 115.5825403 | P51: 115.582566 | Q51: 115.5825549
A52: =IF(COUNTRY_INFO!A52=0," ",COUNTRY_INFO!A52) -> DRC | B52: =IF(COUNTRY_INFO!B52=0," ",COUNTRY_INFO!B52) -> Haut Katanga | C52: =IF(COUNTRY_INFO!C52=0," ",COUNTRY_INFO!C52) -> Kowe | D52: =IF(COUNTRY_INFO!$U$9:$U$1000="MDA1 (IVM+ALB)", COUNTRY_INFO!$U$9:$U$1000, " ") ->  | I52: 0
A53: =IF(COUNTRY_INFO!A53=0," ",COUNTRY_INFO!A53) -> DRC | B53: =IF(COUNTRY_INFO!B53=0," ",COUNTRY_INFO!B53) -> Haut Katanga | C53: =IF(COUNTRY_INFO!C53=0," ",COUNTRY_INFO!C53) -> Likasi | D53: =IF(COUNTRY_INFO!$U$9:$U$1000="MDA1 (IVM+ALB)", COUNTRY_INFO!$U$9:$U$1000, " ") -> MDA1 (IVM+ALB) | E53: DEC 2019 | G53: 63110 | H53: 82944 | I53: 146054 | K53: 58904.1358 | L53: 77416.8642 | M53: 136321 | O53: 93.33566123 | P53: 93.33630425 | Q53: 93.3360264
A54: =IF(COUNTRY_INFO!A54=0," ",COUNTRY_INFO!A54) -> DRC | B54: =IF(COUNTRY_INFO!B54=0," ",COUNTRY_INFO!B54) -> Haut Katanga | C54: =IF(COUNTRY_INFO!C54=0," ",COUNTRY_INFO!C54) -> Lubumbashi | D54: =IF(COUNTRY_INFO!$U$9:$U$1000="MDA1 (IVM+ALB)", COUNTRY_INFO!$U$9:$U$1000, " ") -> MDA1 (IVM+ALB) | E54: DEC 2019 | G54: 44255 | H54: 58164 | I54: 102419 | K54: 60578.51852 | L54: 79617.48148 | M54: 140196 | O54: 136.8851396 | P54: 136.8844672 | Q54: 136.8847577
A55: =IF(COUNTRY_INFO!A55=0," ",COUNTRY_INFO!A55) -> DRC | B55: =IF(COUNTRY_INFO!B55=0," ",COUNTRY_INFO!B55) -> Haut Katanga | C55: =IF(COUNTRY_INFO!C55=0," ",COUNTRY_INFO!C55) -> Lukafu | D55: =IF(COUNTRY_INFO!$U$9:$U$1000="MDA1 (IVM+ALB)", COUNTRY_INFO!$U$9:$U$1000, " ") -> MDA1 (IVM+ALB) | E55: DEC 2019 | G55: 34140 | H55: 44870 | I55: 79010 | K55: 34020.8642 | L55: 44713.1358 | M55: 78734 | O55: 99.65103749 | P55: 99.65040295 | Q55: 99.65067713
A56: =IF(COUNTRY_INFO!A56=0," ",COUNTRY_INFO!A56) -> DRC | B56: =IF(COUNTRY_INFO!B56=0," ",COUNTRY_INFO!B56) -> Haut Katanga | C56: =IF(COUNTRY_INFO!C56=0," ",COUNTRY_INFO!C56) -> Mitwaba | D56: =IF(COUNTRY_INFO!$U$9:$U$1000="MDA1 (IVM+ALB)", COUNTRY_INFO!$U$9:$U$1000, " ") -> MDA1 (IVM+ALB) | E56: DEC 2019 | G56: 55522 | H56: 72971 | I56: 128493 | K56: 55128.88889 | L56: 72455.11111 | M56: 127584 | O56: 99.29197235 | P56: 99.29302204 | Q56: 99.29256847
A57: =IF(COUNTRY_INFO!A57=0," ",COUNTRY_INFO!A57) -> DRC | B57: =IF(COUNTRY_INFO!B57=0," ",COUNTRY_INFO!B57) -> Haut Katanga | C57: =IF(COUNTRY_INFO!C57=0," ",COUNTRY_INFO!C57) -> Mufunga Sampwe | D57: =IF(COUNTRY_INFO!$U$9:$U$1000="MDA1 (IVM+ALB)", COUNTRY_INFO!$U$9:$U$1000, " ") -> MDA1 (IVM+ALB) | E57: DEC 2019 | G57: 63355 | H57: 83266 | I57: 146621 | K57: 64434.5679 | L57: 84685.4321 | M57: 149120 | O57: 101.703998 | P57: 101.7046959 | Q57: 101.7043943
A58: =IF(COUNTRY_INFO!A58=0," ",COUNTRY_INFO!A58) -> DRC | B58: =IF(COUNTRY_INFO!B58=0," ",COUNTRY_INFO!B58) -> Haut Katanga | C58: =IF(COUNTRY_INFO!C58=0," ",COUNTRY_INFO!C58) -> Mumbunda | D58: =IF(COUNTRY_INFO!$U$9:$U$1000="MDA1 (IVM+ALB)", COUNTRY_INFO!$U$9:$U$1000, " ") ->  | I58: 0
A59: =IF(COUNTRY_INFO!A59=0," ",COUNTRY_INFO!A59) -> DRC | B59: =IF(COUNTRY_INFO!B59=0," ",COUNTRY_INFO!B59) -> Haut Katanga | C59: =IF(COUNTRY_INFO!C59=0," ",COUNTRY_INFO!C59) -> Panda | D59: =IF(COUNTRY_INFO!$U$9:$U$1000="MDA1 (IVM+ALB)", COUNTRY_INFO!$U$9:$U$1000, " ") ->  | I59: 0
A60: =IF(COUNTRY_INFO!A60=0," ",COUNTRY_INFO!A60) -> DRC | B60: =IF(COUNTRY_INFO!B60=0," ",COUNTRY_INFO!B60) -> Haut Katanga | C60: =IF(COUNTRY_INFO!C60=0," ",COUNTRY_INFO!C60) -> Pweto | D60: =IF(COUNTRY_INFO!$U$9:$U$1000="MDA1 (IVM+ALB)", COUNTRY_INFO!$U$9:$U$1000, " ") ->  | I60: 0
A61: =IF(COUNTRY_INFO!A61=0," ",COUNTRY_INFO!A61) -> DRC | B61: =IF(COUNTRY_INFO!B61=0," ",COUNTRY_INFO!B61) -> Haut Katanga | C61: =IF(COUNTRY_INFO!C61=0," ",COUNTRY_INFO!C61) -> Ruashi | D61: =IF(COUNTRY_INFO!$U$9:$U$1000="MDA1 (IVM+ALB)", COUNTRY_INFO!$U$9:$U$1000, " ") ->  | I61: 0
A62: =IF(COUNTRY_INFO!A62=0," ",COUNTRY_INFO!A62) -> DRC | B62: =IF(COUNTRY_INFO!B62=0," ",COUNTRY_INFO!B62) -> Haut Katanga | C62: =IF(COUNTRY_INFO!C62=0," ",COUNTRY_INFO!C62) -> Sakania | D62: =IF(COUNTRY_INFO!$U$9:$U$1000="MDA1 (IVM+ALB)", COUNTRY_INFO!$U$9:$U$1000, " ") -> MDA1 (IVM+ALB) | E62: DEC 2019 | G62: 65411 | H62: 85969 | I62: 151380 | K62: 84127.46914 | L62: 110567.5309 | M62: 194695 | O62: 128.6136416 | P62: 128.6132569 | Q62: 128.6134232
A63: =IF(COUNTRY_INFO!A63=0," ",COUNTRY_INFO!A63) -> DRC | B63: =IF(COUNTRY_INFO!B63=0," ",COUNTRY_INFO!B63) -> Haut Katanga | C63: =IF(COUNTRY_INFO!C63=0," ",COUNTRY_INFO!C63) -> Tshamilemba | D63: =IF(COUNTRY_INFO!$U$9:$U$1000="MDA1 (IVM+ALB)", COUNTRY_INFO!$U$9:$U$1000, " ") ->  | I63: 0
A64: =IF(COUNTRY_INFO!A64=0," ",COUNTRY_INFO!A64) -> DRC | B64: =IF(COUNTRY_INFO!B64=0," ",COUNTRY_INFO!B64) -> Haut Katanga | C64: =IF(COUNTRY_INFO!C64=0," ",COUNTRY_INFO!C64) -> Vangu | D64: =IF(COUNTRY_INFO!$U$9:$U$1000="MDA1 (IVM+ALB)", COUNTRY_INFO!$U$9:$U$1000, " ") ->  | I64: 0
A65: =IF(COUNTRY_INFO!A65=0," ",COUNTRY_INFO!A65) -> DRC | B65: =IF(COUNTRY_INFO!B65=0," ",COUNTRY_INFO!B65) -> HAUT LOMAMI | C65: =IF(COUNTRY_INFO!C65=0," ",COUNTRY_INFO!C65) -> Bukama | D65: =IF(COUNTRY_INFO!$U$9:$U$1000="MDA1 (IVM+ALB)", COUNTRY_INFO!$U$9:$U$1000, " ") ->  | I65: 0
A66: =IF(COUNTRY_INFO!A66=0," ",COUNTRY_INFO!A66) -> DRC | B66: =IF(COUNTRY_INFO!B66=0," ",COUNTRY_INFO!B66) -> HAUT LOMAMI | C66: =IF(COUNTRY_INFO!C66=0," ",COUNTRY_INFO!C66) -> Butumba | D66: =IF(COUNTRY_INFO!$U$9:$U$1000="MDA1 (IVM+ALB)", COUNTRY_INFO!$U$9:$U$1000, " ") ->  | I66: 0
A67: =IF(COUNTRY_INFO!A67=0," ",COUNTRY_INFO!A67) -> DRC | B67: =IF(COUNTRY_INFO!B67=0," ",COUNTRY_INFO!B67) -> HAUT LOMAMI | C67: =IF(COUNTRY_INFO!C67=0," ",COUNTRY_INFO!C67) -> Kabondo Dianda | D67: =IF(COUNTRY_INFO!$U$9:$U$1000="MDA1 (IVM+ALB)", COUNTRY_INFO!$U$9:$U$1000, " ") ->  | I67: 0
A68: =IF(COUNTRY_INFO!A68=0," ",COUNTRY_INFO!A68) -> DRC | B68: =IF(COUNTRY_INFO!B68=0," ",COUNTRY_INFO!B68) -> HAUT LOMAMI | C68: =IF(COUNTRY_INFO!C68=0," ",COUNTRY_INFO!C68) -> Kabongo | D68: =IF(COUNTRY_INFO!$U$9:$U$1000="MDA1 (IVM+ALB)", COUNTRY_INFO!$U$9:$U$1000, " ") -> MDA1 (IVM+ALB) | E68: DEC 2019 | G68: 145119 | H68: 190728 | I68: 335847 | K68: 144673.5802 | L68: 190142.4198 | M68: 334816 | O68: 99.69306586 | P68: 99.69297626 | Q68: 99.69301497
A69: =IF(COUNTRY_INFO!A69=0," ",COUNTRY_INFO!A69) -> DRC | B69: =IF(COUNTRY_INFO!B69=0," ",COUNTRY_INFO!B69) -> HAUT LOMAMI | C69: =IF(COUNTRY_INFO!C69=0," ",COUNTRY_INFO!C69) -> Kamina | D69: =IF(COUNTRY_INFO!$U$9:$U$1000="MDA1 (IVM+ALB)", COUNTRY_INFO!$U$9:$U$1000, " ") ->  | I69: 0
A70: =IF(COUNTRY_INFO!A70=0," ",COUNTRY_INFO!A70) -> DRC | B70: =IF(COUNTRY_INFO!B70=0," ",COUNTRY_INFO!B70) -> HAUT LOMAMI | C70: =IF(COUNTRY_INFO!C70=0," ",COUNTRY_INFO!C70) -> Kamina Base (Baka) | D70: =IF(COUNTRY_INFO!$U$9:$U$1000="MDA1 (IVM+ALB)", COUNTRY_INFO!$U$9:$U$1000, " ") -> MDA1 (IVM+ALB) | E70: DEC 2019 | G70: 12443 | H70: 16353 | I70: 28796 | K70: 12563.2716 | L70: 16511.7284 | M70: 29075 | O70: 100.9665804 | P70: 100.9706378 | Q70: 100.9688846
A71: =IF(COUNTRY_INFO!A71=0," ",COUNTRY_INFO!A71) -> DRC | B71: =IF(COUNTRY_INFO!B71=0," ",COUNTRY_INFO!B71) -> HAUT LOMAMI | C71: =IF(COUNTRY_INFO!C71=0," ",COUNTRY_INFO!C71) -> Kaniama | D71: =IF(COUNTRY_INFO!$U$9:$U$1000="MDA1 (IVM+ALB)", COUNTRY_INFO!$U$9:$U$1000, " ") -> MDA1 (IVM+ALB) | E71: DEC 2019 | G71: 111623 | H71: 146705 | I71: 258328 | K71: 112330.5556 | L71: 147634.4444 | M71: 259965 | O71: 100.6338797 | P71: 100.6335465 | Q71: 100.6336905
A72: =IF(COUNTRY_INFO!A72=0," ",COUNTRY_INFO!A72) -> DRC | B72: =IF(COUNTRY_INFO!B72=0," ",COUNTRY_INFO!B72) -> HAUT LOMAMI | C72: =IF(COUNTRY_INFO!C72=0," ",COUNTRY_INFO!C72) -> Kayamba | D72: =IF(COUNTRY_INFO!$U$9:$U$1000="MDA1 (IVM+ALB)", COUNTRY_INFO!$U$9:$U$1000, " ") -> MDA1 (IVM+ALB) | E72: DEC 2019 | G72: 41202 | H72: 54151 | I72: 95353 | K72: 41744.19753 | L72: 54863.80247 | M72: 96608 | O72: 101.3159495 | P72: 101.3163237 | Q72: 101.3161621
A73: =IF(COUNTRY_INFO!A73=0," ",COUNTRY_INFO!A73) -> DRC | B73: =IF(COUNTRY_INFO!B73=0," ",COUNTRY_INFO!B73) -> HAUT LOMAMI | C73: =IF(COUNTRY_INFO!C73=0," ",COUNTRY_INFO!C73) -> Kinda | D73: =IF(COUNTRY_INFO!$U$9:$U$1000="MDA1 (IVM+ALB)", COUNTRY_INFO!$U$9:$U$1000, " ") ->  | I73: 0
A74: =IF(COUNTRY_INFO!A74=0," ",COUNTRY_INFO!A74) -> DRC | B74: =IF(COUNTRY_INFO!B74=0," ",COUNTRY_INFO!B74) -> HAUT LOMAMI | C74: =IF(COUNTRY_INFO!C74=0," ",COUNTRY_INFO!C74) -> Kinkonja | D74: =IF(COUNTRY_INFO!$U$9:$U$1000="MDA1 (IVM+ALB)", COUNTRY_INFO!$U$9:$U$1000, " ") ->  | I74: =SUM(F74:H74) -> 0 | O74: =IF(G74<>0, IF(K74/G74*100=0, "-", K74/G74*100), " ") ->  | P74: =IF(H74<>0, IF(L74/H74*100=0, "-", L74/H74*100), " ") ->  | Q74: =IF(I74<>0, IF(M74/I74*100=0, "-", M74/I74*100), " ") -> 
A75: =IF(COUNTRY_INFO!A75=0," ",COUNTRY_INFO!A75) -> DRC | B75: =IF(COUNTRY_INFO!B75=0," ",COUNTRY_INFO!B75) -> HAUT LOMAMI | C75: =IF(COUNTRY_INFO!C75=0," ",COUNTRY_INFO!C75) -> Kitenge | D75: =IF(COUNTRY_INFO!$U$9:$U$1000="MDA1 (IVM+ALB)", COUNTRY_INFO!$U$9:$U$1000, " ") ->  | I75: 0
A76: =IF(COUNTRY_INFO!A76=0," ",COUNTRY_INFO!A76) -> DRC | B76: =IF(COUNTRY_INFO!B76=0," ",COUNTRY_INFO!B76) -> HAUT LOMAMI | C76: =IF(COUNTRY_INFO!C76=0," ",COUNTRY_INFO!C76) -> Lwamba | D76: =IF(COUNTRY_INFO!$U$9:$U$1000="MDA1 (IVM+ALB)", COUNTRY_INFO!$U$9:$U$1000, " ") ->  | I76: 0
A77: =IF(COUNTRY_INFO!A77=0," ",COUNTRY_INFO!A77) -> DRC | B77: =IF(COUNTRY_INFO!B77=0," ",COUNTRY_INFO!B77) -> HAUT LOMAMI | C77: =IF(COUNTRY_INFO!C77=0," ",COUNTRY_INFO!C77) -> Malemba Nkulu | D77: =IF(COUNTRY_INFO!$U$9:$U$1000="MDA1 (IVM+ALB)", COUNTRY_INFO!$U$9:$U$1000, " ") ->  | I77: 0
A78: =IF(COUNTRY_INFO!A78=0," ",COUNTRY_INFO!A78) -> DRC | B78: =IF(COUNTRY_INFO!B78=0," ",COUNTRY_INFO!B78) -> HAUT LOMAMI | C78: =IF(COUNTRY_INFO!C78=0," ",COUNTRY_INFO!C78) -> Mukanga | D78: =IF(COUNTRY_INFO!$U$9:$U$1000="MDA1 (IVM+ALB)", COUNTRY_INFO!$U$9:$U$1000, " ") ->  | I78: 0
A79: =IF(COUNTRY_INFO!A79=0," ",COUNTRY_INFO!A79) -> DRC | B79: =IF(COUNTRY_INFO!B79=0," ",COUNTRY_INFO!B79) -> HAUT LOMAMI | C79: =IF(COUNTRY_INFO!C79=0," ",COUNTRY_INFO!C79) -> Mulongo | D79: =IF(COUNTRY_INFO!$U$9:$U$1000="MDA1 (IVM+ALB)", COUNTRY_INFO!$U$9:$U$1000, " ") ->  | I79: 0
A80: =IF(COUNTRY_INFO!A80=0," ",COUNTRY_INFO!A80) -> DRC | B80: =IF(COUNTRY_INFO!B80=0," ",COUNTRY_INFO!B80) -> HAUT LOMAMI | C80: =IF(COUNTRY_INFO!C80=0," ",COUNTRY_INFO!C80) -> Songa | D80: =IF(COUNTRY_INFO!$U$9:$U$1000="MDA1 (IVM+ALB)", COUNTRY_INFO!$U$9:$U$1000, " ") -> MDA1 (IVM+ALB) | E80: DEC 2019 | G80: 73786 | H80: 96976 | I80: 170762 | K80: 74116.60494 | L80: 97410.39506 | M80: 171527 | O80: 100.4480592 | P80: 100.4479408 | Q80: 100.4479919
A81: =IF(COUNTRY_INFO!A81=0," ",COUNTRY_INFO!A81) -> DRC | B81: =IF(COUNTRY_INFO!B81=0," ",COUNTRY_INFO!B81) -> HAUT UELE | C81: =IF(COUNTRY_INFO!C81=0," ",COUNTRY_INFO!C81) -> Aba | D81: =IF(COUNTRY_INFO!$U$9:$U$1000="MDA1 (IVM+ALB)", COUNTRY_INFO!$U$9:$U$1000, " ") ->  | I81: 0
A82: =IF(COUNTRY_INFO!A82=0," ",COUNTRY_INFO!A82) -> DRC | B82: =IF(COUNTRY_INFO!B82=0," ",COUNTRY_INFO!B82) -> HAUT UELE | C82: =IF(COUNTRY_INFO!C82=0," ",COUNTRY_INFO!C82) -> Bomamangbetu | D82: =IF(COUNTRY_INFO!$U$9:$U$1000="MDA1 (IVM+ALB)", COUNTRY_INFO!$U$9:$U$1000, " ") ->  | I82: 0
A83: =IF(COUNTRY_INFO!A83=0," ",COUNTRY_INFO!A83) -> DRC | B83: =IF(COUNTRY_INFO!B83=0," ",COUNTRY_INFO!B83) -> HAUT UELE | C83: =IF(COUNTRY_INFO!C83=0," ",COUNTRY_INFO!C83) -> Doruma | D83: =IF(COUNTRY_INFO!$U$9:$U$1000="MDA1 (IVM+ALB)", COUNTRY_INFO!$U$9:$U$1000, " ") ->  | I83: 0
A84: =IF(COUNTRY_INFO!A84=0," ",COUNTRY_INFO!A84) -> DRC | B84: =IF(COUNTRY_INFO!B84=0," ",COUNTRY_INFO!B84) -> HAUT UELE | C84: =IF(COUNTRY_INFO!C84=0," ",COUNTRY_INFO!C84) -> Dungu | D84: =IF(COUNTRY_INFO!$U$9:$U$1000="MDA1 (IVM+ALB)", COUNTRY_INFO!$U$9:$U$1000, " ") ->  | I84: 0
A85: =IF(COUNTRY_INFO!A85=0," ",COUNTRY_INFO!A85) -> DRC | B85: =IF(COUNTRY_INFO!B85=0," ",COUNTRY_INFO!B85) -> HAUT UELE | C85: =IF(COUNTRY_INFO!C85=0," ",COUNTRY_INFO!C85) -> Faradje | D85: =IF(COUNTRY_INFO!$U$9:$U$1000="MDA1 (IVM+ALB)", COUNTRY_INFO!$U$9:$U$1000, " ") -> MDA1 (IVM+ALB) | E85: DEC 2019 | G85: 48896 | H85: 64264 | I85: 113160 | K85: 42940.67901 | L85: 56436.32099 | M85: 99377 | O85: 87.82043319 | P85: 87.81949612 | Q85: 87.81990103
A86: =IF(COUNTRY_INFO!A86=0," ",COUNTRY_INFO!A86) -> DRC | B86: =IF(COUNTRY_INFO!B86=0," ",COUNTRY_INFO!B86) -> HAUT UELE | C86: =IF(COUNTRY_INFO!C86=0," ",COUNTRY_INFO!C86) -> Gombari | D86: =IF(COUNTRY_INFO!$U$9:$U$1000="MDA1 (IVM+ALB)", COUNTRY_INFO!$U$9:$U$1000, " ") ->  | I86: 0
A87: =IF(COUNTRY_INFO!A87=0," ",COUNTRY_INFO!A87) -> DRC | B87: =IF(COUNTRY_INFO!B87=0," ",COUNTRY_INFO!B87) -> HAUT UELE | C87: =IF(COUNTRY_INFO!C87=0," ",COUNTRY_INFO!C87) -> Isiro | D87: =IF(COUNTRY_INFO!$U$9:$U$1000="MDA1 (IVM+ALB)", COUNTRY_INFO!$U$9:$U$1000, " ") -> MDA1 (IVM+ALB) | E87: DEC 2019 | G87: 101050 | H87: 132808 | I87: 233858 | K87: 93208.45679 | L87: 122502.5432 | M87: 215711 | O87: 92.23993745 | P87: 92.24033432 | Q87: 92.24016283
A88: =IF(COUNTRY_INFO!A88=0," ",COUNTRY_INFO!A88) -> DRC | B88: =IF(COUNTRY_INFO!B88=0," ",COUNTRY_INFO!B88) -> HAUT UELE | C88: =IF(COUNTRY_INFO!C88=0," ",COUNTRY_INFO!C88) -> Makoro | D88: =IF(COUNTRY_INFO!$U$9:$U$1000="MDA1 (IVM+ALB)", COUNTRY_INFO!$U$9:$U$1000, " ") ->  | I88: 0
A89: =IF(COUNTRY_INFO!A89=0," ",COUNTRY_INFO!A89) -> DRC | B89: =IF(COUNTRY_INFO!B89=0," ",COUNTRY_INFO!B89) -> HAUT UELE | C89: =IF(COUNTRY_INFO!C89=0," ",COUNTRY_INFO!C89) -> Niangara | D89: =IF(COUNTRY_INFO!$U$9:$U$1000="MDA1 (IVM+ALB)", COUNTRY_INFO!$U$9:$U$1000, " ") -> MDA1 (IVM+ALB) | E89: DEC 2019 | G89: 41003 | H89: 53890 | I89: 94893 | K89: 40294.07407 | L89: 52957.92593 | M89: 93252 | O89: 98.27103889 | P89: 98.27041367 | Q89: 98.27068382
A90: =IF(COUNTRY_INFO!A90=0," ",COUNTRY_INFO!A90) -> DRC | B90: =IF(COUNTRY_INFO!B90=0," ",COUNTRY_INFO!B90) -> HAUT UELE | C90: =IF(COUNTRY_INFO!C90=0," ",COUNTRY_INFO!C90) -> Pawa | D90: =IF(COUNTRY_INFO!$U$9:$U$1000="MDA1 (IVM+ALB)", COUNTRY_INFO!$U$9:$U$1000, " ") -> MDA1 (IVM+ALB) | E90: DEC 2019 | G90: 68248 | H90: 89697 | I90: 157945 | K90: 67649.38272 | L90: 88910.61728 | M90: 156560 | O90: 99.12287938 | P90: 99.12328984 | Q90: 99.12311248
A91: =IF(COUNTRY_INFO!A91=0," ",COUNTRY_INFO!A91) -> DRC | B91: =IF(COUNTRY_INFO!B91=0," ",COUNTRY_INFO!B91) -> HAUT UELE | C91: =IF(COUNTRY_INFO!C91=0," ",COUNTRY_INFO!C91) -> Rungu | D91: =IF(COUNTRY_INFO!$U$9:$U$1000="MDA1 (IVM+ALB)", COUNTRY_INFO!$U$9:$U$1000, " ") -> MDA1 (IVM+ALB) | E91: DEC 2019 | G91: 42127 | H91: 55367 | I91: 97494 | K91: 41692.77778 | L91: 54796.22222 | M91: 96489 | O91: 98.96925434 | P91: 98.96910113 | Q91: 98.96916733
A92: =IF(COUNTRY_INFO!A92=0," ",COUNTRY_INFO!A92) -> DRC | B92: =IF(COUNTRY_INFO!B92=0," ",COUNTRY_INFO!B92) -> HAUT UELE | C92: =IF(COUNTRY_INFO!C92=0," ",COUNTRY_INFO!C92) -> Wamba | D92: =IF(COUNTRY_INFO!$U$9:$U$1000="MDA1 (IVM+ALB)", COUNTRY_INFO!$U$9:$U$1000, " ") ->  | I92: 0
A93: =IF(COUNTRY_INFO!A93=0," ",COUNTRY_INFO!A93) -> DRC | B93: =IF(COUNTRY_INFO!B93=0," ",COUNTRY_INFO!B93) -> HAUT UELE | C93: =IF(COUNTRY_INFO!C93=0," ",COUNTRY_INFO!C93) -> Wasta | D93: =IF(COUNTRY_INFO!$U$9:$U$1000="MDA1 (IVM+ALB)", COUNTRY_INFO!$U$9:$U$1000, " ") -> MDA1 (IVM+ALB) | E93: DEC 2019 | G93: 104311 | H93: 137095 | I93: 241406 | K93: 103180.8642 | L93: 135609.1358 | M93: 238790 | O93: 98.91657083 | P93: 98.91617915 | Q93: 98.91634839
A94: =IF(COUNTRY_INFO!A94=0," ",COUNTRY_INFO!A94) -> DRC | B94: =IF(COUNTRY_INFO!B94=0," ",COUNTRY_INFO!B94) -> ITURI | C94: =IF(COUNTRY_INFO!C94=0," ",COUNTRY_INFO!C94) -> Adi | D94: =IF(COUNTRY_INFO!$U$9:$U$1000="MDA1 (IVM+ALB)", COUNTRY_INFO!$U$9:$U$1000, " ") ->  | I94: 0
A95: =IF(COUNTRY_INFO!A95=0," ",COUNTRY_INFO!A95) -> DRC | B95: =IF(COUNTRY_INFO!B95=0," ",COUNTRY_INFO!B95) -> ITURI | C95: =IF(COUNTRY_INFO!C95=0," ",COUNTRY_INFO!C95) -> Adja | D95: =IF(COUNTRY_INFO!$U$9:$U$1000="MDA1 (IVM+ALB)", COUNTRY_INFO!$U$9:$U$1000, " ") ->  | I95: 0
A96: =IF(COUNTRY_INFO!A96=0," ",COUNTRY_INFO!A96) -> DRC | B96: =IF(COUNTRY_INFO!B96=0," ",COUNTRY_INFO!B96) -> ITURI | C96: =IF(COUNTRY_INFO!C96=0," ",COUNTRY_INFO!C96) -> Angumu | D96: =IF(COUNTRY_INFO!$U$9:$U$1000="MDA1 (IVM+ALB)", COUNTRY_INFO!$U$9:$U$1000, " ") -> MDA1 (IVM+ALB) | E96: DEC 2019 | G96: 65753 | H96: 86419 | I96: 152172 | K96: 65005.37037 | L96: 85435.62963 | M96: 150441 | O96: 98.86297259 | P96: 98.86209008 | Q96: 98.86247141
A97: =IF(COUNTRY_INFO!A97=0," ",COUNTRY_INFO!A97) -> DRC | B97: =IF(COUNTRY_INFO!B97=0," ",COUNTRY_INFO!B97) -> ITURI | C97: =IF(COUNTRY_INFO!C97=0," ",COUNTRY_INFO!C97) -> Ariwara | D97: =IF(COUNTRY_INFO!$U$9:$U$1000="MDA1 (IVM+ALB)", COUNTRY_INFO!$U$9:$U$1000, " ") -> MDA1 (IVM+ALB) | E97: DEC 2019 | G97: 85041 | H97: 111769 | I97: 196810 | K97: 85346.85185 | L97: 112170.1481 | M97: 197517 | O97: 100.3596522 | P97: 100.3589082 | Q97: 100.3592297
A98: =IF(COUNTRY_INFO!A98=0," ",COUNTRY_INFO!A98) -> DRC | B98: =IF(COUNTRY_INFO!B98=0," ",COUNTRY_INFO!B98) -> ITURI | C98: =IF(COUNTRY_INFO!C98=0," ",COUNTRY_INFO!C98) -> Aru | D98: =IF(COUNTRY_INFO!$U$9:$U$1000="MDA1 (IVM+ALB)", COUNTRY_INFO!$U$9:$U$1000, " ") ->  | I98: 0
A99: =IF(COUNTRY_INFO!A99=0," ",COUNTRY_INFO!A99) -> DRC | B99: =IF(COUNTRY_INFO!B99=0," ",COUNTRY_INFO!B99) -> ITURI | C99: =IF(COUNTRY_INFO!C99=0," ",COUNTRY_INFO!C99) -> Augnba | D99: =IF(COUNTRY_INFO!$U$9:$U$1000="MDA1 (IVM+ALB)", COUNTRY_INFO!$U$9:$U$1000, " ") ->  | I99: 0
A100: =IF(COUNTRY_INFO!A100=0," ",COUNTRY_INFO!A100) -> DRC | B100: =IF(COUNTRY_INFO!B100=0," ",COUNTRY_INFO!B100) -> ITURI | C100: =IF(COUNTRY_INFO!C100=0," ",COUNTRY_INFO!C100) -> Bambu | D100: =IF(COUNTRY_INFO!$U$9:$U$1000="MDA1 (IVM+ALB)", COUNTRY_INFO!$U$9:$U$1000, " ") -> MDA1 (IVM+ALB) | E100: DEC 2019 | G100: 45014 | H100: 59162 | I100: 104176 | K100: 41054.5679 | L100: 53957.4321 | M100: 95012 | O100: 91.20399854 | P100: 91.20285335 | Q100: 91.20334818
A101: =IF(COUNTRY_INFO!A101=0," ",COUNTRY_INFO!A101) -> DRC | B101: =IF(COUNTRY_INFO!B101=0," ",COUNTRY_INFO!B101) -> ITURI | C101: =IF(COUNTRY_INFO!C101=0," ",COUNTRY_INFO!C101) -> Biringi | D101: =IF(COUNTRY_INFO!$U$9:$U$1000="MDA1 (IVM+ALB)", COUNTRY_INFO!$U$9:$U$1000, " ") -> MDA1 (IVM+ALB) | E101: DEC 2019 | G101: 50477 | H101: 66341 | I101: 116818 | K101: 50392.65432 | L101: 66230.34568 | M101: 116623 | O101: 99.83290275 | P101: 99.83320372 | Q101: 99.83307367
A102: =IF(COUNTRY_INFO!A102=0," ",COUNTRY_INFO!A102) -> DRC | B102: =IF(COUNTRY_INFO!B102=0," ",COUNTRY_INFO!B102) -> ITURI | C102: =IF(COUNTRY_INFO!C102=0," ",COUNTRY_INFO!C102) -> Boga | D102: =IF(COUNTRY_INFO!$U$9:$U$1000="MDA1 (IVM+ALB)", COUNTRY_INFO!$U$9:$U$1000, " ") -> MDA1 (IVM+ALB) | E102: DEC 2019 | G102: 26265 | H102: 34520 | I102: 60785 | K102: 26723.14815 | L102: 35121.85185 | M102: 61845 | O102: 101.7443295 | P102: 101.7434874 | Q102: 101.7438513
A103: =IF(COUNTRY_INFO!A103=0," ",COUNTRY_INFO!A103) -> DRC | B103: =IF(COUNTRY_INFO!B103=0," ",COUNTRY_INFO!B103) -> ITURI | C103: =IF(COUNTRY_INFO!C103=0," ",COUNTRY_INFO!C103) -> Bunia | D103: =IF(COUNTRY_INFO!$U$9:$U$1000="MDA1 (IVM+ALB)", COUNTRY_INFO!$U$9:$U$1000, " ") -> MDA1 (IVM+ALB) | E103: DEC 2019 | G103: 120290 | H103: 158096 | I103: 278386 | K103: 119244.5679 | L103: 156721.4321 | M103: 275966 | O103: 99.13090689 | P103: 99.13054859 | Q103: 99.13070341
A104: =IF(COUNTRY_INFO!A104=0," ",COUNTRY_INFO!A104) -> DRC | B104: =IF(COUNTRY_INFO!B104=0," ",COUNTRY_INFO!B104) -> ITURI | C104: =IF(COUNTRY_INFO!C104=0," ",COUNTRY_INFO!C104) -> Damas | D104: =IF(COUNTRY_INFO!$U$9:$U$1000="MDA1 (IVM+ALB)", COUNTRY_INFO!$U$9:$U$1000, " ") -> MDA1 (IVM+ALB) | E104: DEC 2019 | G104: 44424 | H104: 58386 | I104: 102810 | K104: 43953.08642 | L104: 57766.91358 | M104: 101720 | O104: 98.93995682 | P104: 98.93966632 | Q104: 98.93979185
A105: =IF(COUNTRY_INFO!A105=0," ",COUNTRY_INFO!A105) -> DRC | B105: =IF(COUNTRY_INFO!B105=0," ",COUNTRY_INFO!B105) -> ITURI | C105: =IF(COUNTRY_INFO!C105=0," ",COUNTRY_INFO!C105) -> Drodro | D105: =IF(COUNTRY_INFO!$U$9:$U$1000="MDA1 (IVM+ALB)", COUNTRY_INFO!$U$9:$U$1000, " ") ->  | I105: 0
A106: =IF(COUNTRY_INFO!A106=0," ",COUNTRY_INFO!A106) -> DRC | B106: =IF(COUNTRY_INFO!B106=0," ",COUNTRY_INFO!B106) -> ITURI | C106: =IF(COUNTRY_INFO!C106=0," ",COUNTRY_INFO!C106) -> Fataki | D106: =IF(COUNTRY_INFO!$U$9:$U$1000="MDA1 (IVM+ALB)", COUNTRY_INFO!$U$9:$U$1000, " ") -> MDA1 (IVM+ALB) | E106: DEC 2019 | G106: 39321 | H106: 51679 | I106: 91000 | K106: 38436.91358 | L106: 50517.08642 | M106: 88954 | O106: 97.75161766 | P106: 97.7516717 | Q106: 97.75164835
A107: =IF(COUNTRY_INFO!A107=0," ",COUNTRY_INFO!A107) -> DRC | B107: =IF(COUNTRY_INFO!B107=0," ",COUNTRY_INFO!B107) -> ITURI | C107: =IF(COUNTRY_INFO!C107=0," ",COUNTRY_INFO!C107) -> Gethy | D107: =IF(COUNTRY_INFO!$U$9:$U$1000="MDA1 (IVM+ALB)", COUNTRY_INFO!$U$9:$U$1000, " ") ->  | I107: 0
A108: =IF(COUNTRY_INFO!A108=0," ",COUNTRY_INFO!A108) -> DRC | B108: =IF(COUNTRY_INFO!B108=0," ",COUNTRY_INFO!B108) -> ITURI | C108: =IF(COUNTRY_INFO!C108=0," ",COUNTRY_INFO!C108) -> Jiba | D108: =IF(COUNTRY_INFO!$U$9:$U$1000="MDA1 (IVM+ALB)", COUNTRY_INFO!$U$9:$U$1000, " ") -> MDA1 (IVM+ALB) | E108: DEC 2019 | G108: 31717 | H108: 41685 | I108: 73402 | K108: 31862.96296 | L108: 41877.03704 | M108: 73740 | O108: 100.4602042 | P108: 100.4606862 | Q108: 100.4604779
A109: =IF(COUNTRY_INFO!A109=0," ",COUNTRY_INFO!A109) -> DRC | B109: =IF(COUNTRY_INFO!B109=0," ",COUNTRY_INFO!B109) -> ITURI | C109: =IF(COUNTRY_INFO!C109=0," ",COUNTRY_INFO!C109) -> Kambale | D109: =IF(COUNTRY_INFO!$U$9:$U$1000="MDA1 (IVM+ALB)", COUNTRY_INFO!$U$9:$U$1000, " ") -> MDA1 (IVM+ALB) | E109: DEC 2019 | G109: 48218 | H109: 63372 | I109: 111590 | K109: 48223.95062 | L109: 63380.04938 | M109: 111604 | O109: 100.0123411 | P109: 100.0127018 | Q109: 100.0125459
A110: =IF(COUNTRY_INFO!A110=0," ",COUNTRY_INFO!A110) -> DRC | B110: =IF(COUNTRY_INFO!B110=0," ",COUNTRY_INFO!B110) -> ITURI | C110: =IF(COUNTRY_INFO!C110=0," ",COUNTRY_INFO!C110) -> Kilo | D110: =IF(COUNTRY_INFO!$U$9:$U$1000="MDA1 (IVM+ALB)", COUNTRY_INFO!$U$9:$U$1000, " ") -> MDA1 (IVM+ALB) | E110: DEC 2019 | G110: 20444 | H110: 26869 | I110: 47313 | K110: 20015.67901 | L110: 26306.32099 | M110: 46322 | O110: 97.90490615 | P110: 97.90584312 | Q110: 97.90543825
A111: =IF(COUNTRY_INFO!A111=0," ",COUNTRY_INFO!A111) -> DRC | B111: =IF(COUNTRY_INFO!B111=0," ",COUNTRY_INFO!B111) -> ITURI | C111: =IF(COUNTRY_INFO!C111=0," ",COUNTRY_INFO!C111) -> Komanda | D111: =IF(COUNTRY_INFO!$U$9:$U$1000="MDA1 (IVM+ALB)", COUNTRY_INFO!$U$9:$U$1000, " ") -> MDA1 (IVM+ALB) | E111: DEC 2019 | G111: 97954 | H111: 128739 | I111: 226693 | K111: 98357.77778 | L111: 129270.2222 | M111: 227628 | O111: 100.4122116 | P111: 100.412635 | Q111: 100.4124521
A112: =IF(COUNTRY_INFO!A112=0," ",COUNTRY_INFO!A112) -> DRC | B112: =IF(COUNTRY_INFO!B112=0," ",COUNTRY_INFO!B112) -> ITURI | C112: =IF(COUNTRY_INFO!C112=0," ",COUNTRY_INFO!C112) -> Laybo | D112: =IF(COUNTRY_INFO!$U$9:$U$1000="MDA1 (IVM+ALB)", COUNTRY_INFO!$U$9:$U$1000, " ") ->  | I112: 0
A113: =IF(COUNTRY_INFO!A113=0," ",COUNTRY_INFO!A113) -> DRC | B113: =IF(COUNTRY_INFO!B113=0," ",COUNTRY_INFO!B113) -> ITURI | C113: =IF(COUNTRY_INFO!C113=0," ",COUNTRY_INFO!C113) -> Linga | D113: =IF(COUNTRY_INFO!$U$9:$U$1000="MDA1 (IVM+ALB)", COUNTRY_INFO!$U$9:$U$1000, " ") -> MDA1 (IVM+ALB) | E113: DEC 2019 | G113: 43177 | H113: 56747 | I113: 99924 | K113: 44020.92593 | L113: 57856.07407 | M113: 101877 | O113: 101.9545729 | P113: 101.9544189 | Q113: 101.9544854
A114: =IF(COUNTRY_INFO!A114=0," ",COUNTRY_INFO!A114) -> DRC | B114: =IF(COUNTRY_INFO!B114=0," ",COUNTRY_INFO!B114) -> ITURI | C114: =IF(COUNTRY_INFO!C114=0," ",COUNTRY_INFO!C114) -> Lita | D114: =IF(COUNTRY_INFO!$U$9:$U$1000="MDA1 (IVM+ALB)", COUNTRY_INFO!$U$9:$U$1000, " ") ->  | I114: 0
A115: =IF(COUNTRY_INFO!A115=0," ",COUNTRY_INFO!A115) -> DRC | B115: =IF(COUNTRY_INFO!B115=0," ",COUNTRY_INFO!B115) -> ITURI | C115: =IF(COUNTRY_INFO!C115=0," ",COUNTRY_INFO!C115) -> Logo | D115: =IF(COUNTRY_INFO!$U$9:$U$1000="MDA1 (IVM+ALB)", COUNTRY_INFO!$U$9:$U$1000, " ") ->  | I115: 0
A116: =IF(COUNTRY_INFO!A116=0," ",COUNTRY_INFO!A116) -> DRC | B116: =IF(COUNTRY_INFO!B116=0," ",COUNTRY_INFO!B116) -> ITURI | C116: =IF(COUNTRY_INFO!C116=0," ",COUNTRY_INFO!C116) -> Lolwa | D116: =IF(COUNTRY_INFO!$U$9:$U$1000="MDA1 (IVM+ALB)", COUNTRY_INFO!$U$9:$U$1000, " ") -> MDA1 (IVM+ALB) | E116: DEC 2019 | G116: 26405 | H116: 34704 | I116: 61109 | K116: 24777.40741 | L116: 32564.59259 | M116: 57342 | O116: 93.83604396 | P116: 93.83527142 | Q116: 93.83560523
A117: =IF(COUNTRY_INFO!A117=0," ",COUNTRY_INFO!A117) -> DRC | B117: =IF(COUNTRY_INFO!B117=0," ",COUNTRY_INFO!B117) -> ITURI | C117: =IF(COUNTRY_INFO!C117=0," ",COUNTRY_INFO!C117) -> Mahagi | D117: =IF(COUNTRY_INFO!$U$9:$U$1000="MDA1 (IVM+ALB)", COUNTRY_INFO!$U$9:$U$1000, " ") ->  | I117: 0
A118: =IF(COUNTRY_INFO!A118=0," ",COUNTRY_INFO!A118) -> DRC | B118: =IF(COUNTRY_INFO!B118=0," ",COUNTRY_INFO!B118) -> ITURI | C118: =IF(COUNTRY_INFO!C118=0," ",COUNTRY_INFO!C118) -> Mambasa | D118: =IF(COUNTRY_INFO!$U$9:$U$1000="MDA1 (IVM+ALB)", COUNTRY_INFO!$U$9:$U$1000, " ") -> MDA1 (IVM+ALB) | E118: DEC 2019 | G118: 40272 | H118: 52929 | I118: 93201 | K118: 40235.74074 | L118: 52881.25926 | M118: 93117 | O118: 99.9099641 | P118: 99.9098023 | Q118: 99.90987221
A119: =IF(COUNTRY_INFO!A119=0," ",COUNTRY_INFO!A119) -> DRC | B119: =IF(COUNTRY_INFO!B119=0," ",COUNTRY_INFO!B119) -> ITURI | C119: =IF(COUNTRY_INFO!C119=0," ",COUNTRY_INFO!C119) -> Mandima | D119: =IF(COUNTRY_INFO!$U$9:$U$1000="MDA1 (IVM+ALB)", COUNTRY_INFO!$U$9:$U$1000, " ") -> MDA1 (IVM+ALB) | E119: DEC 2019 | G119: 53570 | H119: 70406 | I119: 123976 | K119: 50734.44444 | L119: 66679.55556 | M119: 117414 | O119: 94.70682181 | P119: 94.70720614 | Q119: 94.70704007
A120: =IF(COUNTRY_INFO!A120=0," ",COUNTRY_INFO!A120) -> DRC | B120: =IF(COUNTRY_INFO!B120=0," ",COUNTRY_INFO!B120) -> ITURI | C120: =IF(COUNTRY_INFO!C120=0," ",COUNTRY_INFO!C120) -> Mangala | D120: =IF(COUNTRY_INFO!$U$9:$U$1000="MDA1 (IVM+ALB)", COUNTRY_INFO!$U$9:$U$1000, " ") -> MDA1 (IVM+ALB) | E120: DEC 2019 | G120: 30357 | H120: 39898 | I120: 70255 | K120: 30256.41975 | L120: 39765.58025 | M120: 70022 | O120: 99.66867527 | P120: 99.66810428 | Q120: 99.66835101
A121: =IF(COUNTRY_INFO!A121=0," ",COUNTRY_INFO!A121) -> DRC | B121: =IF(COUNTRY_INFO!B121=0," ",COUNTRY_INFO!B121) -> ITURI | C121: =IF(COUNTRY_INFO!C121=0," ",COUNTRY_INFO!C121) -> Mongbwalu | D121: =IF(COUNTRY_INFO!$U$9:$U$1000="MDA1 (IVM+ALB)", COUNTRY_INFO!$U$9:$U$1000, " ") ->  | I121: 0
A122: =IF(COUNTRY_INFO!A122=0," ",COUNTRY_INFO!A122) -> DRC | B122: =IF(COUNTRY_INFO!B122=0," ",COUNTRY_INFO!B122) -> ITURI | C122: =IF(COUNTRY_INFO!C122=0," ",COUNTRY_INFO!C122) -> Niania | D122: =IF(COUNTRY_INFO!$U$9:$U$1000="MDA1 (IVM+ALB)", COUNTRY_INFO!$U$9:$U$1000, " ") -> MDA1 (IVM+ALB) | E122: DEC 2019 | G122: 28062 | H122: 36881 | I122: 64943 | K122: 27883.76543 | L122: 36647.23457 | M122: 64531 | O122: 99.36485437 | P122: 99.36616298 | Q122: 99.36559752
A123: =IF(COUNTRY_INFO!A123=0," ",COUNTRY_INFO!A123) -> DRC | B123: =IF(COUNTRY_INFO!B123=0," ",COUNTRY_INFO!B123) -> ITURI | C123: =IF(COUNTRY_INFO!C123=0," ",COUNTRY_INFO!C123) -> Nizi | D123: =IF(COUNTRY_INFO!$U$9:$U$1000="MDA1 (IVM+ALB)", COUNTRY_INFO!$U$9:$U$1000, " ") -> MDA1 (IVM+ALB) | E123: DEC 2019 | G123: 58567 | H123: 76974 | I123: 135541 | K123: 60557.77778 | L123: 79590.22222 | M123: 140148 | O123: 103.3991459 | P123: 103.3988389 | Q123: 103.3989715
A124: =IF(COUNTRY_INFO!A124=0," ",COUNTRY_INFO!A124) -> DRC | B124: =IF(COUNTRY_INFO!B124=0," ",COUNTRY_INFO!B124) -> ITURI | C124: =IF(COUNTRY_INFO!C124=0," ",COUNTRY_INFO!C124) -> Nyankunde | D124: =IF(COUNTRY_INFO!$U$9:$U$1000="MDA1 (IVM+ALB)", COUNTRY_INFO!$U$9:$U$1000, " ") -> MDA1 (IVM+ALB) | E124: DEC 2019 | G124: 38812 | H124: 51009 | I124: 89821 | K124: 38916.11111 | L124: 51146.88889 | M124: 90063 | O124: 100.2682446 | P124: 100.2703227 | Q124: 100.2694247
A125: =IF(COUNTRY_INFO!A125=0," ",COUNTRY_INFO!A125) -> DRC | B125: =IF(COUNTRY_INFO!B125=0," ",COUNTRY_INFO!B125) -> ITURI | C125: =IF(COUNTRY_INFO!C125=0," ",COUNTRY_INFO!C125) -> Nyarambe | D125: =IF(COUNTRY_INFO!$U$9:$U$1000="MDA1 (IVM+ALB)", COUNTRY_INFO!$U$9:$U$1000, " ") -> MDA1 (IVM+ALB) | E125: DEC 2019 | G125: 84137 | H125: 110580 | I125: 194717 | K125: 83066.66667 | L125: 109173.3333 | M125: 192240 | O125: 98.72786844 | P125: 98.72791945 | Q125: 98.72789741
A126: =IF(COUNTRY_INFO!A126=0," ",COUNTRY_INFO!A126) -> DRC | B126: =IF(COUNTRY_INFO!B126=0," ",COUNTRY_INFO!B126) -> ITURI | C126: =IF(COUNTRY_INFO!C126=0," ",COUNTRY_INFO!C126) -> Rethy | D126: =IF(COUNTRY_INFO!$U$9:$U$1000="MDA1 (IVM+ALB)", COUNTRY_INFO!$U$9:$U$1000, " ") -> MDA1 (IVM+ALB) | E126: DEC 2019 | G126: 78526 | H126: 103205 | I126: 181731 | K126: 77916.48148 | L126: 102404.5185 | M126: 180321 | O126: 99.22380037 | P126: 99.22437723 | Q126: 99.22412797
A127: =IF(COUNTRY_INFO!A127=0," ",COUNTRY_INFO!A127) -> DRC | B127: =IF(COUNTRY_INFO!B127=0," ",COUNTRY_INFO!B127) -> ITURI | C127: =IF(COUNTRY_INFO!C127=0," ",COUNTRY_INFO!C127) -> Rimba | D127: =IF(COUNTRY_INFO!$U$9:$U$1000="MDA1 (IVM+ALB)", COUNTRY_INFO!$U$9:$U$1000, " ") ->  | I127: 0
A128: =IF(COUNTRY_INFO!A128=0," ",COUNTRY_INFO!A128) -> DRC | B128: =IF(COUNTRY_INFO!B128=0," ",COUNTRY_INFO!B128) -> ITURI | C128: =IF(COUNTRY_INFO!C128=0," ",COUNTRY_INFO!C128) -> Rwampara | D128: =IF(COUNTRY_INFO!$U$9:$U$1000="MDA1 (IVM+ALB)", COUNTRY_INFO!$U$9:$U$1000, " ") -> MDA1 (IVM+ALB) | E128: DEC 2019 | G128: 55717 | H128: 73228 | I128: 128945 | K128: 56614.44444 | L128: 74407.55556 | M128: 131022 | O128: 101.6107192 | P128: 101.6107985 | Q128: 101.6107643
A129: =IF(COUNTRY_INFO!A129=0," ",COUNTRY_INFO!A129) -> DRC | B129: =IF(COUNTRY_INFO!B129=0," ",COUNTRY_INFO!B129) -> ITURI | C129: =IF(COUNTRY_INFO!C129=0," ",COUNTRY_INFO!C129) -> Tchomia | D129: =IF(COUNTRY_INFO!$U$9:$U$1000="MDA1 (IVM+ALB)", COUNTRY_INFO!$U$9:$U$1000, " ") -> MDA1 (IVM+ALB) | E129: DEC 2019 | G129: 33585 | H129: 44141 | I129: 77726 | K129: 31204.87654 | L129: 41012.12346 | M129: 72217 | O129: 92.91313546 | P129: 92.91163194 | Q129: 92.9122816
A130: =IF(COUNTRY_INFO!A130=0," ",COUNTRY_INFO!A130) -> DRC | B130: =IF(COUNTRY_INFO!B130=0," ",COUNTRY_INFO!B130) -> Kasai | C130: =IF(COUNTRY_INFO!C130=0," ",COUNTRY_INFO!C130) -> Banga Lubaka | D130: =IF(COUNTRY_INFO!$U$9:$U$1000="MDA1 (IVM+ALB)", COUNTRY_INFO!$U$9:$U$1000, " ") -> MDA1 (IVM+ALB) | E130: DEC 2019 | G130: 110035 | H130: 144618 | I130: 254653 | K130: 111616.2963 | L130: 146695.7037 | M130: 258312 | O130: 101.4370848 | P130: 101.436684 | Q130: 101.4368572
A131: =IF(COUNTRY_INFO!A131=0," ",COUNTRY_INFO!A131) -> DRC | B131: =IF(COUNTRY_INFO!B131=0," ",COUNTRY_INFO!B131) -> Kasai | C131: =IF(COUNTRY_INFO!C131=0," ",COUNTRY_INFO!C131) -> Bulape | D131: =IF(COUNTRY_INFO!$U$9:$U$1000="MDA1 (IVM+ALB)", COUNTRY_INFO!$U$9:$U$1000, " ") ->  | I131: 0
A132: =IF(COUNTRY_INFO!A132=0," ",COUNTRY_INFO!A132) -> DRC | B132: =IF(COUNTRY_INFO!B132=0," ",COUNTRY_INFO!B132) -> Kasai | C132: =IF(COUNTRY_INFO!C132=0," ",COUNTRY_INFO!C132) -> Dekese | D132: =IF(COUNTRY_INFO!$U$9:$U$1000="MDA1 (IVM+ALB)", COUNTRY_INFO!$U$9:$U$1000, " ") ->  | I132: 0
A133: =IF(COUNTRY_INFO!A133=0," ",COUNTRY_INFO!A133) -> DRC | B133: =IF(COUNTRY_INFO!B133=0," ",COUNTRY_INFO!B133) -> Kasai | C133: =IF(COUNTRY_INFO!C133=0," ",COUNTRY_INFO!C133) -> Ilebo | D133: =IF(COUNTRY_INFO!$U$9:$U$1000="MDA1 (IVM+ALB)", COUNTRY_INFO!$U$9:$U$1000, " ") -> MDA1 (IVM+ALB) | E133: DEC 2019 | G133: 75460 | H133: 99176 | I133: 174636 | K133: 75895.98765 | L133: 99749.01235 | M133: 175645 | O133: 100.5777732 | P133: 100.5777732 | Q133: 100.5777732
A134: =IF(COUNTRY_INFO!A134=0," ",COUNTRY_INFO!A134) -> DRC | B134: =IF(COUNTRY_INFO!B134=0," ",COUNTRY_INFO!B134) -> Kasai | C134: =IF(COUNTRY_INFO!C134=0," ",COUNTRY_INFO!C134) -> Kakenge | D134: =IF(COUNTRY_INFO!$U$9:$U$1000="MDA1 (IVM+ALB)", COUNTRY_INFO!$U$9:$U$1000, " ") ->  | I134: 0
A135: =IF(COUNTRY_INFO!A135=0," ",COUNTRY_INFO!A135) -> DRC | B135: =IF(COUNTRY_INFO!B135=0," ",COUNTRY_INFO!B135) -> Kasai | C135: =IF(COUNTRY_INFO!C135=0," ",COUNTRY_INFO!C135) -> Kalonda | D135: =IF(COUNTRY_INFO!$U$9:$U$1000="MDA1 (IVM+ALB)", COUNTRY_INFO!$U$9:$U$1000, " ") ->  | I135: 0
A136: =IF(COUNTRY_INFO!A136=0," ",COUNTRY_INFO!A136) -> DRC | B136: =IF(COUNTRY_INFO!B136=0," ",COUNTRY_INFO!B136) -> Kasai | C136: =IF(COUNTRY_INFO!C136=0," ",COUNTRY_INFO!C136) -> Kamonya | D136: =IF(COUNTRY_INFO!$U$9:$U$1000="MDA1 (IVM+ALB)", COUNTRY_INFO!$U$9:$U$1000, " ") -> MDA1 (IVM+ALB) | E136: DEC 2019 | G136: 161445 | H136: 212184 | I136: 373629 | K136: 161690.0617 | L136: 212506.9383 | M136: 374197 | O136: 100.1517927 | P136: 100.1521973 | Q136: 100.1520225
A137: =IF(COUNTRY_INFO!A137=0," ",COUNTRY_INFO!A137) -> DRC | B137: =IF(COUNTRY_INFO!B137=0," ",COUNTRY_INFO!B137) -> Kasai | C137: =IF(COUNTRY_INFO!C137=0," ",COUNTRY_INFO!C137) -> Kamwesha | D137: =IF(COUNTRY_INFO!$U$9:$U$1000="MDA1 (IVM+ALB)", COUNTRY_INFO!$U$9:$U$1000, " ") -> MDA1 (IVM+ALB) | E137: DEC 2019 | G137: 181090 | H137: 238004 | I137: 419094 | K137: 184348.0247 | L137: 242285.9753 | M137: 426634 | O137: 101.7991191 | P137: 101.7991191 | Q137: 101.7991191
A138: =IF(COUNTRY_INFO!A138=0," ",COUNTRY_INFO!A138) -> DRC | B138: =IF(COUNTRY_INFO!B138=0," ",COUNTRY_INFO!B138) -> Kasai | C138: =IF(COUNTRY_INFO!C138=0," ",COUNTRY_INFO!C138) -> Kanzala | D138: =IF(COUNTRY_INFO!$U$9:$U$1000="MDA1 (IVM+ALB)", COUNTRY_INFO!$U$9:$U$1000, " ") ->  | I138: =SUM(F138:H138) -> 0 | O138: =IF(G138<>0, IF(K138/G138*100=0, "-", K138/G138*100), " ") ->  | P138: =IF(H138<>0, IF(L138/H138*100=0, "-", L138/H138*100), " ") ->  | Q138: =IF(I138<>0, IF(M138/I138*100=0, "-", M138/I138*100), " ") -> 
A139: =IF(COUNTRY_INFO!A139=0," ",COUNTRY_INFO!A139) -> DRC | B139: =IF(COUNTRY_INFO!B139=0," ",COUNTRY_INFO!B139) -> Kasai | C139: =IF(COUNTRY_INFO!C139=0," ",COUNTRY_INFO!C139) -> Kitangwa | D139: =IF(COUNTRY_INFO!$U$9:$U$1000="MDA1 (IVM+ALB)", COUNTRY_INFO!$U$9:$U$1000, " ") -> MDA1 (IVM+ALB) | E139: DEC 2019 | G139: 110035 | H139: 144618 | I139: 254653 | K139: 111616.2963 | L139: 146695.7037 | M139: 258312 | O139: 101.4370848 | P139: 101.436684 | Q139: 101.4368572
A140: =IF(COUNTRY_INFO!A140=0," ",COUNTRY_INFO!A140) -> DRC | B140: =IF(COUNTRY_INFO!B140=0," ",COUNTRY_INFO!B140) -> Kasai | C140: =IF(COUNTRY_INFO!C140=0," ",COUNTRY_INFO!C140) -> Luebo | D140: =IF(COUNTRY_INFO!$U$9:$U$1000="MDA1 (IVM+ALB)", COUNTRY_INFO!$U$9:$U$1000, " ") -> MDA1 (IVM+ALB) | E140: DEC 2019 | G140: 33581 | H140: 44136 | I140: 77717 | K140: 33475.12346 | L140: 43995.87654 | M140: 77471 | O140: 99.68471295 | P140: 99.6825189 | Q140: 99.68346694
A141: =IF(COUNTRY_INFO!A141=0," ",COUNTRY_INFO!A141) -> DRC | B141: =IF(COUNTRY_INFO!B141=0," ",COUNTRY_INFO!B141) -> Kasai | C141: =IF(COUNTRY_INFO!C141=0," ",COUNTRY_INFO!C141) -> Mikope | D141: =IF(COUNTRY_INFO!$U$9:$U$1000="MDA1 (IVM+ALB)", COUNTRY_INFO!$U$9:$U$1000, " ") -> MDA1 (IVM+ALB) | E141: DEC 2019 | G141: 79332 | H141: 104265 | I141: 183597 | K141: 79979.75309 | L141: 105116.2469 | M141: 185096 | O141: 100.8165092 | P141: 100.8164263 | Q141: 100.8164621
A142: =IF(COUNTRY_INFO!A142=0," ",COUNTRY_INFO!A142) -> DRC | B142: =IF(COUNTRY_INFO!B142=0," ",COUNTRY_INFO!B142) -> Kasai | C142: =IF(COUNTRY_INFO!C142=0," ",COUNTRY_INFO!C142) -> Mushenge | D142: =IF(COUNTRY_INFO!$U$9:$U$1000="MDA1 (IVM+ALB)", COUNTRY_INFO!$U$9:$U$1000, " ") -> MDA1 (IVM+ALB) | E142: DEC 2019 | G142: 68970 | H142: 90646 | I142: 159616 | K142: 68202.90123 | L142: 89638.09877 | M142: 157841 | O142: 98.88777908 | P142: 98.88809078 | Q142: 98.88795609
A143: =IF(COUNTRY_INFO!A143=0," ",COUNTRY_INFO!A143) -> DRC | B143: =IF(COUNTRY_INFO!B143=0," ",COUNTRY_INFO!B143) -> Kasai | C143: =IF(COUNTRY_INFO!C143=0," ",COUNTRY_INFO!C143) -> Mutenna | D143: =IF(COUNTRY_INFO!$U$9:$U$1000="MDA1 (IVM+ALB)", COUNTRY_INFO!$U$9:$U$1000, " ") -> MDA1 (IVM+ALB) | E143: DEC 2019 | G143: 114239 | H143: 150143 | I143: 264382 | K143: 114432.716 | L143: 150397.284 | M143: 264830 | O143: 100.1695709 | P143: 100.1693612 | Q143: 100.1694518
A144: =IF(COUNTRY_INFO!A144=0," ",COUNTRY_INFO!A144) -> DRC | B144: =IF(COUNTRY_INFO!B144=0," ",COUNTRY_INFO!B144) -> Kasai | C144: =IF(COUNTRY_INFO!C144=0," ",COUNTRY_INFO!C144) -> Mweka | D144: =IF(COUNTRY_INFO!$U$9:$U$1000="MDA1 (IVM+ALB)", COUNTRY_INFO!$U$9:$U$1000, " ") ->  | I144: 0
A145: =IF(COUNTRY_INFO!A145=0," ",COUNTRY_INFO!A145) -> DRC | B145: =IF(COUNTRY_INFO!B145=0," ",COUNTRY_INFO!B145) -> Kasai | C145: =IF(COUNTRY_INFO!C145=0," ",COUNTRY_INFO!C145) -> Ndjoko Punda | D145: =IF(COUNTRY_INFO!$U$9:$U$1000="MDA1 (IVM+ALB)", COUNTRY_INFO!$U$9:$U$1000, " ") -> MDA1 (IVM+ALB) | E145: DEC 2019 | G145: 67971 | H145: 89334 | I145: 157305 | K145: 69265 | L145: 91034 | M145: 160299 | O145: 101.9037531 | P145: 101.9029709 | Q145: 101.9033089
A146: =IF(COUNTRY_INFO!A146=0," ",COUNTRY_INFO!A146) -> DRC | B146: =IF(COUNTRY_INFO!B146=0," ",COUNTRY_INFO!B146) -> Kasai | C146: =IF(COUNTRY_INFO!C146=0," ",COUNTRY_INFO!C146) -> Nyanga | D146: =IF(COUNTRY_INFO!$U$9:$U$1000="MDA1 (IVM+ALB)", COUNTRY_INFO!$U$9:$U$1000, " ") -> MDA1 (IVM+ALB) | E146: DEC 2019 | G146: 51293 | H146: 67413 | I146: 118706 | K146: 51977.16049 | L146: 68312.83951 | M146: 120290 | O146: 101.3338282 | P146: 101.334816 | Q146: 101.3343892
A147: =IF(COUNTRY_INFO!A147=0," ",COUNTRY_INFO!A147) -> DRC | B147: =IF(COUNTRY_INFO!B147=0," ",COUNTRY_INFO!B147) -> Kasai | C147: =IF(COUNTRY_INFO!C147=0," ",COUNTRY_INFO!C147) -> Tshikapa | D147: =IF(COUNTRY_INFO!$U$9:$U$1000="MDA1 (IVM+ALB)", COUNTRY_INFO!$U$9:$U$1000, " ") ->  | I147: 0
A148: =IF(COUNTRY_INFO!A148=0," ",COUNTRY_INFO!A148) -> DRC | B148: =IF(COUNTRY_INFO!B148=0," ",COUNTRY_INFO!B148) -> Kasai Central | C148: =IF(COUNTRY_INFO!C148=0," ",COUNTRY_INFO!C148) -> Bena Leke | D148: =IF(COUNTRY_INFO!$U$9:$U$1000="MDA1 (IVM+ALB)", COUNTRY_INFO!$U$9:$U$1000, " ") ->  | I148: 0
A149: =IF(COUNTRY_INFO!A149=0," ",COUNTRY_INFO!A149) -> DRC | B149: =IF(COUNTRY_INFO!B149=0," ",COUNTRY_INFO!B149) -> Kasai Central | C149: =IF(COUNTRY_INFO!C149=0," ",COUNTRY_INFO!C149) -> Bena Tshadi | D149: =IF(COUNTRY_INFO!$U$9:$U$1000="MDA1 (IVM+ALB)", COUNTRY_INFO!$U$9:$U$1000, " ") ->  | I149: 0
A150: =IF(COUNTRY_INFO!A150=0," ",COUNTRY_INFO!A150) -> DRC | B150: =IF(COUNTRY_INFO!B150=0," ",COUNTRY_INFO!B150) -> Kasai Central | C150: =IF(COUNTRY_INFO!C150=0," ",COUNTRY_INFO!C150) -> Bilonda | D150: =IF(COUNTRY_INFO!$U$9:$U$1000="MDA1 (IVM+ALB)", COUNTRY_INFO!$U$9:$U$1000, " ") -> MDA1 (IVM+ALB) | E150: DEC 2019 | G150: 37274 | H150: 48988 | I150: 86262 | K150: 37425.37037 | L150: 49187.62963 | M150: 86613 | O150: 100.4061018 | P150: 100.4075072 | Q150: 100.4068999
A151: =IF(COUNTRY_INFO!A151=0," ",COUNTRY_INFO!A151) -> DRC | B151: =IF(COUNTRY_INFO!B151=0," ",COUNTRY_INFO!B151) -> Kasai Central | C151: =IF(COUNTRY_INFO!C151=0," ",COUNTRY_INFO!C151) -> Bobozo | D151: =IF(COUNTRY_INFO!$U$9:$U$1000="MDA1 (IVM+ALB)", COUNTRY_INFO!$U$9:$U$1000, " ") ->  | I151: 0
A152: =IF(COUNTRY_INFO!A152=0," ",COUNTRY_INFO!A152) -> DRC | B152: =IF(COUNTRY_INFO!B152=0," ",COUNTRY_INFO!B152) -> Kasai Central | C152: =IF(COUNTRY_INFO!C152=0," ",COUNTRY_INFO!C152) -> Bukonde | D152: =IF(COUNTRY_INFO!$U$9:$U$1000="MDA1 (IVM+ALB)", COUNTRY_INFO!$U$9:$U$1000, " ") ->  | I152: 0
A153: =IF(COUNTRY_INFO!A153=0," ",COUNTRY_INFO!A153) -> DRC | B153: =IF(COUNTRY_INFO!B153=0," ",COUNTRY_INFO!B153) -> Kasai Central | C153: =IF(COUNTRY_INFO!C153=0," ",COUNTRY_INFO!C153) -> Demba | D153: =IF(COUNTRY_INFO!$U$9:$U$1000="MDA1 (IVM+ALB)", COUNTRY_INFO!$U$9:$U$1000, " ") ->  | I153: 0
A154: =IF(COUNTRY_INFO!A154=0," ",COUNTRY_INFO!A154) -> DRC | B154: =IF(COUNTRY_INFO!B154=0," ",COUNTRY_INFO!B154) -> Kasai Central | C154: =IF(COUNTRY_INFO!C154=0," ",COUNTRY_INFO!C154) -> Dibaya | D154: =IF(COUNTRY_INFO!$U$9:$U$1000="MDA1 (IVM+ALB)", COUNTRY_INFO!$U$9:$U$1000, " ") ->  | I154: 0
A155: =IF(COUNTRY_INFO!A155=0," ",COUNTRY_INFO!A155) -> DRC | B155: =IF(COUNTRY_INFO!B155=0," ",COUNTRY_INFO!B155) -> Kasai Central | C155: =IF(COUNTRY_INFO!C155=0," ",COUNTRY_INFO!C155) -> Kalomda | D155: =IF(COUNTRY_INFO!$U$9:$U$1000="MDA1 (IVM+ALB)", COUNTRY_INFO!$U$9:$U$1000, " ") -> MDA1 (IVM+ALB) | E155: DEC 2019 | G155: 60508 | H155: 79525 | I155: 140033 | K155: 62087.40741 | L155: 81600.59259 | M155: 143688 | O155: 102.6102456 | P155: 102.6099875 | Q155: 102.610099
A156: =IF(COUNTRY_INFO!A156=0," ",COUNTRY_INFO!A156) -> DRC | B156: =IF(COUNTRY_INFO!B156=0," ",COUNTRY_INFO!B156) -> Kasai Central | C156: =IF(COUNTRY_INFO!C156=0," ",COUNTRY_INFO!C156) -> Kananga | D156: =IF(COUNTRY_INFO!$U$9:$U$1000="MDA1 (IVM+ALB)", COUNTRY_INFO!$U$9:$U$1000, " ") -> MDA1 (IVM+ALB) | E156: DEC 2019 | G156: 125001 | H156: 164288 | I156: 289289 | K156: 127092.7778 | L156: 167036.2222 | M156: 294129 | O156: 101.6734088 | P156: 101.6728076 | Q156: 101.6730674
A157: =IF(COUNTRY_INFO!A157=0," ",COUNTRY_INFO!A157) -> DRC | B157: =IF(COUNTRY_INFO!B157=0," ",COUNTRY_INFO!B157) -> Kasai Central | C157: =IF(COUNTRY_INFO!C157=0," ",COUNTRY_INFO!C157) -> Katende | D157: =IF(COUNTRY_INFO!$U$9:$U$1000="MDA1 (IVM+ALB)", COUNTRY_INFO!$U$9:$U$1000, " ") -> MDA1 (IVM+ALB) | E157: DEC 2019 | G157: 37025 | H157: 48661 | I157: 85686 | K157: 37373.95062 | L157: 49120.04938 | M157: 86494 | O157: 100.942473 | P157: 100.943362 | Q157: 100.9429778
A158: =IF(COUNTRY_INFO!A158=0," ",COUNTRY_INFO!A158) -> DRC | B158: =IF(COUNTRY_INFO!B158=0," ",COUNTRY_INFO!B158) -> Kasai Central | C158: =IF(COUNTRY_INFO!C158=0," ",COUNTRY_INFO!C158) -> Katoka | D158: =IF(COUNTRY_INFO!$U$9:$U$1000="MDA1 (IVM+ALB)", COUNTRY_INFO!$U$9:$U$1000, " ") ->  | I158: 0
A159: =IF(COUNTRY_INFO!A159=0," ",COUNTRY_INFO!A159) -> DRC | B159: =IF(COUNTRY_INFO!B159=0," ",COUNTRY_INFO!B159) -> Kasai Central | C159: =IF(COUNTRY_INFO!C159=0," ",COUNTRY_INFO!C159) -> Luambo | D159: =IF(COUNTRY_INFO!$U$9:$U$1000="MDA1 (IVM+ALB)", COUNTRY_INFO!$U$9:$U$1000, " ") -> MDA1 (IVM+ALB) | E159: DEC 2019 | G159: 103684 | H159: 136271 | I159: 239955 | K159: 104226.1111 | L159: 136982.8889 | M159: 241209 | O159: 100.5228493 | P159: 100.5224067 | Q159: 100.522598
A160: =IF(COUNTRY_INFO!A160=0," ",COUNTRY_INFO!A160) -> DRC | B160: =IF(COUNTRY_INFO!B160=0," ",COUNTRY_INFO!B160) -> Kasai Central | C160: =IF(COUNTRY_INFO!C160=0," ",COUNTRY_INFO!C160) -> Lubondaie | D160: =IF(COUNTRY_INFO!$U$9:$U$1000="MDA1 (IVM+ALB)", COUNTRY_INFO!$U$9:$U$1000, " ") ->  | I160: 0
A161: =IF(COUNTRY_INFO!A161=0," ",COUNTRY_INFO!A161) -> DRC | B161: =IF(COUNTRY_INFO!B161=0," ",COUNTRY_INFO!B161) -> Kasai Central | C161: =IF(COUNTRY_INFO!C161=0," ",COUNTRY_INFO!C161) -> Lubunga 1 | D161: =IF(COUNTRY_INFO!$U$9:$U$1000="MDA1 (IVM+ALB)", COUNTRY_INFO!$U$9:$U$1000, " ") ->  | I161: 0
A162: =IF(COUNTRY_INFO!A162=0," ",COUNTRY_INFO!A162) -> DRC | B162: =IF(COUNTRY_INFO!B162=0," ",COUNTRY_INFO!B162) -> Kasai Central | C162: =IF(COUNTRY_INFO!C162=0," ",COUNTRY_INFO!C162) -> Luiza | D162: =IF(COUNTRY_INFO!$U$9:$U$1000="MDA1 (IVM+ALB)", COUNTRY_INFO!$U$9:$U$1000, " ") ->  | I162: 0
A163: =IF(COUNTRY_INFO!A163=0," ",COUNTRY_INFO!A163) -> DRC | B163: =IF(COUNTRY_INFO!B163=0," ",COUNTRY_INFO!B163) -> Kasai Central | C163: =IF(COUNTRY_INFO!C163=0," ",COUNTRY_INFO!C163) -> Lukonga | D163: =IF(COUNTRY_INFO!$U$9:$U$1000="MDA1 (IVM+ALB)", COUNTRY_INFO!$U$9:$U$1000, " ") -> MDA1 (IVM+ALB) | E163: DEC 2019 | G163: 112656 | H163: 148062 | I163: 260718 | K163: 115052.3457 | L163: 151211.6543 | M163: 266264 | O163: 102.1271354 | P163: 102.1272537 | Q163: 102.1272026
